Workbook

Sheet ACCUEILPRO
A1: Accueil
F7: =ACCUEIL!F7 -> 2021-04-04

Sheet ACCUEILPREM
A1: Accueil
F7: =ACCUEIL!F7 -> 2021-04-04

Sheet ACCUEILGP
A1: Accueil
F7: =ACCUEIL!F7 -> 2021-04-04

Sheet ACCUEIL
F7: 2021-04-04

Sheet Accueilagence
A1: Accueil
E7: =ACCUEIL!F7 -> 2021-04-04

Sheet Accueilsecteur
A1: Accueil
E7: =ACCUEIL!F7 -> 2021-04-04

Sheet AccueilDircom
A1: Accueil
E7: =ACCUEIL!F7 -> 2021-04-04

Sheet DC_FICHE
A1: Accueil
A2: BAROMETRE BDD
A4: UNITE: | B4: DIRECTION REGIONALE | E4: ETP perf : | F4: =VLOOKUP(A5,'RECAP DIRCOM'!$G$6:$I$12,3,FALSE) -> 253.89
A5: =VLOOKUP(B5,LISTES!$M$6:$N$12,2,FALSE) -> 262 | B5: BAS-RHIN
C6: Coefficient du critére | E6: Résultats | I6: Ecart au 1ier | M6: Evolution | O6: Rang
E7: du 1ier | G7: DIRECTION | I7: Du mois | K7: Au 31/12/2019
A9: RANG au CLASSEMENT GENERAL | K9: =VLOOKUP($A$5,'RECAP DIRCOM AN'!$G$6:$FS$312,168,FALSE) -> 6 | M9: =+K9-O9 ->  | O9: =VLOOKUP($A$5,'RECAP DIRCOM'!$G$6:$DG$312,168,FALSE) -> 
A11: CRITERE CLIENTS | C11: 15% | O11: =VLOOKUP($A$5,'RECAP DIRCOM'!$G$6:$DG$312,23,FALSE) -> 12.44248896
B12: PNB Evolution nette Clients BP | C12: 4% | E12: ='RECAP DIRCOM'!#REF! ->  | G12: =VLOOKUP($A$5,'RECAP DIRCOM'!$G$6:$DG$312,6,FALSE) -> 0.5 | I12: =VLOOKUP($A$5,'RECAP DIRCOM'!$G$6:$DG$312,7,FALSE) -> 600% | K12: =VLOOKUP($A$5,'RECAP DIRCOM AN'!$G$6:$FS$312,7,FALSE) -> 130% | M12: =+K12-I12 -> -470% | O12: =VLOOKUP($A$5,'RECAP DIRCOM'!$G$6:$DG$312,8,FALSE) -> 0.4721639091
B13: PNB Evolution nette Clients PREMIUM | C13: 5% | E13: ='RECAP DIRCOM'!#REF! ->  | G13: =VLOOKUP($A$5,'RECAP DIRCOM'!$G$6:$DG$312,10,FALSE) -> 6.0 | I13: =VLOOKUP($A$5,'RECAP DIRCOM'!$G$6:$DG$312,11,FALSE) -> 41% | K13: =VLOOKUP($A$5,'RECAP DIRCOM AN'!$G$6:$FS$312,11,FALSE) -> 1% | M13: =+K13-I13 -> -40% | O13: =VLOOKUP($A$5,'RECAP DIRCOM'!$G$6:$DG$312,12,FALSE) -> 0.407039758
B14: PNB Evolution nette Clients Jeunes Equipés | C14: 3% | E14: ='RECAP DIRCOM'!#REF! ->  | G14: =VLOOKUP($A$5,'RECAP DIRCOM'!$G$6:$DG$312,14,FALSE) -> 0.0 | I14: =VLOOKUP($A$5,'RECAP DIRCOM'!$G$6:$DG$312,15,FALSE) -> 0% | K14: =VLOOKUP($A$5,'RECAP DIRCOM AN'!$G$6:$FS$312,15,FALSE) -> 69% | M14: =+K14-I14 -> 69% | O14: =VLOOKUP($A$5,'RECAP DIRCOM'!$G$6:$DG$312,16,FALSE) -> 0
B15: PNB Evolution nette Clients Pro Actifs Equipés | C15: 3% | E15: ='RECAP DIRCOM'!W4 -> 0.0 | G15: =VLOOKUP($A$5,'RECAP DIRCOM'!$G$6:$DG$312,18,FALSE) -> 7115.5 | I15: =VLOOKUP($A$5,'RECAP DIRCOM'!$G$6:$DG$312,19,FALSE) -> 2803% | K15: =VLOOKUP($A$5,'RECAP DIRCOM AN'!$G$6:$FS$312,19,FALSE) -> 0% | M15: =+K15-I15 -> -2803% | O15: =VLOOKUP($A$5,'RECAP DIRCOM'!$G$6:$DG$312,20,FALSE) -> 0
A17: CRITERE BANCARISATION | C17: 15% | O17: =VLOOKUP($A$5,'RECAP DIRCOM'!$G$6:$DG$312,48,FALSE) -> 2
B18: PNB Ventes nettes forfaits | C18: 4% | E18: ='RECAP DIRCOM'!X4 -> 28.0 | G18: =VLOOKUP($A$5,'RECAP DIRCOM'!$G$6:$DG$312,31,FALSE) -> -0.7 | I18: =VLOOKUP($A$5,'RECAP DIRCOM'!$G$6:$DG$312,32,FALSE) -> 36% | K18: =VLOOKUP($A$5,'RECAP DIRCOM AN'!$G$6:$FS$312,32,FALSE) -> 126% | M18: =+K18-I18 -> 90% | O18: =VLOOKUP($A$5,'RECAP DIRCOM'!$G$6:$DG$312,33,FALSE) -> 7
B19: PNB Ventes nettes IZICARTES Débit Différé | C19: 4% | E19: ='RECAP DIRCOM'!AB4 -> 14.3 | G19: =VLOOKUP($A$5,'RECAP DIRCOM'!$G$6:$DG$312,35,FALSE) -> 0.0 | I19: =VLOOKUP($A$5,'RECAP DIRCOM'!$G$6:$DG$312,36,FALSE) -> 200% | K19: =VLOOKUP($A$5,'RECAP DIRCOM AN'!$G$6:$FS$312,36,FALSE) -> 0% | M19: =+K19-I19 -> -200% | O19: =VLOOKUP($A$5,'RECAP DIRCOM'!$G$6:$DG$312,37,FALSE) -> 0
B20: PNB Ventes nettes cartes HDG Débit Différé | C20: 4% | E20: ='RECAP DIRCOM'!AF4 -> 4.1 | G20: =VLOOKUP($A$5,'RECAP DIRCOM'!$G$6:$DG$312,39,FALSE) -> 0.0 | I20: =VLOOKUP($A$5,'RECAP DIRCOM'!$G$6:$DG$312,40,FALSE) -> 0% | K20: =VLOOKUP($A$5,'RECAP DIRCOM AN'!$G$6:$FS$312,40,FALSE) -> 0% | M20: =+K20-I20 -> 0% | O20: =VLOOKUP($A$5,'RECAP DIRCOM'!$G$6:$DG$312,41,FALSE) -> 57083.66622
B21: PNB Ventes nettes Forfaits Pro, Carte pro | C21: 3% | E21: ='RECAP DIRCOM'!AJ4 -> -0.5 | G21: =VLOOKUP($A$5,'RECAP DIRCOM'!$G$6:$DG$312,43,FALSE) -> 0.0 | I21: =VLOOKUP($A$5,'RECAP DIRCOM'!$G$6:$DG$312,44,FALSE) -> 100% | K21: =VLOOKUP($A$5,'RECAP DIRCOM AN'!$G$6:$FS$312,44,FALSE) -> 44% | M21: =+K21-I21 -> -56% | O21: =VLOOKUP($A$5,'RECAP DIRCOM'!$G$6:$DG$312,45,FALSE) -> 1999
A23: CRITERE EPARGNE | C23: 10% | O23: =VLOOKUP($A$5,'RECAP DIRCOM'!$G$6:$DG$312,69,FALSE) -> 0.323853656
B24: PNB Epargne Liquide | C24: 3% | E24: ='RECAP DIRCOM'!AU4 -> 224.8 | G24: =VLOOKUP($A$5,'RECAP DIRCOM'!$G$6:$DG$312,56,FALSE) -> 8703.1 | I24: =VLOOKUP($A$5,'RECAP DIRCOM'!$G$6:$DG$312,57,FALSE) -> 3428% | K24: =VLOOKUP($A$5,'RECAP DIRCOM AN'!$G$6:$FS$312,57,FALSE) -> 23% | M24: =+K24-I24 -> -3405% | O24: =VLOOKUP($A$5,'RECAP DIRCOM'!$G$6:$DG$312,58,FALSE) -> 0.5041703178
B25: PNB CA UC + arbitrage | C25: 4% | E25: ='RECAP DIRCOM'!AY4 -> 8.6 | G25: =VLOOKUP($A$5,'RECAP DIRCOM'!$G$6:$DG$312,60,FALSE) -> 3987.5 | I25: =VLOOKUP($A$5,'RECAP DIRCOM'!$G$6:$DG$312,61,FALSE) -> 1571% | K25: =VLOOKUP($A$5,'RECAP DIRCOM AN'!$G$6:$FS$312,61,FALSE) -> 0% | M25: =+K25-I25 -> -1571% | O25: =VLOOKUP($A$5,'RECAP DIRCOM'!$G$6:$DG$312,62,FALSE) -> 0.09030602051
B26: PNB Excédent assurance vie | C26: 3% | E26: ='RECAP DIRCOM'!#REF! ->  | G26: =VLOOKUP($A$5,'RECAP DIRCOM'!$G$6:$DG$312,64,FALSE) -> 1030.0 | I26: =VLOOKUP($A$5,'RECAP DIRCOM'!$G$6:$DG$312,65,FALSE) -> 406% | K26: =VLOOKUP($A$5,'RECAP DIRCOM AN'!$G$6:$FS$312,65,FALSE) -> 63% | M26: =+K26-I26 -> -343% | O26: =VLOOKUP($A$5,'RECAP DIRCOM'!$G$6:$DG$312,66,FALSE) -> 0.3474136695
A28: CRITERE CREDITS | C28: 15% | O28: =VLOOKUP($A$5,'RECAP DIRCOM'!$G$6:$DG$312,102,FALSE) -> 0.1657969984
B29: PNB crédit conso | C29: 4% | E29: ='RECAP DIRCOM'!BJ4 -> 69.1 | G29: =VLOOKUP($A$5,'RECAP DIRCOM'!$G$6:$DG$312,77,FALSE) -> 0.1 | I29: =VLOOKUP($A$5,'RECAP DIRCOM'!$G$6:$DG$312,78,FALSE) -> 400% | K29: =VLOOKUP($A$5,'RECAP DIRCOM AN'!$G$6:$FS$312,78,FALSE) -> 29% | M29: =+K29-I29 -> -371% | O29: =VLOOKUP($A$5,'RECAP DIRCOM'!$G$6:$DG$312,79,FALSE) -> 2886
B30: PNB ADE crédit conso | C30: 1% | E30: ='RECAP DIRCOM'!#REF! ->  | G30: =VLOOKUP($A$5,'RECAP DIRCOM'!$G$6:$DG$312,81,FALSE) -> 0.1 | I30: =VLOOKUP($A$5,'RECAP DIRCOM'!$G$6:$DG$312,82,FALSE) -> 300% | K30: =VLOOKUP($A$5,'RECAP DIRCOM AN'!$G$6:$FS$312,82,FALSE) -> 29% | M30: -271% | O30: =VLOOKUP($A$5,'RECAP DIRCOM'!$G$6:$DG$312,83,FALSE) -> 0.134283655
B31: PNB crédit immo | C31: 4% | E31: ='RECAP DIRCOM'!BN4 -> 17.3 | G31: =VLOOKUP($A$5,'RECAP DIRCOM'!$G$6:$DG$312,85,FALSE) -> 5.0 | I31: =VLOOKUP($A$5,'RECAP DIRCOM'!$G$6:$DG$312,86,FALSE) -> 0% | K31: =VLOOKUP($A$5,'RECAP DIRCOM AN'!$G$6:$FS$312,86,FALSE) -> 33% | M31: 33% | O31: =VLOOKUP($A$5,'RECAP DIRCOM'!$G$6:$DG$312,87,FALSE) -> 0
B32: PNB ADE crédit immo | C32: 2% | E32: ='RECAP DIRCOM'!#REF! ->  | G32: =VLOOKUP($A$5,'RECAP DIRCOM'!$G$6:$DG$312,89,FALSE) -> 0.0 | I32: =VLOOKUP($A$5,'RECAP DIRCOM'!$G$6:$DG$312,90,FALSE) -> 0% | K32: =VLOOKUP($A$5,'RECAP DIRCOM AN'!$G$6:$FS$312,90,FALSE) -> 47% | M32: 47% | O32: =VLOOKUP($A$5,'RECAP DIRCOM'!$G$6:$DG$312,91,FALSE) -> 0
B33: PNB SACCEF | C33: 2% | E33: ='RECAP DIRCOM'!#REF! ->  | G33: =VLOOKUP($A$5,'RECAP DIRCOM'!$G$6:$DG$312,93,FALSE) -> 0.0 | I33: =VLOOKUP($A$5,'RECAP DIRCOM'!$G$6:$DG$312,94,FALSE) -> 0% | K33: =VLOOKUP($A$5,'RECAP DIRCOM AN'!$G$6:$FS$312,94,FALSE) -> 36% | M33: 36% | O33: =VLOOKUP($A$5,'RECAP DIRCOM'!$G$6:$DG$312,95,FALSE) -> 0
B34: PNB Crédit MLT + Crédit Bail | C34: 2% | E34: ='RECAP DIRCOM'!BR4 -> 6.2 | G34: =VLOOKUP($A$5,'RECAP DIRCOM'!$G$6:$DG$312,97,FALSE) -> 0.0 | I34: =VLOOKUP($A$5,'RECAP DIRCOM'!$G$6:$DG$312,98,FALSE) -> 0% | K34: =VLOOKUP($A$5,'RECAP DIRCOM AN'!$G$6:$FS$312,98,FALSE) -> 0% | M34: 0% | O34: =VLOOKUP($A$5,'RECAP DIRCOM'!$G$6:$DG$312,99,FALSE) -> 0
A36: CRITERE IARD PREVOYANCE | C36: 15% | O36: =VLOOKUP($A$5,'RECAP DIRCOM'!$G$6:$DG$312,119,FALSE) -> 
B37: PNB Ventes nettes IARD | C37: 9% | E37: ='RECAP DIRCOM'!CC4 -> 77.9 | G37: =VLOOKUP($A$5,'RECAP DIRCOM'!$G$6:$DG$312,110,FALSE) ->  | I37: =VLOOKUP($A$5,'RECAP DIRCOM'!$G$6:$DG$312,111,FALSE) ->  | K37: =VLOOKUP($A$5,'RECAP DIRCOM AN'!$G$6:$FS$312,111,FALSE) -> 69% | M37: =+K37-I37 ->  | O37: =VLOOKUP($A$5,'RECAP DIRCOM'!$G$6:$DG$312,112,FALSE) -> 
B38: PNB Ventes nettes Prévoyance | C38: 6% | E38: ='RECAP DIRCOM'!CG4 -> 13.2 | G38: =VLOOKUP($A$5,'RECAP DIRCOM'!$G$6:$DG$312,114,FALSE) ->  | I38: =VLOOKUP($A$5,'RECAP DIRCOM'!$G$6:$DG$312,115,FALSE) ->  | K38: =VLOOKUP($A$5,'RECAP DIRCOM AN'!$G$6:$FS$312,115,FALSE) -> 42% | M38: =+K38-I38 ->  | O38: =VLOOKUP($A$5,'RECAP DIRCOM'!$G$6:$DG$312,116,FALSE) -> 
A40: CRITERE ACCELERATEURS PNB | C40: 15% | O40: =VLOOKUP($A$5,'RECAP DIRCOM'!$G$6:$DG$312,144,FALSE) -> 
B41: PNB Ventes brutes SED Finalisées | C41: 6% | E41: ='RECAP DIRCOM'!#REF! ->  | G41: =VLOOKUP($A$5,'RECAP DIRCOM'!$G$6:$DG$312,127,FALSE) ->  | I41: =VLOOKUP($A$5,'RECAP DIRCOM'!$G$6:$DG$312,128,FALSE) ->  | K41: =VLOOKUP($A$5,'RECAP DIRCOM AN'!$G$6:$FS$312,128,FALSE) -> 11% | M41: =+K41-I41 ->  | O41: =VLOOKUP($A$5,'RECAP DIRCOM'!$G$6:$DG$312,129,FALSE) -> 
B42: PNB clients équipés E documents | C42: 3% | E42: ='RECAP DIRCOM'!#REF! ->  | G42: =VLOOKUP($A$5,'RECAP DIRCOM'!$G$6:$DG$312,131,FALSE) ->  | I42: =VLOOKUP($A$5,'RECAP DIRCOM'!$G$6:$DG$312,132,FALSE) ->  | K42: =VLOOKUP($A$5,'RECAP DIRCOM AN'!$G$6:$FS$312,132,FALSE) -> 0% | M42: =+K42-I42 ->  | O42: =VLOOKUP($A$5,'RECAP DIRCOM'!$G$6:$DG$312,133,FALSE) -> 
B43: Economie opt'in | C43: 3% | E43: ='RECAP DIRCOM'!#REF! ->  | G43: =VLOOKUP($A$5,'RECAP DIRCOM'!$G$6:$DG$312,135,FALSE) ->  | I43: =VLOOKUP($A$5,'RECAP DIRCOM'!$G$6:$DG$312,136,FALSE) ->  | K43: =VLOOKUP($A$5,'RECAP DIRCOM AN'!$G$6:$FS$312,136,FALSE) -> 2% | M43: =+K43-I43 ->  | O43: =VLOOKUP($A$5,'RECAP DIRCOM'!$G$6:$DG$312,137,FALSE) -> 
B44: Remises commerciales | C44: 3% | E44: ='RECAP DIRCOM'!#REF! ->  | G44: =VLOOKUP($A$5,'RECAP DIRCOM'!$G$6:$DG$312,139,FALSE) ->  | I44: =VLOOKUP($A$5,'RECAP DIRCOM'!$G$6:$DG$312,140,FALSE) ->  | K44: =VLOOKUP($A$5,'RECAP DIRCOM AN'!$G$6:$FS$312,140,FALSE) -> 17% | M44: =+K44-I44 ->  | O44: =VLOOKUP($A$5,'RECAP DIRCOM'!$G$6:$DG$312,141,FALSE) -> 
A46: CRITERE Qualité-Satisfaction Clients | C46: 15% | O46: =VLOOKUP($A$5,'RECAP DIRCOM'!$G$6:$DG$312,159,FALSE) -> 
B47: Objectifs NPS* | C47: 8% | E47: ='RECAP DIRCOM'!K4 -> 17 | G47: =VLOOKUP($A$5,'RECAP DIRCOM'!$G$6:$DG$312,151,FALSE) ->  | I47: =VLOOKUP($A$5,'RECAP DIRCOM'!$G$6:$DG$312,152,FALSE) ->  | K47: =VLOOKUP($A$5,'RECAP DIRCOM AN'!$G$6:$FS$312,152,FALSE) -> 150% | M47: =+K47-I47 ->  | O47: =VLOOKUP($A$5,'RECAP DIRCOM'!$G$6:$DG$312,153,FALSE) -> 
B48: Enquête Qualité Haute Définition | C48: 7% | E48: ='RECAP DIRCOM'!N4 -> 66% | G48: =VLOOKUP($A$5,'RECAP DIRCOM'!$G$6:$DG$312,154,FALSE) ->  | I48: =VLOOKUP($A$5,'RECAP DIRCOM'!$G$6:$DG$312,155,FALSE) ->  | K48: =VLOOKUP($A$5,'RECAP DIRCOM AN'!$G$6:$FS$312,155,FALSE) -> 8% | M48: =+K48-I48 ->  | O48: =VLOOKUP($A$5,'RECAP DIRCOM'!$G$6:$DG$312,156,FALSE) -> 

Sheet DC_TOTAL
B1: Accueil | D1: BAROMETRE BDD - DIRECTIONS REGIONALES
D2: TOTAL GENERAL
D3: =ACCUEIL!F7 -> 2021-04-04
D7: TOTAL GENERAL | G7: Total Satisfaction Clients | J7: Total Bancarisation | M7: Total Epargne | P7: Total IARD Prévoyance | S7: Total Crédits
E8: coef | F8: 100% | H8: coef | I8: =DC_SATISFACTION!L8 -> 20% | K8: coef | L8: =DC_BANCA!V8 -> 20% | N8: coef | O8: =DC_EPARGNE!N8 -> 20% | Q8: coef | R8: =DC_IARD!N8 -> 20% | T8: coef | U8: =DC_CREDIT!R8 -> 20%
A9: eds | B9: Direction | C9: ="ETP perf "&DATEMAJ!$C$28 -> ETP perf 28-févr | D9: Moyenne ecart au 1er | E9: % Ecart au 1er | F9: Rang CEGEE | G9: Moyenne ecart au 1er | H9: % Ecart au 1er | I9: Rang CEGEE | J9: Moyenne ecart au 1er | K9: % Ecart au 1er | L9: Rang CEGEE | M9: Moyenne ecart au 1er | N9: % Ecart au 1er | O9: Rang CEGEE | P9: Moyenne ecart au 1er | Q9: % Ecart au 1er | R9: Rang CEGEE | S9: Moyenne ecart au 1er | T9: % Ecart au 1er | U9: Rang CEGEE
A10: 50 | B10: Meurthe et Moselle Meuse | C10: 245 | D10: 10% | E10: 0% | F10: 1 | G10: 28% | H10: 28% | I10: 4 | J10: 12% | K10: 0% | L10: 1 | M10: 18% | N10: 16% | O10: 3 | P10: 11% | Q10: 4% | R10: 2 | S10: 1% | T10: 0% | U10: 1
A11: 262 | B11: Marne-Ardennes | C11: 228 | D11: 15% | E11: 5% | F11: 2 | G11: 19% | H11: 19% | I11: 3 | J11: 30% | K11: 19% | L11: 3 | M11: 18% | N11: 16% | O11: 4 | P11: 13% | Q11: 6% | R11: 4 | S11: 17% | T11: 16% | U11: 2
A12: 264 | B12: Vosges | C12: 134 | D12: 15% | E12: 6% | F12: 3 | G12: 0% | H12: 0% | I12: 1 | J12: 42% | K12: 31% | L12: 6 | M12: 15% | N12: 12% | O12: 2 | P12: 7% | Q12: 0% | R12: 1 | S12: 35% | T12: 34% | U12: 6
A13: 30 | B13: Bas-Rhin | C13: 254 | D13: 17% | E13: 7% | F13: 4 | G13: 41% | H13: 41% | I13: 6 | J13: 15% | K13: 3% | L13: 2 | M13: 2% | N13: 0% | O13: 1 | P13: 13% | Q13: 7% | R13: 5 | S13: 33% | T13: 32% | U13: 5
A14: 110 | B14: Moselle | C14: 271 | D14: 21% | E14: 11% | F14: 5 | G14: 34% | H14: 34% | I14: 5 | J14: 32% | K14: 20% | L14: 4 | M14: 22% | N14: 19% | O14: 5 | P14: 12% | Q14: 5% | R14: 3 | S14: 28% | T14: 27% | U14: 3
A15: 160 | B15: Aube Haute Marne | C15: 128 | D15: 29% | E15: 19% | F15: 6 | G15: 18% | H15: 18% | I15: 2 | J15: 39% | K15: 27% | L15: 5 | M15: 45% | N15: 43% | O15: 7 | P15: 30% | Q15: 23% | R15: 6 | S15: 33% | T15: 32% | U15: 4
A16: 80 | B16: Haut-Rhin | C16: 155 | D16: 46% | E16: 37% | F16: 7 | G16: 63% | H16: 63% | I16: 7 | J16: 55% | K16: 44% | L16: 7 | M16: 45% | N16: 43% | O16: 6 | P16: 41% | Q16: 34% | R16: 7 | S16: 49% | T16: 48% | U16: 7
B17: Total CEGEE Directions Régionales | C17: =SUM(C10:C16) -> 1414

Sheet DC_BANCA
B1: Accueil | D1: BAROMETRE BDD - DIRECTIONS REGIONALES
D2: BANCARISATION
D3: =ACCUEIL!F7 -> 2021-04-04
D7: Ventes Nettes produits pondérés | H7: Ventes sur client non détenteur de l’univers | L7: Mobilité Macron | P7: Remises commerciales | T7: Total Bancarisation
D8: =DATEMAJ!C8 -> au 04/04 | F8: coef | G8: ='RECAP DIRCOM'!AA4 -> 10% | H8: =DATEMAJ!C9 -> au 04/04 | J8: coef | K8: ='RECAP DIRCOM'!AE4 -> 4% | L8: =DATEMAJ!C10 -> au 04/04 | N8: coef | O8: ='RECAP DIRCOM'!AI4 -> 3% | P8: =DATEMAJ!C11 -> au 28/02 | R8: coef | S8: ='RECAP DIRCOM'!AM4 -> 3% | U8: coef | V8: ='RECAP DIRCOM'!AP4 -> 20%
B9: Direction | C9: ="ETP perf "&DATEMAJ!$C$28 -> ETP perf 28-févr | D9: VN | E9: VN / ETP | F9: % Ecart au 1er | G9: Rang | H9: VB | I9: VB / ETP | J9: % Ecart au 1er | K9: Rang | L9: Nb | M9: Nb / ETP | N9: % Ecart au 1er | O9: Rang | P9: Montant | Q9: Montant / ETP | R9: % Ecart au 1er | S9: Rang | T9: Moyenne ecart au 1er | U9: % Ecart au 1er | V9: Rang CEGEE
A10: 50 | B10: Aube Haute Marne | C10: =VLOOKUP($A10,'RECAP DIRCOM'!$G$6:$DC$12,3,FALSE) -> 128 | D10: =VLOOKUP($A10,'RECAP DIRCOM'!$G$6:$DC$12,18,FALSE) -> 1,731 | E10: =VLOOKUP($A10,'RECAP DIRCOM'!$G$6:$DC$12,19,FALSE) -> 13.47 | F10: =VLOOKUP($A10,'RECAP DIRCOM'!$G$6:$DC$12,20,FALSE) -> 52% | G10: =VLOOKUP($A10,'RECAP DIRCOM'!$G$6:$DC$12,21,FALSE) -> 6 | H10: =VLOOKUP($A10,'RECAP DIRCOM'!$G$6:$DC$12,22,FALSE) -> 1,458 | I10: =VLOOKUP($A10,'RECAP DIRCOM'!$G$6:$DC$12,23,FALSE) -> 11.35 | J10: =VLOOKUP($A10,'RECAP DIRCOM'!$G$6:$DC$12,24,FALSE) -> 21% | K10: =VLOOKUP($A10,'RECAP DIRCOM'!$G$6:$DC$12,25,FALSE) -> 5 | L10: =VLOOKUP($A10,'RECAP DIRCOM'!$G$6:$DC$12,26,FALSE) -> 215 | M10: =VLOOKUP($A10,'RECAP DIRCOM'!$G$6:$DC$12,27,FALSE) -> 1.67 | N10: =VLOOKUP($A10,'RECAP DIRCOM'!$G$6:$DC$12,28,FALSE) -> 59% | O10: =VLOOKUP($A10,'RECAP DIRCOM'!$G$6:$DC$12,29,FALSE) -> 6 | P10: =VLOOKUP($A10,'RECAP DIRCOM'!$G$6:$DC$12,30,FALSE) -> -69 | Q10: =VLOOKUP($A10,'RECAP DIRCOM'!$G$6:$DC$12,31,FALSE) -> -0.53 | R10: =VLOOKUP($A10,'RECAP DIRCOM'!$G$6:$DC$12,32,FALSE) -> 0% | S10: =VLOOKUP($A10,'RECAP DIRCOM'!$G$6:$DC$12,33,FALSE) -> 1 | T10: =VLOOKUP($A10,'RECAP DIRCOM'!$G$6:$DC$12,34,FALSE) -> 39% | U10: =VLOOKUP($A10,'RECAP DIRCOM'!$G$6:$DC$12,35,FALSE) -> 27% | V10: =VLOOKUP($A10,'RECAP DIRCOM'!$G$6:$DC$12,36,FALSE) -> 5
A11: 262 | B11: Bas-Rhin | C11: =VLOOKUP($A11,'RECAP DIRCOM'!$G$6:$DC$12,3,FALSE) -> 254 | D11: =VLOOKUP($A11,'RECAP DIRCOM'!$G$6:$DC$12,18,FALSE) -> 7,116 | E11: =VLOOKUP($A11,'RECAP DIRCOM'!$G$6:$DC$12,19,FALSE) -> 28.03 | F11: =VLOOKUP($A11,'RECAP DIRCOM'!$G$6:$DC$12,20,FALSE) -> 0% | G11: =VLOOKUP($A11,'RECAP DIRCOM'!$G$6:$DC$12,21,FALSE) -> 1 | H11: =VLOOKUP($A11,'RECAP DIRCOM'!$G$6:$DC$12,22,FALSE) -> 3,159 | I11: =VLOOKUP($A11,'RECAP DIRCOM'!$G$6:$DC$12,23,FALSE) -> 12.44 | J11: =VLOOKUP($A11,'RECAP DIRCOM'!$G$6:$DC$12,24,FALSE) -> 13% | K11: =VLOOKUP($A11,'RECAP DIRCOM'!$G$6:$DC$12,25,FALSE) -> 3 | L11: =VLOOKUP($A11,'RECAP DIRCOM'!$G$6:$DC$12,26,FALSE) -> 557 | M11: =VLOOKUP($A11,'RECAP DIRCOM'!$G$6:$DC$12,27,FALSE) -> 2.19 | N11: =VLOOKUP($A11,'RECAP DIRCOM'!$G$6:$DC$12,28,FALSE) -> 46% | O11: =VLOOKUP($A11,'RECAP DIRCOM'!$G$6:$DC$12,29,FALSE) -> 3 | P11: =VLOOKUP($A11,'RECAP DIRCOM'!$G$6:$DC$12,30,FALSE) -> -185 | Q11: =VLOOKUP($A11,'RECAP DIRCOM'!$G$6:$DC$12,31,FALSE) -> -0.73 | R11: =VLOOKUP($A11,'RECAP DIRCOM'!$G$6:$DC$12,32,FALSE) -> 36% | S11: =VLOOKUP($A11,'RECAP DIRCOM'!$G$6:$DC$12,33,FALSE) -> 7 | T11: =VLOOKUP($A11,'RECAP DIRCOM'!$G$6:$DC$12,34,FALSE) -> 15% | U11: =VLOOKUP($A11,'RECAP DIRCOM'!$G$6:$DC$12,35,FALSE) -> 3% | V11: =VLOOKUP($A11,'RECAP DIRCOM'!$G$6:$DC$12,36,FALSE) -> 2
A12: 264 | B12: Haut-Rhin | C12: =VLOOKUP($A12,'RECAP DIRCOM'!$G$6:$DC$12,3,FALSE) -> 155 | D12: =VLOOKUP($A12,'RECAP DIRCOM'!$G$6:$DC$12,18,FALSE) -> 1,331 | E12: =VLOOKUP($A12,'RECAP DIRCOM'!$G$6:$DC$12,19,FALSE) -> 8.58 | F12: =VLOOKUP($A12,'RECAP DIRCOM'!$G$6:$DC$12,20,FALSE) -> 69% | G12: =VLOOKUP($A12,'RECAP DIRCOM'!$G$6:$DC$12,21,FALSE) -> 7 | H12: =VLOOKUP($A12,'RECAP DIRCOM'!$G$6:$DC$12,22,FALSE) -> 1,480 | I12: =VLOOKUP($A12,'RECAP DIRCOM'!$G$6:$DC$12,23,FALSE) -> 9.54 | J12: =VLOOKUP($A12,'RECAP DIRCOM'!$G$6:$DC$12,24,FALSE) -> 33% | K12: =VLOOKUP($A12,'RECAP DIRCOM'!$G$6:$DC$12,25,FALSE) -> 7 | L12: =VLOOKUP($A12,'RECAP DIRCOM'!$G$6:$DC$12,26,FALSE) -> 149 | M12: =VLOOKUP($A12,'RECAP DIRCOM'!$G$6:$DC$12,27,FALSE) -> 0.96 | N12: =VLOOKUP($A12,'RECAP DIRCOM'!$G$6:$DC$12,28,FALSE) -> 76% | O12: =VLOOKUP($A12,'RECAP DIRCOM'!$G$6:$DC$12,29,FALSE) -> 7 | P12: =VLOOKUP($A12,'RECAP DIRCOM'!$G$6:$DC$12,30,FALSE) -> -97 | Q12: =VLOOKUP($A12,'RECAP DIRCOM'!$G$6:$DC$12,31,FALSE) -> -0.62 | R12: =VLOOKUP($A12,'RECAP DIRCOM'!$G$6:$DC$12,32,FALSE) -> 17% | S12: =VLOOKUP($A12,'RECAP DIRCOM'!$G$6:$DC$12,33,FALSE) -> 4 | T12: =VLOOKUP($A12,'RECAP DIRCOM'!$G$6:$DC$12,34,FALSE) -> 55% | U12: =VLOOKUP($A12,'RECAP DIRCOM'!$G$6:$DC$12,35,FALSE) -> 44% | V12: =VLOOKUP($A12,'RECAP DIRCOM'!$G$6:$DC$12,36,FALSE) -> 7
A13: 30 | B13: Marne-Ardennes | C13: =VLOOKUP($A13,'RECAP DIRCOM'!$G$6:$DC$12,3,FALSE) -> 228 | D13: =VLOOKUP($A13,'RECAP DIRCOM'!$G$6:$DC$12,18,FALSE) -> 3,276 | E13: =VLOOKUP($A13,'RECAP DIRCOM'!$G$6:$DC$12,19,FALSE) -> 14.38 | F13: =VLOOKUP($A13,'RECAP DIRCOM'!$G$6:$DC$12,20,FALSE) -> 49% | G13: =VLOOKUP($A13,'RECAP DIRCOM'!$G$6:$DC$12,21,FALSE) -> 4 | H13: =VLOOKUP($A13,'RECAP DIRCOM'!$G$6:$DC$12,22,FALSE) -> 2,944 | I13: =VLOOKUP($A13,'RECAP DIRCOM'!$G$6:$DC$12,23,FALSE) -> 12.92 | J13: =VLOOKUP($A13,'RECAP DIRCOM'!$G$6:$DC$12,24,FALSE) -> 10% | K13: =VLOOKUP($A13,'RECAP DIRCOM'!$G$6:$DC$12,25,FALSE) -> 2 | L13: =VLOOKUP($A13,'RECAP DIRCOM'!$G$6:$DC$12,26,FALSE) -> 851 | M13: =VLOOKUP($A13,'RECAP DIRCOM'!$G$6:$DC$12,27,FALSE) -> 3.74 | N13: =VLOOKUP($A13,'RECAP DIRCOM'!$G$6:$DC$12,28,FALSE) -> 8% | O13: =VLOOKUP($A13,'RECAP DIRCOM'!$G$6:$DC$12,29,FALSE) -> 2 | P13: =VLOOKUP($A13,'RECAP DIRCOM'!$G$6:$DC$12,30,FALSE) -> -143 | Q13: =VLOOKUP($A13,'RECAP DIRCOM'!$G$6:$DC$12,31,FALSE) -> -0.63 | R13: =VLOOKUP($A13,'RECAP DIRCOM'!$G$6:$DC$12,32,FALSE) -> 18% | S13: =VLOOKUP($A13,'RECAP DIRCOM'!$G$6:$DC$12,33,FALSE) -> 5 | T13: =VLOOKUP($A13,'RECAP DIRCOM'!$G$6:$DC$12,34,FALSE) -> 30% | U13: =VLOOKUP($A13,'RECAP DIRCOM'!$G$6:$DC$12,35,FALSE) -> 19% | V13: =VLOOKUP($A13,'RECAP DIRCOM'!$G$6:$DC$12,36,FALSE) -> 3
A14: 110 | B14: Meurthe et Moselle Meuse | C14: =VLOOKUP($A14,'RECAP DIRCOM'!$G$6:$DC$12,3,FALSE) -> 245 | D14: =VLOOKUP($A14,'RECAP DIRCOM'!$G$6:$DC$12,18,FALSE) -> 5,553 | E14: =VLOOKUP($A14,'RECAP DIRCOM'!$G$6:$DC$12,19,FALSE) -> 22.71 | F14: =VLOOKUP($A14,'RECAP DIRCOM'!$G$6:$DC$12,20,FALSE) -> 19% | G14: =VLOOKUP($A14,'RECAP DIRCOM'!$G$6:$DC$12,21,FALSE) -> 2 | H14: =VLOOKUP($A14,'RECAP DIRCOM'!$G$6:$DC$12,22,FALSE) -> 3,508 | I14: =VLOOKUP($A14,'RECAP DIRCOM'!$G$6:$DC$12,23,FALSE) -> 14.35 | J14: =VLOOKUP($A14,'RECAP DIRCOM'!$G$6:$DC$12,24,FALSE) -> 0% | K14: =VLOOKUP($A14,'RECAP DIRCOM'!$G$6:$DC$12,25,FALSE) -> 1 | L14: =VLOOKUP($A14,'RECAP DIRCOM'!$G$6:$DC$12,26,FALSE) -> 995 | M14: =VLOOKUP($A14,'RECAP DIRCOM'!$G$6:$DC$12,27,FALSE) -> 4.07 | N14: =VLOOKUP($A14,'RECAP DIRCOM'!$G$6:$DC$12,28,FALSE) -> 0% | O14: =VLOOKUP($A14,'RECAP DIRCOM'!$G$6:$DC$12,29,FALSE) -> 1 | P14: =VLOOKUP($A14,'RECAP DIRCOM'!$G$6:$DC$12,30,FALSE) -> -150 | Q14: =VLOOKUP($A14,'RECAP DIRCOM'!$G$6:$DC$12,31,FALSE) -> -0.61 | R14: =VLOOKUP($A14,'RECAP DIRCOM'!$G$6:$DC$12,32,FALSE) -> 15% | S14: =VLOOKUP($A14,'RECAP DIRCOM'!$G$6:$DC$12,33,FALSE) -> 3 | T14: =VLOOKUP($A14,'RECAP DIRCOM'!$G$6:$DC$12,34,FALSE) -> 12% | U14: =VLOOKUP($A14,'RECAP DIRCOM'!$G$6:$DC$12,35,FALSE) -> 0% | V14: =VLOOKUP($A14,'RECAP DIRCOM'!$G$6:$DC$12,36,FALSE) -> 1
A15: 160 | B15: Moselle | C15: =VLOOKUP($A15,'RECAP DIRCOM'!$G$6:$DC$12,3,FALSE) -> 271 | D15: =VLOOKUP($A15,'RECAP DIRCOM'!$G$6:$DC$12,18,FALSE) -> 4,832 | E15: =VLOOKUP($A15,'RECAP DIRCOM'!$G$6:$DC$12,19,FALSE) -> 17.85 | F15: =VLOOKUP($A15,'RECAP DIRCOM'!$G$6:$DC$12,20,FALSE) -> 36% | G15: =VLOOKUP($A15,'RECAP DIRCOM'!$G$6:$DC$12,21,FALSE) -> 3 | H15: =VLOOKUP($A15,'RECAP DIRCOM'!$G$6:$DC$12,22,FALSE) -> 3,114 | I15: =VLOOKUP($A15,'RECAP DIRCOM'!$G$6:$DC$12,23,FALSE) -> 11.50 | J15: =VLOOKUP($A15,'RECAP DIRCOM'!$G$6:$DC$12,24,FALSE) -> 20% | K15: =VLOOKUP($A15,'RECAP DIRCOM'!$G$6:$DC$12,25,FALSE) -> 4 | L15: =VLOOKUP($A15,'RECAP DIRCOM'!$G$6:$DC$12,26,FALSE) -> 480 | M15: =VLOOKUP($A15,'RECAP DIRCOM'!$G$6:$DC$12,27,FALSE) -> 1.77 | N15: =VLOOKUP($A15,'RECAP DIRCOM'!$G$6:$DC$12,28,FALSE) -> 56% | O15: =VLOOKUP($A15,'RECAP DIRCOM'!$G$6:$DC$12,29,FALSE) -> 5 | P15: =VLOOKUP($A15,'RECAP DIRCOM'!$G$6:$DC$12,30,FALSE) -> -154 | Q15: =VLOOKUP($A15,'RECAP DIRCOM'!$G$6:$DC$12,31,FALSE) -> -0.57 | R15: =VLOOKUP($A15,'RECAP DIRCOM'!$G$6:$DC$12,32,FALSE) -> 7% | S15: =VLOOKUP($A15,'RECAP DIRCOM'!$G$6:$DC$12,33,FALSE) -> 2 | T15: =VLOOKUP($A15,'RECAP DIRCOM'!$G$6:$DC$12,34,FALSE) -> 32% | U15: =VLOOKUP($A15,'RECAP DIRCOM'!$G$6:$DC$12,35,FALSE) -> 20% | V15: =VLOOKUP($A15,'RECAP DIRCOM'!$G$6:$DC$12,36,FALSE) -> 4
A16: 80 | B16: Vosges | C16: =VLOOKUP($A16,'RECAP DIRCOM'!$G$6:$DC$12,3,FALSE) -> 134 | D16: =VLOOKUP($A16,'RECAP DIRCOM'!$G$6:$DC$12,18,FALSE) -> 1,874 | E16: =VLOOKUP($A16,'RECAP DIRCOM'!$G$6:$DC$12,19,FALSE) -> 14.00 | F16: =VLOOKUP($A16,'RECAP DIRCOM'!$G$6:$DC$12,20,FALSE) -> 50% | G16: =VLOOKUP($A16,'RECAP DIRCOM'!$G$6:$DC$12,21,FALSE) -> 5 | H16: =VLOOKUP($A16,'RECAP DIRCOM'!$G$6:$DC$12,22,FALSE) -> 1,494 | I16: =VLOOKUP($A16,'RECAP DIRCOM'!$G$6:$DC$12,23,FALSE) -> 11.16 | J16: =VLOOKUP($A16,'RECAP DIRCOM'!$G$6:$DC$12,24,FALSE) -> 22% | K16: =VLOOKUP($A16,'RECAP DIRCOM'!$G$6:$DC$12,25,FALSE) -> 6 | L16: =VLOOKUP($A16,'RECAP DIRCOM'!$G$6:$DC$12,26,FALSE) -> 241 | M16: =VLOOKUP($A16,'RECAP DIRCOM'!$G$6:$DC$12,27,FALSE) -> 1.80 | N16: =VLOOKUP($A16,'RECAP DIRCOM'!$G$6:$DC$12,28,FALSE) -> 56% | O16: =VLOOKUP($A16,'RECAP DIRCOM'!$G$6:$DC$12,29,FALSE) -> 4 | P16: =VLOOKUP($A16,'RECAP DIRCOM'!$G$6:$DC$12,30,FALSE) -> -93 | Q16: =VLOOKUP($A16,'RECAP DIRCOM'!$G$6:$DC$12,31,FALSE) -> -0.69 | R16: =VLOOKUP($A16,'RECAP DIRCOM'!$G$6:$DC$12,32,FALSE) -> 29% | S16: =VLOOKUP($A16,'RECAP DIRCOM'!$G$6:$DC$12,33,FALSE) -> 6 | T16: =VLOOKUP($A16,'RECAP DIRCOM'!$G$6:$DC$12,34,FALSE) -> 42% | U16: =VLOOKUP($A16,'RECAP DIRCOM'!$G$6:$DC$12,35,FALSE) -> 31% | V16: =VLOOKUP($A16,'RECAP DIRCOM'!$G$6:$DC$12,36,FALSE) -> 6
B17: Total CEGEE Directions Régionales | C17: =SUM(C10:C16) -> 1414

Sheet DC_EPARGNE
B1: Accueil | D1: BAROMETRE BDD - DIRECTIONS REGIONALES
D2: EPARGNE
D3: =ACCUEIL!F7 -> 2021-04-04
D7: Excédent Epargne y/c DAV pondéré | H7: Ventes sur client non détenteur de l’univers | L7: Total Epargne
D8: =DATEMAJ!C14 -> au 04/04 | F8: coef | G8: ='RECAP DIRCOM'!AX4 -> 14% | H8: =DATEMAJ!C15 -> au 04/04 | J8: coef | K8: ='RECAP DIRCOM'!BB4 -> 6% | M8: coef | N8: ='RECAP DIRCOM'!BE4 -> 20%
B9: Direction | C9: ="ETP perf "&DATEMAJ!$C$28 -> ETP perf 28-févr | D9: Excédent | E9: Excédent / ETP | F9: % Ecart au 1er | G9: Rang | H9: VB | I9: VB / ETP | J9: % Ecart au 1er | K9: Rang | L9: Moyenne ecart au 1er | M9: % Ecart au 1er | N9: Rang CEGEE
A10: 50 | B10: Aube Haute Marne | C10: =VLOOKUP($A10,'RECAP DIRCOM'!$G$6:$DC$12,3,FALSE) -> 128 | D10: =VLOOKUP($A10,'RECAP DIRCOM'!$G$6:$DC$12,41,FALSE) -> 12,989 | E10: =VLOOKUP($A10,'RECAP DIRCOM'!$G$6:$DC$12,42,FALSE) -> 101.10 | F10: =VLOOKUP($A10,'RECAP DIRCOM'!$G$6:$DC$12,43,FALSE) -> 55% | G10: =VLOOKUP($A10,'RECAP DIRCOM'!$G$6:$DC$12,44,FALSE) -> 7 | H10: =VLOOKUP($A10,'RECAP DIRCOM'!$G$6:$DC$12,45,FALSE) -> 859 | I10: =VLOOKUP($A10,'RECAP DIRCOM'!$G$6:$DC$12,46,FALSE) -> 6.69 | J10: =VLOOKUP($A10,'RECAP DIRCOM'!$G$6:$DC$12,47,FALSE) -> 22% | K10: =VLOOKUP($A10,'RECAP DIRCOM'!$G$6:$DC$12,48,FALSE) -> 4 | L10: =VLOOKUP($A10,'RECAP DIRCOM'!$G$6:$DC$12,49,FALSE) -> 45% | M10: =VLOOKUP($A10,'RECAP DIRCOM'!$G$6:$DC$12,50,FALSE) -> 43% | N10: =VLOOKUP($A10,'RECAP DIRCOM'!$G$6:$DC$12,51,FALSE) -> 7
A11: 262 | B11: Bas-Rhin | C11: =VLOOKUP($A11,'RECAP DIRCOM'!$G$6:$DC$12,3,FALSE) -> 254 | D11: =VLOOKUP($A11,'RECAP DIRCOM'!$G$6:$DC$12,41,FALSE) -> 57,084 | E11: =VLOOKUP($A11,'RECAP DIRCOM'!$G$6:$DC$12,42,FALSE) -> 224.84 | F11: =VLOOKUP($A11,'RECAP DIRCOM'!$G$6:$DC$12,43,FALSE) -> 0% | G11: =VLOOKUP($A11,'RECAP DIRCOM'!$G$6:$DC$12,44,FALSE) -> 1 | H11: =VLOOKUP($A11,'RECAP DIRCOM'!$G$6:$DC$12,45,FALSE) -> 1,999 | I11: =VLOOKUP($A11,'RECAP DIRCOM'!$G$6:$DC$12,46,FALSE) -> 7.87 | J11: =VLOOKUP($A11,'RECAP DIRCOM'!$G$6:$DC$12,47,FALSE) -> 8% | K11: =VLOOKUP($A11,'RECAP DIRCOM'!$G$6:$DC$12,48,FALSE) -> 2 | L11: =VLOOKUP($A11,'RECAP DIRCOM'!$G$6:$DC$12,49,FALSE) -> 2% | M11: =VLOOKUP($A11,'RECAP DIRCOM'!$G$6:$DC$12,50,FALSE) -> 0% | N11: =VLOOKUP($A11,'RECAP DIRCOM'!$G$6:$DC$12,51,FALSE) -> 1
A12: 264 | B12: Haut-Rhin | C12: =VLOOKUP($A12,'RECAP DIRCOM'!$G$6:$DC$12,3,FALSE) -> 155 | D12: =VLOOKUP($A12,'RECAP DIRCOM'!$G$6:$DC$12,41,FALSE) -> 16,095 | E12: =VLOOKUP($A12,'RECAP DIRCOM'!$G$6:$DC$12,42,FALSE) -> 103.77 | F12: =VLOOKUP($A12,'RECAP DIRCOM'!$G$6:$DC$12,43,FALSE) -> 54% | G12: =VLOOKUP($A12,'RECAP DIRCOM'!$G$6:$DC$12,44,FALSE) -> 6 | H12: =VLOOKUP($A12,'RECAP DIRCOM'!$G$6:$DC$12,45,FALSE) -> 1,007 | I12: =VLOOKUP($A12,'RECAP DIRCOM'!$G$6:$DC$12,46,FALSE) -> 6.49 | J12: =VLOOKUP($A12,'RECAP DIRCOM'!$G$6:$DC$12,47,FALSE) -> 24% | K12: =VLOOKUP($A12,'RECAP DIRCOM'!$G$6:$DC$12,48,FALSE) -> 6 | L12: =VLOOKUP($A12,'RECAP DIRCOM'!$G$6:$DC$12,49,FALSE) -> 45% | M12: =VLOOKUP($A12,'RECAP DIRCOM'!$G$6:$DC$12,50,FALSE) -> 43% | N12: =VLOOKUP($A12,'RECAP DIRCOM'!$G$6:$DC$12,51,FALSE) -> 6
A13: 30 | B13: Marne-Ardennes | C13: =VLOOKUP($A13,'RECAP DIRCOM'!$G$6:$DC$12,3,FALSE) -> 228 | D13: =VLOOKUP($A13,'RECAP DIRCOM'!$G$6:$DC$12,41,FALSE) -> 37,803 | E13: =VLOOKUP($A13,'RECAP DIRCOM'!$G$6:$DC$12,42,FALSE) -> 165.95 | F13: =VLOOKUP($A13,'RECAP DIRCOM'!$G$6:$DC$12,43,FALSE) -> 26% | G13: =VLOOKUP($A13,'RECAP DIRCOM'!$G$6:$DC$12,44,FALSE) -> 5 | H13: =VLOOKUP($A13,'RECAP DIRCOM'!$G$6:$DC$12,45,FALSE) -> 1,950 | I13: =VLOOKUP($A13,'RECAP DIRCOM'!$G$6:$DC$12,46,FALSE) -> 8.56 | J13: =VLOOKUP($A13,'RECAP DIRCOM'!$G$6:$DC$12,47,FALSE) -> 0% | K13: =VLOOKUP($A13,'RECAP DIRCOM'!$G$6:$DC$12,48,FALSE) -> 1 | L13: =VLOOKUP($A13,'RECAP DIRCOM'!$G$6:$DC$12,49,FALSE) -> 18% | M13: =VLOOKUP($A13,'RECAP DIRCOM'!$G$6:$DC$12,50,FALSE) -> 16% | N13: =VLOOKUP($A13,'RECAP DIRCOM'!$G$6:$DC$12,51,FALSE) -> 4
A14: 110 | B14: Meurthe et Moselle Meuse | C14: =VLOOKUP($A14,'RECAP DIRCOM'!$G$6:$DC$12,3,FALSE) -> 245 | D14: =VLOOKUP($A14,'RECAP DIRCOM'!$G$6:$DC$12,41,FALSE) -> 44,122 | E14: =VLOOKUP($A14,'RECAP DIRCOM'!$G$6:$DC$12,42,FALSE) -> 180.45 | F14: =VLOOKUP($A14,'RECAP DIRCOM'!$G$6:$DC$12,43,FALSE) -> 20% | G14: =VLOOKUP($A14,'RECAP DIRCOM'!$G$6:$DC$12,44,FALSE) -> 3 | H14: =VLOOKUP($A14,'RECAP DIRCOM'!$G$6:$DC$12,45,FALSE) -> 1,796 | I14: =VLOOKUP($A14,'RECAP DIRCOM'!$G$6:$DC$12,46,FALSE) -> 7.35 | J14: =VLOOKUP($A14,'RECAP DIRCOM'!$G$6:$DC$12,47,FALSE) -> 14% | K14: =VLOOKUP($A14,'RECAP DIRCOM'!$G$6:$DC$12,48,FALSE) -> 3 | L14: =VLOOKUP($A14,'RECAP DIRCOM'!$G$6:$DC$12,49,FALSE) -> 18% | M14: =VLOOKUP($A14,'RECAP DIRCOM'!$G$6:$DC$12,50,FALSE) -> 16% | N14: =VLOOKUP($A14,'RECAP DIRCOM'!$G$6:$DC$12,51,FALSE) -> 3
A15: 160 | B15: Moselle | C15: =VLOOKUP($A15,'RECAP DIRCOM'!$G$6:$DC$12,3,FALSE) -> 271 | D15: =VLOOKUP($A15,'RECAP DIRCOM'!$G$6:$DC$12,41,FALSE) -> 47,880 | E15: =VLOOKUP($A15,'RECAP DIRCOM'!$G$6:$DC$12,42,FALSE) -> 176.85 | F15: =VLOOKUP($A15,'RECAP DIRCOM'!$G$6:$DC$12,43,FALSE) -> 21% | G15: =VLOOKUP($A15,'RECAP DIRCOM'!$G$6:$DC$12,44,FALSE) -> 4 | H15: =VLOOKUP($A15,'RECAP DIRCOM'!$G$6:$DC$12,45,FALSE) -> 1,789 | I15: =VLOOKUP($A15,'RECAP DIRCOM'!$G$6:$DC$12,46,FALSE) -> 6.61 | J15: =VLOOKUP($A15,'RECAP DIRCOM'!$G$6:$DC$12,47,FALSE) -> 23% | K15: =VLOOKUP($A15,'RECAP DIRCOM'!$G$6:$DC$12,48,FALSE) -> 5 | L15: =VLOOKUP($A15,'RECAP DIRCOM'!$G$6:$DC$12,49,FALSE) -> 22% | M15: =VLOOKUP($A15,'RECAP DIRCOM'!$G$6:$DC$12,50,FALSE) -> 19% | N15: =VLOOKUP($A15,'RECAP DIRCOM'!$G$6:$DC$12,51,FALSE) -> 5
A16: 80 | B16: Vosges | C16: =VLOOKUP($A16,'RECAP DIRCOM'!$G$6:$DC$12,3,FALSE) -> 134 | D16: =VLOOKUP($A16,'RECAP DIRCOM'!$G$6:$DC$12,41,FALSE) -> 29,289 | E16: =VLOOKUP($A16,'RECAP DIRCOM'!$G$6:$DC$12,42,FALSE) -> 218.80 | F16: =VLOOKUP($A16,'RECAP DIRCOM'!$G$6:$DC$12,43,FALSE) -> 3% | G16: =VLOOKUP($A16,'RECAP DIRCOM'!$G$6:$DC$12,44,FALSE) -> 2 | H16: =VLOOKUP($A16,'RECAP DIRCOM'!$G$6:$DC$12,45,FALSE) -> 660 | I16: =VLOOKUP($A16,'RECAP DIRCOM'!$G$6:$DC$12,46,FALSE) -> 4.93 | J16: =VLOOKUP($A16,'RECAP DIRCOM'!$G$6:$DC$12,47,FALSE) -> 42% | K16: =VLOOKUP($A16,'RECAP DIRCOM'!$G$6:$DC$12,48,FALSE) -> 7 | L16: =VLOOKUP($A16,'RECAP DIRCOM'!$G$6:$DC$12,49,FALSE) -> 15% | M16: =VLOOKUP($A16,'RECAP DIRCOM'!$G$6:$DC$12,50,FALSE) -> 12% | N16: =VLOOKUP($A16,'RECAP DIRCOM'!$G$6:$DC$12,51,FALSE) -> 2
B17: Total CEGEE Directions Régionales | C17: =SUM(C10:C16) -> 1414

Sheet DC_CREDIT
B1: Accueil | D1: BAROMETRE BDD - DIRECTIONS REGIONALES
D2: CREDITS
D3: =ACCUEIL!F7 -> 2021-04-04
D7: Engagements et ventes accessoires pondérés Immo | H7: Engagements et ventes accessoires pondérés Conso | L7: Ventes sur client non détenteur de l’univers | P7: Total Crédits
D8: =DATEMAJ!C18 -> au 04/04 | F8: coef | G8: ='RECAP DIRCOM'!BM4 -> 8% | H8: =DATEMAJ!C19 -> au 04/04 | J8: coef | K8: ='RECAP DIRCOM'!BQ4 -> 6% | L8: =DATEMAJ!C20 -> au 04/04 | N8: coef | O8: ='RECAP DIRCOM'!BU4 -> 6% | Q8: coef | R8: ='RECAP DIRCOM'!BX4 -> 20%
B9: Direction | C9: ="ETP perf "&DATEMAJ!$C$28 -> ETP perf 28-févr | D9: PNB | E9: PNB / ETP | F9: % Ecart au 1er | G9: Rang | H9: PNB | I9: PNB / ETP | J9: % Ecart au 1er | K9: Rang | L9: VB | M9: VB / ETP | N9: % Ecart au 1er | O9: Rang | P9: Moyenne ecart au 1er | Q9: % Ecart au 1er | R9: Rang CEGEE
A10: 50 | B10: Aube Haute Marne | C10: =VLOOKUP($A10,'RECAP DIRCOM'!$G$6:$DC$12,3,FALSE) -> 128 | D10: =VLOOKUP($A10,'RECAP DIRCOM'!$G$6:$DC$12,56,FALSE) -> 3,957 | E10: =VLOOKUP($A10,'RECAP DIRCOM'!$G$6:$DC$12,57,FALSE) -> 30.80 | F10: =VLOOKUP($A10,'RECAP DIRCOM'!$G$6:$DC$12,58,FALSE) -> 55% | G10: =VLOOKUP($A10,'RECAP DIRCOM'!$G$6:$DC$12,59,FALSE) -> 6 | H10: =VLOOKUP($A10,'RECAP DIRCOM'!$G$6:$DC$12,60,FALSE) -> 2,068 | I10: =VLOOKUP($A10,'RECAP DIRCOM'!$G$6:$DC$12,61,FALSE) -> 16.09 | J10: =VLOOKUP($A10,'RECAP DIRCOM'!$G$6:$DC$12,62,FALSE) -> 7% | K10: =VLOOKUP($A10,'RECAP DIRCOM'!$G$6:$DC$12,63,FALSE) -> 3 | L10: =VLOOKUP($A10,'RECAP DIRCOM'!$G$6:$DC$12,64,FALSE) -> 563 | M10: =VLOOKUP($A10,'RECAP DIRCOM'!$G$6:$DC$12,65,FALSE) -> 4.38 | N10: =VLOOKUP($A10,'RECAP DIRCOM'!$G$6:$DC$12,66,FALSE) -> 30% | O10: =VLOOKUP($A10,'RECAP DIRCOM'!$G$6:$DC$12,67,FALSE) -> 3 | P10: =VLOOKUP($A10,'RECAP DIRCOM'!$G$6:$DC$12,68,FALSE) -> 33% | Q10: =VLOOKUP($A10,'RECAP DIRCOM'!$G$6:$DC$12,69,FALSE) -> 32% | R10: =VLOOKUP($A10,'RECAP DIRCOM'!$G$6:$DC$12,70,FALSE) -> 4
A11: 262 | B11: Bas-Rhin | C11: =VLOOKUP($A11,'RECAP DIRCOM'!$G$6:$DC$12,3,FALSE) -> 254 | D11: =VLOOKUP($A11,'RECAP DIRCOM'!$G$6:$DC$12,56,FALSE) -> 8,703 | E11: =VLOOKUP($A11,'RECAP DIRCOM'!$G$6:$DC$12,57,FALSE) -> 34.28 | F11: =VLOOKUP($A11,'RECAP DIRCOM'!$G$6:$DC$12,58,FALSE) -> 50% | G11: =VLOOKUP($A11,'RECAP DIRCOM'!$G$6:$DC$12,59,FALSE) -> 4 | H11: =VLOOKUP($A11,'RECAP DIRCOM'!$G$6:$DC$12,60,FALSE) -> 3,987 | I11: =VLOOKUP($A11,'RECAP DIRCOM'!$G$6:$DC$12,61,FALSE) -> 15.71 | J11: =VLOOKUP($A11,'RECAP DIRCOM'!$G$6:$DC$12,62,FALSE) -> 9% | K11: =VLOOKUP($A11,'RECAP DIRCOM'!$G$6:$DC$12,63,FALSE) -> 4 | L11: =VLOOKUP($A11,'RECAP DIRCOM'!$G$6:$DC$12,64,FALSE) -> 1,030 | M11: =VLOOKUP($A11,'RECAP DIRCOM'!$G$6:$DC$12,65,FALSE) -> 4.06 | N11: =VLOOKUP($A11,'RECAP DIRCOM'!$G$6:$DC$12,66,FALSE) -> 35% | O11: =VLOOKUP($A11,'RECAP DIRCOM'!$G$6:$DC$12,67,FALSE) -> 6 | P11: =VLOOKUP($A11,'RECAP DIRCOM'!$G$6:$DC$12,68,FALSE) -> 33% | Q11: =VLOOKUP($A11,'RECAP DIRCOM'!$G$6:$DC$12,69,FALSE) -> 32% | R11: =VLOOKUP($A11,'RECAP DIRCOM'!$G$6:$DC$12,70,FALSE) -> 5
A12: 264 | B12: Haut-Rhin | C12: =VLOOKUP($A12,'RECAP DIRCOM'!$G$6:$DC$12,3,FALSE) -> 155 | D12: =VLOOKUP($A12,'RECAP DIRCOM'!$G$6:$DC$12,56,FALSE) -> 3,643 | E12: =VLOOKUP($A12,'RECAP DIRCOM'!$G$6:$DC$12,57,FALSE) -> 23.49 | F12: =VLOOKUP($A12,'RECAP DIRCOM'!$G$6:$DC$12,58,FALSE) -> 66% | G12: =VLOOKUP($A12,'RECAP DIRCOM'!$G$6:$DC$12,59,FALSE) -> 7 | H12: =VLOOKUP($A12,'RECAP DIRCOM'!$G$6:$DC$12,60,FALSE) -> 2,006 | I12: =VLOOKUP($A12,'RECAP DIRCOM'!$G$6:$DC$12,61,FALSE) -> 12.93 | J12: =VLOOKUP($A12,'RECAP DIRCOM'!$G$6:$DC$12,62,FALSE) -> 25% | K12: =VLOOKUP($A12,'RECAP DIRCOM'!$G$6:$DC$12,63,FALSE) -> 7 | L12: =VLOOKUP($A12,'RECAP DIRCOM'!$G$6:$DC$12,64,FALSE) -> 475 | M12: =VLOOKUP($A12,'RECAP DIRCOM'!$G$6:$DC$12,65,FALSE) -> 3.06 | N12: =VLOOKUP($A12,'RECAP DIRCOM'!$G$6:$DC$12,66,FALSE) -> 51% | O12: =VLOOKUP($A12,'RECAP DIRCOM'!$G$6:$DC$12,67,FALSE) -> 7 | P12: =VLOOKUP($A12,'RECAP DIRCOM'!$G$6:$DC$12,68,FALSE) -> 49% | Q12: =VLOOKUP($A12,'RECAP DIRCOM'!$G$6:$DC$12,69,FALSE) -> 48% | R12: =VLOOKUP($A12,'RECAP DIRCOM'!$G$6:$DC$12,70,FALSE) -> 7
A13: 30 | B13: Marne-Ardennes | C13: =VLOOKUP($A13,'RECAP DIRCOM'!$G$6:$DC$12,3,FALSE) -> 228 | D13: =VLOOKUP($A13,'RECAP DIRCOM'!$G$6:$DC$12,56,FALSE) -> 13,040 | E13: =VLOOKUP($A13,'RECAP DIRCOM'!$G$6:$DC$12,57,FALSE) -> 57.24 | F13: =VLOOKUP($A13,'RECAP DIRCOM'!$G$6:$DC$12,58,FALSE) -> 17% | G13: =VLOOKUP($A13,'RECAP DIRCOM'!$G$6:$DC$12,59,FALSE) -> 2 | H13: =VLOOKUP($A13,'RECAP DIRCOM'!$G$6:$DC$12,60,FALSE) -> 3,315 | I13: =VLOOKUP($A13,'RECAP DIRCOM'!$G$6:$DC$12,61,FALSE) -> 14.55 | J13: =VLOOKUP($A13,'RECAP DIRCOM'!$G$6:$DC$12,62,FALSE) -> 16% | K13: =VLOOKUP($A13,'RECAP DIRCOM'!$G$6:$DC$12,63,FALSE) -> 5 | L13: =VLOOKUP($A13,'RECAP DIRCOM'!$G$6:$DC$12,64,FALSE) -> 1,184 | M13: =VLOOKUP($A13,'RECAP DIRCOM'!$G$6:$DC$12,65,FALSE) -> 5.20 | N13: =VLOOKUP($A13,'RECAP DIRCOM'!$G$6:$DC$12,66,FALSE) -> 16% | O13: =VLOOKUP($A13,'RECAP DIRCOM'!$G$6:$DC$12,67,FALSE) -> 2 | P13: =VLOOKUP($A13,'RECAP DIRCOM'!$G$6:$DC$12,68,FALSE) -> 17% | Q13: =VLOOKUP($A13,'RECAP DIRCOM'!$G$6:$DC$12,69,FALSE) -> 16% | R13: =VLOOKUP($A13,'RECAP DIRCOM'!$G$6:$DC$12,70,FALSE) -> 2
A14: 110 | B14: Meurthe et Moselle Meuse | C14: =VLOOKUP($A14,'RECAP DIRCOM'!$G$6:$DC$12,3,FALSE) -> 245 | D14: =VLOOKUP($A14,'RECAP DIRCOM'!$G$6:$DC$12,56,FALSE) -> 16,904 | E14: =VLOOKUP($A14,'RECAP DIRCOM'!$G$6:$DC$12,57,FALSE) -> 69.14 | F14: =VLOOKUP($A14,'RECAP DIRCOM'!$G$6:$DC$12,58,FALSE) -> 0% | G14: =VLOOKUP($A14,'RECAP DIRCOM'!$G$6:$DC$12,59,FALSE) -> 1 | H14: =VLOOKUP($A14,'RECAP DIRCOM'!$G$6:$DC$12,60,FALSE) -> 4,093 | I14: =VLOOKUP($A14,'RECAP DIRCOM'!$G$6:$DC$12,61,FALSE) -> 16.74 | J14: =VLOOKUP($A14,'RECAP DIRCOM'!$G$6:$DC$12,62,FALSE) -> 3% | K14: =VLOOKUP($A14,'RECAP DIRCOM'!$G$6:$DC$12,63,FALSE) -> 2 | L14: =VLOOKUP($A14,'RECAP DIRCOM'!$G$6:$DC$12,64,FALSE) -> 1,520 | M14: =VLOOKUP($A14,'RECAP DIRCOM'!$G$6:$DC$12,65,FALSE) -> 6.22 | N14: =VLOOKUP($A14,'RECAP DIRCOM'!$G$6:$DC$12,66,FALSE) -> 0% | O14: =VLOOKUP($A14,'RECAP DIRCOM'!$G$6:$DC$12,67,FALSE) -> 1 | P14: =VLOOKUP($A14,'RECAP DIRCOM'!$G$6:$DC$12,68,FALSE) -> 1% | Q14: =VLOOKUP($A14,'RECAP DIRCOM'!$G$6:$DC$12,69,FALSE) -> 0% | R14: =VLOOKUP($A14,'RECAP DIRCOM'!$G$6:$DC$12,70,FALSE) -> 1
A15: 160 | B15: Moselle | C15: =VLOOKUP($A15,'RECAP DIRCOM'!$G$6:$DC$12,3,FALSE) -> 271 | D15: =VLOOKUP($A15,'RECAP DIRCOM'!$G$6:$DC$12,56,FALSE) -> 10,144 | E15: =VLOOKUP($A15,'RECAP DIRCOM'!$G$6:$DC$12,57,FALSE) -> 37.47 | F15: =VLOOKUP($A15,'RECAP DIRCOM'!$G$6:$DC$12,58,FALSE) -> 46% | G15: =VLOOKUP($A15,'RECAP DIRCOM'!$G$6:$DC$12,59,FALSE) -> 3 | H15: =VLOOKUP($A15,'RECAP DIRCOM'!$G$6:$DC$12,60,FALSE) -> 4,674 | I15: =VLOOKUP($A15,'RECAP DIRCOM'!$G$6:$DC$12,61,FALSE) -> 17.26 | J15: =VLOOKUP($A15,'RECAP DIRCOM'!$G$6:$DC$12,62,FALSE) -> 0% | K15: =VLOOKUP($A15,'RECAP DIRCOM'!$G$6:$DC$12,63,FALSE) -> 1 | L15: =VLOOKUP($A15,'RECAP DIRCOM'!$G$6:$DC$12,64,FALSE) -> 1,129 | M15: =VLOOKUP($A15,'RECAP DIRCOM'!$G$6:$DC$12,65,FALSE) -> 4.17 | N15: =VLOOKUP($A15,'RECAP DIRCOM'!$G$6:$DC$12,66,FALSE) -> 33% | O15: =VLOOKUP($A15,'RECAP DIRCOM'!$G$6:$DC$12,67,FALSE) -> 5 | P15: =VLOOKUP($A15,'RECAP DIRCOM'!$G$6:$DC$12,68,FALSE) -> 28% | Q15: =VLOOKUP($A15,'RECAP DIRCOM'!$G$6:$DC$12,69,FALSE) -> 27% | R15: =VLOOKUP($A15,'RECAP DIRCOM'!$G$6:$DC$12,70,FALSE) -> 3
A16: 80 | B16: Vosges | C16: =VLOOKUP($A16,'RECAP DIRCOM'!$G$6:$DC$12,3,FALSE) -> 134 | D16: =VLOOKUP($A16,'RECAP DIRCOM'!$G$6:$DC$12,56,FALSE) -> 4,561 | E16: =VLOOKUP($A16,'RECAP DIRCOM'!$G$6:$DC$12,57,FALSE) -> 34.07 | F16: =VLOOKUP($A16,'RECAP DIRCOM'!$G$6:$DC$12,58,FALSE) -> 51% | G16: =VLOOKUP($A16,'RECAP DIRCOM'!$G$6:$DC$12,59,FALSE) -> 5 | H16: =VLOOKUP($A16,'RECAP DIRCOM'!$G$6:$DC$12,60,FALSE) -> 1,845 | I16: =VLOOKUP($A16,'RECAP DIRCOM'!$G$6:$DC$12,61,FALSE) -> 13.78 | J16: =VLOOKUP($A16,'RECAP DIRCOM'!$G$6:$DC$12,62,FALSE) -> 20% | K16: =VLOOKUP($A16,'RECAP DIRCOM'!$G$6:$DC$12,63,FALSE) -> 6 | L16: =VLOOKUP($A16,'RECAP DIRCOM'!$G$6:$DC$12,64,FALSE) -> 584 | M16: =VLOOKUP($A16,'RECAP DIRCOM'!$G$6:$DC$12,65,FALSE) -> 4.36 | N16: =VLOOKUP($A16,'RECAP DIRCOM'!$G$6:$DC$12,66,FALSE) -> 30% | O16: =VLOOKUP($A16,'RECAP DIRCOM'!$G$6:$DC$12,67,FALSE) -> 4 | P16: =VLOOKUP($A16,'RECAP DIRCOM'!$G$6:$DC$12,68,FALSE) -> 35% | Q16: =VLOOKUP($A16,'RECAP DIRCOM'!$G$6:$DC$12,69,FALSE) -> 34% | R16: =VLOOKUP($A16,'RECAP DIRCOM'!$G$6:$DC$12,70,FALSE) -> 6
B17: Total CEGEE Directions Régionales | C17: =SUM(C10:C16) -> 1414

Sheet DC_IARD
B1: Accueil | D1: BAROMETRE BDD - DIRECTIONS REGIONALES
D2: IARD ET PREVOYANCE
D3: =ACCUEIL!F7 -> 2021-04-04
D7: Ventes Nettes produits pondérés | H7: Ventes sur client non détenteur de l’univers | L7: Total IARD Prévoyance
D8: =DATEMAJ!C23 -> au 04/04 | F8: coef | G8: ='RECAP DIRCOM'!CF4 -> 14% | H8: =DATEMAJ!C24 -> au 04/04 | J8: coef | K8: ='RECAP DIRCOM'!CJ4 -> 6% | M8: coef | N8: ='RECAP DIRCOM'!CM4 -> 20%
B9: Direction | C9: ="ETP perf "&DATEMAJ!$C$28 -> ETP perf 28-févr | D9: VN | E9: VN / ETP | F9: % Ecart au 1er | G9: Rang | H9: VB | I9: VB / ETP | J9: % Ecart au 1er | K9: Rang | L9: Moyenne ecart au 1er | M9: % Ecart au 1er | N9: Rang CEGEE
A10: 50 | B10: Aube Haute Marne | C10: =VLOOKUP($A10,'RECAP DIRCOM'!$G$6:$DC$12,3,FALSE) -> 128 | D10: =VLOOKUP($A10,'RECAP DIRCOM'!$G$6:$DC$12,75,FALSE) -> 6,428 | E10: =VLOOKUP($A10,'RECAP DIRCOM'!$G$6:$DC$12,76,FALSE) -> 50.03 | F10: =VLOOKUP($A10,'RECAP DIRCOM'!$G$6:$DC$12,77,FALSE) -> 36% | G10: =VLOOKUP($A10,'RECAP DIRCOM'!$G$6:$DC$12,78,FALSE) -> 6 | H10: =VLOOKUP($A10,'RECAP DIRCOM'!$G$6:$DC$12,79,FALSE) -> 1,414 | I10: =VLOOKUP($A10,'RECAP DIRCOM'!$G$6:$DC$12,80,FALSE) -> 11.01 | J10: =VLOOKUP($A10,'RECAP DIRCOM'!$G$6:$DC$12,81,FALSE) -> 17% | K10: =VLOOKUP($A10,'RECAP DIRCOM'!$G$6:$DC$12,82,FALSE) -> 5 | L10: =VLOOKUP($A10,'RECAP DIRCOM'!$G$6:$DC$12,83,FALSE) -> 30% | M10: =VLOOKUP($A10,'RECAP DIRCOM'!$G$6:$DC$12,84,FALSE) -> 23% | N10: =VLOOKUP($A10,'RECAP DIRCOM'!$G$6:$DC$12,85,FALSE) -> 6
A11: 262 | B11: Bas-Rhin | C11: =VLOOKUP($A11,'RECAP DIRCOM'!$G$6:$DC$12,3,FALSE) -> 254 | D11: =VLOOKUP($A11,'RECAP DIRCOM'!$G$6:$DC$12,75,FALSE) -> 17,179 | E11: =VLOOKUP($A11,'RECAP DIRCOM'!$G$6:$DC$12,76,FALSE) -> 67.66 | F11: =VLOOKUP($A11,'RECAP DIRCOM'!$G$6:$DC$12,77,FALSE) -> 13% | G11: =VLOOKUP($A11,'RECAP DIRCOM'!$G$6:$DC$12,78,FALSE) -> 4 | H11: =VLOOKUP($A11,'RECAP DIRCOM'!$G$6:$DC$12,79,FALSE) -> 2,886 | I11: =VLOOKUP($A11,'RECAP DIRCOM'!$G$6:$DC$12,80,FALSE) -> 11.37 | J11: =VLOOKUP($A11,'RECAP DIRCOM'!$G$6:$DC$12,81,FALSE) -> 14% | K11: =VLOOKUP($A11,'RECAP DIRCOM'!$G$6:$DC$12,82,FALSE) -> 3 | L11: =VLOOKUP($A11,'RECAP DIRCOM'!$G$6:$DC$12,83,FALSE) -> 13% | M11: =VLOOKUP($A11,'RECAP DIRCOM'!$G$6:$DC$12,84,FALSE) -> 7% | N11: =VLOOKUP($A11,'RECAP DIRCOM'!$G$6:$DC$12,85,FALSE) -> 5
A12: 264 | B12: Haut-Rhin | C12: =VLOOKUP($A12,'RECAP DIRCOM'!$G$6:$DC$12,3,FALSE) -> 155 | D12: =VLOOKUP($A12,'RECAP DIRCOM'!$G$6:$DC$12,75,FALSE) -> 6,708 | E12: =VLOOKUP($A12,'RECAP DIRCOM'!$G$6:$DC$12,76,FALSE) -> 43.25 | F12: =VLOOKUP($A12,'RECAP DIRCOM'!$G$6:$DC$12,77,FALSE) -> 44% | G12: =VLOOKUP($A12,'RECAP DIRCOM'!$G$6:$DC$12,78,FALSE) -> 7 | H12: =VLOOKUP($A12,'RECAP DIRCOM'!$G$6:$DC$12,79,FALSE) -> 1,404 | I12: =VLOOKUP($A12,'RECAP DIRCOM'!$G$6:$DC$12,80,FALSE) -> 9.05 | J12: =VLOOKUP($A12,'RECAP DIRCOM'!$G$6:$DC$12,81,FALSE) -> 32% | K12: =VLOOKUP($A12,'RECAP DIRCOM'!$G$6:$DC$12,82,FALSE) -> 7 | L12: =VLOOKUP($A12,'RECAP DIRCOM'!$G$6:$DC$12,83,FALSE) -> 41% | M12: =VLOOKUP($A12,'RECAP DIRCOM'!$G$6:$DC$12,84,FALSE) -> 34% | N12: =VLOOKUP($A12,'RECAP DIRCOM'!$G$6:$DC$12,85,FALSE) -> 7
A13: 30 | B13: Marne-Ardennes | C13: =VLOOKUP($A13,'RECAP DIRCOM'!$G$6:$DC$12,3,FALSE) -> 228 | D13: =VLOOKUP($A13,'RECAP DIRCOM'!$G$6:$DC$12,75,FALSE) -> 15,735 | E13: =VLOOKUP($A13,'RECAP DIRCOM'!$G$6:$DC$12,76,FALSE) -> 69.07 | F13: =VLOOKUP($A13,'RECAP DIRCOM'!$G$6:$DC$12,77,FALSE) -> 11% | G13: =VLOOKUP($A13,'RECAP DIRCOM'!$G$6:$DC$12,78,FALSE) -> 3 | H13: =VLOOKUP($A13,'RECAP DIRCOM'!$G$6:$DC$12,79,FALSE) -> 2,517 | I13: =VLOOKUP($A13,'RECAP DIRCOM'!$G$6:$DC$12,80,FALSE) -> 11.05 | J13: =VLOOKUP($A13,'RECAP DIRCOM'!$G$6:$DC$12,81,FALSE) -> 17% | K13: =VLOOKUP($A13,'RECAP DIRCOM'!$G$6:$DC$12,82,FALSE) -> 4 | L13: =VLOOKUP($A13,'RECAP DIRCOM'!$G$6:$DC$12,83,FALSE) -> 13% | M13: =VLOOKUP($A13,'RECAP DIRCOM'!$G$6:$DC$12,84,FALSE) -> 6% | N13: =VLOOKUP($A13,'RECAP DIRCOM'!$G$6:$DC$12,85,FALSE) -> 4
A14: 110 | B14: Meurthe et Moselle Meuse | C14: =VLOOKUP($A14,'RECAP DIRCOM'!$G$6:$DC$12,3,FALSE) -> 245 | D14: =VLOOKUP($A14,'RECAP DIRCOM'!$G$6:$DC$12,75,FALSE) -> 16,011 | E14: =VLOOKUP($A14,'RECAP DIRCOM'!$G$6:$DC$12,76,FALSE) -> 65.49 | F14: =VLOOKUP($A14,'RECAP DIRCOM'!$G$6:$DC$12,77,FALSE) -> 16% | G14: =VLOOKUP($A14,'RECAP DIRCOM'!$G$6:$DC$12,78,FALSE) -> 5 | H14: =VLOOKUP($A14,'RECAP DIRCOM'!$G$6:$DC$12,79,FALSE) -> 3,238 | I14: =VLOOKUP($A14,'RECAP DIRCOM'!$G$6:$DC$12,80,FALSE) -> 13.24 | J14: =VLOOKUP($A14,'RECAP DIRCOM'!$G$6:$DC$12,81,FALSE) -> 0% | K14: =VLOOKUP($A14,'RECAP DIRCOM'!$G$6:$DC$12,82,FALSE) -> 1 | L14: =VLOOKUP($A14,'RECAP DIRCOM'!$G$6:$DC$12,83,FALSE) -> 11% | M14: =VLOOKUP($A14,'RECAP DIRCOM'!$G$6:$DC$12,84,FALSE) -> 4% | N14: =VLOOKUP($A14,'RECAP DIRCOM'!$G$6:$DC$12,85,FALSE) -> 2
A15: 160 | B15: Moselle | C15: =VLOOKUP($A15,'RECAP DIRCOM'!$G$6:$DC$12,3,FALSE) -> 271 | D15: =VLOOKUP($A15,'RECAP DIRCOM'!$G$6:$DC$12,75,FALSE) -> 18,809 | E15: =VLOOKUP($A15,'RECAP DIRCOM'!$G$6:$DC$12,76,FALSE) -> 69.47 | F15: =VLOOKUP($A15,'RECAP DIRCOM'!$G$6:$DC$12,77,FALSE) -> 11% | G15: =VLOOKUP($A15,'RECAP DIRCOM'!$G$6:$DC$12,78,FALSE) -> 2 | H15: =VLOOKUP($A15,'RECAP DIRCOM'!$G$6:$DC$12,79,FALSE) -> 3,099 | I15: =VLOOKUP($A15,'RECAP DIRCOM'!$G$6:$DC$12,80,FALSE) -> 11.45 | J15: =VLOOKUP($A15,'RECAP DIRCOM'!$G$6:$DC$12,81,FALSE) -> 14% | K15: =VLOOKUP($A15,'RECAP DIRCOM'!$G$6:$DC$12,82,FALSE) -> 2 | L15: =VLOOKUP($A15,'RECAP DIRCOM'!$G$6:$DC$12,83,FALSE) -> 12% | M15: =VLOOKUP($A15,'RECAP DIRCOM'!$G$6:$DC$12,84,FALSE) -> 5% | N15: =VLOOKUP($A15,'RECAP DIRCOM'!$G$6:$DC$12,85,FALSE) -> 3
A16: 80 | B16: Vosges | C16: =VLOOKUP($A16,'RECAP DIRCOM'!$G$6:$DC$12,3,FALSE) -> 134 | D16: =VLOOKUP($A16,'RECAP DIRCOM'!$G$6:$DC$12,75,FALSE) -> 10,424 | E16: =VLOOKUP($A16,'RECAP DIRCOM'!$G$6:$DC$12,76,FALSE) -> 77.87 | F16: =VLOOKUP($A16,'RECAP DIRCOM'!$G$6:$DC$12,77,FALSE) -> 0% | G16: =VLOOKUP($A16,'RECAP DIRCOM'!$G$6:$DC$12,78,FALSE) -> 1 | H16: =VLOOKUP($A16,'RECAP DIRCOM'!$G$6:$DC$12,79,FALSE) -> 1,365 | I16: =VLOOKUP($A16,'RECAP DIRCOM'!$G$6:$DC$12,80,FALSE) -> 10.20 | J16: =VLOOKUP($A16,'RECAP DIRCOM'!$G$6:$DC$12,81,FALSE) -> 23% | K16: =VLOOKUP($A16,'RECAP DIRCOM'!$G$6:$DC$12,82,FALSE) -> 6 | L16: =VLOOKUP($A16,'RECAP DIRCOM'!$G$6:$DC$12,83,FALSE) -> 7% | M16: =VLOOKUP($A16,'RECAP DIRCOM'!$G$6:$DC$12,84,FALSE) -> 0% | N16: =VLOOKUP($A16,'RECAP DIRCOM'!$G$6:$DC$12,85,FALSE) -> 1
B17: Total CEGEE Directions Régionales | C17: =SUM(C10:C16) -> 1414

Sheet DC_SATISFACTION
B1: Accueil | D1: BAROMETRE BDD - DIRECTIONS REGIONALES
D2: SATISFACTION
D3: =ACCUEIL!F7 -> 2021-04-04
D7: NPS à froid (SAE) | G7: NPS à chaud (QHD) | J7: Total Satisfaction Clients
D8: =DATEMAJ!E4 -> au 28/02 | E8: coef | F8: ='RECAP DIRCOM'!M4 -> 10% | G8: =DATEMAJ!C5 -> au 28/02 | H8: coef | I8: ='RECAP DIRCOM'!P4 -> 10% | K8: coef | L8: ='RECAP DIRCOM'!S4 -> 20%
B9: Direction | C9: ="ETP perf "&DATEMAJ!$C$28 -> ETP perf 28-févr | E9: % Ecart au 1er | F9: Rang | H9: % Ecart au 1er | I9: Rang | J9: Moyenne ecart au 1er | K9: % Ecart au 1er | L9: Rang CEGEE
A10: 50 | B10: Aube Haute Marne | C10: =VLOOKUP($A10,'RECAP DIRCOM'!$G$6:$DC$12,3,FALSE) -> 128 | D10: =VLOOKUP($A10,'RECAP DIRCOM'!$G$6:$DC$12,5,FALSE) -> 14 | E10: =VLOOKUP($A10,'RECAP DIRCOM'!$G$6:$DC$12,6,FALSE) -> 18% | F10: =VLOOKUP($A10,'RECAP DIRCOM'!$G$6:$DC$12,7,FALSE) -> 2 | G10: =VLOOKUP($A10,'RECAP DIRCOM'!$G$6:$DC$12,8,FALSE) -> 54% | H10: =VLOOKUP($A10,'RECAP DIRCOM'!$G$6:$DC$12,9,FALSE) -> 17% | I10: =VLOOKUP($A10,'RECAP DIRCOM'!$G$6:$DC$12,10,FALSE) -> 3 | J10: =VLOOKUP($A10,'RECAP DIRCOM'!$G$6:$DC$12,11,FALSE) -> 18% | K10: =VLOOKUP($A10,'RECAP DIRCOM'!$G$6:$DC$12,12,FALSE) -> 18% | L10: =VLOOKUP($A10,'RECAP DIRCOM'!$G$6:$DC$12,13,FALSE) -> 2
A11: 262 | B11: Bas-Rhin | C11: =VLOOKUP($A11,'RECAP DIRCOM'!$G$6:$DC$12,3,FALSE) -> 254 | D11: =VLOOKUP($A11,'RECAP DIRCOM'!$G$6:$DC$12,5,FALSE) -> 8 | E11: =VLOOKUP($A11,'RECAP DIRCOM'!$G$6:$DC$12,6,FALSE) -> 53% | F11: =VLOOKUP($A11,'RECAP DIRCOM'!$G$6:$DC$12,7,FALSE) -> 6 | G11: =VLOOKUP($A11,'RECAP DIRCOM'!$G$6:$DC$12,8,FALSE) -> 47% | H11: =VLOOKUP($A11,'RECAP DIRCOM'!$G$6:$DC$12,9,FALSE) -> 28% | I11: =VLOOKUP($A11,'RECAP DIRCOM'!$G$6:$DC$12,10,FALSE) -> 6 | J11: =VLOOKUP($A11,'RECAP DIRCOM'!$G$6:$DC$12,11,FALSE) -> 41% | K11: =VLOOKUP($A11,'RECAP DIRCOM'!$G$6:$DC$12,12,FALSE) -> 41% | L11: =VLOOKUP($A11,'RECAP DIRCOM'!$G$6:$DC$12,13,FALSE) -> 6
A12: 264 | B12: Haut-Rhin | C12: =VLOOKUP($A12,'RECAP DIRCOM'!$G$6:$DC$12,3,FALSE) -> 155 | D12: =VLOOKUP($A12,'RECAP DIRCOM'!$G$6:$DC$12,5,FALSE) -> 4 | E12: =VLOOKUP($A12,'RECAP DIRCOM'!$G$6:$DC$12,6,FALSE) -> 76% | F12: =VLOOKUP($A12,'RECAP DIRCOM'!$G$6:$DC$12,7,FALSE) -> 7 | G12: =VLOOKUP($A12,'RECAP DIRCOM'!$G$6:$DC$12,8,FALSE) -> 33% | H12: =VLOOKUP($A12,'RECAP DIRCOM'!$G$6:$DC$12,9,FALSE) -> 50% | I12: =VLOOKUP($A12,'RECAP DIRCOM'!$G$6:$DC$12,10,FALSE) -> 7 | J12: =VLOOKUP($A12,'RECAP DIRCOM'!$G$6:$DC$12,11,FALSE) -> 63% | K12: =VLOOKUP($A12,'RECAP DIRCOM'!$G$6:$DC$12,12,FALSE) -> 63% | L12: =VLOOKUP($A12,'RECAP DIRCOM'!$G$6:$DC$12,13,FALSE) -> 7
A13: 30 | B13: Marne-Ardennes | C13: =VLOOKUP($A13,'RECAP DIRCOM'!$G$6:$DC$12,3,FALSE) -> 228 | D13: =VLOOKUP($A13,'RECAP DIRCOM'!$G$6:$DC$12,5,FALSE) -> 12 | E13: =VLOOKUP($A13,'RECAP DIRCOM'!$G$6:$DC$12,6,FALSE) -> 29% | F13: =VLOOKUP($A13,'RECAP DIRCOM'!$G$6:$DC$12,7,FALSE) -> 3 | G13: =VLOOKUP($A13,'RECAP DIRCOM'!$G$6:$DC$12,8,FALSE) -> 61% | H13: =VLOOKUP($A13,'RECAP DIRCOM'!$G$6:$DC$12,9,FALSE) -> 8% | I13: =VLOOKUP($A13,'RECAP DIRCOM'!$G$6:$DC$12,10,FALSE) -> 2 | J13: =VLOOKUP($A13,'RECAP DIRCOM'!$G$6:$DC$12,11,FALSE) -> 19% | K13: =VLOOKUP($A13,'RECAP DIRCOM'!$G$6:$DC$12,12,FALSE) -> 19% | L13: =VLOOKUP($A13,'RECAP DIRCOM'!$G$6:$DC$12,13,FALSE) -> 3
A14: 110 | B14: Meurthe et Moselle Meuse | C14: =VLOOKUP($A14,'RECAP DIRCOM'!$G$6:$DC$12,3,FALSE) -> 245 | D14: =VLOOKUP($A14,'RECAP DIRCOM'!$G$6:$DC$12,5,FALSE) -> 11 | E14: =VLOOKUP($A14,'RECAP DIRCOM'!$G$6:$DC$12,6,FALSE) -> 35% | F14: =VLOOKUP($A14,'RECAP DIRCOM'!$G$6:$DC$12,7,FALSE) -> 4 | G14: =VLOOKUP($A14,'RECAP DIRCOM'!$G$6:$DC$12,8,FALSE) -> 52% | H14: =VLOOKUP($A14,'RECAP DIRCOM'!$G$6:$DC$12,9,FALSE) -> 21% | I14: =VLOOKUP($A14,'RECAP DIRCOM'!$G$6:$DC$12,10,FALSE) -> 4 | J14: =VLOOKUP($A14,'RECAP DIRCOM'!$G$6:$DC$12,11,FALSE) -> 28% | K14: =VLOOKUP($A14,'RECAP DIRCOM'!$G$6:$DC$12,12,FALSE) -> 28% | L14: =VLOOKUP($A14,'RECAP DIRCOM'!$G$6:$DC$12,13,FALSE) -> 4
A15: 160 | B15: Moselle | C15: =VLOOKUP($A15,'RECAP DIRCOM'!$G$6:$DC$12,3,FALSE) -> 271 | D15: =VLOOKUP($A15,'RECAP DIRCOM'!$G$6:$DC$12,5,FALSE) -> 9 | E15: =VLOOKUP($A15,'RECAP DIRCOM'!$G$6:$DC$12,6,FALSE) -> 47% | F15: =VLOOKUP($A15,'RECAP DIRCOM'!$G$6:$DC$12,7,FALSE) -> 5 | G15: =VLOOKUP($A15,'RECAP DIRCOM'!$G$6:$DC$12,8,FALSE) -> 52% | H15: =VLOOKUP($A15,'RECAP DIRCOM'!$G$6:$DC$12,9,FALSE) -> 21% | I15: =VLOOKUP($A15,'RECAP DIRCOM'!$G$6:$DC$12,10,FALSE) -> 5 | J15: =VLOOKUP($A15,'RECAP DIRCOM'!$G$6:$DC$12,11,FALSE) -> 34% | K15: =VLOOKUP($A15,'RECAP DIRCOM'!$G$6:$DC$12,12,FALSE) -> 34% | L15: =VLOOKUP($A15,'RECAP DIRCOM'!$G$6:$DC$12,13,FALSE) -> 5
A16: 80 | B16: Vosges | C16: =VLOOKUP($A16,'RECAP DIRCOM'!$G$6:$DC$12,3,FALSE) -> 134 | D16: =VLOOKUP($A16,'RECAP DIRCOM'!$G$6:$DC$12,5,FALSE) -> 17 | E16: =VLOOKUP($A16,'RECAP DIRCOM'!$G$6:$DC$12,6,FALSE) -> 0% | F16: =VLOOKUP($A16,'RECAP DIRCOM'!$G$6:$DC$12,7,FALSE) -> 1 | G16: =VLOOKUP($A16,'RECAP DIRCOM'!$G$6:$DC$12,8,FALSE) -> 66% | H16: =VLOOKUP($A16,'RECAP DIRCOM'!$G$6:$DC$12,9,FALSE) -> 0% | I16: =VLOOKUP($A16,'RECAP DIRCOM'!$G$6:$DC$12,10,FALSE) -> 1 | J16: =VLOOKUP($A16,'RECAP DIRCOM'!$G$6:$DC$12,11,FALSE) -> 0% | K16: =VLOOKUP($A16,'RECAP DIRCOM'!$G$6:$DC$12,12,FALSE) -> 0% | L16: =VLOOKUP($A16,'RECAP DIRCOM'!$G$6:$DC$12,13,FALSE) -> 1
B17: Total CEGEE Directions Régionales | C17: =SUM(C10:C16) -> 1414

Sheet SE_FICHE
A1: Accueil
A2: BAROMETRE BDD
A4: UNITE: | B4: TERRITOIRE | E4: ETP perf : | F4: =VLOOKUP(A5,'RECAP SECT'!$G$6:$I$23,3,FALSE) -> 61.06
A5: =VLOOKUP(B5,LISTES!$H$6:$I$23,2,FALSE) -> 5130 | B5: COLMAR
C6: Coefficient du critére | E6: Résultats | I6: Ecart au 1ier | M6: Evolution | O6: Rang
E7: du 1ier | G7: du territoire | I7: Du mois | K7: Au 31/12/2019
A9: RANG au CLASSEMENT GENERAL | K9: =VLOOKUP($A$5,'RECAP SECT AN'!$G$6:$FS$312,168,FALSE) -> 17 | M9: =+K9-O9 ->  | O9: =VLOOKUP($A$5,'RECAP SECT'!$G$6:$DG$312,168,FALSE) ->  | S9: =VLOOKUP($A$5,'RECAP SECT AN'!$G$6:$FE$312,154,FALSE) -> 1 | U9: =+S9-O9 -> 
A11: CRITERE CONQUETE | C11: 15% | O11: =VLOOKUP($A$5,'RECAP SECT'!$G$6:$DG$312,23,FALSE) -> 12.26759633
B12: PNB Evolution nette Clients BP | C12: 4% | E12: ='RECAP SECT'!#REF! ->  | G12: =VLOOKUP($A$5,'RECAP SECT'!$G$6:$DG$312,6,FALSE) -> 0.5 | I12: =VLOOKUP($A$5,'RECAP SECT'!$G$6:$DG$312,7,FALSE) -> 900% | K12: =VLOOKUP($A$5,'RECAP SECT AN'!$G$6:$FS$312,7,FALSE) -> 134% | M12: =+K12-I12 -> -766% | O12: =VLOOKUP($A$5,'RECAP SECT'!$G$6:$DG$312,8,FALSE) -> 0.4437827313 | S12: =VLOOKUP($A$5,'RECAP SECT AN'!$G$6:$FE$312,6,FALSE) -> -181% | U12: =+S12-I12 -> -1081%
B13: PNB Evolution nette Clients PREMIUM | C13: 5% | E13: ='RECAP SECT'!#REF! ->  | G13: =VLOOKUP($A$5,'RECAP SECT'!$G$6:$DG$312,10,FALSE) -> 15.0 | I13: =VLOOKUP($A$5,'RECAP SECT'!$G$6:$DG$312,11,FALSE) -> 41% | K13: =VLOOKUP($A$5,'RECAP SECT AN'!$G$6:$FS$312,11,FALSE) -> 20% | M13: =+K13-I13 -> -21% | O13: =VLOOKUP($A$5,'RECAP SECT'!$G$6:$DG$312,12,FALSE) -> 0.3827301358 | S13: =VLOOKUP($A$5,'RECAP SECT AN'!$G$6:$FE$312,9,FALSE) -> 287% | U13: =+S13-I13 -> 245%
B14: PNB Evolution nette Clients Jeunes Equipés | C14: 3% | E14: ='RECAP SECT'!#REF! ->  | G14: =VLOOKUP($A$5,'RECAP SECT'!$G$6:$DG$312,14,FALSE) -> 0.0 | I14: =VLOOKUP($A$5,'RECAP SECT'!$G$6:$DG$312,15,FALSE) -> 0% | K14: =VLOOKUP($A$5,'RECAP SECT AN'!$G$6:$FS$312,15,FALSE) -> -99% | M14: =+K14-I14 -> -99% | O14: =VLOOKUP($A$5,'RECAP SECT'!$G$6:$DG$312,16,FALSE) -> 0 | S14: =VLOOKUP($A$5,'RECAP SECT AN'!$G$6:$FE$312,12,FALSE) -> 1300% | U14: =+S14-I14 -> 1300%
B15: PNB Evolution nette Clients Pro Actifs Equipés | C15: 3% | E15: ='RECAP SECT'!W4 -> 0.0 | G15: =VLOOKUP($A$5,'RECAP SECT'!$G$6:$DG$312,18,FALSE) -> 961.6 | I15: =VLOOKUP($A$5,'RECAP SECT'!$G$6:$DG$312,19,FALSE) -> 1575% | K15: =VLOOKUP($A$5,'RECAP SECT AN'!$G$6:$FS$312,19,FALSE) -> 54% | M15: =+K15-I15 -> -1521% | O15: =VLOOKUP($A$5,'RECAP SECT'!$G$6:$DG$312,20,FALSE) -> 0.5788492681 | S15: =VLOOKUP($A$5,'RECAP SECT AN'!$G$6:$FE$312,15,FALSE) -> -99% | U15: =+S15-I15 -> -1674%
A17: CRITERE BANCARISATION | C17: 15% | O17: =VLOOKUP($A$5,'RECAP SECT'!$G$6:$DG$312,48,FALSE) -> 13
B18: PNB Ventes nettes forfaits | C18: 4% | E18: ='RECAP SECT'!X4 -> 37.4 | G18: =VLOOKUP($A$5,'RECAP SECT'!$G$6:$DG$312,31,FALSE) -> -0.7 | I18: =VLOOKUP($A$5,'RECAP SECT'!$G$6:$DG$312,32,FALSE) -> 18% | K18: =VLOOKUP($A$5,'RECAP SECT AN'!$G$6:$FS$312,32,FALSE) -> 117% | M18: =+K18-I18 -> 98% | O18: =VLOOKUP($A$5,'RECAP SECT'!$G$6:$DG$312,33,FALSE) -> 6 | S18: =VLOOKUP($A$5,'RECAP SECT AN'!$G$6:$FE$312,27,FALSE) -> 0% | U18: =+S18-I18 -> -18%
B19: PNB Ventes nettes IZICARTES Débit Différé | C19: 4% | E19: ='RECAP SECT'!AB4 -> 20.0 | G19: =VLOOKUP($A$5,'RECAP SECT'!$G$6:$DG$312,35,FALSE) -> 0.4 | I19: =VLOOKUP($A$5,'RECAP SECT'!$G$6:$DG$312,36,FALSE) -> 1700% | K19: =VLOOKUP($A$5,'RECAP SECT AN'!$G$6:$FS$312,36,FALSE) -> 27% | M19: =+K19-I19 -> -1673% | O19: =VLOOKUP($A$5,'RECAP SECT'!$G$6:$DG$312,37,FALSE) -> 0 | S19: =VLOOKUP($A$5,'RECAP SECT AN'!$G$6:$FE$312,30,FALSE) -> 430% | U19: =+S19-I19 -> -1270%
B20: PNB Ventes nettes cartes HDG Débit Différé | C20: 4% | E20: ='RECAP SECT'!AF4 -> 7.2 | G20: =VLOOKUP($A$5,'RECAP SECT'!$G$6:$DG$312,39,FALSE) -> 0.0 | I20: =VLOOKUP($A$5,'RECAP SECT'!$G$6:$DG$312,40,FALSE) -> 0% | K20: =VLOOKUP($A$5,'RECAP SECT AN'!$G$6:$FS$312,40,FALSE) -> 35% | M20: =+K20-I20 -> 35% | O20: =VLOOKUP($A$5,'RECAP SECT'!$G$6:$DG$312,41,FALSE) -> 9599.717437 | S20: =VLOOKUP($A$5,'RECAP SECT AN'!$G$6:$FE$312,33,FALSE) -> 1600% | U20: =+S20-I20 -> 1600%
B21: PNB Ventes nettes Forfaits Pro, Carte pro | C21: 3% | E21: ='RECAP SECT'!AJ4 -> -0.6 | G21: =VLOOKUP($A$5,'RECAP SECT'!$G$6:$DG$312,43,FALSE) -> 0.5 | I21: =VLOOKUP($A$5,'RECAP SECT'!$G$6:$DG$312,44,FALSE) -> 1300% | K21: =VLOOKUP($A$5,'RECAP SECT AN'!$G$6:$FS$312,44,FALSE) -> 87% | M21: =+K21-I21 -> -1213% | O21: =VLOOKUP($A$5,'RECAP SECT'!$G$6:$DG$312,45,FALSE) -> 451 | S21: =VLOOKUP($A$5,'RECAP SECT AN'!$G$6:$FE$312,39,FALSE) -> 467% | U21: =+S21-I21 -> -833%
A23: CRITERE EPARGNE | C23: 10% | O23: =VLOOKUP($A$5,'RECAP SECT'!$G$6:$DG$312,69,FALSE) -> 0.5259875532
B24: PNB Epargne Liquide | C24: 3% | E24: ='RECAP SECT'!AU4 -> 303.4 | G24: =VLOOKUP($A$5,'RECAP SECT'!$G$6:$DG$312,56,FALSE) -> 1307.1 | I24: =VLOOKUP($A$5,'RECAP SECT'!$G$6:$DG$312,57,FALSE) -> 2141% | K24: =VLOOKUP($A$5,'RECAP SECT AN'!$G$6:$FS$312,57,FALSE) -> 25% | M24: =+K24-I24 -> -2116% | O24: =VLOOKUP($A$5,'RECAP SECT'!$G$6:$DG$312,58,FALSE) -> 0.7874974702 | S24: =VLOOKUP($A$5,'RECAP SECT AN'!$G$6:$FE$312,51,FALSE) -> 0% | U24: =+S24-I24 -> -2141%
B25: PNB CA UC + arbitrage | C25: 4% | E25: ='RECAP SECT'!AY4 -> 13.1 | G25: =VLOOKUP($A$5,'RECAP SECT'!$G$6:$DG$312,60,FALSE) -> 1004.9 | I25: =VLOOKUP($A$5,'RECAP SECT'!$G$6:$DG$312,61,FALSE) -> 1646% | K25: =VLOOKUP($A$5,'RECAP SECT AN'!$G$6:$FS$312,61,FALSE) -> 23% | M25: =+K25-I25 -> -1623% | O25: =VLOOKUP($A$5,'RECAP SECT'!$G$6:$DG$312,62,FALSE) -> 0.3489127207 | S25: =VLOOKUP($A$5,'RECAP SECT AN'!$G$6:$FE$312,57,FALSE) -> 25% | U25: =+S25-I25 -> -1621%
B26: PNB Excédent assurance vie | C26: 3% | E26: ='RECAP SECT'!#REF! ->  | G26: =VLOOKUP($A$5,'RECAP SECT'!$G$6:$DG$312,64,FALSE) -> 235.0 | I26: =VLOOKUP($A$5,'RECAP SECT'!$G$6:$DG$312,65,FALSE) -> 385% | K26: =VLOOKUP($A$5,'RECAP SECT AN'!$G$6:$FS$312,65,FALSE) -> 114% | M26: =+K26-I26 -> -271% | O26: =VLOOKUP($A$5,'RECAP SECT'!$G$6:$DG$312,66,FALSE) -> 0.5800254811 | S26: =VLOOKUP($A$5,'RECAP SECT AN'!$G$6:$FE$312,60,FALSE) -> 107% | U26: =+S26-I26 -> -278%
A28: CRITERE CREDITS | C28: 15% | O28: =VLOOKUP($A$5,'RECAP SECT'!$G$6:$DG$312,102,FALSE) -> 0.3916636923
B29: PNB crédit conso | C29: 4% | E29: ='RECAP SECT'!BJ4 -> 100.7 | G29: =VLOOKUP($A$5,'RECAP SECT'!$G$6:$DG$312,77,FALSE) -> 0.3 | I29: =VLOOKUP($A$5,'RECAP SECT'!$G$6:$DG$312,78,FALSE) -> 1300% | K29: =VLOOKUP($A$5,'RECAP SECT AN'!$G$6:$FS$312,78,FALSE) -> 37% | M29: =+K29-I29 -> -1263% | O29: =VLOOKUP($A$5,'RECAP SECT'!$G$6:$DG$312,79,FALSE) -> 669 | S29: =VLOOKUP($A$5,'RECAP SECT AN'!$G$6:$FE$312,75,FALSE) -> 0% | U29: =+S29-I29 -> -1300%
B30: PNB ADE crédit conso | C30: 1% | E30: ='RECAP SECT'!#REF! ->  | G30: =VLOOKUP($A$5,'RECAP SECT'!$G$6:$DG$312,81,FALSE) -> 0.4 | I30: =VLOOKUP($A$5,'RECAP SECT'!$G$6:$DG$312,82,FALSE) -> 1800% | K30: =VLOOKUP($A$5,'RECAP SECT AN'!$G$6:$FS$312,82,FALSE) -> 44% | M30: -1756% | O30: =VLOOKUP($A$5,'RECAP SECT'!$G$6:$DG$312,83,FALSE) -> 0.2996612492 | S30: =VLOOKUP($A$5,'RECAP SECT AN'!$G$6:$FE$312,78,FALSE) -> 37% | U30: -1763%
B31: PNB crédit immo | C31: 4% | E31: ='RECAP SECT'!BN4 -> 25.3 | G31: =VLOOKUP($A$5,'RECAP SECT'!$G$6:$DG$312,85,FALSE) -> 14.0 | I31: =VLOOKUP($A$5,'RECAP SECT'!$G$6:$DG$312,86,FALSE) -> 0% | K31: =VLOOKUP($A$5,'RECAP SECT AN'!$G$6:$FS$312,86,FALSE) -> 38% | M31: 38% | O31: =VLOOKUP($A$5,'RECAP SECT'!$G$6:$DG$312,87,FALSE) -> 0 | S31: =VLOOKUP($A$5,'RECAP SECT AN'!$G$6:$FE$312,81,FALSE) -> 782% | U31: 782%
B32: PNB ADE crédit immo | C32: 2% | E32: ='RECAP SECT'!#REF! ->  | G32: =VLOOKUP($A$5,'RECAP SECT'!$G$6:$DG$312,89,FALSE) -> 0.0 | I32: =VLOOKUP($A$5,'RECAP SECT'!$G$6:$DG$312,90,FALSE) -> 0% | K32: =VLOOKUP($A$5,'RECAP SECT AN'!$G$6:$FS$312,90,FALSE) -> 49% | M32: 49% | O32: =VLOOKUP($A$5,'RECAP SECT'!$G$6:$DG$312,91,FALSE) -> 0 | S32: =VLOOKUP($A$5,'RECAP SECT AN'!$G$6:$FE$312,84,FALSE) -> 139312% | U32: 139312%
B33: PNB SACCEF | C33: 2% | E33: ='RECAP SECT'!#REF! ->  | G33: =VLOOKUP($A$5,'RECAP SECT'!$G$6:$DG$312,93,FALSE) -> 0.0 | I33: =VLOOKUP($A$5,'RECAP SECT'!$G$6:$DG$312,94,FALSE) -> 0% | K33: =VLOOKUP($A$5,'RECAP SECT AN'!$G$6:$FS$312,94,FALSE) -> 51% | M33: 51% | O33: =VLOOKUP($A$5,'RECAP SECT'!$G$6:$DG$312,95,FALSE) -> 0 | S33: =VLOOKUP($A$5,'RECAP SECT AN'!$G$6:$FE$312,87,FALSE) -> 1100% | U33: 1100%
B34: PNB Crédit MLT + Crédit Bail | C34: 2% | E34: ='RECAP SECT'!BR4 -> 9.2 | G34: =VLOOKUP($A$5,'RECAP SECT'!$G$6:$DG$312,97,FALSE) -> 0.0 | I34: =VLOOKUP($A$5,'RECAP SECT'!$G$6:$DG$312,98,FALSE) -> 0% | K34: =VLOOKUP($A$5,'RECAP SECT AN'!$G$6:$FS$312,98,FALSE) -> 74% | M34: 74% | O34: =VLOOKUP($A$5,'RECAP SECT'!$G$6:$DG$312,99,FALSE) -> 0 | S34: =VLOOKUP($A$5,'RECAP SECT AN'!$G$6:$FE$312,90,FALSE) -> 49% | U34: 49%
A36: CRITERE IARD PREVOYANCE | C36: 15% | O36: =VLOOKUP($A$5,'RECAP SECT'!$G$6:$DG$312,119,FALSE) -> 
B37: PNB Ventes nettes IARD | C37: 9% | E37: ='RECAP SECT'!CC4 -> 99.7 | G37: =VLOOKUP($A$5,'RECAP SECT'!$G$6:$DG$312,110,FALSE) ->  | I37: =VLOOKUP($A$5,'RECAP SECT'!$G$6:$DG$312,111,FALSE) ->  | K37: =VLOOKUP($A$5,'RECAP SECT AN'!$G$6:$FS$312,111,FALSE) -> 75% | M37: =+K37-I37 ->  | O37: =VLOOKUP($A$5,'RECAP SECT'!$G$6:$DG$312,112,FALSE) ->  | S37: =VLOOKUP($A$5,'RECAP SECT AN'!$G$6:$FE$312,102,FALSE) -> 1800% | U37: =+S37-I37 -> 
B38: PNB Ventes nettes Prévoyance | C38: 6% | E38: ='RECAP SECT'!CG4 -> 18.2 | G38: =VLOOKUP($A$5,'RECAP SECT'!$G$6:$DG$312,114,FALSE) ->  | I38: =VLOOKUP($A$5,'RECAP SECT'!$G$6:$DG$312,115,FALSE) ->  | K38: =VLOOKUP($A$5,'RECAP SECT AN'!$G$6:$FS$312,115,FALSE) -> 62% | M38: =+K38-I38 ->  | O38: =VLOOKUP($A$5,'RECAP SECT'!$G$6:$DG$312,116,FALSE) ->  | S38: =VLOOKUP($A$5,'RECAP SECT AN'!$G$6:$FE$312,105,FALSE) -> 0% | U38: =+S38-I38 -> 
A40: CRITERE ACCELERATEURS PNB | C40: 15% | O40: =VLOOKUP($A$5,'RECAP SECT'!$G$6:$DG$312,144,FALSE) -> 
B41: PNB Ventes brutes SED Finalisées | C41: 6% | E41: ='RECAP SECT'!#REF! ->  | G41: =VLOOKUP($A$5,'RECAP SECT'!$G$6:$DG$312,127,FALSE) ->  | I41: =VLOOKUP($A$5,'RECAP SECT'!$G$6:$DG$312,128,FALSE) ->  | K41: =VLOOKUP($A$5,'RECAP SECT AN'!$G$6:$FS$312,128,FALSE) -> 45% | M41: =+K41-I41 ->  | O41: =VLOOKUP($A$5,'RECAP SECT'!$G$6:$DG$312,129,FALSE) ->  | S41: =VLOOKUP($A$5,'RECAP SECT AN'!$G$6:$FE$312,120,FALSE) -> 0% | U41: =+S41-I41 -> 
B42: PNB clients équipés E documents | C42: 3% | E42: ='RECAP SECT'!#REF! ->  | G42: =VLOOKUP($A$5,'RECAP SECT'!$G$6:$DG$312,131,FALSE) ->  | I42: =VLOOKUP($A$5,'RECAP SECT'!$G$6:$DG$312,132,FALSE) ->  | K42: =VLOOKUP($A$5,'RECAP SECT AN'!$G$6:$FS$312,132,FALSE) -> 43% | M42: =+K42-I42 ->  | O42: =VLOOKUP($A$5,'RECAP SECT'!$G$6:$DG$312,133,FALSE) ->  | S42: =VLOOKUP($A$5,'RECAP SECT AN'!$G$6:$FE$312,123,FALSE) -> 0% | U42: =+S42-I42 -> 
B43: Economie opt'in | C43: 3% | E43: ='RECAP SECT'!#REF! ->  | G43: =VLOOKUP($A$5,'RECAP SECT'!$G$6:$DG$312,135,FALSE) ->  | I43: =VLOOKUP($A$5,'RECAP SECT'!$G$6:$DG$312,136,FALSE) ->  | K43: =VLOOKUP($A$5,'RECAP SECT AN'!$G$6:$FS$312,136,FALSE) -> 55% | M43: =+K43-I43 ->  | O43: =VLOOKUP($A$5,'RECAP SECT'!$G$6:$DG$312,137,FALSE) -> 
B44: Remises commerciales | C44: 3% | E44: ='RECAP SECT'!#REF! ->  | G44: =VLOOKUP($A$5,'RECAP SECT'!$G$6:$DG$312,139,FALSE) ->  | I44: =VLOOKUP($A$5,'RECAP SECT'!$G$6:$DG$312,140,FALSE) ->  | K44: =VLOOKUP($A$5,'RECAP SECT AN'!$G$6:$FS$312,140,FALSE) -> 45% | M44: =+K44-I44 ->  | O44: =VLOOKUP($A$5,'RECAP SECT'!$G$6:$DG$312,141,FALSE) ->  | S44: =VLOOKUP($A$5,'RECAP SECT AN'!$G$6:$FE$312,126,FALSE) -> 2124% | U44: =+S44-I44 -> 
A46: CRITERE Satisfaction Clients | C46: 15% | O46: =VLOOKUP($A$5,'RECAP SECT'!$G$6:$DG$312,159,FALSE) -> 
B47: Objectifs NPS* | C47: 8% | E47: ='RECAP SECT'!K4 -> 19 | G47: =VLOOKUP($A$5,'RECAP SECT'!$G$6:$DG$312,151,FALSE) ->  | I47: =VLOOKUP($A$5,'RECAP SECT'!$G$6:$DG$312,152,FALSE) ->  | K47: =VLOOKUP($A$5,'RECAP SECT AN'!$G$6:$FS$312,152,FALSE) -> 110% | M47: =+K47-I47 ->  | O47: =VLOOKUP($A$5,'RECAP SECT'!$G$6:$DG$312,153,FALSE) ->  | S47: =VLOOKUP($A$5,'RECAP SECT AN'!$G$6:$FE$312,138,FALSE) -> -33048% | U47: =+S47-I47 -> 
B48: Enquête Qualité Haute Définition | C48: 7% | E48: ='RECAP SECT'!N4 -> 68% | G48: =VLOOKUP($A$5,'RECAP SECT'!$G$6:$DG$312,154,FALSE) ->  | I48: =VLOOKUP($A$5,'RECAP SECT'!$G$6:$DG$312,155,FALSE) ->  | K48: =VLOOKUP($A$5,'RECAP SECT AN'!$G$6:$FS$312,155,FALSE) -> 7% | M48: =+K48-I48 ->  | O48: =VLOOKUP($A$5,'RECAP SECT'!$G$6:$DG$312,156,FALSE) ->  | S48: =VLOOKUP($A$5,'RECAP SECT AN'!$G$6:$FE$312,141,FALSE) -> 1000% | U48: =+S48-I48 -> 

Sheet SE_TOTAL
B1: Accueil | F1: BAROMETRE BDD - TERRITOIRES
F2: TOTAL GENERAL
F3: =ACCUEIL!F7 -> 2021-04-04
F7: TOTAL GENERAL | I7: Total Satisfaction Clients | L7: Total Bancarisation | O7: Total Epargne | R7: Total IARD Prévoyance | U7: Total Crédits
G8: coef | H8: 100% | J8: coef | K8: =SE_SATISFACTION!N8 -> 20% | M8: coef | N8: =SE_BANCA!X8 -> 20% | P8: coef | Q8: =SE_EPARGNE!P8 -> 20% | S8: coef | T8: =SE_IARD!P8 -> 20% | V8: coef | W8: =SE_CREDIT!T8 -> 20%
B9: Direction | C9: eds | D9: Territoire | E9: ="ETP perf "&DATEMAJ!$C$28 -> ETP perf 28-févr | F9: Moyenne ecart au 1er | G9: % Ecart au 1er | H9: Rang CEGEE | I9: Moyenne ecart au 1er | J9: % Ecart au 1er | K9: Rang CEGEE | L9: Moyenne ecart au 1er | M9: % Ecart au 1er | N9: Rang CEGEE | O9: Moyenne ecart au 1er | P9: % Ecart au 1er | Q9: Rang CEGEE | R9: Moyenne ecart au 1er | S9: % Ecart au 1er | T9: Rang CEGEE | U9: Moyenne ecart au 1er | V9: % Ecart au 1er | W9: Rang CEGEE
A10: 50 | B10: MEURTHE ET MOSELLE MEUSE | C10: 26 | D10: NANCY | E10: 65.8 | F10: 9% | G10: 0% | H10: 1 | I10: 38% | J10: 35% | K10: 11 | L10: 15% | M10: 0% | N10: 1 | O10: 17% | P10: 11% | Q10: 4 | R10: 3% | S10: 0% | T10: 1 | U10: 7% | V10: 0% | W10: 1
A11: 50 | B11: MARNE-ARDENNES | C11: 2 | D11: CHARLEVILLE MEZIERES | E11: 55.4 | F11: 16% | G11: 7% | H11: 2 | I11: 5% | J11: 2% | K11: 2 | L11: 42% | M11: 27% | N11: 11 | O11: 28% | P11: 22% | Q11: 8 | R11: 9% | S11: 6% | T11: 4 | U11: 28% | V11: 21% | W11: 4
A12: 262 | B12: MEURTHE ET MOSELLE MEUSE | C12: 27 | D12: PONT A MOUSSON | E12: 77.0 | F12: 17% | G12: 8% | H12: 3 | I12: 41% | J12: 38% | K12: 12 | L12: 24% | M12: 9% | N12: 4 | O12: 23% | P12: 17% | Q12: 6 | R12: 18% | S12: 15% | T12: 9 | U12: 14% | V12: 7% | W12: 2
A13: 262 | B13: BAS-RHIN | C13: 5006 | D13: STRASBOURG | E13: 75.4 | F13: 18% | G13: 9% | H13: 4 | I13: 54% | J13: 52% | K13: 17 | L13: 19% | M13: 4% | N13: 2 | O13: 6% | P13: 0% | Q13: 1 | R13: 8% | S13: 6% | T13: 3 | U13: 37% | V13: 30% | W13: 9
A14: 262 | B14: MARNE-ARDENNES | C14: 11 | D14: REIMS | E14: 81.6 | F14: 20% | G14: 10% | H14: 5 | I14: 38% | J14: 35% | K14: 10 | L14: 38% | M14: 23% | N14: 9 | O14: 15% | P14: 9% | Q14: 3 | R14: 15% | S14: 12% | T14: 7 | U14: 25% | V14: 19% | W14: 3
A15: 264 | B15: VOSGES | C15: 55 | D15: SAINT DIE | E15: 48.3 | F15: 20% | G15: 11% | H15: 6 | I15: 3% | J15: 0% | K15: 1 | L15: 48% | M15: 33% | N15: 15 | O15: 17% | P15: 11% | Q15: 5 | R15: 18% | S15: 15% | T15: 10 | U15: 48% | V15: 41% | W15: 14
A16: 264 | B16: VOSGES | C16: 57 | D16: EPINAL | E16: 60.9 | F16: 22% | G16: 13% | H16: 7 | I16: 8% | J16: 5% | K16: 3 | L16: 52% | M16: 37% | N16: 16 | O16: 30% | P16: 24% | Q16: 10 | R16: 8% | S16: 5% | T16: 2 | U16: 44% | V16: 38% | W16: 11
A17: 30 | B17: BAS-RHIN | C17: 5101 | D17: SELESTAT | E17: 60.3 | F17: 24% | G17: 15% | H17: 8 | I17: 50% | J17: 47% | K17: 15 | L17: 23% | M17: 9% | N17: 3 | O17: 14% | P17: 8% | Q17: 2 | R17: 17% | S17: 15% | T17: 8 | U17: 48% | V17: 41% | W17: 16
A18: 30 | B18: MOSELLE | C18: 42 | D18: MOSELLE EST | E18: 69.0 | F18: 24% | G18: 15% | H18: 9 | I18: 19% | J18: 16% | K18: 4 | L18: 38% | M18: 23% | N18: 8 | O18: 29% | P18: 23% | Q18: 9 | R18: 21% | S18: 19% | T18: 11 | U18: 48% | V18: 41% | W18: 13
A19: 30 | B19: AUBE HAUTE MARNE | C19: 21 | D19: CHAUMONT | E19: 33.9 | F19: 26% | G19: 17% | H19: 10 | I19: 24% | J19: 22% | K19: 8 | L19: 47% | M19: 32% | N19: 14 | O19: 45% | P19: 39% | Q19: 13 | R19: 10% | S19: 7% | T19: 5 | U19: 37% | V19: 30% | W19: 7
A20: 110 | B20: MEURTHE ET MOSELLE MEUSE | C20: 31 | D20: VERDUN | E20: 56.3 | F20: 27% | G20: 18% | H20: 11 | I20: 21% | J20: 18% | K20: 5 | L20: 34% | M20: 19% | N20: 5 | O20: 49% | P20: 43% | Q20: 15 | R20: 32% | S20: 29% | T20: 16 | U20: 33% | V20: 26% | W20: 5
A21: 110 | B21: BAS-RHIN | C21: 5060 | D21: HAGUENAU | E21: 71.0 | F21: 28% | G21: 18% | H21: 12 | I21: 34% | J21: 32% | K21: 9 | L21: 34% | M21: 19% | N21: 6 | O21: 23% | P21: 17% | Q21: 7 | R21: 31% | S21: 28% | T21: 15 | U21: 48% | V21: 41% | W21: 15
A22: 110 | B22: MOSELLE | C22: 44 | D22: MOSELLE NORD | E22: 70.2 | F22: 28% | G22: 18% | H22: 13 | I22: 52% | J22: 49% | K22: 16 | L22: 37% | M22: 22% | N22: 7 | O22: 33% | P22: 27% | Q22: 11 | R22: 13% | S22: 10% | T22: 6 | U22: 37% | V22: 30% | W22: 8
A23: 160 | B23: MARNE-ARDENNES | C23: 6 | D23: CHALONS EN CHAMPAGNE | E23: 44.2 | F23: 28% | G23: 18% | H23: 14 | I23: 21% | J23: 18% | K23: 6 | L23: 40% | M23: 25% | N23: 10 | O23: 49% | P23: 43% | Q23: 16 | R23: 27% | S23: 25% | T23: 13 | U23: 34% | V23: 27% | W23: 6
A24: 160 | B24: MOSELLE | C24: 45 | D24: METZ | E24: 89.1 | F24: 32% | G24: 22% | H24: 15 | I24: 42% | J24: 39% | K24: 14 | L24: 46% | M24: 31% | N24: 13 | O24: 38% | P24: 32% | Q24: 12 | R24: 24% | S24: 21% | T24: 12 | U24: 41% | V24: 35% | W24: 10
A25: 160 | B25: AUBE HAUTE MARNE | C25: 14 | D25: TROYES | E25: 66.8 | F25: 35% | G25: 26% | H25: 16 | I25: 24% | J25: 21% | K25: 7 | L25: 44% | M25: 29% | N25: 12 | O25: 53% | P25: 48% | Q25: 17 | R25: 43% | S25: 40% | T25: 17 | U25: 44% | V25: 38% | W25: 12
A26: 80 | B26: HAUT-RHIN | C26: 5130 | D26: COLMAR | E26: 61.1 | F26: 39% | G26: 30% | H26: 17 | I26: 41% | J26: 38% | K26: 13 | L26: 52% | M26: 37% | N26: 17 | O26: 47% | P26: 41% | Q26: 14 | R26: 30% | S26: 27% | T26: 14 | U26: 59% | V26: 53% | W26: 18
A27: 80 | B27: HAUT-RHIN | C27: 5169 | D27: MULHOUSE | E27: 59.9 | F27: 57% | G27: 48% | H27: 18 | I27: 89% | J27: 87% | K27: 18 | L27: 70% | M27: 55% | N27: 18 | O27: 54% | P27: 48% | Q27: 18 | R27: 54% | S27: 51% | T27: 18 | U27: 52% | V27: 45% | W27: 17
A28: Total CEGEE Directions Régionales | E28: =SUM(E10:E27) -> 1146

Sheet SE_BANCA
B1: Accueil | F1: BAROMETRE BDD - TERRITOIRES
F2: BANCARISATION
F3: =ACCUEIL!F7 -> 2021-04-04
F7: Ventes Nettes produits pondérés | J7: Ventes sur client non détenteur de l’univers | N7: Mobilité Macron | R7: Remises commerciales | V7: Total Bancarisation
F8: =DATEMAJ!C8 -> au 04/04 | H8: coef | I8: ='RECAP DIRCOM'!AA4 -> 10% | J8: =DATEMAJ!C9 -> au 04/04 | L8: coef | M8: ='RECAP DIRCOM'!AE4 -> 4% | N8: =DATEMAJ!C10 -> au 04/04 | P8: coef | Q8: ='RECAP DIRCOM'!AI4 -> 3% | R8: =DATEMAJ!C11 -> au 28/02 | T8: coef | U8: ='RECAP DIRCOM'!AM4 -> 3% | W8: coef | X8: ='RECAP DIRCOM'!AP4 -> 20%
B9: Direction | C9: eds | D9: Territoire | E9: ="ETP perf "&DATEMAJ!$C$28 -> ETP perf 28-févr | F9: VN | G9: VN / ETP | H9: % Ecart au 1er | I9: Rang | J9: VB | K9: VB / ETP | L9: % Ecart au 1er | M9: Rang | N9: Nb | O9: Nb / ETP | P9: % Ecart au 1er | Q9: Rang | R9: Montant | S9: Montant / ETP | T9: % Ecart au 1er | U9: Rang | V9: Moyenne ecart au 1er | W9: % Ecart au 1er | X9: Rang CEGEE
A10: 50 | B10: AUBE HAUTE MARNE | C10: 21 | D10: CHAUMONT | E10: =VLOOKUP($C10,'RECAP SECT'!$G$6:$DC$253,3,FALSE) -> 33.9 | F10: =VLOOKUP($C10,'RECAP SECT'!$G$6:$DC$253,18,FALSE) -> 523 | G10: =VLOOKUP($C10,'RECAP SECT'!$G$6:$DC$253,19,FALSE) -> 15.43 | H10: =VLOOKUP($C10,'RECAP SECT'!$G$6:$DC$253,20,FALSE) -> 59% | I10: =VLOOKUP($C10,'RECAP SECT'!$G$6:$DC$253,21,FALSE) -> 16 | J10: =VLOOKUP($C10,'RECAP SECT'!$G$6:$DC$253,22,FALSE) -> 518 | K10: =VLOOKUP($C10,'RECAP SECT'!$G$6:$DC$253,23,FALSE) -> 15.29 | L10: =VLOOKUP($C10,'RECAP SECT'!$G$6:$DC$253,24,FALSE) -> 24% | M10: =VLOOKUP($C10,'RECAP SECT'!$G$6:$DC$253,25,FALSE) -> 6 | N10: =VLOOKUP($C10,'RECAP SECT'!$G$6:$DC$253,26,FALSE) -> 74 | O10: =VLOOKUP($C10,'RECAP SECT'!$G$6:$DC$253,27,FALSE) -> 2.18 | P10: =VLOOKUP($C10,'RECAP SECT'!$G$6:$DC$253,28,FALSE) -> 70% | Q10: =VLOOKUP($C10,'RECAP SECT'!$G$6:$DC$253,29,FALSE) -> 10 | R10: =VLOOKUP($C10,'RECAP SECT'!$G$6:$DC$253,30,FALSE) -> -24.0 | S10: =VLOOKUP($C10,'RECAP SECT'!$G$6:$DC$253,31,FALSE) -> -0.71 | T10: =VLOOKUP($C10,'RECAP SECT'!$G$6:$DC$253,32,FALSE) -> 19% | U10: =VLOOKUP($C10,'RECAP SECT'!$G$6:$DC$253,33,FALSE) -> 7 | V10: =VLOOKUP($C10,'RECAP SECT'!$G$6:$DC$253,34,FALSE) -> 47% | W10: =VLOOKUP($C10,'RECAP SECT'!$G$6:$DC$253,35,FALSE) -> 32% | X10: =VLOOKUP($C10,'RECAP SECT'!$G$6:$DC$253,36,FALSE) -> 14
A11: 50 | B11: AUBE HAUTE MARNE | C11: 14 | D11: TROYES | E11: =VLOOKUP($C11,'RECAP SECT'!$G$6:$DC$253,3,FALSE) -> 66.8 | F11: =VLOOKUP($C11,'RECAP SECT'!$G$6:$DC$253,18,FALSE) -> 1,208 | G11: =VLOOKUP($C11,'RECAP SECT'!$G$6:$DC$253,19,FALSE) -> 18.08 | H11: =VLOOKUP($C11,'RECAP SECT'!$G$6:$DC$253,20,FALSE) -> 52% | I11: =VLOOKUP($C11,'RECAP SECT'!$G$6:$DC$253,21,FALSE) -> 12 | J11: =VLOOKUP($C11,'RECAP SECT'!$G$6:$DC$253,22,FALSE) -> 940 | K11: =VLOOKUP($C11,'RECAP SECT'!$G$6:$DC$253,23,FALSE) -> 14.07 | L11: =VLOOKUP($C11,'RECAP SECT'!$G$6:$DC$253,24,FALSE) -> 30% | M11: =VLOOKUP($C11,'RECAP SECT'!$G$6:$DC$253,25,FALSE) -> 10 | N11: =VLOOKUP($C11,'RECAP SECT'!$G$6:$DC$253,26,FALSE) -> 141 | O11: =VLOOKUP($C11,'RECAP SECT'!$G$6:$DC$253,27,FALSE) -> 2.11 | P11: =VLOOKUP($C11,'RECAP SECT'!$G$6:$DC$253,28,FALSE) -> 71% | Q11: =VLOOKUP($C11,'RECAP SECT'!$G$6:$DC$253,29,FALSE) -> 13 | R11: =VLOOKUP($C11,'RECAP SECT'!$G$6:$DC$253,30,FALSE) -> -44.8 | S11: =VLOOKUP($C11,'RECAP SECT'!$G$6:$DC$253,31,FALSE) -> -0.67 | T11: =VLOOKUP($C11,'RECAP SECT'!$G$6:$DC$253,32,FALSE) -> 12% | U11: =VLOOKUP($C11,'RECAP SECT'!$G$6:$DC$253,33,FALSE) -> 4 | V11: =VLOOKUP($C11,'RECAP SECT'!$G$6:$DC$253,34,FALSE) -> 44% | W11: =VLOOKUP($C11,'RECAP SECT'!$G$6:$DC$253,35,FALSE) -> 29% | X11: =VLOOKUP($C11,'RECAP SECT'!$G$6:$DC$253,36,FALSE) -> 12
A12: 262 | B12: BAS-RHIN | C12: 5060 | D12: HAGUENAU | E12: =VLOOKUP($C12,'RECAP SECT'!$G$6:$DC$253,3,FALSE) -> 71.0 | F12: =VLOOKUP($C12,'RECAP SECT'!$G$6:$DC$253,18,FALSE) -> 2,143 | G12: =VLOOKUP($C12,'RECAP SECT'!$G$6:$DC$253,19,FALSE) -> 30.20 | H12: =VLOOKUP($C12,'RECAP SECT'!$G$6:$DC$253,20,FALSE) -> 19% | I12: =VLOOKUP($C12,'RECAP SECT'!$G$6:$DC$253,21,FALSE) -> 4 | J12: =VLOOKUP($C12,'RECAP SECT'!$G$6:$DC$253,22,FALSE) -> 892 | K12: =VLOOKUP($C12,'RECAP SECT'!$G$6:$DC$253,23,FALSE) -> 12.57 | L12: =VLOOKUP($C12,'RECAP SECT'!$G$6:$DC$253,24,FALSE) -> 37% | M12: =VLOOKUP($C12,'RECAP SECT'!$G$6:$DC$253,25,FALSE) -> 16 | N12: =VLOOKUP($C12,'RECAP SECT'!$G$6:$DC$253,26,FALSE) -> 132 | O12: =VLOOKUP($C12,'RECAP SECT'!$G$6:$DC$253,27,FALSE) -> 1.86 | P12: =VLOOKUP($C12,'RECAP SECT'!$G$6:$DC$253,28,FALSE) -> 74% | Q12: =VLOOKUP($C12,'RECAP SECT'!$G$6:$DC$253,29,FALSE) -> 15 | R12: =VLOOKUP($C12,'RECAP SECT'!$G$6:$DC$253,30,FALSE) -> -59.7 | S12: =VLOOKUP($C12,'RECAP SECT'!$G$6:$DC$253,31,FALSE) -> -0.84 | T12: =VLOOKUP($C12,'RECAP SECT'!$G$6:$DC$253,32,FALSE) -> 41% | U12: =VLOOKUP($C12,'RECAP SECT'!$G$6:$DC$253,33,FALSE) -> 13 | V12: =VLOOKUP($C12,'RECAP SECT'!$G$6:$DC$253,34,FALSE) -> 34% | W12: =VLOOKUP($C12,'RECAP SECT'!$G$6:$DC$253,35,FALSE) -> 19% | X12: =VLOOKUP($C12,'RECAP SECT'!$G$6:$DC$253,36,FALSE) -> 6
A13: 262 | B13: BAS-RHIN | C13: 5101 | D13: SELESTAT | E13: =VLOOKUP($C13,'RECAP SECT'!$G$6:$DC$253,3,FALSE) -> 60.3 | F13: =VLOOKUP($C13,'RECAP SECT'!$G$6:$DC$253,18,FALSE) -> 2,254 | G13: =VLOOKUP($C13,'RECAP SECT'!$G$6:$DC$253,19,FALSE) -> 37.40 | H13: =VLOOKUP($C13,'RECAP SECT'!$G$6:$DC$253,20,FALSE) -> 0% | I13: =VLOOKUP($C13,'RECAP SECT'!$G$6:$DC$253,21,FALSE) -> 1 | J13: =VLOOKUP($C13,'RECAP SECT'!$G$6:$DC$253,22,FALSE) -> 821 | K13: =VLOOKUP($C13,'RECAP SECT'!$G$6:$DC$253,23,FALSE) -> 13.62 | L13: =VLOOKUP($C13,'RECAP SECT'!$G$6:$DC$253,24,FALSE) -> 32% | M13: =VLOOKUP($C13,'RECAP SECT'!$G$6:$DC$253,25,FALSE) -> 12 | N13: =VLOOKUP($C13,'RECAP SECT'!$G$6:$DC$253,26,FALSE) -> 131 | O13: =VLOOKUP($C13,'RECAP SECT'!$G$6:$DC$253,27,FALSE) -> 2.17 | P13: =VLOOKUP($C13,'RECAP SECT'!$G$6:$DC$253,28,FALSE) -> 70% | Q13: =VLOOKUP($C13,'RECAP SECT'!$G$6:$DC$253,29,FALSE) -> 11 | R13: =VLOOKUP($C13,'RECAP SECT'!$G$6:$DC$253,30,FALSE) -> -51.7 | S13: =VLOOKUP($C13,'RECAP SECT'!$G$6:$DC$253,31,FALSE) -> -0.86 | T13: =VLOOKUP($C13,'RECAP SECT'!$G$6:$DC$253,32,FALSE) -> 44% | U13: =VLOOKUP($C13,'RECAP SECT'!$G$6:$DC$253,33,FALSE) -> 14 | V13: =VLOOKUP($C13,'RECAP SECT'!$G$6:$DC$253,34,FALSE) -> 23% | W13: =VLOOKUP($C13,'RECAP SECT'!$G$6:$DC$253,35,FALSE) -> 9% | X13: =VLOOKUP($C13,'RECAP SECT'!$G$6:$DC$253,36,FALSE) -> 3
A14: 262 | B14: BAS-RHIN | C14: 5006 | D14: STRASBOURG | E14: =VLOOKUP($C14,'RECAP SECT'!$G$6:$DC$253,3,FALSE) -> 75.4 | F14: =VLOOKUP($C14,'RECAP SECT'!$G$6:$DC$253,18,FALSE) -> 2,718 | G14: =VLOOKUP($C14,'RECAP SECT'!$G$6:$DC$253,19,FALSE) -> 36.04 | H14: =VLOOKUP($C14,'RECAP SECT'!$G$6:$DC$253,20,FALSE) -> 4% | I14: =VLOOKUP($C14,'RECAP SECT'!$G$6:$DC$253,21,FALSE) -> 2 | J14: =VLOOKUP($C14,'RECAP SECT'!$G$6:$DC$253,22,FALSE) -> 1,446 | K14: =VLOOKUP($C14,'RECAP SECT'!$G$6:$DC$253,23,FALSE) -> 19.17 | L14: =VLOOKUP($C14,'RECAP SECT'!$G$6:$DC$253,24,FALSE) -> 4% | M14: =VLOOKUP($C14,'RECAP SECT'!$G$6:$DC$253,25,FALSE) -> 2 | N14: =VLOOKUP($C14,'RECAP SECT'!$G$6:$DC$253,26,FALSE) -> 294 | O14: =VLOOKUP($C14,'RECAP SECT'!$G$6:$DC$253,27,FALSE) -> 3.90 | P14: =VLOOKUP($C14,'RECAP SECT'!$G$6:$DC$253,28,FALSE) -> 46% | Q14: =VLOOKUP($C14,'RECAP SECT'!$G$6:$DC$253,29,FALSE) -> 6 | R14: =VLOOKUP($C14,'RECAP SECT'!$G$6:$DC$253,30,FALSE) -> -73.5 | S14: =VLOOKUP($C14,'RECAP SECT'!$G$6:$DC$253,31,FALSE) -> -0.97 | T14: =VLOOKUP($C14,'RECAP SECT'!$G$6:$DC$253,32,FALSE) -> 63% | U14: =VLOOKUP($C14,'RECAP SECT'!$G$6:$DC$253,33,FALSE) -> 18 | V14: =VLOOKUP($C14,'RECAP SECT'!$G$6:$DC$253,34,FALSE) -> 19% | W14: =VLOOKUP($C14,'RECAP SECT'!$G$6:$DC$253,35,FALSE) -> 4% | X14: =VLOOKUP($C14,'RECAP SECT'!$G$6:$DC$253,36,FALSE) -> 2
A15: 264 | B15: HAUT-RHIN | C15: 5130 | D15: COLMAR | E15: =VLOOKUP($C15,'RECAP SECT'!$G$6:$DC$253,3,FALSE) -> 61.1 | F15: =VLOOKUP($C15,'RECAP SECT'!$G$6:$DC$253,18,FALSE) -> 962 | G15: =VLOOKUP($C15,'RECAP SECT'!$G$6:$DC$253,19,FALSE) -> 15.75 | H15: =VLOOKUP($C15,'RECAP SECT'!$G$6:$DC$253,20,FALSE) -> 58% | I15: =VLOOKUP($C15,'RECAP SECT'!$G$6:$DC$253,21,FALSE) -> 15 | J15: =VLOOKUP($C15,'RECAP SECT'!$G$6:$DC$253,22,FALSE) -> 749 | K15: =VLOOKUP($C15,'RECAP SECT'!$G$6:$DC$253,23,FALSE) -> 12.27 | L15: =VLOOKUP($C15,'RECAP SECT'!$G$6:$DC$253,24,FALSE) -> 39% | M15: =VLOOKUP($C15,'RECAP SECT'!$G$6:$DC$253,25,FALSE) -> 17 | N15: =VLOOKUP($C15,'RECAP SECT'!$G$6:$DC$253,26,FALSE) -> 80 | O15: =VLOOKUP($C15,'RECAP SECT'!$G$6:$DC$253,27,FALSE) -> 1.31 | P15: =VLOOKUP($C15,'RECAP SECT'!$G$6:$DC$253,28,FALSE) -> 82% | Q15: =VLOOKUP($C15,'RECAP SECT'!$G$6:$DC$253,29,FALSE) -> 17 | R15: =VLOOKUP($C15,'RECAP SECT'!$G$6:$DC$253,30,FALSE) -> -43.0 | S15: =VLOOKUP($C15,'RECAP SECT'!$G$6:$DC$253,31,FALSE) -> -0.70 | T15: =VLOOKUP($C15,'RECAP SECT'!$G$6:$DC$253,32,FALSE) -> 18% | U15: =VLOOKUP($C15,'RECAP SECT'!$G$6:$DC$253,33,FALSE) -> 6 | V15: =VLOOKUP($C15,'RECAP SECT'!$G$6:$DC$253,34,FALSE) -> 52% | W15: =VLOOKUP($C15,'RECAP SECT'!$G$6:$DC$253,35,FALSE) -> 37% | X15: =VLOOKUP($C15,'RECAP SECT'!$G$6:$DC$253,36,FALSE) -> 17
A16: 264 | B16: HAUT-RHIN | C16: 5169 | D16: MULHOUSE | E16: =VLOOKUP($C16,'RECAP SECT'!$G$6:$DC$253,3,FALSE) -> 59.9 | F16: =VLOOKUP($C16,'RECAP SECT'!$G$6:$DC$253,18,FALSE) -> 369 | G16: =VLOOKUP($C16,'RECAP SECT'!$G$6:$DC$253,19,FALSE) -> 6.16 | H16: =VLOOKUP($C16,'RECAP SECT'!$G$6:$DC$253,20,FALSE) -> 84% | I16: =VLOOKUP($C16,'RECAP SECT'!$G$6:$DC$253,21,FALSE) -> 18 | J16: =VLOOKUP($C16,'RECAP SECT'!$G$6:$DC$253,22,FALSE) -> 731 | K16: =VLOOKUP($C16,'RECAP SECT'!$G$6:$DC$253,23,FALSE) -> 12.20 | L16: =VLOOKUP($C16,'RECAP SECT'!$G$6:$DC$253,24,FALSE) -> 39% | M16: =VLOOKUP($C16,'RECAP SECT'!$G$6:$DC$253,25,FALSE) -> 18 | N16: =VLOOKUP($C16,'RECAP SECT'!$G$6:$DC$253,26,FALSE) -> 69 | O16: =VLOOKUP($C16,'RECAP SECT'!$G$6:$DC$253,27,FALSE) -> 1.15 | P16: =VLOOKUP($C16,'RECAP SECT'!$G$6:$DC$253,28,FALSE) -> 84% | Q16: =VLOOKUP($C16,'RECAP SECT'!$G$6:$DC$253,29,FALSE) -> 18 | R16: =VLOOKUP($C16,'RECAP SECT'!$G$6:$DC$253,30,FALSE) -> -53.7 | S16: =VLOOKUP($C16,'RECAP SECT'!$G$6:$DC$253,31,FALSE) -> -0.90 | T16: =VLOOKUP($C16,'RECAP SECT'!$G$6:$DC$253,32,FALSE) -> 50% | U16: =VLOOKUP($C16,'RECAP SECT'!$G$6:$DC$253,33,FALSE) -> 15 | V16: =VLOOKUP($C16,'RECAP SECT'!$G$6:$DC$253,34,FALSE) -> 70% | W16: =VLOOKUP($C16,'RECAP SECT'!$G$6:$DC$253,35,FALSE) -> 55% | X16: =VLOOKUP($C16,'RECAP SECT'!$G$6:$DC$253,36,FALSE) -> 18
A17: 30 | B17: MARNE-ARDENNES | C17: 6 | D17: CHALONS EN CHAMPAGNE | E17: =VLOOKUP($C17,'RECAP SECT'!$G$6:$DC$253,3,FALSE) -> 44.2 | F17: =VLOOKUP($C17,'RECAP SECT'!$G$6:$DC$253,18,FALSE) -> 784 | G17: =VLOOKUP($C17,'RECAP SECT'!$G$6:$DC$253,19,FALSE) -> 17.74 | H17: =VLOOKUP($C17,'RECAP SECT'!$G$6:$DC$253,20,FALSE) -> 53% | I17: =VLOOKUP($C17,'RECAP SECT'!$G$6:$DC$253,21,FALSE) -> 13 | J17: =VLOOKUP($C17,'RECAP SECT'!$G$6:$DC$253,22,FALSE) -> 665 | K17: =VLOOKUP($C17,'RECAP SECT'!$G$6:$DC$253,23,FALSE) -> 15.05 | L17: =VLOOKUP($C17,'RECAP SECT'!$G$6:$DC$253,24,FALSE) -> 25% | M17: =VLOOKUP($C17,'RECAP SECT'!$G$6:$DC$253,25,FALSE) -> 8 | N17: =VLOOKUP($C17,'RECAP SECT'!$G$6:$DC$253,26,FALSE) -> 212 | O17: =VLOOKUP($C17,'RECAP SECT'!$G$6:$DC$253,27,FALSE) -> 4.80 | P17: =VLOOKUP($C17,'RECAP SECT'!$G$6:$DC$253,28,FALSE) -> 33% | Q17: =VLOOKUP($C17,'RECAP SECT'!$G$6:$DC$253,29,FALSE) -> 3 | R17: =VLOOKUP($C17,'RECAP SECT'!$G$6:$DC$253,30,FALSE) -> -32.0 | S17: =VLOOKUP($C17,'RECAP SECT'!$G$6:$DC$253,31,FALSE) -> -0.72 | T17: =VLOOKUP($C17,'RECAP SECT'!$G$6:$DC$253,32,FALSE) -> 22% | U17: =VLOOKUP($C17,'RECAP SECT'!$G$6:$DC$253,33,FALSE) -> 8 | V17: =VLOOKUP($C17,'RECAP SECT'!$G$6:$DC$253,34,FALSE) -> 40% | W17: =VLOOKUP($C17,'RECAP SECT'!$G$6:$DC$253,35,FALSE) -> 25% | X17: =VLOOKUP($C17,'RECAP SECT'!$G$6:$DC$253,36,FALSE) -> 10
A18: 30 | B18: MARNE-ARDENNES | C18: 2 | D18: CHARLEVILLE MEZIERES | E18: =VLOOKUP($C18,'RECAP SECT'!$G$6:$DC$253,3,FALSE) -> 55.4 | F18: =VLOOKUP($C18,'RECAP SECT'!$G$6:$DC$253,18,FALSE) -> 771 | G18: =VLOOKUP($C18,'RECAP SECT'!$G$6:$DC$253,19,FALSE) -> 13.92 | H18: =VLOOKUP($C18,'RECAP SECT'!$G$6:$DC$253,20,FALSE) -> 63% | I18: =VLOOKUP($C18,'RECAP SECT'!$G$6:$DC$253,21,FALSE) -> 17 | J18: =VLOOKUP($C18,'RECAP SECT'!$G$6:$DC$253,22,FALSE) -> 917 | K18: =VLOOKUP($C18,'RECAP SECT'!$G$6:$DC$253,23,FALSE) -> 16.56 | L18: =VLOOKUP($C18,'RECAP SECT'!$G$6:$DC$253,24,FALSE) -> 17% | M18: =VLOOKUP($C18,'RECAP SECT'!$G$6:$DC$253,25,FALSE) -> 5 | N18: =VLOOKUP($C18,'RECAP SECT'!$G$6:$DC$253,26,FALSE) -> 232 | O18: =VLOOKUP($C18,'RECAP SECT'!$G$6:$DC$253,27,FALSE) -> 4.19 | P18: =VLOOKUP($C18,'RECAP SECT'!$G$6:$DC$253,28,FALSE) -> 42% | Q18: =VLOOKUP($C18,'RECAP SECT'!$G$6:$DC$253,29,FALSE) -> 5 | R18: =VLOOKUP($C18,'RECAP SECT'!$G$6:$DC$253,30,FALSE) -> -35.4 | S18: =VLOOKUP($C18,'RECAP SECT'!$G$6:$DC$253,31,FALSE) -> -0.64 | T18: =VLOOKUP($C18,'RECAP SECT'!$G$6:$DC$253,32,FALSE) -> 7% | U18: =VLOOKUP($C18,'RECAP SECT'!$G$6:$DC$253,33,FALSE) -> 3 | V18: =VLOOKUP($C18,'RECAP SECT'!$G$6:$DC$253,34,FALSE) -> 42% | W18: =VLOOKUP($C18,'RECAP SECT'!$G$6:$DC$253,35,FALSE) -> 27% | X18: =VLOOKUP($C18,'RECAP SECT'!$G$6:$DC$253,36,FALSE) -> 11
A19: 30 | B19: MARNE-ARDENNES | C19: 11 | D19: REIMS | E19: =VLOOKUP($C19,'RECAP SECT'!$G$6:$DC$253,3,FALSE) -> 81.6 | F19: =VLOOKUP($C19,'RECAP SECT'!$G$6:$DC$253,18,FALSE) -> 1,721 | G19: =VLOOKUP($C19,'RECAP SECT'!$G$6:$DC$253,19,FALSE) -> 21.08 | H19: =VLOOKUP($C19,'RECAP SECT'!$G$6:$DC$253,20,FALSE) -> 44% | I19: =VLOOKUP($C19,'RECAP SECT'!$G$6:$DC$253,21,FALSE) -> 9 | J19: =VLOOKUP($C19,'RECAP SECT'!$G$6:$DC$253,22,FALSE) -> 1,362 | K19: =VLOOKUP($C19,'RECAP SECT'!$G$6:$DC$253,23,FALSE) -> 16.68 | L19: =VLOOKUP($C19,'RECAP SECT'!$G$6:$DC$253,24,FALSE) -> 17% | M19: =VLOOKUP($C19,'RECAP SECT'!$G$6:$DC$253,25,FALSE) -> 4 | N19: =VLOOKUP($C19,'RECAP SECT'!$G$6:$DC$253,26,FALSE) -> 407 | O19: =VLOOKUP($C19,'RECAP SECT'!$G$6:$DC$253,27,FALSE) -> 4.99 | P19: =VLOOKUP($C19,'RECAP SECT'!$G$6:$DC$253,28,FALSE) -> 31% | Q19: =VLOOKUP($C19,'RECAP SECT'!$G$6:$DC$253,29,FALSE) -> 2 | R19: =VLOOKUP($C19,'RECAP SECT'!$G$6:$DC$253,30,FALSE) -> -76.1 | S19: =VLOOKUP($C19,'RECAP SECT'!$G$6:$DC$253,31,FALSE) -> -0.93 | T19: =VLOOKUP($C19,'RECAP SECT'!$G$6:$DC$253,32,FALSE) -> 56% | U19: =VLOOKUP($C19,'RECAP SECT'!$G$6:$DC$253,33,FALSE) -> 17 | V19: =VLOOKUP($C19,'RECAP SECT'!$G$6:$DC$253,34,FALSE) -> 38% | W19: =VLOOKUP($C19,'RECAP SECT'!$G$6:$DC$253,35,FALSE) -> 23% | X19: =VLOOKUP($C19,'RECAP SECT'!$G$6:$DC$253,36,FALSE) -> 9
A20: 110 | B20: MEURTHE ET MOSELLE MEUSE | C20: 26 | D20: NANCY | E20: =VLOOKUP($C20,'RECAP SECT'!$G$6:$DC$253,3,FALSE) -> 65.8 | F20: =VLOOKUP($C20,'RECAP SECT'!$G$6:$DC$253,18,FALSE) -> 2,022 | G20: =VLOOKUP($C20,'RECAP SECT'!$G$6:$DC$253,19,FALSE) -> 30.72 | H20: =VLOOKUP($C20,'RECAP SECT'!$G$6:$DC$253,20,FALSE) -> 18% | I20: =VLOOKUP($C20,'RECAP SECT'!$G$6:$DC$253,21,FALSE) -> 3 | J20: =VLOOKUP($C20,'RECAP SECT'!$G$6:$DC$253,22,FALSE) -> 1,319 | K20: =VLOOKUP($C20,'RECAP SECT'!$G$6:$DC$253,23,FALSE) -> 20.05 | L20: =VLOOKUP($C20,'RECAP SECT'!$G$6:$DC$253,24,FALSE) -> 0% | M20: =VLOOKUP($C20,'RECAP SECT'!$G$6:$DC$253,25,FALSE) -> 1 | N20: =VLOOKUP($C20,'RECAP SECT'!$G$6:$DC$253,26,FALSE) -> 474 | O20: =VLOOKUP($C20,'RECAP SECT'!$G$6:$DC$253,27,FALSE) -> 7.20 | P20: =VLOOKUP($C20,'RECAP SECT'!$G$6:$DC$253,28,FALSE) -> 0% | Q20: =VLOOKUP($C20,'RECAP SECT'!$G$6:$DC$253,29,FALSE) -> 1 | R20: =VLOOKUP($C20,'RECAP SECT'!$G$6:$DC$253,30,FALSE) -> -55.0 | S20: =VLOOKUP($C20,'RECAP SECT'!$G$6:$DC$253,31,FALSE) -> -0.84 | T20: =VLOOKUP($C20,'RECAP SECT'!$G$6:$DC$253,32,FALSE) -> 40% | U20: =VLOOKUP($C20,'RECAP SECT'!$G$6:$DC$253,33,FALSE) -> 12 | V20: =VLOOKUP($C20,'RECAP SECT'!$G$6:$DC$253,34,FALSE) -> 15% | W20: =VLOOKUP($C20,'RECAP SECT'!$G$6:$DC$253,35,FALSE) -> 0% | X20: =VLOOKUP($C20,'RECAP SECT'!$G$6:$DC$253,36,FALSE) -> 1
A21: 110 | B21: MEURTHE ET MOSELLE MEUSE | C21: 27 | D21: PONT A MOUSSON | E21: =VLOOKUP($C21,'RECAP SECT'!$G$6:$DC$253,3,FALSE) -> 77.0 | F21: =VLOOKUP($C21,'RECAP SECT'!$G$6:$DC$253,18,FALSE) -> 2,231 | G21: =VLOOKUP($C21,'RECAP SECT'!$G$6:$DC$253,19,FALSE) -> 28.95 | H21: =VLOOKUP($C21,'RECAP SECT'!$G$6:$DC$253,20,FALSE) -> 23% | I21: =VLOOKUP($C21,'RECAP SECT'!$G$6:$DC$253,21,FALSE) -> 5 | J21: =VLOOKUP($C21,'RECAP SECT'!$G$6:$DC$253,22,FALSE) -> 1,334 | K21: =VLOOKUP($C21,'RECAP SECT'!$G$6:$DC$253,23,FALSE) -> 17.32 | L21: =VLOOKUP($C21,'RECAP SECT'!$G$6:$DC$253,24,FALSE) -> 14% | M21: =VLOOKUP($C21,'RECAP SECT'!$G$6:$DC$253,25,FALSE) -> 3 | N21: =VLOOKUP($C21,'RECAP SECT'!$G$6:$DC$253,26,FALSE) -> 352 | O21: =VLOOKUP($C21,'RECAP SECT'!$G$6:$DC$253,27,FALSE) -> 4.57 | P21: =VLOOKUP($C21,'RECAP SECT'!$G$6:$DC$253,28,FALSE) -> 37% | Q21: =VLOOKUP($C21,'RECAP SECT'!$G$6:$DC$253,29,FALSE) -> 4 | R21: =VLOOKUP($C21,'RECAP SECT'!$G$6:$DC$253,30,FALSE) -> -59.5 | S21: =VLOOKUP($C21,'RECAP SECT'!$G$6:$DC$253,31,FALSE) -> -0.77 | T21: =VLOOKUP($C21,'RECAP SECT'!$G$6:$DC$253,32,FALSE) -> 30% | U21: =VLOOKUP($C21,'RECAP SECT'!$G$6:$DC$253,33,FALSE) -> 11 | V21: =VLOOKUP($C21,'RECAP SECT'!$G$6:$DC$253,34,FALSE) -> 24% | W21: =VLOOKUP($C21,'RECAP SECT'!$G$6:$DC$253,35,FALSE) -> 9% | X21: =VLOOKUP($C21,'RECAP SECT'!$G$6:$DC$253,36,FALSE) -> 4
A22: 110 | B22: MEURTHE ET MOSELLE MEUSE | C22: 31 | D22: VERDUN | E22: =VLOOKUP($C22,'RECAP SECT'!$G$6:$DC$253,3,FALSE) -> 56.3 | F22: =VLOOKUP($C22,'RECAP SECT'!$G$6:$DC$253,18,FALSE) -> 1,301 | G22: =VLOOKUP($C22,'RECAP SECT'!$G$6:$DC$253,19,FALSE) -> 23.09 | H22: =VLOOKUP($C22,'RECAP SECT'!$G$6:$DC$253,20,FALSE) -> 38% | I22: =VLOOKUP($C22,'RECAP SECT'!$G$6:$DC$253,21,FALSE) -> 6 | J22: =VLOOKUP($C22,'RECAP SECT'!$G$6:$DC$253,22,FALSE) -> 855 | K22: =VLOOKUP($C22,'RECAP SECT'!$G$6:$DC$253,23,FALSE) -> 15.18 | L22: =VLOOKUP($C22,'RECAP SECT'!$G$6:$DC$253,24,FALSE) -> 24% | M22: =VLOOKUP($C22,'RECAP SECT'!$G$6:$DC$253,25,FALSE) -> 7 | N22: =VLOOKUP($C22,'RECAP SECT'!$G$6:$DC$253,26,FALSE) -> 169 | O22: =VLOOKUP($C22,'RECAP SECT'!$G$6:$DC$253,27,FALSE) -> 3.00 | P22: =VLOOKUP($C22,'RECAP SECT'!$G$6:$DC$253,28,FALSE) -> 58% | Q22: =VLOOKUP($C22,'RECAP SECT'!$G$6:$DC$253,29,FALSE) -> 7 | R22: =VLOOKUP($C22,'RECAP SECT'!$G$6:$DC$253,30,FALSE) -> -35.8 | S22: =VLOOKUP($C22,'RECAP SECT'!$G$6:$DC$253,31,FALSE) -> -0.63 | T22: =VLOOKUP($C22,'RECAP SECT'!$G$6:$DC$253,32,FALSE) -> 6% | U22: =VLOOKUP($C22,'RECAP SECT'!$G$6:$DC$253,33,FALSE) -> 2 | V22: =VLOOKUP($C22,'RECAP SECT'!$G$6:$DC$253,34,FALSE) -> 34% | W22: =VLOOKUP($C22,'RECAP SECT'!$G$6:$DC$253,35,FALSE) -> 19% | X22: =VLOOKUP($C22,'RECAP SECT'!$G$6:$DC$253,36,FALSE) -> 5
A23: 160 | B23: MOSELLE | C23: 45 | D23: METZ | E23: =VLOOKUP($C23,'RECAP SECT'!$G$6:$DC$253,3,FALSE) -> 89.1 | F23: =VLOOKUP($C23,'RECAP SECT'!$G$6:$DC$253,18,FALSE) -> 1,633 | G23: =VLOOKUP($C23,'RECAP SECT'!$G$6:$DC$253,19,FALSE) -> 18.33 | H23: =VLOOKUP($C23,'RECAP SECT'!$G$6:$DC$253,20,FALSE) -> 51% | I23: =VLOOKUP($C23,'RECAP SECT'!$G$6:$DC$253,21,FALSE) -> 10 | J23: =VLOOKUP($C23,'RECAP SECT'!$G$6:$DC$253,22,FALSE) -> 1,211 | K23: =VLOOKUP($C23,'RECAP SECT'!$G$6:$DC$253,23,FALSE) -> 13.59 | L23: =VLOOKUP($C23,'RECAP SECT'!$G$6:$DC$253,24,FALSE) -> 32% | M23: =VLOOKUP($C23,'RECAP SECT'!$G$6:$DC$253,25,FALSE) -> 13 | N23: =VLOOKUP($C23,'RECAP SECT'!$G$6:$DC$253,26,FALSE) -> 201 | O23: =VLOOKUP($C23,'RECAP SECT'!$G$6:$DC$253,27,FALSE) -> 2.26 | P23: =VLOOKUP($C23,'RECAP SECT'!$G$6:$DC$253,28,FALSE) -> 69% | Q23: =VLOOKUP($C23,'RECAP SECT'!$G$6:$DC$253,29,FALSE) -> 9 | R23: =VLOOKUP($C23,'RECAP SECT'!$G$6:$DC$253,30,FALSE) -> -66.0 | S23: =VLOOKUP($C23,'RECAP SECT'!$G$6:$DC$253,31,FALSE) -> -0.74 | T23: =VLOOKUP($C23,'RECAP SECT'!$G$6:$DC$253,32,FALSE) -> 24% | U23: =VLOOKUP($C23,'RECAP SECT'!$G$6:$DC$253,33,FALSE) -> 9 | V23: =VLOOKUP($C23,'RECAP SECT'!$G$6:$DC$253,34,FALSE) -> 46% | W23: =VLOOKUP($C23,'RECAP SECT'!$G$6:$DC$253,35,FALSE) -> 31% | X23: =VLOOKUP($C23,'RECAP SECT'!$G$6:$DC$253,36,FALSE) -> 13
A24: 160 | B24: MOSELLE | C24: 42 | D24: MOSELLE EST | E24: =VLOOKUP($C24,'RECAP SECT'!$G$6:$DC$253,3,FALSE) -> 69.0 | F24: =VLOOKUP($C24,'RECAP SECT'!$G$6:$DC$253,18,FALSE) -> 1,591 | G24: =VLOOKUP($C24,'RECAP SECT'!$G$6:$DC$253,19,FALSE) -> 23.07 | H24: =VLOOKUP($C24,'RECAP SECT'!$G$6:$DC$253,20,FALSE) -> 38% | I24: =VLOOKUP($C24,'RECAP SECT'!$G$6:$DC$253,21,FALSE) -> 7 | J24: =VLOOKUP($C24,'RECAP SECT'!$G$6:$DC$253,22,FALSE) -> 937 | K24: =VLOOKUP($C24,'RECAP SECT'!$G$6:$DC$253,23,FALSE) -> 13.59 | L24: =VLOOKUP($C24,'RECAP SECT'!$G$6:$DC$253,24,FALSE) -> 32% | M24: =VLOOKUP($C24,'RECAP SECT'!$G$6:$DC$253,25,FALSE) -> 14 | N24: =VLOOKUP($C24,'RECAP SECT'!$G$6:$DC$253,26,FALSE) -> 147 | O24: =VLOOKUP($C24,'RECAP SECT'!$G$6:$DC$253,27,FALSE) -> 2.13 | P24: =VLOOKUP($C24,'RECAP SECT'!$G$6:$DC$253,28,FALSE) -> 70% | Q24: =VLOOKUP($C24,'RECAP SECT'!$G$6:$DC$253,29,FALSE) -> 12 | R24: =VLOOKUP($C24,'RECAP SECT'!$G$6:$DC$253,30,FALSE) -> -46.5 | S24: =VLOOKUP($C24,'RECAP SECT'!$G$6:$DC$253,31,FALSE) -> -0.67 | T24: =VLOOKUP($C24,'RECAP SECT'!$G$6:$DC$253,32,FALSE) -> 13% | U24: =VLOOKUP($C24,'RECAP SECT'!$G$6:$DC$253,33,FALSE) -> 5 | V24: =VLOOKUP($C24,'RECAP SECT'!$G$6:$DC$253,34,FALSE) -> 38% | W24: =VLOOKUP($C24,'RECAP SECT'!$G$6:$DC$253,35,FALSE) -> 23% | X24: =VLOOKUP($C24,'RECAP SECT'!$G$6:$DC$253,36,FALSE) -> 8
A25: 160 | B25: MOSELLE | C25: 44 | D25: MOSELLE NORD | E25: =VLOOKUP($C25,'RECAP SECT'!$G$6:$DC$253,3,FALSE) -> 70.2 | F25: =VLOOKUP($C25,'RECAP SECT'!$G$6:$DC$253,18,FALSE) -> 1,608 | G25: =VLOOKUP($C25,'RECAP SECT'!$G$6:$DC$253,19,FALSE) -> 22.90 | H25: =VLOOKUP($C25,'RECAP SECT'!$G$6:$DC$253,20,FALSE) -> 39% | I25: =VLOOKUP($C25,'RECAP SECT'!$G$6:$DC$253,21,FALSE) -> 8 | J25: =VLOOKUP($C25,'RECAP SECT'!$G$6:$DC$253,22,FALSE) -> 966 | K25: =VLOOKUP($C25,'RECAP SECT'!$G$6:$DC$253,23,FALSE) -> 13.76 | L25: =VLOOKUP($C25,'RECAP SECT'!$G$6:$DC$253,24,FALSE) -> 31% | M25: =VLOOKUP($C25,'RECAP SECT'!$G$6:$DC$253,25,FALSE) -> 11 | N25: =VLOOKUP($C25,'RECAP SECT'!$G$6:$DC$253,26,FALSE) -> 132 | O25: =VLOOKUP($C25,'RECAP SECT'!$G$6:$DC$253,27,FALSE) -> 1.88 | P25: =VLOOKUP($C25,'RECAP SECT'!$G$6:$DC$253,28,FALSE) -> 74% | Q25: =VLOOKUP($C25,'RECAP SECT'!$G$6:$DC$253,29,FALSE) -> 14 | R25: =VLOOKUP($C25,'RECAP SECT'!$G$6:$DC$253,30,FALSE) -> -41.8 | S25: =VLOOKUP($C25,'RECAP SECT'!$G$6:$DC$253,31,FALSE) -> -0.60 | T25: =VLOOKUP($C25,'RECAP SECT'!$G$6:$DC$253,32,FALSE) -> 0% | U25: =VLOOKUP($C25,'RECAP SECT'!$G$6:$DC$253,33,FALSE) -> 1 | V25: =VLOOKUP($C25,'RECAP SECT'!$G$6:$DC$253,34,FALSE) -> 37% | W25: =VLOOKUP($C25,'RECAP SECT'!$G$6:$DC$253,35,FALSE) -> 22% | X25: =VLOOKUP($C25,'RECAP SECT'!$G$6:$DC$253,36,FALSE) -> 7
A26: 80 | B26: VOSGES | C26: 57 | D26: EPINAL | E26: =VLOOKUP($C26,'RECAP SECT'!$G$6:$DC$253,3,FALSE) -> 60.9 | F26: =VLOOKUP($C26,'RECAP SECT'!$G$6:$DC$253,18,FALSE) -> 991 | G26: =VLOOKUP($C26,'RECAP SECT'!$G$6:$DC$253,19,FALSE) -> 16.28 | H26: =VLOOKUP($C26,'RECAP SECT'!$G$6:$DC$253,20,FALSE) -> 56% | I26: =VLOOKUP($C26,'RECAP SECT'!$G$6:$DC$253,21,FALSE) -> 14 | J26: =VLOOKUP($C26,'RECAP SECT'!$G$6:$DC$253,22,FALSE) -> 881 | K26: =VLOOKUP($C26,'RECAP SECT'!$G$6:$DC$253,23,FALSE) -> 14.47 | L26: =VLOOKUP($C26,'RECAP SECT'!$G$6:$DC$253,24,FALSE) -> 28% | M26: =VLOOKUP($C26,'RECAP SECT'!$G$6:$DC$253,25,FALSE) -> 9 | N26: =VLOOKUP($C26,'RECAP SECT'!$G$6:$DC$253,26,FALSE) -> 160 | O26: =VLOOKUP($C26,'RECAP SECT'!$G$6:$DC$253,27,FALSE) -> 2.63 | P26: =VLOOKUP($C26,'RECAP SECT'!$G$6:$DC$253,28,FALSE) -> 64% | Q26: =VLOOKUP($C26,'RECAP SECT'!$G$6:$DC$253,29,FALSE) -> 8 | R26: =VLOOKUP($C26,'RECAP SECT'!$G$6:$DC$253,30,FALSE) -> -56.5 | S26: =VLOOKUP($C26,'RECAP SECT'!$G$6:$DC$253,31,FALSE) -> -0.93 | T26: =VLOOKUP($C26,'RECAP SECT'!$G$6:$DC$253,32,FALSE) -> 56% | U26: =VLOOKUP($C26,'RECAP SECT'!$G$6:$DC$253,33,FALSE) -> 16 | V26: =VLOOKUP($C26,'RECAP SECT'!$G$6:$DC$253,34,FALSE) -> 52% | W26: =VLOOKUP($C26,'RECAP SECT'!$G$6:$DC$253,35,FALSE) -> 37% | X26: =VLOOKUP($C26,'RECAP SECT'!$G$6:$DC$253,36,FALSE) -> 16
A27: 80 | B27: VOSGES | C27: 55 | D27: SAINT DIE | E27: =VLOOKUP($C27,'RECAP SECT'!$G$6:$DC$253,3,FALSE) -> 48.3 | F27: =VLOOKUP($C27,'RECAP SECT'!$G$6:$DC$253,18,FALSE) -> 882 | G27: =VLOOKUP($C27,'RECAP SECT'!$G$6:$DC$253,19,FALSE) -> 18.26 | H27: =VLOOKUP($C27,'RECAP SECT'!$G$6:$DC$253,20,FALSE) -> 51% | I27: =VLOOKUP($C27,'RECAP SECT'!$G$6:$DC$253,21,FALSE) -> 11 | J27: =VLOOKUP($C27,'RECAP SECT'!$G$6:$DC$253,22,FALSE) -> 613 | K27: =VLOOKUP($C27,'RECAP SECT'!$G$6:$DC$253,23,FALSE) -> 12.69 | L27: =VLOOKUP($C27,'RECAP SECT'!$G$6:$DC$253,24,FALSE) -> 37% | M27: =VLOOKUP($C27,'RECAP SECT'!$G$6:$DC$253,25,FALSE) -> 15 | N27: =VLOOKUP($C27,'RECAP SECT'!$G$6:$DC$253,26,FALSE) -> 81 | O27: =VLOOKUP($C27,'RECAP SECT'!$G$6:$DC$253,27,FALSE) -> 1.68 | P27: =VLOOKUP($C27,'RECAP SECT'!$G$6:$DC$253,28,FALSE) -> 77% | Q27: =VLOOKUP($C27,'RECAP SECT'!$G$6:$DC$253,29,FALSE) -> 16 | R27: =VLOOKUP($C27,'RECAP SECT'!$G$6:$DC$253,30,FALSE) -> -36.2 | S27: =VLOOKUP($C27,'RECAP SECT'!$G$6:$DC$253,31,FALSE) -> -0.75 | T27: =VLOOKUP($C27,'RECAP SECT'!$G$6:$DC$253,32,FALSE) -> 26% | U27: =VLOOKUP($C27,'RECAP SECT'!$G$6:$DC$253,33,FALSE) -> 10 | V27: =VLOOKUP($C27,'RECAP SECT'!$G$6:$DC$253,34,FALSE) -> 48% | W27: =VLOOKUP($C27,'RECAP SECT'!$G$6:$DC$253,35,FALSE) -> 33% | X27: =VLOOKUP($C27,'RECAP SECT'!$G$6:$DC$253,36,FALSE) -> 15
A28: Total CEGEE Directions Régionales | E28: =SUM(E10:E27) -> 1146

Sheet SE_EPARGNE
B1: Accueil | F1: BAROMETRE BDD - TERRITOIRES
F2: EPARGNE
F3: =ACCUEIL!F7 -> 2021-04-04
F7: Excédent Epargne y/c DAV pondéré | J7: Ventes sur client non détenteur de l’univers | N7: Total Epargne
F8: =DATEMAJ!C14 -> au 04/04 | H8: coef | I8: ='RECAP DIRCOM'!AX4 -> 14% | J8: =DATEMAJ!C15 -> au 04/04 | L8: coef | M8: ='RECAP DIRCOM'!BB4 -> 6% | O8: coef | P8: ='RECAP DIRCOM'!BE4 -> 20%
A9: eds | B9: Direction | C9: eds | D9: Territoire | E9: ="ETP perf "&DATEMAJ!$C$28 -> ETP perf 28-févr | F9: Excédent | G9: Excédent / ETP | H9: % Ecart au 1er | I9: Rang | J9: VB | K9: VB / ETP | L9: % Ecart au 1er | M9: Rang | N9: Moyenne ecart au 1er | O9: % Ecart au 1er | P9: Rang CEGEE
A10: 50 | B10: AUBE HAUTE MARNE | C10: 21 | D10: CHAUMONT | E10: =VLOOKUP($C10,'RECAP SECT'!$G$6:$DC$253,3,FALSE) -> 33.9 | F10: =VLOOKUP($C10,'RECAP SECT'!$G$6:$DC$253,41,FALSE) -> 5,271 | G10: =VLOOKUP($C10,'RECAP SECT'!$G$6:$DC$253,42,FALSE) -> 155.59 | H10: =VLOOKUP($C10,'RECAP SECT'!$G$6:$DC$253,43,FALSE) -> 49% | I10: =VLOOKUP($C10,'RECAP SECT'!$G$6:$DC$253,44,FALSE) -> 14 | J10: =VLOOKUP($C10,'RECAP SECT'!$G$6:$DC$253,45,FALSE) -> 280 | K10: =VLOOKUP($C10,'RECAP SECT'!$G$6:$DC$253,46,FALSE) -> 8.26 | L10: =VLOOKUP($C10,'RECAP SECT'!$G$6:$DC$253,47,FALSE) -> 37% | M10: =VLOOKUP($C10,'RECAP SECT'!$G$6:$DC$253,48,FALSE) -> 11 | N10: =VLOOKUP($C10,'RECAP SECT'!$G$6:$DC$253,49,FALSE) -> 45% | O10: =VLOOKUP($C10,'RECAP SECT'!$G$6:$DC$253,50,FALSE) -> 39% | P10: =VLOOKUP($C10,'RECAP SECT'!$G$6:$DC$253,51,FALSE) -> 13
A11: 50 | B11: AUBE HAUTE MARNE | C11: 14 | D11: TROYES | E11: =VLOOKUP($C11,'RECAP SECT'!$G$6:$DC$253,3,FALSE) -> 66.8 | F11: =VLOOKUP($C11,'RECAP SECT'!$G$6:$DC$253,41,FALSE) -> 7,718 | G11: =VLOOKUP($C11,'RECAP SECT'!$G$6:$DC$253,42,FALSE) -> 115.49 | H11: =VLOOKUP($C11,'RECAP SECT'!$G$6:$DC$253,43,FALSE) -> 62% | I11: =VLOOKUP($C11,'RECAP SECT'!$G$6:$DC$253,44,FALSE) -> 16 | J11: =VLOOKUP($C11,'RECAP SECT'!$G$6:$DC$253,45,FALSE) -> 579 | K11: =VLOOKUP($C11,'RECAP SECT'!$G$6:$DC$253,46,FALSE) -> 8.66 | L11: =VLOOKUP($C11,'RECAP SECT'!$G$6:$DC$253,47,FALSE) -> 34% | M11: =VLOOKUP($C11,'RECAP SECT'!$G$6:$DC$253,48,FALSE) -> 9 | N11: =VLOOKUP($C11,'RECAP SECT'!$G$6:$DC$253,49,FALSE) -> 53% | O11: =VLOOKUP($C11,'RECAP SECT'!$G$6:$DC$253,50,FALSE) -> 48% | P11: =VLOOKUP($C11,'RECAP SECT'!$G$6:$DC$253,51,FALSE) -> 17
A12: 262 | B12: BAS-RHIN | C12: 5060 | D12: HAGUENAU | E12: =VLOOKUP($C12,'RECAP SECT'!$G$6:$DC$253,3,FALSE) -> 71.0 | F12: =VLOOKUP($C12,'RECAP SECT'!$G$6:$DC$253,41,FALSE) -> 18,454 | G12: =VLOOKUP($C12,'RECAP SECT'!$G$6:$DC$253,42,FALSE) -> 259.99 | H12: =VLOOKUP($C12,'RECAP SECT'!$G$6:$DC$253,43,FALSE) -> 14% | I12: =VLOOKUP($C12,'RECAP SECT'!$G$6:$DC$253,44,FALSE) -> 5 | J12: =VLOOKUP($C12,'RECAP SECT'!$G$6:$DC$253,45,FALSE) -> 522 | K12: =VLOOKUP($C12,'RECAP SECT'!$G$6:$DC$253,46,FALSE) -> 7.35 | L12: =VLOOKUP($C12,'RECAP SECT'!$G$6:$DC$253,47,FALSE) -> 44% | M12: =VLOOKUP($C12,'RECAP SECT'!$G$6:$DC$253,48,FALSE) -> 14 | N12: =VLOOKUP($C12,'RECAP SECT'!$G$6:$DC$253,49,FALSE) -> 23% | O12: =VLOOKUP($C12,'RECAP SECT'!$G$6:$DC$253,50,FALSE) -> 17% | P12: =VLOOKUP($C12,'RECAP SECT'!$G$6:$DC$253,51,FALSE) -> 7
A13: 262 | B13: BAS-RHIN | C13: 5101 | D13: SELESTAT | E13: =VLOOKUP($C13,'RECAP SECT'!$G$6:$DC$253,3,FALSE) -> 60.3 | F13: =VLOOKUP($C13,'RECAP SECT'!$G$6:$DC$253,41,FALSE) -> 15,750 | G13: =VLOOKUP($C13,'RECAP SECT'!$G$6:$DC$253,42,FALSE) -> 261.31 | H13: =VLOOKUP($C13,'RECAP SECT'!$G$6:$DC$253,43,FALSE) -> 14% | I13: =VLOOKUP($C13,'RECAP SECT'!$G$6:$DC$253,44,FALSE) -> 4 | J13: =VLOOKUP($C13,'RECAP SECT'!$G$6:$DC$253,45,FALSE) -> 682 | K13: =VLOOKUP($C13,'RECAP SECT'!$G$6:$DC$253,46,FALSE) -> 11.32 | L13: =VLOOKUP($C13,'RECAP SECT'!$G$6:$DC$253,47,FALSE) -> 13% | M13: =VLOOKUP($C13,'RECAP SECT'!$G$6:$DC$253,48,FALSE) -> 3 | N13: =VLOOKUP($C13,'RECAP SECT'!$G$6:$DC$253,49,FALSE) -> 14% | O13: =VLOOKUP($C13,'RECAP SECT'!$G$6:$DC$253,50,FALSE) -> 8% | P13: =VLOOKUP($C13,'RECAP SECT'!$G$6:$DC$253,51,FALSE) -> 2
A14: 262 | B14: BAS-RHIN | C14: 5006 | D14: STRASBOURG | E14: =VLOOKUP($C14,'RECAP SECT'!$G$6:$DC$253,3,FALSE) -> 75.4 | F14: =VLOOKUP($C14,'RECAP SECT'!$G$6:$DC$253,41,FALSE) -> 22,880 | G14: =VLOOKUP($C14,'RECAP SECT'!$G$6:$DC$253,42,FALSE) -> 303.39 | H14: =VLOOKUP($C14,'RECAP SECT'!$G$6:$DC$253,43,FALSE) -> 0% | I14: =VLOOKUP($C14,'RECAP SECT'!$G$6:$DC$253,44,FALSE) -> 1 | J14: =VLOOKUP($C14,'RECAP SECT'!$G$6:$DC$253,45,FALSE) -> 795 | K14: =VLOOKUP($C14,'RECAP SECT'!$G$6:$DC$253,46,FALSE) -> 10.54 | L14: =VLOOKUP($C14,'RECAP SECT'!$G$6:$DC$253,47,FALSE) -> 19% | M14: =VLOOKUP($C14,'RECAP SECT'!$G$6:$DC$253,48,FALSE) -> 5 | N14: =VLOOKUP($C14,'RECAP SECT'!$G$6:$DC$253,49,FALSE) -> 6% | O14: =VLOOKUP($C14,'RECAP SECT'!$G$6:$DC$253,50,FALSE) -> 0% | P14: =VLOOKUP($C14,'RECAP SECT'!$G$6:$DC$253,51,FALSE) -> 1
A15: 264 | B15: HAUT-RHIN | C15: 5130 | D15: COLMAR | E15: =VLOOKUP($C15,'RECAP SECT'!$G$6:$DC$253,3,FALSE) -> 61.1 | F15: =VLOOKUP($C15,'RECAP SECT'!$G$6:$DC$253,41,FALSE) -> 9,600 | G15: =VLOOKUP($C15,'RECAP SECT'!$G$6:$DC$253,42,FALSE) -> 157.23 | H15: =VLOOKUP($C15,'RECAP SECT'!$G$6:$DC$253,43,FALSE) -> 48% | I15: =VLOOKUP($C15,'RECAP SECT'!$G$6:$DC$253,44,FALSE) -> 13 | J15: =VLOOKUP($C15,'RECAP SECT'!$G$6:$DC$253,45,FALSE) -> 451 | K15: =VLOOKUP($C15,'RECAP SECT'!$G$6:$DC$253,46,FALSE) -> 7.39 | L15: =VLOOKUP($C15,'RECAP SECT'!$G$6:$DC$253,47,FALSE) -> 44% | M15: =VLOOKUP($C15,'RECAP SECT'!$G$6:$DC$253,48,FALSE) -> 13 | N15: =VLOOKUP($C15,'RECAP SECT'!$G$6:$DC$253,49,FALSE) -> 47% | O15: =VLOOKUP($C15,'RECAP SECT'!$G$6:$DC$253,50,FALSE) -> 41% | P15: =VLOOKUP($C15,'RECAP SECT'!$G$6:$DC$253,51,FALSE) -> 14
A16: 264 | B16: HAUT-RHIN | C16: 5169 | D16: MULHOUSE | E16: =VLOOKUP($C16,'RECAP SECT'!$G$6:$DC$253,3,FALSE) -> 59.9 | F16: =VLOOKUP($C16,'RECAP SECT'!$G$6:$DC$253,41,FALSE) -> 6,495 | G16: =VLOOKUP($C16,'RECAP SECT'!$G$6:$DC$253,42,FALSE) -> 108.36 | H16: =VLOOKUP($C16,'RECAP SECT'!$G$6:$DC$253,43,FALSE) -> 64% | I16: =VLOOKUP($C16,'RECAP SECT'!$G$6:$DC$253,44,FALSE) -> 17 | J16: =VLOOKUP($C16,'RECAP SECT'!$G$6:$DC$253,45,FALSE) -> 556 | K16: =VLOOKUP($C16,'RECAP SECT'!$G$6:$DC$253,46,FALSE) -> 9.28 | L16: =VLOOKUP($C16,'RECAP SECT'!$G$6:$DC$253,47,FALSE) -> 29% | M16: =VLOOKUP($C16,'RECAP SECT'!$G$6:$DC$253,48,FALSE) -> 6 | N16: =VLOOKUP($C16,'RECAP SECT'!$G$6:$DC$253,49,FALSE) -> 54% | O16: =VLOOKUP($C16,'RECAP SECT'!$G$6:$DC$253,50,FALSE) -> 48% | P16: =VLOOKUP($C16,'RECAP SECT'!$G$6:$DC$253,51,FALSE) -> 18
A17: 30 | B17: MARNE-ARDENNES | C17: 6 | D17: CHALONS EN CHAMPAGNE | E17: =VLOOKUP($C17,'RECAP SECT'!$G$6:$DC$253,3,FALSE) -> 44.2 | F17: =VLOOKUP($C17,'RECAP SECT'!$G$6:$DC$253,41,FALSE) -> 3,990 | G17: =VLOOKUP($C17,'RECAP SECT'!$G$6:$DC$253,42,FALSE) -> 90.30 | H17: =VLOOKUP($C17,'RECAP SECT'!$G$6:$DC$253,43,FALSE) -> 70% | I17: =VLOOKUP($C17,'RECAP SECT'!$G$6:$DC$253,44,FALSE) -> 18 | J17: =VLOOKUP($C17,'RECAP SECT'!$G$6:$DC$253,45,FALSE) -> 578 | K17: =VLOOKUP($C17,'RECAP SECT'!$G$6:$DC$253,46,FALSE) -> 13.08 | L17: =VLOOKUP($C17,'RECAP SECT'!$G$6:$DC$253,47,FALSE) -> 0% | M17: =VLOOKUP($C17,'RECAP SECT'!$G$6:$DC$253,48,FALSE) -> 1 | N17: =VLOOKUP($C17,'RECAP SECT'!$G$6:$DC$253,49,FALSE) -> 49% | O17: =VLOOKUP($C17,'RECAP SECT'!$G$6:$DC$253,50,FALSE) -> 43% | P17: =VLOOKUP($C17,'RECAP SECT'!$G$6:$DC$253,51,FALSE) -> 16
A18: 30 | B18: MARNE-ARDENNES | C18: 2 | D18: CHARLEVILLE MEZIERES | E18: =VLOOKUP($C18,'RECAP SECT'!$G$6:$DC$253,3,FALSE) -> 55.4 | F18: =VLOOKUP($C18,'RECAP SECT'!$G$6:$DC$253,41,FALSE) -> 10,668 | G18: =VLOOKUP($C18,'RECAP SECT'!$G$6:$DC$253,42,FALSE) -> 192.62 | H18: =VLOOKUP($C18,'RECAP SECT'!$G$6:$DC$253,43,FALSE) -> 37% | I18: =VLOOKUP($C18,'RECAP SECT'!$G$6:$DC$253,44,FALSE) -> 12 | J18: =VLOOKUP($C18,'RECAP SECT'!$G$6:$DC$253,45,FALSE) -> 670 | K18: =VLOOKUP($C18,'RECAP SECT'!$G$6:$DC$253,46,FALSE) -> 12.10 | L18: =VLOOKUP($C18,'RECAP SECT'!$G$6:$DC$253,47,FALSE) -> 8% | M18: =VLOOKUP($C18,'RECAP SECT'!$G$6:$DC$253,48,FALSE) -> 2 | N18: =VLOOKUP($C18,'RECAP SECT'!$G$6:$DC$253,49,FALSE) -> 28% | O18: =VLOOKUP($C18,'RECAP SECT'!$G$6:$DC$253,50,FALSE) -> 22% | P18: =VLOOKUP($C18,'RECAP SECT'!$G$6:$DC$253,51,FALSE) -> 8
A19: 30 | B19: MARNE-ARDENNES | C19: 11 | D19: REIMS | E19: =VLOOKUP($C19,'RECAP SECT'!$G$6:$DC$253,3,FALSE) -> 81.6 | F19: =VLOOKUP($C19,'RECAP SECT'!$G$6:$DC$253,41,FALSE) -> 23,145 | G19: =VLOOKUP($C19,'RECAP SECT'!$G$6:$DC$253,42,FALSE) -> 283.50 | H19: =VLOOKUP($C19,'RECAP SECT'!$G$6:$DC$253,43,FALSE) -> 7% | I19: =VLOOKUP($C19,'RECAP SECT'!$G$6:$DC$253,44,FALSE) -> 3 | J19: =VLOOKUP($C19,'RECAP SECT'!$G$6:$DC$253,45,FALSE) -> 702 | K19: =VLOOKUP($C19,'RECAP SECT'!$G$6:$DC$253,46,FALSE) -> 8.60 | L19: =VLOOKUP($C19,'RECAP SECT'!$G$6:$DC$253,47,FALSE) -> 34% | M19: =VLOOKUP($C19,'RECAP SECT'!$G$6:$DC$253,48,FALSE) -> 10 | N19: =VLOOKUP($C19,'RECAP SECT'!$G$6:$DC$253,49,FALSE) -> 15% | O19: =VLOOKUP($C19,'RECAP SECT'!$G$6:$DC$253,50,FALSE) -> 9% | P19: =VLOOKUP($C19,'RECAP SECT'!$G$6:$DC$253,51,FALSE) -> 3
A20: 110 | B20: MEURTHE ET MOSELLE MEUSE | C20: 26 | D20: NANCY | E20: =VLOOKUP($C20,'RECAP SECT'!$G$6:$DC$253,3,FALSE) -> 65.8 | F20: =VLOOKUP($C20,'RECAP SECT'!$G$6:$DC$253,41,FALSE) -> 16,558 | G20: =VLOOKUP($C20,'RECAP SECT'!$G$6:$DC$253,42,FALSE) -> 251.66 | H20: =VLOOKUP($C20,'RECAP SECT'!$G$6:$DC$253,43,FALSE) -> 17% | I20: =VLOOKUP($C20,'RECAP SECT'!$G$6:$DC$253,44,FALSE) -> 6 | J20: =VLOOKUP($C20,'RECAP SECT'!$G$6:$DC$253,45,FALSE) -> 726 | K20: =VLOOKUP($C20,'RECAP SECT'!$G$6:$DC$253,46,FALSE) -> 11.03 | L20: =VLOOKUP($C20,'RECAP SECT'!$G$6:$DC$253,47,FALSE) -> 16% | M20: =VLOOKUP($C20,'RECAP SECT'!$G$6:$DC$253,48,FALSE) -> 4 | N20: =VLOOKUP($C20,'RECAP SECT'!$G$6:$DC$253,49,FALSE) -> 17% | O20: =VLOOKUP($C20,'RECAP SECT'!$G$6:$DC$253,50,FALSE) -> 11% | P20: =VLOOKUP($C20,'RECAP SECT'!$G$6:$DC$253,51,FALSE) -> 4
A21: 110 | B21: MEURTHE ET MOSELLE MEUSE | C21: 27 | D21: PONT A MOUSSON | E21: =VLOOKUP($C21,'RECAP SECT'!$G$6:$DC$253,3,FALSE) -> 77.0 | F21: =VLOOKUP($C21,'RECAP SECT'!$G$6:$DC$253,41,FALSE) -> 18,908 | G21: =VLOOKUP($C21,'RECAP SECT'!$G$6:$DC$253,42,FALSE) -> 245.42 | H21: =VLOOKUP($C21,'RECAP SECT'!$G$6:$DC$253,43,FALSE) -> 19% | I21: =VLOOKUP($C21,'RECAP SECT'!$G$6:$DC$253,44,FALSE) -> 8 | J21: =VLOOKUP($C21,'RECAP SECT'!$G$6:$DC$253,45,FALSE) -> 680 | K21: =VLOOKUP($C21,'RECAP SECT'!$G$6:$DC$253,46,FALSE) -> 8.83 | L21: =VLOOKUP($C21,'RECAP SECT'!$G$6:$DC$253,47,FALSE) -> 33% | M21: =VLOOKUP($C21,'RECAP SECT'!$G$6:$DC$253,48,FALSE) -> 8 | N21: =VLOOKUP($C21,'RECAP SECT'!$G$6:$DC$253,49,FALSE) -> 23% | O21: =VLOOKUP($C21,'RECAP SECT'!$G$6:$DC$253,50,FALSE) -> 17% | P21: =VLOOKUP($C21,'RECAP SECT'!$G$6:$DC$253,51,FALSE) -> 6
A22: 110 | B22: MEURTHE ET MOSELLE MEUSE | C22: 31 | D22: VERDUN | E22: =VLOOKUP($C22,'RECAP SECT'!$G$6:$DC$253,3,FALSE) -> 56.3 | F22: =VLOOKUP($C22,'RECAP SECT'!$G$6:$DC$253,41,FALSE) -> 8,656 | G22: =VLOOKUP($C22,'RECAP SECT'!$G$6:$DC$253,42,FALSE) -> 153.65 | H22: =VLOOKUP($C22,'RECAP SECT'!$G$6:$DC$253,43,FALSE) -> 49% | I22: =VLOOKUP($C22,'RECAP SECT'!$G$6:$DC$253,44,FALSE) -> 15 | J22: =VLOOKUP($C22,'RECAP SECT'!$G$6:$DC$253,45,FALSE) -> 390 | K22: =VLOOKUP($C22,'RECAP SECT'!$G$6:$DC$253,46,FALSE) -> 6.92 | L22: =VLOOKUP($C22,'RECAP SECT'!$G$6:$DC$253,47,FALSE) -> 47% | M22: =VLOOKUP($C22,'RECAP SECT'!$G$6:$DC$253,48,FALSE) -> 16 | N22: =VLOOKUP($C22,'RECAP SECT'!$G$6:$DC$253,49,FALSE) -> 49% | O22: =VLOOKUP($C22,'RECAP SECT'!$G$6:$DC$253,50,FALSE) -> 43% | P22: =VLOOKUP($C22,'RECAP SECT'!$G$6:$DC$253,51,FALSE) -> 15
A23: 160 | B23: MOSELLE | C23: 45 | D23: METZ | E23: =VLOOKUP($C23,'RECAP SECT'!$G$6:$DC$253,3,FALSE) -> 89.1 | F23: =VLOOKUP($C23,'RECAP SECT'!$G$6:$DC$253,41,FALSE) -> 17,736 | G23: =VLOOKUP($C23,'RECAP SECT'!$G$6:$DC$253,42,FALSE) -> 199.05 | H23: =VLOOKUP($C23,'RECAP SECT'!$G$6:$DC$253,43,FALSE) -> 34% | I23: =VLOOKUP($C23,'RECAP SECT'!$G$6:$DC$253,44,FALSE) -> 11 | J23: =VLOOKUP($C23,'RECAP SECT'!$G$6:$DC$253,45,FALSE) -> 625 | K23: =VLOOKUP($C23,'RECAP SECT'!$G$6:$DC$253,46,FALSE) -> 7.01 | L23: =VLOOKUP($C23,'RECAP SECT'!$G$6:$DC$253,47,FALSE) -> 46% | M23: =VLOOKUP($C23,'RECAP SECT'!$G$6:$DC$253,48,FALSE) -> 15 | N23: =VLOOKUP($C23,'RECAP SECT'!$G$6:$DC$253,49,FALSE) -> 38% | O23: =VLOOKUP($C23,'RECAP SECT'!$G$6:$DC$253,50,FALSE) -> 32% | P23: =VLOOKUP($C23,'RECAP SECT'!$G$6:$DC$253,51,FALSE) -> 12
A24: 160 | B24: MOSELLE | C24: 42 | D24: MOSELLE EST | E24: =VLOOKUP($C24,'RECAP SECT'!$G$6:$DC$253,3,FALSE) -> 69.0 | F24: =VLOOKUP($C24,'RECAP SECT'!$G$6:$DC$253,41,FALSE) -> 15,029 | G24: =VLOOKUP($C24,'RECAP SECT'!$G$6:$DC$253,42,FALSE) -> 217.90 | H24: =VLOOKUP($C24,'RECAP SECT'!$G$6:$DC$253,43,FALSE) -> 28% | I24: =VLOOKUP($C24,'RECAP SECT'!$G$6:$DC$253,44,FALSE) -> 9 | J24: =VLOOKUP($C24,'RECAP SECT'!$G$6:$DC$253,45,FALSE) -> 625 | K24: =VLOOKUP($C24,'RECAP SECT'!$G$6:$DC$253,46,FALSE) -> 9.06 | L24: =VLOOKUP($C24,'RECAP SECT'!$G$6:$DC$253,47,FALSE) -> 31% | M24: =VLOOKUP($C24,'RECAP SECT'!$G$6:$DC$253,48,FALSE) -> 7 | N24: =VLOOKUP($C24,'RECAP SECT'!$G$6:$DC$253,49,FALSE) -> 29% | O24: =VLOOKUP($C24,'RECAP SECT'!$G$6:$DC$253,50,FALSE) -> 23% | P24: =VLOOKUP($C24,'RECAP SECT'!$G$6:$DC$253,51,FALSE) -> 9
A25: 160 | B25: MOSELLE | C25: 44 | D25: MOSELLE NORD | E25: =VLOOKUP($C25,'RECAP SECT'!$G$6:$DC$253,3,FALSE) -> 70.2 | F25: =VLOOKUP($C25,'RECAP SECT'!$G$6:$DC$253,41,FALSE) -> 15,115 | G25: =VLOOKUP($C25,'RECAP SECT'!$G$6:$DC$253,42,FALSE) -> 215.28 | H25: =VLOOKUP($C25,'RECAP SECT'!$G$6:$DC$253,43,FALSE) -> 29% | I25: =VLOOKUP($C25,'RECAP SECT'!$G$6:$DC$253,44,FALSE) -> 10 | J25: =VLOOKUP($C25,'RECAP SECT'!$G$6:$DC$253,45,FALSE) -> 539 | K25: =VLOOKUP($C25,'RECAP SECT'!$G$6:$DC$253,46,FALSE) -> 7.68 | L25: =VLOOKUP($C25,'RECAP SECT'!$G$6:$DC$253,47,FALSE) -> 41% | M25: =VLOOKUP($C25,'RECAP SECT'!$G$6:$DC$253,48,FALSE) -> 12 | N25: =VLOOKUP($C25,'RECAP SECT'!$G$6:$DC$253,49,FALSE) -> 33% | O25: =VLOOKUP($C25,'RECAP SECT'!$G$6:$DC$253,50,FALSE) -> 27% | P25: =VLOOKUP($C25,'RECAP SECT'!$G$6:$DC$253,51,FALSE) -> 11
A26: 80 | B26: VOSGES | C26: 57 | D26: EPINAL | E26: =VLOOKUP($C26,'RECAP SECT'!$G$6:$DC$253,3,FALSE) -> 60.9 | F26: =VLOOKUP($C26,'RECAP SECT'!$G$6:$DC$253,41,FALSE) -> 15,012 | G26: =VLOOKUP($C26,'RECAP SECT'!$G$6:$DC$253,42,FALSE) -> 246.49 | H26: =VLOOKUP($C26,'RECAP SECT'!$G$6:$DC$253,43,FALSE) -> 19% | I26: =VLOOKUP($C26,'RECAP SECT'!$G$6:$DC$253,44,FALSE) -> 7 | J26: =VLOOKUP($C26,'RECAP SECT'!$G$6:$DC$253,45,FALSE) -> 348 | K26: =VLOOKUP($C26,'RECAP SECT'!$G$6:$DC$253,46,FALSE) -> 5.71 | L26: =VLOOKUP($C26,'RECAP SECT'!$G$6:$DC$253,47,FALSE) -> 56% | M26: =VLOOKUP($C26,'RECAP SECT'!$G$6:$DC$253,48,FALSE) -> 18 | N26: =VLOOKUP($C26,'RECAP SECT'!$G$6:$DC$253,49,FALSE) -> 30% | O26: =VLOOKUP($C26,'RECAP SECT'!$G$6:$DC$253,50,FALSE) -> 24% | P26: =VLOOKUP($C26,'RECAP SECT'!$G$6:$DC$253,51,FALSE) -> 10
A27: 80 | B27: VOSGES | C27: 55 | D27: SAINT DIE | E27: =VLOOKUP($C27,'RECAP SECT'!$G$6:$DC$253,3,FALSE) -> 48.3 | F27: =VLOOKUP($C27,'RECAP SECT'!$G$6:$DC$253,41,FALSE) -> 14,277 | G27: =VLOOKUP($C27,'RECAP SECT'!$G$6:$DC$253,42,FALSE) -> 295.62 | H27: =VLOOKUP($C27,'RECAP SECT'!$G$6:$DC$253,43,FALSE) -> 3% | I27: =VLOOKUP($C27,'RECAP SECT'!$G$6:$DC$253,44,FALSE) -> 2 | J27: =VLOOKUP($C27,'RECAP SECT'!$G$6:$DC$253,45,FALSE) -> 312 | K27: =VLOOKUP($C27,'RECAP SECT'!$G$6:$DC$253,46,FALSE) -> 6.46 | L27: =VLOOKUP($C27,'RECAP SECT'!$G$6:$DC$253,47,FALSE) -> 51% | M27: =VLOOKUP($C27,'RECAP SECT'!$G$6:$DC$253,48,FALSE) -> 17 | N27: =VLOOKUP($C27,'RECAP SECT'!$G$6:$DC$253,49,FALSE) -> 17% | O27: =VLOOKUP($C27,'RECAP SECT'!$G$6:$DC$253,50,FALSE) -> 11% | P27: =VLOOKUP($C27,'RECAP SECT'!$G$6:$DC$253,51,FALSE) -> 5
A28: Total CEGEE Directions Régionales | E28: =SUM(E10:E27) -> 1146

Sheet SE_CREDIT
B1: Accueil | F1: BAROMETRE BDD - TERRITOIRES
F2: CREDITS
F3: =ACCUEIL!F7 -> 2021-04-04
F7: Engagements et ventes accessoires pondérés Immo | J7: Engagements et ventes accessoires pondérés Conso | N7: Ventes sur client non détenteur de l’univers | R7: Total Crédits
F8: =DATEMAJ!C18 -> au 04/04 | H8: coef | I8: ='RECAP DIRCOM'!BM4 -> 8% | J8: =DATEMAJ!C19 -> au 04/04 | L8: coef | M8: ='RECAP DIRCOM'!BQ4 -> 6% | N8: =DATEMAJ!C20 -> au 04/04 | P8: coef | Q8: ='RECAP DIRCOM'!BU4 -> 6% | S8: coef | T8: ='RECAP DIRCOM'!BX4 -> 20%
B9: Direction | C9: eds | D9: Territoire | E9: ="ETP perf "&DATEMAJ!$C$28 -> ETP perf 28-févr | F9: PNB | G9: PNB / ETP | H9: % Ecart au 1er | I9: Rang | J9: PNB | K9: PNB / ETP | L9: % Ecart au 1er | M9: Rang | N9: VB | O9: VB / ETP | P9: % Ecart au 1er | Q9: Rang | R9: Moyenne ecart au 1er | S9: % Ecart au 1er | T9: Rang CEGEE
A10: 50 | B10: AUBE HAUTE MARNE | C10: 21 | D10: CHAUMONT | E10: =VLOOKUP($C10,'RECAP SECT'!$G$6:$DC$253,3,FALSE) -> 33.9 | F10: =VLOOKUP($C10,'RECAP SECT'!$G$6:$DC$253,56,FALSE) -> 1,185 | G10: =VLOOKUP($C10,'RECAP SECT'!$G$6:$DC$253,57,FALSE) -> 34.97 | H10: =VLOOKUP($C10,'RECAP SECT'!$G$6:$DC$253,58,FALSE) -> 65% | I10: =VLOOKUP($C10,'RECAP SECT'!$G$6:$DC$253,59,FALSE) -> 14 | J10: =VLOOKUP($C10,'RECAP SECT'!$G$6:$DC$253,60,FALSE) -> 856 | K10: =VLOOKUP($C10,'RECAP SECT'!$G$6:$DC$253,61,FALSE) -> 25.28 | L10: =VLOOKUP($C10,'RECAP SECT'!$G$6:$DC$253,62,FALSE) -> 0% | M10: =VLOOKUP($C10,'RECAP SECT'!$G$6:$DC$253,63,FALSE) -> 1 | N10: =VLOOKUP($C10,'RECAP SECT'!$G$6:$DC$253,64,FALSE) -> 203 | O10: =VLOOKUP($C10,'RECAP SECT'!$G$6:$DC$253,65,FALSE) -> 5.99 | P10: =VLOOKUP($C10,'RECAP SECT'!$G$6:$DC$253,66,FALSE) -> 35% | Q10: =VLOOKUP($C10,'RECAP SECT'!$G$6:$DC$253,67,FALSE) -> 6 | R10: =VLOOKUP($C10,'RECAP SECT'!$G$6:$DC$253,68,FALSE) -> 37% | S10: =VLOOKUP($C10,'RECAP SECT'!$G$6:$DC$253,69,FALSE) -> 30% | T10: =VLOOKUP($C10,'RECAP SECT'!$G$6:$DC$253,70,FALSE) -> 7
A11: 50 | B11: AUBE HAUTE MARNE | C11: 14 | D11: TROYES | E11: =VLOOKUP($C11,'RECAP SECT'!$G$6:$DC$253,3,FALSE) -> 66.8 | F11: =VLOOKUP($C11,'RECAP SECT'!$G$6:$DC$253,56,FALSE) -> 2,773 | G11: =VLOOKUP($C11,'RECAP SECT'!$G$6:$DC$253,57,FALSE) -> 41.49 | H11: =VLOOKUP($C11,'RECAP SECT'!$G$6:$DC$253,58,FALSE) -> 59% | I11: =VLOOKUP($C11,'RECAP SECT'!$G$6:$DC$253,59,FALSE) -> 11 | J11: =VLOOKUP($C11,'RECAP SECT'!$G$6:$DC$253,60,FALSE) -> 1,211 | K11: =VLOOKUP($C11,'RECAP SECT'!$G$6:$DC$253,61,FALSE) -> 18.12 | L11: =VLOOKUP($C11,'RECAP SECT'!$G$6:$DC$253,62,FALSE) -> 28% | M11: =VLOOKUP($C11,'RECAP SECT'!$G$6:$DC$253,63,FALSE) -> 13 | N11: =VLOOKUP($C11,'RECAP SECT'!$G$6:$DC$253,64,FALSE) -> 360 | O11: =VLOOKUP($C11,'RECAP SECT'!$G$6:$DC$253,65,FALSE) -> 5.39 | P11: =VLOOKUP($C11,'RECAP SECT'!$G$6:$DC$253,66,FALSE) -> 41% | Q11: =VLOOKUP($C11,'RECAP SECT'!$G$6:$DC$253,67,FALSE) -> 10 | R11: =VLOOKUP($C11,'RECAP SECT'!$G$6:$DC$253,68,FALSE) -> 44% | S11: =VLOOKUP($C11,'RECAP SECT'!$G$6:$DC$253,69,FALSE) -> 38% | T11: =VLOOKUP($C11,'RECAP SECT'!$G$6:$DC$253,70,FALSE) -> 12
A12: 262 | B12: BAS-RHIN | C12: 5060 | D12: HAGUENAU | E12: =VLOOKUP($C12,'RECAP SECT'!$G$6:$DC$253,3,FALSE) -> 71.0 | F12: =VLOOKUP($C12,'RECAP SECT'!$G$6:$DC$253,56,FALSE) -> 2,464 | G12: =VLOOKUP($C12,'RECAP SECT'!$G$6:$DC$253,57,FALSE) -> 34.71 | H12: =VLOOKUP($C12,'RECAP SECT'!$G$6:$DC$253,58,FALSE) -> 66% | I12: =VLOOKUP($C12,'RECAP SECT'!$G$6:$DC$253,59,FALSE) -> 15 | J12: =VLOOKUP($C12,'RECAP SECT'!$G$6:$DC$253,60,FALSE) -> 1,445 | K12: =VLOOKUP($C12,'RECAP SECT'!$G$6:$DC$253,61,FALSE) -> 20.36 | L12: =VLOOKUP($C12,'RECAP SECT'!$G$6:$DC$253,62,FALSE) -> 19% | M12: =VLOOKUP($C12,'RECAP SECT'!$G$6:$DC$253,63,FALSE) -> 4 | N12: =VLOOKUP($C12,'RECAP SECT'!$G$6:$DC$253,64,FALSE) -> 306 | O12: =VLOOKUP($C12,'RECAP SECT'!$G$6:$DC$253,65,FALSE) -> 4.31 | P12: =VLOOKUP($C12,'RECAP SECT'!$G$6:$DC$253,66,FALSE) -> 53% | Q12: =VLOOKUP($C12,'RECAP SECT'!$G$6:$DC$253,67,FALSE) -> 16 | R12: =VLOOKUP($C12,'RECAP SECT'!$G$6:$DC$253,68,FALSE) -> 48% | S12: =VLOOKUP($C12,'RECAP SECT'!$G$6:$DC$253,69,FALSE) -> 41% | T12: =VLOOKUP($C12,'RECAP SECT'!$G$6:$DC$253,70,FALSE) -> 15
A13: 262 | B13: BAS-RHIN | C13: 5101 | D13: SELESTAT | E13: =VLOOKUP($C13,'RECAP SECT'!$G$6:$DC$253,3,FALSE) -> 60.3 | F13: =VLOOKUP($C13,'RECAP SECT'!$G$6:$DC$253,56,FALSE) -> 1,906 | G13: =VLOOKUP($C13,'RECAP SECT'!$G$6:$DC$253,57,FALSE) -> 31.63 | H13: =VLOOKUP($C13,'RECAP SECT'!$G$6:$DC$253,58,FALSE) -> 69% | I13: =VLOOKUP($C13,'RECAP SECT'!$G$6:$DC$253,59,FALSE) -> 16 | J13: =VLOOKUP($C13,'RECAP SECT'!$G$6:$DC$253,60,FALSE) -> 1,201 | K13: =VLOOKUP($C13,'RECAP SECT'!$G$6:$DC$253,61,FALSE) -> 19.93 | L13: =VLOOKUP($C13,'RECAP SECT'!$G$6:$DC$253,62,FALSE) -> 21% | M13: =VLOOKUP($C13,'RECAP SECT'!$G$6:$DC$253,63,FALSE) -> 7 | N13: =VLOOKUP($C13,'RECAP SECT'!$G$6:$DC$253,64,FALSE) -> 290 | O13: =VLOOKUP($C13,'RECAP SECT'!$G$6:$DC$253,65,FALSE) -> 4.81 | P13: =VLOOKUP($C13,'RECAP SECT'!$G$6:$DC$253,66,FALSE) -> 48% | Q13: =VLOOKUP($C13,'RECAP SECT'!$G$6:$DC$253,67,FALSE) -> 13 | R13: =VLOOKUP($C13,'RECAP SECT'!$G$6:$DC$253,68,FALSE) -> 48% | S13: =VLOOKUP($C13,'RECAP SECT'!$G$6:$DC$253,69,FALSE) -> 41% | T13: =VLOOKUP($C13,'RECAP SECT'!$G$6:$DC$253,70,FALSE) -> 16
A14: 262 | B14: BAS-RHIN | C14: 5006 | D14: STRASBOURG | E14: =VLOOKUP($C14,'RECAP SECT'!$G$6:$DC$253,3,FALSE) -> 75.4 | F14: =VLOOKUP($C14,'RECAP SECT'!$G$6:$DC$253,56,FALSE) -> 4,333 | G14: =VLOOKUP($C14,'RECAP SECT'!$G$6:$DC$253,57,FALSE) -> 57.46 | H14: =VLOOKUP($C14,'RECAP SECT'!$G$6:$DC$253,58,FALSE) -> 43% | I14: =VLOOKUP($C14,'RECAP SECT'!$G$6:$DC$253,59,FALSE) -> 6 | J14: =VLOOKUP($C14,'RECAP SECT'!$G$6:$DC$253,60,FALSE) -> 1,341 | K14: =VLOOKUP($C14,'RECAP SECT'!$G$6:$DC$253,61,FALSE) -> 17.78 | L14: =VLOOKUP($C14,'RECAP SECT'!$G$6:$DC$253,62,FALSE) -> 30% | M14: =VLOOKUP($C14,'RECAP SECT'!$G$6:$DC$253,63,FALSE) -> 15 | N14: =VLOOKUP($C14,'RECAP SECT'!$G$6:$DC$253,64,FALSE) -> 434 | O14: =VLOOKUP($C14,'RECAP SECT'!$G$6:$DC$253,65,FALSE) -> 5.75 | P14: =VLOOKUP($C14,'RECAP SECT'!$G$6:$DC$253,66,FALSE) -> 37% | Q14: =VLOOKUP($C14,'RECAP SECT'!$G$6:$DC$253,67,FALSE) -> 9 | R14: =VLOOKUP($C14,'RECAP SECT'!$G$6:$DC$253,68,FALSE) -> 37% | S14: =VLOOKUP($C14,'RECAP SECT'!$G$6:$DC$253,69,FALSE) -> 30% | T14: =VLOOKUP($C14,'RECAP SECT'!$G$6:$DC$253,70,FALSE) -> 9
A15: 264 | B15: HAUT-RHIN | C15: 5130 | D15: COLMAR | E15: =VLOOKUP($C15,'RECAP SECT'!$G$6:$DC$253,3,FALSE) -> 61.1 | F15: =VLOOKUP($C15,'RECAP SECT'!$G$6:$DC$253,56,FALSE) -> 1,307 | G15: =VLOOKUP($C15,'RECAP SECT'!$G$6:$DC$253,57,FALSE) -> 21.41 | H15: =VLOOKUP($C15,'RECAP SECT'!$G$6:$DC$253,58,FALSE) -> 79% | I15: =VLOOKUP($C15,'RECAP SECT'!$G$6:$DC$253,59,FALSE) -> 18 | J15: =VLOOKUP($C15,'RECAP SECT'!$G$6:$DC$253,60,FALSE) -> 1,005 | K15: =VLOOKUP($C15,'RECAP SECT'!$G$6:$DC$253,61,FALSE) -> 16.46 | L15: =VLOOKUP($C15,'RECAP SECT'!$G$6:$DC$253,62,FALSE) -> 35% | M15: =VLOOKUP($C15,'RECAP SECT'!$G$6:$DC$253,63,FALSE) -> 17 | N15: =VLOOKUP($C15,'RECAP SECT'!$G$6:$DC$253,64,FALSE) -> 235 | O15: =VLOOKUP($C15,'RECAP SECT'!$G$6:$DC$253,65,FALSE) -> 3.85 | P15: =VLOOKUP($C15,'RECAP SECT'!$G$6:$DC$253,66,FALSE) -> 58% | Q15: =VLOOKUP($C15,'RECAP SECT'!$G$6:$DC$253,67,FALSE) -> 18 | R15: =VLOOKUP($C15,'RECAP SECT'!$G$6:$DC$253,68,FALSE) -> 59% | S15: =VLOOKUP($C15,'RECAP SECT'!$G$6:$DC$253,69,FALSE) -> 53% | T15: =VLOOKUP($C15,'RECAP SECT'!$G$6:$DC$253,70,FALSE) -> 18
A16: 264 | B16: HAUT-RHIN | C16: 5169 | D16: MULHOUSE | E16: =VLOOKUP($C16,'RECAP SECT'!$G$6:$DC$253,3,FALSE) -> 59.9 | F16: =VLOOKUP($C16,'RECAP SECT'!$G$6:$DC$253,56,FALSE) -> 2,336 | G16: =VLOOKUP($C16,'RECAP SECT'!$G$6:$DC$253,57,FALSE) -> 38.97 | H16: =VLOOKUP($C16,'RECAP SECT'!$G$6:$DC$253,58,FALSE) -> 61% | I16: =VLOOKUP($C16,'RECAP SECT'!$G$6:$DC$253,59,FALSE) -> 12 | J16: =VLOOKUP($C16,'RECAP SECT'!$G$6:$DC$253,60,FALSE) -> 1,001 | K16: =VLOOKUP($C16,'RECAP SECT'!$G$6:$DC$253,61,FALSE) -> 16.70 | L16: =VLOOKUP($C16,'RECAP SECT'!$G$6:$DC$253,62,FALSE) -> 34% | M16: =VLOOKUP($C16,'RECAP SECT'!$G$6:$DC$253,63,FALSE) -> 16 | N16: =VLOOKUP($C16,'RECAP SECT'!$G$6:$DC$253,64,FALSE) -> 240 | O16: =VLOOKUP($C16,'RECAP SECT'!$G$6:$DC$253,65,FALSE) -> 4.00 | P16: =VLOOKUP($C16,'RECAP SECT'!$G$6:$DC$253,66,FALSE) -> 56% | Q16: =VLOOKUP($C16,'RECAP SECT'!$G$6:$DC$253,67,FALSE) -> 17 | R16: =VLOOKUP($C16,'RECAP SECT'!$G$6:$DC$253,68,FALSE) -> 52% | S16: =VLOOKUP($C16,'RECAP SECT'!$G$6:$DC$253,69,FALSE) -> 45% | T16: =VLOOKUP($C16,'RECAP SECT'!$G$6:$DC$253,70,FALSE) -> 17
A17: 30 | B17: MARNE-ARDENNES | C17: 6 | D17: CHALONS EN CHAMPAGNE | E17: =VLOOKUP($C17,'RECAP SECT'!$G$6:$DC$253,3,FALSE) -> 44.2 | F17: =VLOOKUP($C17,'RECAP SECT'!$G$6:$DC$253,56,FALSE) -> 2,547 | G17: =VLOOKUP($C17,'RECAP SECT'!$G$6:$DC$253,57,FALSE) -> 57.63 | H17: =VLOOKUP($C17,'RECAP SECT'!$G$6:$DC$253,58,FALSE) -> 43% | I17: =VLOOKUP($C17,'RECAP SECT'!$G$6:$DC$253,59,FALSE) -> 5 | J17: =VLOOKUP($C17,'RECAP SECT'!$G$6:$DC$253,60,FALSE) -> 803 | K17: =VLOOKUP($C17,'RECAP SECT'!$G$6:$DC$253,61,FALSE) -> 18.18 | L17: =VLOOKUP($C17,'RECAP SECT'!$G$6:$DC$253,62,FALSE) -> 28% | M17: =VLOOKUP($C17,'RECAP SECT'!$G$6:$DC$253,63,FALSE) -> 12 | N17: =VLOOKUP($C17,'RECAP SECT'!$G$6:$DC$253,64,FALSE) -> 288 | O17: =VLOOKUP($C17,'RECAP SECT'!$G$6:$DC$253,65,FALSE) -> 6.52 | P17: =VLOOKUP($C17,'RECAP SECT'!$G$6:$DC$253,66,FALSE) -> 29% | Q17: =VLOOKUP($C17,'RECAP SECT'!$G$6:$DC$253,67,FALSE) -> 4 | R17: =VLOOKUP($C17,'RECAP SECT'!$G$6:$DC$253,68,FALSE) -> 34% | S17: =VLOOKUP($C17,'RECAP SECT'!$G$6:$DC$253,69,FALSE) -> 27% | T17: =VLOOKUP($C17,'RECAP SECT'!$G$6:$DC$253,70,FALSE) -> 6
A18: 30 | B18: MARNE-ARDENNES | C18: 2 | D18: CHARLEVILLE MEZIERES | E18: =VLOOKUP($C18,'RECAP SECT'!$G$6:$DC$253,3,FALSE) -> 55.4 | F18: =VLOOKUP($C18,'RECAP SECT'!$G$6:$DC$253,56,FALSE) -> 3,999 | G18: =VLOOKUP($C18,'RECAP SECT'!$G$6:$DC$253,57,FALSE) -> 72.20 | H18: =VLOOKUP($C18,'RECAP SECT'!$G$6:$DC$253,58,FALSE) -> 28% | I18: =VLOOKUP($C18,'RECAP SECT'!$G$6:$DC$253,59,FALSE) -> 4 | J18: =VLOOKUP($C18,'RECAP SECT'!$G$6:$DC$253,60,FALSE) -> 1,019 | K18: =VLOOKUP($C18,'RECAP SECT'!$G$6:$DC$253,61,FALSE) -> 18.39 | L18: =VLOOKUP($C18,'RECAP SECT'!$G$6:$DC$253,62,FALSE) -> 27% | M18: =VLOOKUP($C18,'RECAP SECT'!$G$6:$DC$253,63,FALSE) -> 10 | N18: =VLOOKUP($C18,'RECAP SECT'!$G$6:$DC$253,64,FALSE) -> 367 | O18: =VLOOKUP($C18,'RECAP SECT'!$G$6:$DC$253,65,FALSE) -> 6.63 | P18: =VLOOKUP($C18,'RECAP SECT'!$G$6:$DC$253,66,FALSE) -> 28% | Q18: =VLOOKUP($C18,'RECAP SECT'!$G$6:$DC$253,67,FALSE) -> 3 | R18: =VLOOKUP($C18,'RECAP SECT'!$G$6:$DC$253,68,FALSE) -> 28% | S18: =VLOOKUP($C18,'RECAP SECT'!$G$6:$DC$253,69,FALSE) -> 21% | T18: =VLOOKUP($C18,'RECAP SECT'!$G$6:$DC$253,70,FALSE) -> 4
A19: 30 | B19: MARNE-ARDENNES | C19: 11 | D19: REIMS | E19: =VLOOKUP($C19,'RECAP SECT'!$G$6:$DC$253,3,FALSE) -> 81.6 | F19: =VLOOKUP($C19,'RECAP SECT'!$G$6:$DC$253,56,FALSE) -> 6,495 | G19: =VLOOKUP($C19,'RECAP SECT'!$G$6:$DC$253,57,FALSE) -> 79.55 | H19: =VLOOKUP($C19,'RECAP SECT'!$G$6:$DC$253,58,FALSE) -> 21% | I19: =VLOOKUP($C19,'RECAP SECT'!$G$6:$DC$253,59,FALSE) -> 3 | J19: =VLOOKUP($C19,'RECAP SECT'!$G$6:$DC$253,60,FALSE) -> 1,493 | K19: =VLOOKUP($C19,'RECAP SECT'!$G$6:$DC$253,61,FALSE) -> 18.29 | L19: =VLOOKUP($C19,'RECAP SECT'!$G$6:$DC$253,62,FALSE) -> 28% | M19: =VLOOKUP($C19,'RECAP SECT'!$G$6:$DC$253,63,FALSE) -> 11 | N19: =VLOOKUP($C19,'RECAP SECT'!$G$6:$DC$253,64,FALSE) -> 529 | O19: =VLOOKUP($C19,'RECAP SECT'!$G$6:$DC$253,65,FALSE) -> 6.48 | P19: =VLOOKUP($C19,'RECAP SECT'!$G$6:$DC$253,66,FALSE) -> 29% | Q19: =VLOOKUP($C19,'RECAP SECT'!$G$6:$DC$253,67,FALSE) -> 5 | R19: =VLOOKUP($C19,'RECAP SECT'!$G$6:$DC$253,68,FALSE) -> 25% | S19: =VLOOKUP($C19,'RECAP SECT'!$G$6:$DC$253,69,FALSE) -> 19% | T19: =VLOOKUP($C19,'RECAP SECT'!$G$6:$DC$253,70,FALSE) -> 3
A20: 110 | B20: MEURTHE ET MOSELLE MEUSE | C20: 26 | D20: NANCY | E20: =VLOOKUP($C20,'RECAP SECT'!$G$6:$DC$253,3,FALSE) -> 65.8 | F20: =VLOOKUP($C20,'RECAP SECT'!$G$6:$DC$253,56,FALSE) -> 6,628 | G20: =VLOOKUP($C20,'RECAP SECT'!$G$6:$DC$253,57,FALSE) -> 100.74 | H20: =VLOOKUP($C20,'RECAP SECT'!$G$6:$DC$253,58,FALSE) -> 0% | I20: =VLOOKUP($C20,'RECAP SECT'!$G$6:$DC$253,59,FALSE) -> 1 | J20: =VLOOKUP($C20,'RECAP SECT'!$G$6:$DC$253,60,FALSE) -> 1,288 | K20: =VLOOKUP($C20,'RECAP SECT'!$G$6:$DC$253,61,FALSE) -> 19.57 | L20: =VLOOKUP($C20,'RECAP SECT'!$G$6:$DC$253,62,FALSE) -> 23% | M20: =VLOOKUP($C20,'RECAP SECT'!$G$6:$DC$253,63,FALSE) -> 8 | N20: =VLOOKUP($C20,'RECAP SECT'!$G$6:$DC$253,64,FALSE) -> 603 | O20: =VLOOKUP($C20,'RECAP SECT'!$G$6:$DC$253,65,FALSE) -> 9.16 | P20: =VLOOKUP($C20,'RECAP SECT'!$G$6:$DC$253,66,FALSE) -> 0% | Q20: =VLOOKUP($C20,'RECAP SECT'!$G$6:$DC$253,67,FALSE) -> 1 | R20: =VLOOKUP($C20,'RECAP SECT'!$G$6:$DC$253,68,FALSE) -> 7% | S20: =VLOOKUP($C20,'RECAP SECT'!$G$6:$DC$253,69,FALSE) -> 0% | T20: =VLOOKUP($C20,'RECAP SECT'!$G$6:$DC$253,70,FALSE) -> 1
A21: 110 | B21: MEURTHE ET MOSELLE MEUSE | C21: 27 | D21: PONT A MOUSSON | E21: =VLOOKUP($C21,'RECAP SECT'!$G$6:$DC$253,3,FALSE) -> 77.0 | F21: =VLOOKUP($C21,'RECAP SECT'!$G$6:$DC$253,56,FALSE) -> 7,258 | G21: =VLOOKUP($C21,'RECAP SECT'!$G$6:$DC$253,57,FALSE) -> 94.21 | H21: =VLOOKUP($C21,'RECAP SECT'!$G$6:$DC$253,58,FALSE) -> 6% | I21: =VLOOKUP($C21,'RECAP SECT'!$G$6:$DC$253,59,FALSE) -> 2 | J21: =VLOOKUP($C21,'RECAP SECT'!$G$6:$DC$253,60,FALSE) -> 1,566 | K21: =VLOOKUP($C21,'RECAP SECT'!$G$6:$DC$253,61,FALSE) -> 20.33 | L21: =VLOOKUP($C21,'RECAP SECT'!$G$6:$DC$253,62,FALSE) -> 20% | M21: =VLOOKUP($C21,'RECAP SECT'!$G$6:$DC$253,63,FALSE) -> 5 | N21: =VLOOKUP($C21,'RECAP SECT'!$G$6:$DC$253,64,FALSE) -> 583 | O21: =VLOOKUP($C21,'RECAP SECT'!$G$6:$DC$253,65,FALSE) -> 7.57 | P21: =VLOOKUP($C21,'RECAP SECT'!$G$6:$DC$253,66,FALSE) -> 17% | Q21: =VLOOKUP($C21,'RECAP SECT'!$G$6:$DC$253,67,FALSE) -> 2 | R21: =VLOOKUP($C21,'RECAP SECT'!$G$6:$DC$253,68,FALSE) -> 14% | S21: =VLOOKUP($C21,'RECAP SECT'!$G$6:$DC$253,69,FALSE) -> 7% | T21: =VLOOKUP($C21,'RECAP SECT'!$G$6:$DC$253,70,FALSE) -> 2
A22: 110 | B22: MEURTHE ET MOSELLE MEUSE | C22: 31 | D22: VERDUN | E22: =VLOOKUP($C22,'RECAP SECT'!$G$6:$DC$253,3,FALSE) -> 56.3 | F22: =VLOOKUP($C22,'RECAP SECT'!$G$6:$DC$253,56,FALSE) -> 3,018 | G22: =VLOOKUP($C22,'RECAP SECT'!$G$6:$DC$253,57,FALSE) -> 53.56 | H22: =VLOOKUP($C22,'RECAP SECT'!$G$6:$DC$253,58,FALSE) -> 47% | I22: =VLOOKUP($C22,'RECAP SECT'!$G$6:$DC$253,59,FALSE) -> 8 | J22: =VLOOKUP($C22,'RECAP SECT'!$G$6:$DC$253,60,FALSE) -> 1,239 | K22: =VLOOKUP($C22,'RECAP SECT'!$G$6:$DC$253,61,FALSE) -> 21.99 | L22: =VLOOKUP($C22,'RECAP SECT'!$G$6:$DC$253,62,FALSE) -> 13% | M22: =VLOOKUP($C22,'RECAP SECT'!$G$6:$DC$253,63,FALSE) -> 3 | N22: =VLOOKUP($C22,'RECAP SECT'!$G$6:$DC$253,64,FALSE) -> 334 | O22: =VLOOKUP($C22,'RECAP SECT'!$G$6:$DC$253,65,FALSE) -> 5.93 | P22: =VLOOKUP($C22,'RECAP SECT'!$G$6:$DC$253,66,FALSE) -> 35% | Q22: =VLOOKUP($C22,'RECAP SECT'!$G$6:$DC$253,67,FALSE) -> 7 | R22: =VLOOKUP($C22,'RECAP SECT'!$G$6:$DC$253,68,FALSE) -> 33% | S22: =VLOOKUP($C22,'RECAP SECT'!$G$6:$DC$253,69,FALSE) -> 26% | T22: =VLOOKUP($C22,'RECAP SECT'!$G$6:$DC$253,70,FALSE) -> 5
A23: 160 | B23: MOSELLE | C23: 45 | D23: METZ | E23: =VLOOKUP($C23,'RECAP SECT'!$G$6:$DC$253,3,FALSE) -> 89.1 | F23: =VLOOKUP($C23,'RECAP SECT'!$G$6:$DC$253,56,FALSE) -> 4,419 | G23: =VLOOKUP($C23,'RECAP SECT'!$G$6:$DC$253,57,FALSE) -> 49.59 | H23: =VLOOKUP($C23,'RECAP SECT'!$G$6:$DC$253,58,FALSE) -> 51% | I23: =VLOOKUP($C23,'RECAP SECT'!$G$6:$DC$253,59,FALSE) -> 9 | J23: =VLOOKUP($C23,'RECAP SECT'!$G$6:$DC$253,60,FALSE) -> 1,688 | K23: =VLOOKUP($C23,'RECAP SECT'!$G$6:$DC$253,61,FALSE) -> 18.95 | L23: =VLOOKUP($C23,'RECAP SECT'!$G$6:$DC$253,62,FALSE) -> 25% | M23: =VLOOKUP($C23,'RECAP SECT'!$G$6:$DC$253,63,FALSE) -> 9 | N23: =VLOOKUP($C23,'RECAP SECT'!$G$6:$DC$253,64,FALSE) -> 448 | O23: =VLOOKUP($C23,'RECAP SECT'!$G$6:$DC$253,65,FALSE) -> 5.03 | P23: =VLOOKUP($C23,'RECAP SECT'!$G$6:$DC$253,66,FALSE) -> 45% | Q23: =VLOOKUP($C23,'RECAP SECT'!$G$6:$DC$253,67,FALSE) -> 12 | R23: =VLOOKUP($C23,'RECAP SECT'!$G$6:$DC$253,68,FALSE) -> 41% | S23: =VLOOKUP($C23,'RECAP SECT'!$G$6:$DC$253,69,FALSE) -> 35% | T23: =VLOOKUP($C23,'RECAP SECT'!$G$6:$DC$253,70,FALSE) -> 10
A24: 160 | B24: MOSELLE | C24: 42 | D24: MOSELLE EST | E24: =VLOOKUP($C24,'RECAP SECT'!$G$6:$DC$253,3,FALSE) -> 69.0 | F24: =VLOOKUP($C24,'RECAP SECT'!$G$6:$DC$253,56,FALSE) -> 1,755 | G24: =VLOOKUP($C24,'RECAP SECT'!$G$6:$DC$253,57,FALSE) -> 25.44 | H24: =VLOOKUP($C24,'RECAP SECT'!$G$6:$DC$253,58,FALSE) -> 75% | I24: =VLOOKUP($C24,'RECAP SECT'!$G$6:$DC$253,59,FALSE) -> 17 | J24: =VLOOKUP($C24,'RECAP SECT'!$G$6:$DC$253,60,FALSE) -> 1,566 | K24: =VLOOKUP($C24,'RECAP SECT'!$G$6:$DC$253,61,FALSE) -> 22.71 | L24: =VLOOKUP($C24,'RECAP SECT'!$G$6:$DC$253,62,FALSE) -> 10% | M24: =VLOOKUP($C24,'RECAP SECT'!$G$6:$DC$253,63,FALSE) -> 2 | N24: =VLOOKUP($C24,'RECAP SECT'!$G$6:$DC$253,64,FALSE) -> 323 | O24: =VLOOKUP($C24,'RECAP SECT'!$G$6:$DC$253,65,FALSE) -> 4.68 | P24: =VLOOKUP($C24,'RECAP SECT'!$G$6:$DC$253,66,FALSE) -> 49% | Q24: =VLOOKUP($C24,'RECAP SECT'!$G$6:$DC$253,67,FALSE) -> 15 | R24: =VLOOKUP($C24,'RECAP SECT'!$G$6:$DC$253,68,FALSE) -> 48% | S24: =VLOOKUP($C24,'RECAP SECT'!$G$6:$DC$253,69,FALSE) -> 41% | T24: =VLOOKUP($C24,'RECAP SECT'!$G$6:$DC$253,70,FALSE) -> 13
A25: 160 | B25: MOSELLE | C25: 44 | D25: MOSELLE NORD | E25: =VLOOKUP($C25,'RECAP SECT'!$G$6:$DC$253,3,FALSE) -> 70.2 | F25: =VLOOKUP($C25,'RECAP SECT'!$G$6:$DC$253,56,FALSE) -> 3,970 | G25: =VLOOKUP($C25,'RECAP SECT'!$G$6:$DC$253,57,FALSE) -> 56.55 | H25: =VLOOKUP($C25,'RECAP SECT'!$G$6:$DC$253,58,FALSE) -> 44% | I25: =VLOOKUP($C25,'RECAP SECT'!$G$6:$DC$253,59,FALSE) -> 7 | J25: =VLOOKUP($C25,'RECAP SECT'!$G$6:$DC$253,60,FALSE) -> 1,419 | K25: =VLOOKUP($C25,'RECAP SECT'!$G$6:$DC$253,61,FALSE) -> 20.22 | L25: =VLOOKUP($C25,'RECAP SECT'!$G$6:$DC$253,62,FALSE) -> 20% | M25: =VLOOKUP($C25,'RECAP SECT'!$G$6:$DC$253,63,FALSE) -> 6 | N25: =VLOOKUP($C25,'RECAP SECT'!$G$6:$DC$253,64,FALSE) -> 358 | O25: =VLOOKUP($C25,'RECAP SECT'!$G$6:$DC$253,65,FALSE) -> 5.10 | P25: =VLOOKUP($C25,'RECAP SECT'!$G$6:$DC$253,66,FALSE) -> 44% | Q25: =VLOOKUP($C25,'RECAP SECT'!$G$6:$DC$253,67,FALSE) -> 11 | R25: =VLOOKUP($C25,'RECAP SECT'!$G$6:$DC$253,68,FALSE) -> 37% | S25: =VLOOKUP($C25,'RECAP SECT'!$G$6:$DC$253,69,FALSE) -> 30% | T25: =VLOOKUP($C25,'RECAP SECT'!$G$6:$DC$253,70,FALSE) -> 8
A26: 80 | B26: VOSGES | C26: 57 | D26: EPINAL | E26: =VLOOKUP($C26,'RECAP SECT'!$G$6:$DC$253,3,FALSE) -> 60.9 | F26: =VLOOKUP($C26,'RECAP SECT'!$G$6:$DC$253,56,FALSE) -> 2,700 | G26: =VLOOKUP($C26,'RECAP SECT'!$G$6:$DC$253,57,FALSE) -> 44.33 | H26: =VLOOKUP($C26,'RECAP SECT'!$G$6:$DC$253,58,FALSE) -> 56% | I26: =VLOOKUP($C26,'RECAP SECT'!$G$6:$DC$253,59,FALSE) -> 10 | J26: =VLOOKUP($C26,'RECAP SECT'!$G$6:$DC$253,60,FALSE) -> 974 | K26: =VLOOKUP($C26,'RECAP SECT'!$G$6:$DC$253,61,FALSE) -> 16.00 | L26: =VLOOKUP($C26,'RECAP SECT'!$G$6:$DC$253,62,FALSE) -> 37% | M26: =VLOOKUP($C26,'RECAP SECT'!$G$6:$DC$253,63,FALSE) -> 18 | N26: =VLOOKUP($C26,'RECAP SECT'!$G$6:$DC$253,64,FALSE) -> 356 | O26: =VLOOKUP($C26,'RECAP SECT'!$G$6:$DC$253,65,FALSE) -> 5.85 | P26: =VLOOKUP($C26,'RECAP SECT'!$G$6:$DC$253,66,FALSE) -> 36% | Q26: =VLOOKUP($C26,'RECAP SECT'!$G$6:$DC$253,67,FALSE) -> 8 | R26: =VLOOKUP($C26,'RECAP SECT'!$G$6:$DC$253,68,FALSE) -> 44% | S26: =VLOOKUP($C26,'RECAP SECT'!$G$6:$DC$253,69,FALSE) -> 38% | T26: =VLOOKUP($C26,'RECAP SECT'!$G$6:$DC$253,70,FALSE) -> 11
A27: 80 | B27: VOSGES | C27: 55 | D27: SAINT DIE | E27: =VLOOKUP($C27,'RECAP SECT'!$G$6:$DC$253,3,FALSE) -> 48.3 | F27: =VLOOKUP($C27,'RECAP SECT'!$G$6:$DC$253,56,FALSE) -> 1,861 | G27: =VLOOKUP($C27,'RECAP SECT'!$G$6:$DC$253,57,FALSE) -> 38.54 | H27: =VLOOKUP($C27,'RECAP SECT'!$G$6:$DC$253,58,FALSE) -> 62% | I27: =VLOOKUP($C27,'RECAP SECT'!$G$6:$DC$253,59,FALSE) -> 13 | J27: =VLOOKUP($C27,'RECAP SECT'!$G$6:$DC$253,60,FALSE) -> 870 | K27: =VLOOKUP($C27,'RECAP SECT'!$G$6:$DC$253,61,FALSE) -> 18.02 | L27: =VLOOKUP($C27,'RECAP SECT'!$G$6:$DC$253,62,FALSE) -> 29% | M27: =VLOOKUP($C27,'RECAP SECT'!$G$6:$DC$253,63,FALSE) -> 14 | N27: =VLOOKUP($C27,'RECAP SECT'!$G$6:$DC$253,64,FALSE) -> 228 | O27: =VLOOKUP($C27,'RECAP SECT'!$G$6:$DC$253,65,FALSE) -> 4.72 | P27: =VLOOKUP($C27,'RECAP SECT'!$G$6:$DC$253,66,FALSE) -> 48% | Q27: =VLOOKUP($C27,'RECAP SECT'!$G$6:$DC$253,67,FALSE) -> 14 | R27: =VLOOKUP($C27,'RECAP SECT'!$G$6:$DC$253,68,FALSE) -> 48% | S27: =VLOOKUP($C27,'RECAP SECT'!$G$6:$DC$253,69,FALSE) -> 41% | T27: =VLOOKUP($C27,'RECAP SECT'!$G$6:$DC$253,70,FALSE) -> 14
A28: Total CEGEE Directions Régionales | E28: =SUM(E10:E27) -> 1146

Sheet SE_IARD
B1: Accueil | F1: BAROMETRE BDD - TERRITOIRES
F2: IARD ET PREVOYANCE
F3: =ACCUEIL!F7 -> 2021-04-04
F7: Ventes Nettes produits pondérés | J7: Ventes sur client non détenteur de l’univers | N7: Total IARD Prévoyance
F8: =DATEMAJ!C23 -> au 04/04 | H8: coef | I8: ='RECAP DIRCOM'!CF4 -> 14% | J8: =DATEMAJ!C24 -> au 04/04 | L8: coef | M8: ='RECAP DIRCOM'!CJ4 -> 6% | O8: coef | P8: ='RECAP DIRCOM'!CM4 -> 20%
B9: Direction | C9: eds | D9: Territoire | E9: ="ETP perf "&DATEMAJ!$C$28 -> ETP perf 28-févr | F9: VN | G9: VN / ETP | H9: % Ecart au 1er | I9: Rang | J9: VB | K9: VB / ETP | L9: % Ecart au 1er | M9: Rang | N9: Moyenne ecart au 1er | O9: % Ecart au 1er | P9: Rang CEGEE
A10: 50 | B10: AUBE HAUTE MARNE | C10: 21 | D10: CHAUMONT | E10: =VLOOKUP($C10,'RECAP SECT'!$G$6:$DC$253,3,FALSE) -> 33.9 | F10: =VLOOKUP($C10,'RECAP SECT'!$G$6:$DC$253,75,FALSE) -> 3,033 | G10: =VLOOKUP($C10,'RECAP SECT'!$G$6:$DC$253,76,FALSE) -> 89.54 | H10: =VLOOKUP($C10,'RECAP SECT'!$G$6:$DC$253,77,FALSE) -> 10% | I10: =VLOOKUP($C10,'RECAP SECT'!$G$6:$DC$253,78,FALSE) -> 7 | J10: =VLOOKUP($C10,'RECAP SECT'!$G$6:$DC$253,79,FALSE) -> 556 | K10: =VLOOKUP($C10,'RECAP SECT'!$G$6:$DC$253,80,FALSE) -> 16.41 | L10: =VLOOKUP($C10,'RECAP SECT'!$G$6:$DC$253,81,FALSE) -> 10% | M10: =VLOOKUP($C10,'RECAP SECT'!$G$6:$DC$253,82,FALSE) -> 3 | N10: =VLOOKUP($C10,'RECAP SECT'!$G$6:$DC$253,83,FALSE) -> 10% | O10: =VLOOKUP($C10,'RECAP SECT'!$G$6:$DC$253,84,FALSE) -> 7% | P10: =VLOOKUP($C10,'RECAP SECT'!$G$6:$DC$253,85,FALSE) -> 5
A11: 50 | B11: AUBE HAUTE MARNE | C11: 14 | D11: TROYES | E11: =VLOOKUP($C11,'RECAP SECT'!$G$6:$DC$253,3,FALSE) -> 66.8 | F11: =VLOOKUP($C11,'RECAP SECT'!$G$6:$DC$253,75,FALSE) -> 3,395 | G11: =VLOOKUP($C11,'RECAP SECT'!$G$6:$DC$253,76,FALSE) -> 50.80 | H11: =VLOOKUP($C11,'RECAP SECT'!$G$6:$DC$253,77,FALSE) -> 49% | I11: =VLOOKUP($C11,'RECAP SECT'!$G$6:$DC$253,78,FALSE) -> 17 | J11: =VLOOKUP($C11,'RECAP SECT'!$G$6:$DC$253,79,FALSE) -> 858 | K11: =VLOOKUP($C11,'RECAP SECT'!$G$6:$DC$253,80,FALSE) -> 12.84 | L11: =VLOOKUP($C11,'RECAP SECT'!$G$6:$DC$253,81,FALSE) -> 30% | M11: =VLOOKUP($C11,'RECAP SECT'!$G$6:$DC$253,82,FALSE) -> 13 | N11: =VLOOKUP($C11,'RECAP SECT'!$G$6:$DC$253,83,FALSE) -> 43% | O11: =VLOOKUP($C11,'RECAP SECT'!$G$6:$DC$253,84,FALSE) -> 40% | P11: =VLOOKUP($C11,'RECAP SECT'!$G$6:$DC$253,85,FALSE) -> 17
A12: 262 | B12: BAS-RHIN | C12: 5060 | D12: HAGUENAU | E12: =VLOOKUP($C12,'RECAP SECT'!$G$6:$DC$253,3,FALSE) -> 71.0 | F12: =VLOOKUP($C12,'RECAP SECT'!$G$6:$DC$253,75,FALSE) -> 4,950 | G12: =VLOOKUP($C12,'RECAP SECT'!$G$6:$DC$253,76,FALSE) -> 69.73 | H12: =VLOOKUP($C12,'RECAP SECT'!$G$6:$DC$253,77,FALSE) -> 30% | I12: =VLOOKUP($C12,'RECAP SECT'!$G$6:$DC$253,78,FALSE) -> 15 | J12: =VLOOKUP($C12,'RECAP SECT'!$G$6:$DC$253,79,FALSE) -> 880 | K12: =VLOOKUP($C12,'RECAP SECT'!$G$6:$DC$253,80,FALSE) -> 12.40 | L12: =VLOOKUP($C12,'RECAP SECT'!$G$6:$DC$253,81,FALSE) -> 32% | M12: =VLOOKUP($C12,'RECAP SECT'!$G$6:$DC$253,82,FALSE) -> 15 | N12: =VLOOKUP($C12,'RECAP SECT'!$G$6:$DC$253,83,FALSE) -> 31% | O12: =VLOOKUP($C12,'RECAP SECT'!$G$6:$DC$253,84,FALSE) -> 28% | P12: =VLOOKUP($C12,'RECAP SECT'!$G$6:$DC$253,85,FALSE) -> 15
A13: 262 | B13: BAS-RHIN | C13: 5101 | D13: SELESTAT | E13: =VLOOKUP($C13,'RECAP SECT'!$G$6:$DC$253,3,FALSE) -> 60.3 | F13: =VLOOKUP($C13,'RECAP SECT'!$G$6:$DC$253,75,FALSE) -> 5,182 | G13: =VLOOKUP($C13,'RECAP SECT'!$G$6:$DC$253,76,FALSE) -> 85.97 | H13: =VLOOKUP($C13,'RECAP SECT'!$G$6:$DC$253,77,FALSE) -> 14% | I13: =VLOOKUP($C13,'RECAP SECT'!$G$6:$DC$253,78,FALSE) -> 9 | J13: =VLOOKUP($C13,'RECAP SECT'!$G$6:$DC$253,79,FALSE) -> 815 | K13: =VLOOKUP($C13,'RECAP SECT'!$G$6:$DC$253,80,FALSE) -> 13.52 | L13: =VLOOKUP($C13,'RECAP SECT'!$G$6:$DC$253,81,FALSE) -> 26% | M13: =VLOOKUP($C13,'RECAP SECT'!$G$6:$DC$253,82,FALSE) -> 9 | N13: =VLOOKUP($C13,'RECAP SECT'!$G$6:$DC$253,83,FALSE) -> 17% | O13: =VLOOKUP($C13,'RECAP SECT'!$G$6:$DC$253,84,FALSE) -> 15% | P13: =VLOOKUP($C13,'RECAP SECT'!$G$6:$DC$253,85,FALSE) -> 8
A14: 262 | B14: BAS-RHIN | C14: 5006 | D14: STRASBOURG | E14: =VLOOKUP($C14,'RECAP SECT'!$G$6:$DC$253,3,FALSE) -> 75.4 | F14: =VLOOKUP($C14,'RECAP SECT'!$G$6:$DC$253,75,FALSE) -> 7,047 | G14: =VLOOKUP($C14,'RECAP SECT'!$G$6:$DC$253,76,FALSE) -> 93.45 | H14: =VLOOKUP($C14,'RECAP SECT'!$G$6:$DC$253,77,FALSE) -> 6% | I14: =VLOOKUP($C14,'RECAP SECT'!$G$6:$DC$253,78,FALSE) -> 4 | J14: =VLOOKUP($C14,'RECAP SECT'!$G$6:$DC$253,79,FALSE) -> 1,191 | K14: =VLOOKUP($C14,'RECAP SECT'!$G$6:$DC$253,80,FALSE) -> 15.79 | L14: =VLOOKUP($C14,'RECAP SECT'!$G$6:$DC$253,81,FALSE) -> 13% | M14: =VLOOKUP($C14,'RECAP SECT'!$G$6:$DC$253,82,FALSE) -> 4 | N14: =VLOOKUP($C14,'RECAP SECT'!$G$6:$DC$253,83,FALSE) -> 8% | O14: =VLOOKUP($C14,'RECAP SECT'!$G$6:$DC$253,84,FALSE) -> 6% | P14: =VLOOKUP($C14,'RECAP SECT'!$G$6:$DC$253,85,FALSE) -> 3
A15: 264 | B15: HAUT-RHIN | C15: 5130 | D15: COLMAR | E15: =VLOOKUP($C15,'RECAP SECT'!$G$6:$DC$253,3,FALSE) -> 61.1 | F15: =VLOOKUP($C15,'RECAP SECT'!$G$6:$DC$253,75,FALSE) -> 4,521 | G15: =VLOOKUP($C15,'RECAP SECT'!$G$6:$DC$253,76,FALSE) -> 74.04 | H15: =VLOOKUP($C15,'RECAP SECT'!$G$6:$DC$253,77,FALSE) -> 26% | I15: =VLOOKUP($C15,'RECAP SECT'!$G$6:$DC$253,78,FALSE) -> 13 | J15: =VLOOKUP($C15,'RECAP SECT'!$G$6:$DC$253,79,FALSE) -> 669 | K15: =VLOOKUP($C15,'RECAP SECT'!$G$6:$DC$253,80,FALSE) -> 10.96 | L15: =VLOOKUP($C15,'RECAP SECT'!$G$6:$DC$253,81,FALSE) -> 40% | M15: =VLOOKUP($C15,'RECAP SECT'!$G$6:$DC$253,82,FALSE) -> 18 | N15: =VLOOKUP($C15,'RECAP SECT'!$G$6:$DC$253,83,FALSE) -> 30% | O15: =VLOOKUP($C15,'RECAP SECT'!$G$6:$DC$253,84,FALSE) -> 27% | P15: =VLOOKUP($C15,'RECAP SECT'!$G$6:$DC$253,85,FALSE) -> 14
A16: 264 | B16: HAUT-RHIN | C16: 5169 | D16: MULHOUSE | E16: =VLOOKUP($C16,'RECAP SECT'!$G$6:$DC$253,3,FALSE) -> 59.9 | F16: =VLOOKUP($C16,'RECAP SECT'!$G$6:$DC$253,75,FALSE) -> 2,187 | G16: =VLOOKUP($C16,'RECAP SECT'!$G$6:$DC$253,76,FALSE) -> 36.49 | H16: =VLOOKUP($C16,'RECAP SECT'!$G$6:$DC$253,77,FALSE) -> 63% | I16: =VLOOKUP($C16,'RECAP SECT'!$G$6:$DC$253,78,FALSE) -> 18 | J16: =VLOOKUP($C16,'RECAP SECT'!$G$6:$DC$253,79,FALSE) -> 735 | K16: =VLOOKUP($C16,'RECAP SECT'!$G$6:$DC$253,80,FALSE) -> 12.26 | L16: =VLOOKUP($C16,'RECAP SECT'!$G$6:$DC$253,81,FALSE) -> 33% | M16: =VLOOKUP($C16,'RECAP SECT'!$G$6:$DC$253,82,FALSE) -> 16 | N16: =VLOOKUP($C16,'RECAP SECT'!$G$6:$DC$253,83,FALSE) -> 54% | O16: =VLOOKUP($C16,'RECAP SECT'!$G$6:$DC$253,84,FALSE) -> 51% | P16: =VLOOKUP($C16,'RECAP SECT'!$G$6:$DC$253,85,FALSE) -> 18
A17: 30 | B17: MARNE-ARDENNES | C17: 6 | D17: CHALONS EN CHAMPAGNE | E17: =VLOOKUP($C17,'RECAP SECT'!$G$6:$DC$253,3,FALSE) -> 44.2 | F17: =VLOOKUP($C17,'RECAP SECT'!$G$6:$DC$253,75,FALSE) -> 3,120 | G17: =VLOOKUP($C17,'RECAP SECT'!$G$6:$DC$253,76,FALSE) -> 70.59 | H17: =VLOOKUP($C17,'RECAP SECT'!$G$6:$DC$253,77,FALSE) -> 29% | I17: =VLOOKUP($C17,'RECAP SECT'!$G$6:$DC$253,78,FALSE) -> 14 | J17: =VLOOKUP($C17,'RECAP SECT'!$G$6:$DC$253,79,FALSE) -> 619 | K17: =VLOOKUP($C17,'RECAP SECT'!$G$6:$DC$253,80,FALSE) -> 14.01 | L17: =VLOOKUP($C17,'RECAP SECT'!$G$6:$DC$253,81,FALSE) -> 23% | M17: =VLOOKUP($C17,'RECAP SECT'!$G$6:$DC$253,82,FALSE) -> 7 | N17: =VLOOKUP($C17,'RECAP SECT'!$G$6:$DC$253,83,FALSE) -> 27% | O17: =VLOOKUP($C17,'RECAP SECT'!$G$6:$DC$253,84,FALSE) -> 25% | P17: =VLOOKUP($C17,'RECAP SECT'!$G$6:$DC$253,85,FALSE) -> 13
A18: 30 | B18: MARNE-ARDENNES | C18: 2 | D18: CHARLEVILLE MEZIERES | E18: =VLOOKUP($C18,'RECAP SECT'!$G$6:$DC$253,3,FALSE) -> 55.4 | F18: =VLOOKUP($C18,'RECAP SECT'!$G$6:$DC$253,75,FALSE) -> 5,446 | G18: =VLOOKUP($C18,'RECAP SECT'!$G$6:$DC$253,76,FALSE) -> 98.33 | H18: =VLOOKUP($C18,'RECAP SECT'!$G$6:$DC$253,77,FALSE) -> 1% | I18: =VLOOKUP($C18,'RECAP SECT'!$G$6:$DC$253,78,FALSE) -> 2 | J18: =VLOOKUP($C18,'RECAP SECT'!$G$6:$DC$253,79,FALSE) -> 747 | K18: =VLOOKUP($C18,'RECAP SECT'!$G$6:$DC$253,80,FALSE) -> 13.49 | L18: =VLOOKUP($C18,'RECAP SECT'!$G$6:$DC$253,81,FALSE) -> 26% | M18: =VLOOKUP($C18,'RECAP SECT'!$G$6:$DC$253,82,FALSE) -> 10 | N18: =VLOOKUP($C18,'RECAP SECT'!$G$6:$DC$253,83,FALSE) -> 9% | O18: =VLOOKUP($C18,'RECAP SECT'!$G$6:$DC$253,84,FALSE) -> 6% | P18: =VLOOKUP($C18,'RECAP SECT'!$G$6:$DC$253,85,FALSE) -> 4
A19: 30 | B19: MARNE-ARDENNES | C19: 11 | D19: REIMS | E19: =VLOOKUP($C19,'RECAP SECT'!$G$6:$DC$253,3,FALSE) -> 81.6 | F19: =VLOOKUP($C19,'RECAP SECT'!$G$6:$DC$253,75,FALSE) -> 7,169 | G19: =VLOOKUP($C19,'RECAP SECT'!$G$6:$DC$253,76,FALSE) -> 87.82 | H19: =VLOOKUP($C19,'RECAP SECT'!$G$6:$DC$253,77,FALSE) -> 12% | I19: =VLOOKUP($C19,'RECAP SECT'!$G$6:$DC$253,78,FALSE) -> 8 | J19: =VLOOKUP($C19,'RECAP SECT'!$G$6:$DC$253,79,FALSE) -> 1,151 | K19: =VLOOKUP($C19,'RECAP SECT'!$G$6:$DC$253,80,FALSE) -> 14.10 | L19: =VLOOKUP($C19,'RECAP SECT'!$G$6:$DC$253,81,FALSE) -> 23% | M19: =VLOOKUP($C19,'RECAP SECT'!$G$6:$DC$253,82,FALSE) -> 6 | N19: =VLOOKUP($C19,'RECAP SECT'!$G$6:$DC$253,83,FALSE) -> 15% | O19: =VLOOKUP($C19,'RECAP SECT'!$G$6:$DC$253,84,FALSE) -> 12% | P19: =VLOOKUP($C19,'RECAP SECT'!$G$6:$DC$253,85,FALSE) -> 7
A20: 110 | B20: MEURTHE ET MOSELLE MEUSE | C20: 26 | D20: NANCY | E20: =VLOOKUP($C20,'RECAP SECT'!$G$6:$DC$253,3,FALSE) -> 65.8 | F20: =VLOOKUP($C20,'RECAP SECT'!$G$6:$DC$253,75,FALSE) -> 6,302 | G20: =VLOOKUP($C20,'RECAP SECT'!$G$6:$DC$253,76,FALSE) -> 95.78 | H20: =VLOOKUP($C20,'RECAP SECT'!$G$6:$DC$253,77,FALSE) -> 4% | I20: =VLOOKUP($C20,'RECAP SECT'!$G$6:$DC$253,78,FALSE) -> 3 | J20: =VLOOKUP($C20,'RECAP SECT'!$G$6:$DC$253,79,FALSE) -> 1,200 | K20: =VLOOKUP($C20,'RECAP SECT'!$G$6:$DC$253,80,FALSE) -> 18.24 | L20: =VLOOKUP($C20,'RECAP SECT'!$G$6:$DC$253,81,FALSE) -> 0% | M20: =VLOOKUP($C20,'RECAP SECT'!$G$6:$DC$253,82,FALSE) -> 1 | N20: =VLOOKUP($C20,'RECAP SECT'!$G$6:$DC$253,83,FALSE) -> 3% | O20: =VLOOKUP($C20,'RECAP SECT'!$G$6:$DC$253,84,FALSE) -> 0% | P20: =VLOOKUP($C20,'RECAP SECT'!$G$6:$DC$253,85,FALSE) -> 1
A21: 110 | B21: MEURTHE ET MOSELLE MEUSE | C21: 27 | D21: PONT A MOUSSON | E21: =VLOOKUP($C21,'RECAP SECT'!$G$6:$DC$253,3,FALSE) -> 77.0 | F21: =VLOOKUP($C21,'RECAP SECT'!$G$6:$DC$253,75,FALSE) -> 6,038 | G21: =VLOOKUP($C21,'RECAP SECT'!$G$6:$DC$253,76,FALSE) -> 78.37 | H21: =VLOOKUP($C21,'RECAP SECT'!$G$6:$DC$253,77,FALSE) -> 21% | I21: =VLOOKUP($C21,'RECAP SECT'!$G$6:$DC$253,78,FALSE) -> 11 | J21: =VLOOKUP($C21,'RECAP SECT'!$G$6:$DC$253,79,FALSE) -> 1,282 | K21: =VLOOKUP($C21,'RECAP SECT'!$G$6:$DC$253,80,FALSE) -> 16.64 | L21: =VLOOKUP($C21,'RECAP SECT'!$G$6:$DC$253,81,FALSE) -> 9% | M21: =VLOOKUP($C21,'RECAP SECT'!$G$6:$DC$253,82,FALSE) -> 2 | N21: =VLOOKUP($C21,'RECAP SECT'!$G$6:$DC$253,83,FALSE) -> 18% | O21: =VLOOKUP($C21,'RECAP SECT'!$G$6:$DC$253,84,FALSE) -> 15% | P21: =VLOOKUP($C21,'RECAP SECT'!$G$6:$DC$253,85,FALSE) -> 9
A22: 110 | B22: MEURTHE ET MOSELLE MEUSE | C22: 31 | D22: VERDUN | E22: =VLOOKUP($C22,'RECAP SECT'!$G$6:$DC$253,3,FALSE) -> 56.3 | F22: =VLOOKUP($C22,'RECAP SECT'!$G$6:$DC$253,75,FALSE) -> 3,671 | G22: =VLOOKUP($C22,'RECAP SECT'!$G$6:$DC$253,76,FALSE) -> 65.17 | H22: =VLOOKUP($C22,'RECAP SECT'!$G$6:$DC$253,77,FALSE) -> 35% | I22: =VLOOKUP($C22,'RECAP SECT'!$G$6:$DC$253,78,FALSE) -> 16 | J22: =VLOOKUP($C22,'RECAP SECT'!$G$6:$DC$253,79,FALSE) -> 756 | K22: =VLOOKUP($C22,'RECAP SECT'!$G$6:$DC$253,80,FALSE) -> 13.42 | L22: =VLOOKUP($C22,'RECAP SECT'!$G$6:$DC$253,81,FALSE) -> 26% | M22: =VLOOKUP($C22,'RECAP SECT'!$G$6:$DC$253,82,FALSE) -> 11 | N22: =VLOOKUP($C22,'RECAP SECT'!$G$6:$DC$253,83,FALSE) -> 32% | O22: =VLOOKUP($C22,'RECAP SECT'!$G$6:$DC$253,84,FALSE) -> 29% | P22: =VLOOKUP($C22,'RECAP SECT'!$G$6:$DC$253,85,FALSE) -> 16
A23: 160 | B23: MOSELLE | C23: 45 | D23: METZ | E23: =VLOOKUP($C23,'RECAP SECT'!$G$6:$DC$253,3,FALSE) -> 89.1 | F23: =VLOOKUP($C23,'RECAP SECT'!$G$6:$DC$253,75,FALSE) -> 6,821 | G23: =VLOOKUP($C23,'RECAP SECT'!$G$6:$DC$253,76,FALSE) -> 76.56 | H23: =VLOOKUP($C23,'RECAP SECT'!$G$6:$DC$253,77,FALSE) -> 23% | I23: =VLOOKUP($C23,'RECAP SECT'!$G$6:$DC$253,78,FALSE) -> 12 | J23: =VLOOKUP($C23,'RECAP SECT'!$G$6:$DC$253,79,FALSE) -> 1,211 | K23: =VLOOKUP($C23,'RECAP SECT'!$G$6:$DC$253,80,FALSE) -> 13.59 | L23: =VLOOKUP($C23,'RECAP SECT'!$G$6:$DC$253,81,FALSE) -> 25% | M23: =VLOOKUP($C23,'RECAP SECT'!$G$6:$DC$253,82,FALSE) -> 8 | N23: =VLOOKUP($C23,'RECAP SECT'!$G$6:$DC$253,83,FALSE) -> 24% | O23: =VLOOKUP($C23,'RECAP SECT'!$G$6:$DC$253,84,FALSE) -> 21% | P23: =VLOOKUP($C23,'RECAP SECT'!$G$6:$DC$253,85,FALSE) -> 12
A24: 160 | B24: MOSELLE | C24: 42 | D24: MOSELLE EST | E24: =VLOOKUP($C24,'RECAP SECT'!$G$6:$DC$253,3,FALSE) -> 69.0 | F24: =VLOOKUP($C24,'RECAP SECT'!$G$6:$DC$253,75,FALSE) -> 5,649 | G24: =VLOOKUP($C24,'RECAP SECT'!$G$6:$DC$253,76,FALSE) -> 81.90 | H24: =VLOOKUP($C24,'RECAP SECT'!$G$6:$DC$253,77,FALSE) -> 18% | I24: =VLOOKUP($C24,'RECAP SECT'!$G$6:$DC$253,78,FALSE) -> 10 | J24: =VLOOKUP($C24,'RECAP SECT'!$G$6:$DC$253,79,FALSE) -> 885 | K24: =VLOOKUP($C24,'RECAP SECT'!$G$6:$DC$253,80,FALSE) -> 12.83 | L24: =VLOOKUP($C24,'RECAP SECT'!$G$6:$DC$253,81,FALSE) -> 30% | M24: =VLOOKUP($C24,'RECAP SECT'!$G$6:$DC$253,82,FALSE) -> 14 | N24: =VLOOKUP($C24,'RECAP SECT'!$G$6:$DC$253,83,FALSE) -> 21% | O24: =VLOOKUP($C24,'RECAP SECT'!$G$6:$DC$253,84,FALSE) -> 19% | P24: =VLOOKUP($C24,'RECAP SECT'!$G$6:$DC$253,85,FALSE) -> 11
A25: 160 | B25: MOSELLE | C25: 44 | D25: MOSELLE NORD | E25: =VLOOKUP($C25,'RECAP SECT'!$G$6:$DC$253,3,FALSE) -> 70.2 | F25: =VLOOKUP($C25,'RECAP SECT'!$G$6:$DC$253,75,FALSE) -> 6,339 | G25: =VLOOKUP($C25,'RECAP SECT'!$G$6:$DC$253,76,FALSE) -> 90.28 | H25: =VLOOKUP($C25,'RECAP SECT'!$G$6:$DC$253,77,FALSE) -> 9% | I25: =VLOOKUP($C25,'RECAP SECT'!$G$6:$DC$253,78,FALSE) -> 5 | J25: =VLOOKUP($C25,'RECAP SECT'!$G$6:$DC$253,79,FALSE) -> 1,003 | K25: =VLOOKUP($C25,'RECAP SECT'!$G$6:$DC$253,80,FALSE) -> 14.29 | L25: =VLOOKUP($C25,'RECAP SECT'!$G$6:$DC$253,81,FALSE) -> 22% | M25: =VLOOKUP($C25,'RECAP SECT'!$G$6:$DC$253,82,FALSE) -> 5 | N25: =VLOOKUP($C25,'RECAP SECT'!$G$6:$DC$253,83,FALSE) -> 13% | O25: =VLOOKUP($C25,'RECAP SECT'!$G$6:$DC$253,84,FALSE) -> 10% | P25: =VLOOKUP($C25,'RECAP SECT'!$G$6:$DC$253,85,FALSE) -> 6
A26: 80 | B26: VOSGES | C26: 57 | D26: EPINAL | E26: =VLOOKUP($C26,'RECAP SECT'!$G$6:$DC$253,3,FALSE) -> 60.9 | F26: =VLOOKUP($C26,'RECAP SECT'!$G$6:$DC$253,75,FALSE) -> 6,069 | G26: =VLOOKUP($C26,'RECAP SECT'!$G$6:$DC$253,76,FALSE) -> 99.65 | H26: =VLOOKUP($C26,'RECAP SECT'!$G$6:$DC$253,77,FALSE) -> 0% | I26: =VLOOKUP($C26,'RECAP SECT'!$G$6:$DC$253,78,FALSE) -> 1 | J26: =VLOOKUP($C26,'RECAP SECT'!$G$6:$DC$253,79,FALSE) -> 810 | K26: =VLOOKUP($C26,'RECAP SECT'!$G$6:$DC$253,80,FALSE) -> 13.30 | L26: =VLOOKUP($C26,'RECAP SECT'!$G$6:$DC$253,81,FALSE) -> 27% | M26: =VLOOKUP($C26,'RECAP SECT'!$G$6:$DC$253,82,FALSE) -> 12 | N26: =VLOOKUP($C26,'RECAP SECT'!$G$6:$DC$253,83,FALSE) -> 8% | O26: =VLOOKUP($C26,'RECAP SECT'!$G$6:$DC$253,84,FALSE) -> 5% | P26: =VLOOKUP($C26,'RECAP SECT'!$G$6:$DC$253,85,FALSE) -> 2
A27: 80 | B27: VOSGES | C27: 55 | D27: SAINT DIE | E27: =VLOOKUP($C27,'RECAP SECT'!$G$6:$DC$253,3,FALSE) -> 48.3 | F27: =VLOOKUP($C27,'RECAP SECT'!$G$6:$DC$253,75,FALSE) -> 4,355 | G27: =VLOOKUP($C27,'RECAP SECT'!$G$6:$DC$253,76,FALSE) -> 90.18 | H27: =VLOOKUP($C27,'RECAP SECT'!$G$6:$DC$253,77,FALSE) -> 10% | I27: =VLOOKUP($C27,'RECAP SECT'!$G$6:$DC$253,78,FALSE) -> 6 | J27: =VLOOKUP($C27,'RECAP SECT'!$G$6:$DC$253,79,FALSE) -> 555 | K27: =VLOOKUP($C27,'RECAP SECT'!$G$6:$DC$253,80,FALSE) -> 11.49 | L27: =VLOOKUP($C27,'RECAP SECT'!$G$6:$DC$253,81,FALSE) -> 37% | M27: =VLOOKUP($C27,'RECAP SECT'!$G$6:$DC$253,82,FALSE) -> 17 | N27: =VLOOKUP($C27,'RECAP SECT'!$G$6:$DC$253,83,FALSE) -> 18% | O27: =VLOOKUP($C27,'RECAP SECT'!$G$6:$DC$253,84,FALSE) -> 15% | P27: =VLOOKUP($C27,'RECAP SECT'!$G$6:$DC$253,85,FALSE) -> 10
A28: Total CEGEE Directions Régionales | E28: =SUM(E10:E27) -> 1146

Sheet SE_SATISFACTION
B1: Accueil | F1: BAROMETRE BDD - TERRITOIRES
F2: SATISFACTION
F3: =ACCUEIL!F7 -> 2021-04-04
F7: NPS à froid (SAE) | I7: NPS à chaud (QHD) | L7: Total Satisfaction Clients
F8: =DATEMAJ!E4 -> au 28/02 | G8: coef | H8: ='RECAP DIRCOM'!M4 -> 10% | I8: =DATEMAJ!C5 -> au 28/02 | J8: coef | K8: ='RECAP DIRCOM'!P4 -> 10% | M8: coef | N8: ='RECAP DIRCOM'!S4 -> 20%
B9: Direction | C9: eds | D9: Territoire | E9: ="ETP perf "&DATEMAJ!$C$28 -> ETP perf 28-févr | G9: % Ecart au 1er | H9: Rang | J9: % Ecart au 1er | K9: Rang | L9: Moyenne ecart au 1er | M9: % Ecart au 1er | N9: Rang CEGEE
A10: 50 | B10: AUBE HAUTE MARNE | C10: 21 | D10: CHAUMONT | E10: =VLOOKUP($C10,'RECAP SECT'!$G$6:$DC$253,3,FALSE) -> 33.9 | F10: =VLOOKUP($C10,'RECAP SECT'!$G$6:$DC$253,5,FALSE) -> 11 | G10: =VLOOKUP($C10,'RECAP SECT'!$G$6:$DC$253,6,FALSE) -> 42% | H10: =VLOOKUP($C10,'RECAP SECT'!$G$6:$DC$253,7,FALSE) -> 7 | I10: =VLOOKUP($C10,'RECAP SECT'!$G$6:$DC$253,8,FALSE) -> 64% | J10: =VLOOKUP($C10,'RECAP SECT'!$G$6:$DC$253,9,FALSE) -> 7% | K10: =VLOOKUP($C10,'RECAP SECT'!$G$6:$DC$253,10,FALSE) -> 4 | L10: =VLOOKUP($C10,'RECAP SECT'!$G$6:$DC$253,11,FALSE) -> 24% | M10: =VLOOKUP($C10,'RECAP SECT'!$G$6:$DC$253,12,FALSE) -> 22% | N10: =VLOOKUP($C10,'RECAP SECT'!$G$6:$DC$253,13,FALSE) -> 8
A11: 50 | B11: AUBE HAUTE MARNE | C11: 14 | D11: TROYES | E11: =VLOOKUP($C11,'RECAP SECT'!$G$6:$DC$253,3,FALSE) -> 66.8 | F11: =VLOOKUP($C11,'RECAP SECT'!$G$6:$DC$253,5,FALSE) -> 15 | G11: =VLOOKUP($C11,'RECAP SECT'!$G$6:$DC$253,6,FALSE) -> 21% | H11: =VLOOKUP($C11,'RECAP SECT'!$G$6:$DC$253,7,FALSE) -> 4 | I11: =VLOOKUP($C11,'RECAP SECT'!$G$6:$DC$253,8,FALSE) -> 50% | J11: =VLOOKUP($C11,'RECAP SECT'!$G$6:$DC$253,9,FALSE) -> 27% | K11: =VLOOKUP($C11,'RECAP SECT'!$G$6:$DC$253,10,FALSE) -> 12 | L11: =VLOOKUP($C11,'RECAP SECT'!$G$6:$DC$253,11,FALSE) -> 24% | M11: =VLOOKUP($C11,'RECAP SECT'!$G$6:$DC$253,12,FALSE) -> 21% | N11: =VLOOKUP($C11,'RECAP SECT'!$G$6:$DC$253,13,FALSE) -> 7
A12: 262 | B12: BAS-RHIN | C12: 5060 | D12: HAGUENAU | E12: =VLOOKUP($C12,'RECAP SECT'!$G$6:$DC$253,3,FALSE) -> 71.0 | F12: =VLOOKUP($C12,'RECAP SECT'!$G$6:$DC$253,5,FALSE) -> 10 | G12: =VLOOKUP($C12,'RECAP SECT'!$G$6:$DC$253,6,FALSE) -> 47% | H12: =VLOOKUP($C12,'RECAP SECT'!$G$6:$DC$253,7,FALSE) -> 9 | I12: =VLOOKUP($C12,'RECAP SECT'!$G$6:$DC$253,8,FALSE) -> 53% | J12: =VLOOKUP($C12,'RECAP SECT'!$G$6:$DC$253,9,FALSE) -> 22% | K12: =VLOOKUP($C12,'RECAP SECT'!$G$6:$DC$253,10,FALSE) -> 10 | L12: =VLOOKUP($C12,'RECAP SECT'!$G$6:$DC$253,11,FALSE) -> 34% | M12: =VLOOKUP($C12,'RECAP SECT'!$G$6:$DC$253,12,FALSE) -> 32% | N12: =VLOOKUP($C12,'RECAP SECT'!$G$6:$DC$253,13,FALSE) -> 9
A13: 262 | B13: BAS-RHIN | C13: 5101 | D13: SELESTAT | E13: =VLOOKUP($C13,'RECAP SECT'!$G$6:$DC$253,3,FALSE) -> 60.3 | F13: =VLOOKUP($C13,'RECAP SECT'!$G$6:$DC$253,5,FALSE) -> 6 | G13: =VLOOKUP($C13,'RECAP SECT'!$G$6:$DC$253,6,FALSE) -> 68% | H13: =VLOOKUP($C13,'RECAP SECT'!$G$6:$DC$253,7,FALSE) -> 15 | I13: =VLOOKUP($C13,'RECAP SECT'!$G$6:$DC$253,8,FALSE) -> 47% | J13: =VLOOKUP($C13,'RECAP SECT'!$G$6:$DC$253,9,FALSE) -> 31% | K13: =VLOOKUP($C13,'RECAP SECT'!$G$6:$DC$253,10,FALSE) -> 13 | L13: =VLOOKUP($C13,'RECAP SECT'!$G$6:$DC$253,11,FALSE) -> 50% | M13: =VLOOKUP($C13,'RECAP SECT'!$G$6:$DC$253,12,FALSE) -> 47% | N13: =VLOOKUP($C13,'RECAP SECT'!$G$6:$DC$253,13,FALSE) -> 15
A14: 262 | B14: BAS-RHIN | C14: 5006 | D14: STRASBOURG | E14: =VLOOKUP($C14,'RECAP SECT'!$G$6:$DC$253,3,FALSE) -> 75.4 | F14: =VLOOKUP($C14,'RECAP SECT'!$G$6:$DC$253,5,FALSE) -> 5 | G14: =VLOOKUP($C14,'RECAP SECT'!$G$6:$DC$253,6,FALSE) -> 74% | H14: =VLOOKUP($C14,'RECAP SECT'!$G$6:$DC$253,7,FALSE) -> 17 | I14: =VLOOKUP($C14,'RECAP SECT'!$G$6:$DC$253,8,FALSE) -> 44% | J14: =VLOOKUP($C14,'RECAP SECT'!$G$6:$DC$253,9,FALSE) -> 35% | K14: =VLOOKUP($C14,'RECAP SECT'!$G$6:$DC$253,10,FALSE) -> 17 | L14: =VLOOKUP($C14,'RECAP SECT'!$G$6:$DC$253,11,FALSE) -> 54% | M14: =VLOOKUP($C14,'RECAP SECT'!$G$6:$DC$253,12,FALSE) -> 52% | N14: =VLOOKUP($C14,'RECAP SECT'!$G$6:$DC$253,13,FALSE) -> 17
A15: 264 | B15: HAUT-RHIN | C15: 5130 | D15: COLMAR | E15: =VLOOKUP($C15,'RECAP SECT'!$G$6:$DC$253,3,FALSE) -> 61.1 | F15: =VLOOKUP($C15,'RECAP SECT'!$G$6:$DC$253,5,FALSE) -> 10 | G15: =VLOOKUP($C15,'RECAP SECT'!$G$6:$DC$253,6,FALSE) -> 47% | H15: =VLOOKUP($C15,'RECAP SECT'!$G$6:$DC$253,7,FALSE) -> 9 | I15: =VLOOKUP($C15,'RECAP SECT'!$G$6:$DC$253,8,FALSE) -> 44% | J15: =VLOOKUP($C15,'RECAP SECT'!$G$6:$DC$253,9,FALSE) -> 35% | K15: =VLOOKUP($C15,'RECAP SECT'!$G$6:$DC$253,10,FALSE) -> 15 | L15: =VLOOKUP($C15,'RECAP SECT'!$G$6:$DC$253,11,FALSE) -> 41% | M15: =VLOOKUP($C15,'RECAP SECT'!$G$6:$DC$253,12,FALSE) -> 38% | N15: =VLOOKUP($C15,'RECAP SECT'!$G$6:$DC$253,13,FALSE) -> 13
A16: 264 | B16: HAUT-RHIN | C16: 5169 | D16: MULHOUSE | E16: =VLOOKUP($C16,'RECAP SECT'!$G$6:$DC$253,3,FALSE) -> 59.9 | F16: =VLOOKUP($C16,'RECAP SECT'!$G$6:$DC$253,5,FALSE) -> -2 | G16: =VLOOKUP($C16,'RECAP SECT'!$G$6:$DC$253,6,FALSE) -> 111% | H16: =VLOOKUP($C16,'RECAP SECT'!$G$6:$DC$253,7,FALSE) -> 18 | I16: =VLOOKUP($C16,'RECAP SECT'!$G$6:$DC$253,8,FALSE) -> 22% | J16: =VLOOKUP($C16,'RECAP SECT'!$G$6:$DC$253,9,FALSE) -> 68% | K16: =VLOOKUP($C16,'RECAP SECT'!$G$6:$DC$253,10,FALSE) -> 18 | L16: =VLOOKUP($C16,'RECAP SECT'!$G$6:$DC$253,11,FALSE) -> 89% | M16: =VLOOKUP($C16,'RECAP SECT'!$G$6:$DC$253,12,FALSE) -> 87% | N16: =VLOOKUP($C16,'RECAP SECT'!$G$6:$DC$253,13,FALSE) -> 18
A17: 30 | B17: MARNE-ARDENNES | C17: 6 | D17: CHALONS EN CHAMPAGNE | E17: =VLOOKUP($C17,'RECAP SECT'!$G$6:$DC$253,3,FALSE) -> 44.2 | F17: =VLOOKUP($C17,'RECAP SECT'!$G$6:$DC$253,5,FALSE) -> 11 | G17: =VLOOKUP($C17,'RECAP SECT'!$G$6:$DC$253,6,FALSE) -> 42% | H17: =VLOOKUP($C17,'RECAP SECT'!$G$6:$DC$253,7,FALSE) -> 7 | I17: =VLOOKUP($C17,'RECAP SECT'!$G$6:$DC$253,8,FALSE) -> 68% | J17: =VLOOKUP($C17,'RECAP SECT'!$G$6:$DC$253,9,FALSE) -> 0% | K17: =VLOOKUP($C17,'RECAP SECT'!$G$6:$DC$253,10,FALSE) -> 1 | L17: =VLOOKUP($C17,'RECAP SECT'!$G$6:$DC$253,11,FALSE) -> 21% | M17: =VLOOKUP($C17,'RECAP SECT'!$G$6:$DC$253,12,FALSE) -> 18% | N17: =VLOOKUP($C17,'RECAP SECT'!$G$6:$DC$253,13,FALSE) -> 6
A18: 30 | B18: MARNE-ARDENNES | C18: 2 | D18: CHARLEVILLE MEZIERES | E18: =VLOOKUP($C18,'RECAP SECT'!$G$6:$DC$253,3,FALSE) -> 55.4 | F18: =VLOOKUP($C18,'RECAP SECT'!$G$6:$DC$253,5,FALSE) -> 19 | G18: =VLOOKUP($C18,'RECAP SECT'!$G$6:$DC$253,6,FALSE) -> 0% | H18: =VLOOKUP($C18,'RECAP SECT'!$G$6:$DC$253,7,FALSE) -> 1 | I18: =VLOOKUP($C18,'RECAP SECT'!$G$6:$DC$253,8,FALSE) -> 61% | J18: =VLOOKUP($C18,'RECAP SECT'!$G$6:$DC$253,9,FALSE) -> 10% | K18: =VLOOKUP($C18,'RECAP SECT'!$G$6:$DC$253,10,FALSE) -> 6 | L18: =VLOOKUP($C18,'RECAP SECT'!$G$6:$DC$253,11,FALSE) -> 5% | M18: =VLOOKUP($C18,'RECAP SECT'!$G$6:$DC$253,12,FALSE) -> 2% | N18: =VLOOKUP($C18,'RECAP SECT'!$G$6:$DC$253,13,FALSE) -> 2
A19: 30 | B19: MARNE-ARDENNES | C19: 11 | D19: REIMS | E19: =VLOOKUP($C19,'RECAP SECT'!$G$6:$DC$253,3,FALSE) -> 81.6 | F19: =VLOOKUP($C19,'RECAP SECT'!$G$6:$DC$253,5,FALSE) -> 8 | G19: =VLOOKUP($C19,'RECAP SECT'!$G$6:$DC$253,6,FALSE) -> 58% | H19: =VLOOKUP($C19,'RECAP SECT'!$G$6:$DC$253,7,FALSE) -> 13 | I19: =VLOOKUP($C19,'RECAP SECT'!$G$6:$DC$253,8,FALSE) -> 56% | J19: =VLOOKUP($C19,'RECAP SECT'!$G$6:$DC$253,9,FALSE) -> 17% | K19: =VLOOKUP($C19,'RECAP SECT'!$G$6:$DC$253,10,FALSE) -> 8 | L19: =VLOOKUP($C19,'RECAP SECT'!$G$6:$DC$253,11,FALSE) -> 38% | M19: =VLOOKUP($C19,'RECAP SECT'!$G$6:$DC$253,12,FALSE) -> 35% | N19: =VLOOKUP($C19,'RECAP SECT'!$G$6:$DC$253,13,FALSE) -> 10
A20: 110 | B20: MEURTHE ET MOSELLE MEUSE | C20: 26 | D20: NANCY | E20: =VLOOKUP($C20,'RECAP SECT'!$G$6:$DC$253,3,FALSE) -> 65.8 | F20: =VLOOKUP($C20,'RECAP SECT'!$G$6:$DC$253,5,FALSE) -> 9 | G20: =VLOOKUP($C20,'RECAP SECT'!$G$6:$DC$253,6,FALSE) -> 53% | H20: =VLOOKUP($C20,'RECAP SECT'!$G$6:$DC$253,7,FALSE) -> 12 | I20: =VLOOKUP($C20,'RECAP SECT'!$G$6:$DC$253,8,FALSE) -> 52% | J20: =VLOOKUP($C20,'RECAP SECT'!$G$6:$DC$253,9,FALSE) -> 23% | K20: =VLOOKUP($C20,'RECAP SECT'!$G$6:$DC$253,10,FALSE) -> 11 | L20: =VLOOKUP($C20,'RECAP SECT'!$G$6:$DC$253,11,FALSE) -> 38% | M20: =VLOOKUP($C20,'RECAP SECT'!$G$6:$DC$253,12,FALSE) -> 35% | N20: =VLOOKUP($C20,'RECAP SECT'!$G$6:$DC$253,13,FALSE) -> 11
A21: 110 | B21: MEURTHE ET MOSELLE MEUSE | C21: 27 | D21: PONT A MOUSSON | E21: =VLOOKUP($C21,'RECAP SECT'!$G$6:$DC$253,3,FALSE) -> 77.0 | F21: =VLOOKUP($C21,'RECAP SECT'!$G$6:$DC$253,5,FALSE) -> 10 | G21: =VLOOKUP($C21,'RECAP SECT'!$G$6:$DC$253,6,FALSE) -> 47% | H21: =VLOOKUP($C21,'RECAP SECT'!$G$6:$DC$253,7,FALSE) -> 9 | I21: =VLOOKUP($C21,'RECAP SECT'!$G$6:$DC$253,8,FALSE) -> 45% | J21: =VLOOKUP($C21,'RECAP SECT'!$G$6:$DC$253,9,FALSE) -> 34% | K21: =VLOOKUP($C21,'RECAP SECT'!$G$6:$DC$253,10,FALSE) -> 14 | L21: =VLOOKUP($C21,'RECAP SECT'!$G$6:$DC$253,11,FALSE) -> 41% | M21: =VLOOKUP($C21,'RECAP SECT'!$G$6:$DC$253,12,FALSE) -> 38% | N21: =VLOOKUP($C21,'RECAP SECT'!$G$6:$DC$253,13,FALSE) -> 12
A22: 110 | B22: MEURTHE ET MOSELLE MEUSE | C22: 31 | D22: VERDUN | E22: =VLOOKUP($C22,'RECAP SECT'!$G$6:$DC$253,3,FALSE) -> 56.3 | F22: =VLOOKUP($C22,'RECAP SECT'!$G$6:$DC$253,5,FALSE) -> 13 | G22: =VLOOKUP($C22,'RECAP SECT'!$G$6:$DC$253,6,FALSE) -> 32% | H22: =VLOOKUP($C22,'RECAP SECT'!$G$6:$DC$253,7,FALSE) -> 6 | I22: =VLOOKUP($C22,'RECAP SECT'!$G$6:$DC$253,8,FALSE) -> 61% | J22: =VLOOKUP($C22,'RECAP SECT'!$G$6:$DC$253,9,FALSE) -> 10% | K22: =VLOOKUP($C22,'RECAP SECT'!$G$6:$DC$253,10,FALSE) -> 5 | L22: =VLOOKUP($C22,'RECAP SECT'!$G$6:$DC$253,11,FALSE) -> 21% | M22: =VLOOKUP($C22,'RECAP SECT'!$G$6:$DC$253,12,FALSE) -> 18% | N22: =VLOOKUP($C22,'RECAP SECT'!$G$6:$DC$253,13,FALSE) -> 5
A23: 160 | B23: MOSELLE | C23: 45 | D23: METZ | E23: =VLOOKUP($C23,'RECAP SECT'!$G$6:$DC$253,3,FALSE) -> 89.1 | F23: =VLOOKUP($C23,'RECAP SECT'!$G$6:$DC$253,5,FALSE) -> 7 | G23: =VLOOKUP($C23,'RECAP SECT'!$G$6:$DC$253,6,FALSE) -> 63% | H23: =VLOOKUP($C23,'RECAP SECT'!$G$6:$DC$253,7,FALSE) -> 14 | I23: =VLOOKUP($C23,'RECAP SECT'!$G$6:$DC$253,8,FALSE) -> 54% | J23: =VLOOKUP($C23,'RECAP SECT'!$G$6:$DC$253,9,FALSE) -> 21% | K23: =VLOOKUP($C23,'RECAP SECT'!$G$6:$DC$253,10,FALSE) -> 9 | L23: =VLOOKUP($C23,'RECAP SECT'!$G$6:$DC$253,11,FALSE) -> 42% | M23: =VLOOKUP($C23,'RECAP SECT'!$G$6:$DC$253,12,FALSE) -> 39% | N23: =VLOOKUP($C23,'RECAP SECT'!$G$6:$DC$253,13,FALSE) -> 14
A24: 160 | B24: MOSELLE | C24: 42 | D24: MOSELLE EST | E24: =VLOOKUP($C24,'RECAP SECT'!$G$6:$DC$253,3,FALSE) -> 69.0 | F24: =VLOOKUP($C24,'RECAP SECT'!$G$6:$DC$253,5,FALSE) -> 15 | G24: =VLOOKUP($C24,'RECAP SECT'!$G$6:$DC$253,6,FALSE) -> 21% | H24: =VLOOKUP($C24,'RECAP SECT'!$G$6:$DC$253,7,FALSE) -> 4 | I24: =VLOOKUP($C24,'RECAP SECT'!$G$6:$DC$253,8,FALSE) -> 57% | J24: =VLOOKUP($C24,'RECAP SECT'!$G$6:$DC$253,9,FALSE) -> 17% | K24: =VLOOKUP($C24,'RECAP SECT'!$G$6:$DC$253,10,FALSE) -> 7 | L24: =VLOOKUP($C24,'RECAP SECT'!$G$6:$DC$253,11,FALSE) -> 19% | M24: =VLOOKUP($C24,'RECAP SECT'!$G$6:$DC$253,12,FALSE) -> 16% | N24: =VLOOKUP($C24,'RECAP SECT'!$G$6:$DC$253,13,FALSE) -> 4
A25: 160 | B25: MOSELLE | C25: 44 | D25: MOSELLE NORD | E25: =VLOOKUP($C25,'RECAP SECT'!$G$6:$DC$253,3,FALSE) -> 70.2 | F25: =VLOOKUP($C25,'RECAP SECT'!$G$6:$DC$253,5,FALSE) -> 6 | G25: =VLOOKUP($C25,'RECAP SECT'!$G$6:$DC$253,6,FALSE) -> 68% | H25: =VLOOKUP($C25,'RECAP SECT'!$G$6:$DC$253,7,FALSE) -> 15 | I25: =VLOOKUP($C25,'RECAP SECT'!$G$6:$DC$253,8,FALSE) -> 44% | J25: =VLOOKUP($C25,'RECAP SECT'!$G$6:$DC$253,9,FALSE) -> 35% | K25: =VLOOKUP($C25,'RECAP SECT'!$G$6:$DC$253,10,FALSE) -> 16 | L25: =VLOOKUP($C25,'RECAP SECT'!$G$6:$DC$253,11,FALSE) -> 52% | M25: =VLOOKUP($C25,'RECAP SECT'!$G$6:$DC$253,12,FALSE) -> 49% | N25: =VLOOKUP($C25,'RECAP SECT'!$G$6:$DC$253,13,FALSE) -> 16
A26: 80 | B26: VOSGES | C26: 57 | D26: EPINAL | E26: =VLOOKUP($C26,'RECAP SECT'!$G$6:$DC$253,3,FALSE) -> 60.9 | F26: =VLOOKUP($C26,'RECAP SECT'!$G$6:$DC$253,5,FALSE) -> 17 | G26: =VLOOKUP($C26,'RECAP SECT'!$G$6:$DC$253,6,FALSE) -> 11% | H26: =VLOOKUP($C26,'RECAP SECT'!$G$6:$DC$253,7,FALSE) -> 3 | I26: =VLOOKUP($C26,'RECAP SECT'!$G$6:$DC$253,8,FALSE) -> 65% | J26: =VLOOKUP($C26,'RECAP SECT'!$G$6:$DC$253,9,FALSE) -> 5% | K26: =VLOOKUP($C26,'RECAP SECT'!$G$6:$DC$253,10,FALSE) -> 3 | L26: =VLOOKUP($C26,'RECAP SECT'!$G$6:$DC$253,11,FALSE) -> 8% | M26: =VLOOKUP($C26,'RECAP SECT'!$G$6:$DC$253,12,FALSE) -> 5% | N26: =VLOOKUP($C26,'RECAP SECT'!$G$6:$DC$253,13,FALSE) -> 3
A27: 80 | B27: VOSGES | C27: 55 | D27: SAINT DIE | E27: =VLOOKUP($C27,'RECAP SECT'!$G$6:$DC$253,3,FALSE) -> 48.3 | F27: =VLOOKUP($C27,'RECAP SECT'!$G$6:$DC$253,5,FALSE) -> 18 | G27: =VLOOKUP($C27,'RECAP SECT'!$G$6:$DC$253,6,FALSE) -> 5% | H27: =VLOOKUP($C27,'RECAP SECT'!$G$6:$DC$253,7,FALSE) -> 2 | I27: =VLOOKUP($C27,'RECAP SECT'!$G$6:$DC$253,8,FALSE) -> 68% | J27: =VLOOKUP($C27,'RECAP SECT'!$G$6:$DC$253,9,FALSE) -> 0% | K27: =VLOOKUP($C27,'RECAP SECT'!$G$6:$DC$253,10,FALSE) -> 2 | L27: =VLOOKUP($C27,'RECAP SECT'!$G$6:$DC$253,11,FALSE) -> 3% | M27: =VLOOKUP($C27,'RECAP SECT'!$G$6:$DC$253,12,FALSE) -> 0% | N27: =VLOOKUP($C27,'RECAP SECT'!$G$6:$DC$253,13,FALSE) -> 1
A28: Total CEGEE Directions Régionales | E28: =SUM(E10:E27) -> 1146

Sheet AG_CLASS
B1: Accueil | H1: BAROMETRE BDD - AGENCES
H2: CLASSEMENTS
H3: =ACCUEIL!F7 -> 2021-04-04
H8: CLASSEMENT GENERAL | I8: CRITERE Satisfaction Clients | J8: NPS à froid (SAE) | K8: NPS à chaud (QHD) | L8: CRITERE BANCARISATION | M8: Ventes Nettes produits pondérés | N8: Ventes sur client non détenteur de l’univers | O8: Mobilité Macron | P8: Remises commerciales | Q8: CRITERE EPARGNE | R8: Excédent Epargne y/c DAV pondéré | S8: Ventes sur client non détenteur de l’univers | T8: CRITERE IARD PREVOYANCE | U8: Ventes Nettes produits pondérés | V8: Ventes sur client non détenteur de l’univers | W8: CRITERE CREDITS | X8: Engagements et ventes accessoires pondérés Immo | Y8: Engagements et ventes accessoires pondérés Conso | Z8: Ventes sur client non détenteur de l’univers
B9: Direction | C9: eds | D9: Territoire | E9: eds | F9: Agence | G9: ="ETP perf "&DATEMAJ!$C$28 -> ETP perf 28-févr | H9: Rang | I9: Rang | J9: Rang | K9: Rang | L9: Rang | M9: Rang | N9: Rang | O9: Rang | P9: Rang | Q9: Rang | R9: Rang | S9: Rang | T9: Rang | U9: Rang | V9: Rang | W9: Rang | X9: Rang | Y9: Rang | Z9: Rang
A10: 50 | B10: MEURTHE ET MOSELLE MEUSE | C10: 26 | D10: NANCY | E10: 454481 | F10: NANCY PLACE DOMBASLE | G10: 12.1 | H10: 1 | I10: 153 | J10: 168 | K10: 117 | L10: 1 | M10: 6 | N10: 1 | O10: 1 | P10: 188 | Q10: 11 | R10: 69 | S10: 3 | T10: 3 | U10: 6 | V10: 6 | W10: 3 | X10: 5 | Y10: 61 | Z10: 2
A11: 50 | B11: MEURTHE ET MOSELLE MEUSE | C11: 26 | D11: NANCY | E11: 554356 | F11: JARVILLE LA MALGRANGE | G11: 3.6 | H11: 2 | I11: 105 | J11: 79 | K11: 153 | L11: 3 | M11: 10 | N11: 4 | O11: 2 | P11: 194 | Q11: 61 | R11: 52 | S11: 117 | T11: 2 | U11: 4 | V11: 7 | W11: 5 | X11: 4 | Y11: 144 | Z11: 3
A12: 50 | B12: MEURTHE ET MOSELLE MEUSE | C12: 27 | D12: PONT A MOUSSON | E12: 554531 | F12: POMPEY | G12: 3.0 | H12: 3 | I12: 95 | J12: 106 | K12: 90 | L12: 2 | M12: 2 | N12: 7 | O12: 8 | P12: 27 | Q12: 8 | R12: 18 | S12: 9 | T12: 21 | U12: 22 | V12: 22 | W12: 9 | X12: 12 | Y12: 8 | Z12: 26
A13: 50 | B13: BAS-RHIN | C13: 5060 | D13: HAGUENAU | E13: 4092 | F13: HOCHFELDEN | G13: 1.6 | H13: 4 | I13: 41 | J13: 20 | K13: 123 | L13: 6 | M13: 3 | N13: 29 | O13: 55 | P13: 225 | Q13: 161 | R13: 241 | S13: 32 | T13: 17 | U13: 37 | V13: 2 | W13: 8 | X13: 9 | Y13: 7 | Z13: 9
A14: 50 | B14: VOSGES | C14: 57 | D14: EPINAL | E14: 488288 | F14: EPINAL LEOPOLD BOURG | G14: 1.9 | H14: 5 | I14: 13 | J14: 8 | K14: 45 | L14: 13 | M14: 15 | N14: 48 | O14: 16 | P14: 201 | Q14: 53 | R14: 16 | S14: 236 | T14: 93 | U14: 89 | V14: 120 | W14: 6 | X14: 7 | Y14: 2 | Z14: 6
A15: 50 | B15: BAS-RHIN | C15: 5101 | D15: SELESTAT | E15: 4113 | F15: BARR | G15: 3.0 | H15: 6 | I15: 24 | J15: 38 | K15: 11 | L15: 11 | M15: 14 | N15: 99 | O15: 21 | P15: 52 | Q15: 3 | R15: 7 | S15: 8 | T15: 14 | U15: 7 | V15: 77 | W15: 194 | X15: 160 | Y15: 193 | Z15: 174
A16: 50 | B16: MOSELLE | C16: 44 | D16: MOSELLE NORD | E16: 557508 | F16: NILVANGE | G16: 2.5 | H16: 7 | I16: 82 | J16: 75 | K16: 111 | L16: 19 | M16: 24 | N16: 36 | O16: 37 | P16: 178 | Q16: 28 | R16: 63 | S16: 26 | T16: 5 | U16: 5 | V16: 11 | W16: 39 | X16: 25 | Y16: 145 | Z16: 37
A17: 50 | B17: MARNE-ARDENNES | C17: 11 | D17: REIMS | E17: 551349 | F17: REIMS SAINT REMI | G17: 2.9 | H17: 8 | I17: 90 | J17: 53 | K17: 172 | L17: 14 | M17: 21 | N17: 17 | O17: 10 | P17: 222 | Q17: 5 | R17: 10 | S17: 11 | T17: 33 | U17: 49 | V17: 18 | W17: 18 | X17: 15 | Y17: 90 | Z17: 18
A18: 50 | B18: MEURTHE ET MOSELLE MEUSE | C18: 27 | D18: PONT A MOUSSON | E18: 454651 | F18: TOUL | G18: 9.4 | H18: 9 | I18: 261 | J18: 237 | K18: 268 | L18: 4 | M18: 7 | N18: 2 | O18: 3 | P18: 245 | Q18: 104 | R18: 147 | S18: 53 | T18: 22 | U18: 41 | V18: 8 | W18: 1 | X18: 1 | Y18: 3 | Z18: 1
A19: 50 | B19: MARNE-ARDENNES | C19: 11 | D19: REIMS | E19: 451336 | F19: TINQUEUX | G19: 5.6 | H19: 10 | I19: 118 | J19: 137 | K19: 92 | L19: 126 | M19: 139 | N19: 65 | O19: 32 | P19: 228 | Q19: 1 | R19: 1 | S19: 157 | T19: 64 | U19: 61 | V19: 93 | W19: 87 | X19: 32 | Y19: 213 | Z19: 73
A20: 50 | B20: MARNE-ARDENNES | C20: 11 | D20: REIMS | E20: 551305 | F20: REIMS HIPPODROME | G20: 3.6 | H20: 11 | I20: 8 | J20: 14 | K20: 9 | L20: 95 | M20: 162 | N20: 32 | O20: 5 | P20: 236 | Q20: 209 | R20: 246 | S20: 48 | T20: 18 | U20: 12 | V20: 41 | W20: 31 | X20: 26 | Y20: 143 | Z20: 16
A21: 50 | B21: MARNE-ARDENNES | C21: 2 | D21: CHARLEVILLE MEZIERES | E21: 408822 | F21: CHARLEVILLE MEZIERES | G21: 4.3 | H21: 12 | I21: 110 | J21: 127 | K21: 89 | L21: 62 | M21: 132 | N21: 21 | O21: 9 | P21: 133 | Q21: 7 | R21: 47 | S21: 2 | T21: 15 | U21: 11 | V21: 28 | W21: 40 | X21: 16 | Y21: 221 | Z21: 28
A22: 50 | B22: MARNE-ARDENNES | C22: 6 | D22: CHALONS EN CHAMPAGNE | E22: 451115 | F22: MOURMELON LE GRAND | G22: 2.9 | H22: 13 | I22: 59 | J22: 116 | K22: 14 | L22: 127 | M22: 173 | N22: 53 | O22: 6 | P22: 259 | Q22: 6 | R22: 162 | S22: 1 | T22: 29 | U22: 32 | V22: 27 | W22: 19 | X22: 57 | Y22: 29 | Z22: 22
A23: 50 | B23: MARNE-ARDENNES | C23: 2 | D23: CHARLEVILLE MEZIERES | E23: 508820 | F23: VOUZIERS | G23: 2.9 | H23: 14 | I23: 225 | J23: 255 | K23: 141 | L23: 84 | M23: 115 | N23: 22 | O23: 47 | P23: 224 | Q23: 44 | R23: 40 | S23: 99 | T23: 1 | U23: 1 | V23: 10 | W23: 14 | X23: 43 | Y23: 18 | Z23: 20
A24: 50 | B24: BAS-RHIN | C24: 5101 | D24: SELESTAT | E24: 4126 | F24: MUTZIG | G24: 2.0 | H24: 15 | I24: 154 | J24: 188 | K24: 86 | L24: 24 | M24: 44 | N24: 15 | O24: 13 | P24: 189 | Q24: 136 | R24: 263 | S24: 5 | T24: 35 | U24: 59 | V24: 12 | W24: 2 | X24: 11 | Y24: 1 | Z24: 5
A25: 50 | B25: MOSELLE | C25: 42 | D25: MOSELLE EST | E25: 557250 | F25: CREUTZWALD | G25: 2.5 | H25: 16 | I25: 49 | J25: 40 | K25: 83 | L25: 178 | M25: 190 | N25: 117 | O25: 156 | P25: 69 | Q25: 2 | R25: 11 | S25: 6 | T25: 28 | U25: 24 | V25: 42 | W25: 52 | X25: 51 | Y25: 40 | Z25: 95
A26: 50 | B26: MEURTHE ET MOSELLE MEUSE | C26: 26 | D26: NANCY | E26: 554636 | F26: TOMBLAINE | G26: 1.9 | H26: 17 | I26: 27 | J26: 70 | K26: 5 | L26: 229 | M26: 253 | N26: 19 | O26: 153 | P26: 250 | Q26: 37 | R26: 49 | S26: 59 | T26: 11 | U26: 36 | V26: 1 | W26: 55 | X26: 170 | Y26: 117 | Z26: 8
A27: 50 | B27: MEURTHE ET MOSELLE MEUSE | C27: 31 | D27: VERDUN | E27: 554413 | F27: LONGWY BAS | G27: 3.0 | H27: 18 | I27: 20 | J27: 20 | K27: 28 | L27: 20 | M27: 17 | N27: 96 | O27: 207 | P27: 56 | Q27: 21 | R27: 60 | S27: 14 | T27: 233 | U27: 240 | V27: 153 | W27: 23 | X27: 23 | Y27: 30 | Z27: 117
A28: 50 | B28: MOSELLE | C28: 45 | D28: METZ | E28: 557444 | F28: SAINT JULIEN LES METZ | G28: 5.0 | H28: 19 | I28: 86 | J28: 106 | K28: 73 | L28: 136 | M28: 128 | N28: 149 | O28: 120 | P28: 137 | Q28: 23 | R28: 14 | S28: 111 | T28: 19 | U28: 23 | V28: 17 | W28: 34 | X28: 63 | Y28: 22 | Z28: 98
A29: 50 | B29: MARNE-ARDENNES | C29: 2 | D29: CHARLEVILLE MEZIERES | E29: 508839 | F29: GIVET | G29: 3.5 | H29: 20 | I29: 47 | J29: 28 | K29: 120 | L29: 181 | M29: 206 | N29: 106 | O29: 183 | P29: 15 | Q29: 127 | R29: 173 | S29: 69 | T29: 4 | U29: 2 | V29: 63 | W29: 169 | X29: 119 | Y29: 175 | Z29: 163
A30: 50 | B30: VOSGES | C30: 55 | D30: SAINT DIE | E30: 488246 | F30: CORNIMONT LA BRESSE | G30: 2.7 | H30: 21 | I30: 26 | J30: 70 | K30: 3 | L30: 123 | M30: 109 | N30: 102 | O30: 220 | P30: 144 | Q30: 149 | R30: 168 | S30: 119 | T30: 25 | U30: 15 | V30: 100 | W30: 66 | X30: 143 | Y30: 46 | Z30: 64
A31: 50 | B31: MEURTHE ET MOSELLE MEUSE | C31: 31 | D31: VERDUN | E31: 554412 | F31: LONGUYON | G31: 2.5 | H31: 22 | I31: 21 | J31: 17 | K31: 52 | L31: 116 | M31: 168 | N31: 59 | O31: 19 | P31: 141 | Q31: 128 | R31: 99 | S31: 202 | T31: 48 | U31: 58 | V31: 37 | W31: 45 | X31: 64 | Y31: 37 | Z31: 81
A32: 262 | B32: AUBE HAUTE MARNE | C32: 21 | D32: CHAUMONT | E32: 510590 | F32: CHAUMONT REPUBLIQUE | G32: 4.2 | H32: 23 | I32: 80 | J32: 79 | K32: 93 | L32: 145 | M32: 198 | N32: 45 | O32: 148 | P32: 31 | Q32: 82 | R32: 81 | S32: 109 | T32: 24 | U32: 21 | V32: 43 | W32: 20 | X32: 118 | Y32: 6 | Z32: 62
A33: 262 | B33: BAS-RHIN | C33: 5101 | D33: SELESTAT | E33: 4120 | F33: WASSELONNE | G33: 2.8 | H33: 24 | I33: 188 | J33: 188 | K33: 183 | L33: 134 | M33: 114 | N33: 95 | O33: 202 | P33: 191 | Q33: 4 | R33: 4 | S33: 12 | T33: 16 | U33: 9 | V33: 40 | W33: 51 | X33: 173 | Y33: 15 | Z33: 92
A34: 262 | B34: MARNE-ARDENNES | C34: 2 | D34: CHARLEVILLE MEZIERES | E34: 408862 | F34: REVIN | G34: 3.8 | H34: 25 | I34: 89 | J34: 130 | K34: 49 | L34: 31 | M34: 56 | N34: 12 | O34: 71 | P34: 42 | Q34: 9 | R34: 12 | S34: 16 | T34: 99 | U34: 79 | V34: 162 | W34: 82 | X34: 44 | Y34: 215 | Z34: 35
A35: 262 | B35: MARNE-ARDENNES | C35: 11 | D35: REIMS | E35: 551310 | F35: REIMS CHATILLONS | G35: 3.7 | H35: 26 | I35: 92 | J35: 87 | K35: 112 | L35: 53 | M35: 63 | N35: 78 | O35: 44 | P35: 114 | Q35: 52 | R35: 62 | S35: 73 | T35: 50 | U35: 42 | V35: 107 | W35: 35 | X35: 27 | Y35: 77 | Z35: 60
A36: 262 | B36: MOSELLE | C36: 45 | D36: METZ | E36: 557447 | F36: METZ SAINT MAXIMIN | G36: 3.1 | H36: 27 | I36: 65 | J36: 75 | K36: 70 | L36: 38 | M36: 165 | N36: 3 | O36: 14 | P36: 49 | Q36: 154 | R36: 158 | S36: 138 | T36: 78 | U36: 111 | V36: 32 | W36: 16 | X36: 14 | Y36: 134 | Z36: 10
A37: 262 | B37: MEURTHE ET MOSELLE MEUSE | C37: 27 | D37: PONT A MOUSSON | E37: 554321 | F37: FROUARD | G37: 3.0 | H37: 28 | I37: 84 | J37: 53 | K37: 160 | L37: 79 | M37: 95 | N37: 181 | O37: 95 | P37: 9 | Q37: 22 | R37: 9 | S37: 143 | T37: 59 | U37: 70 | V37: 33 | W37: 41 | X37: 24 | Y37: 146 | Z37: 41
A38: 262 | B38: MARNE-ARDENNES | C38: 11 | D38: REIMS | E38: 551340 | F38: BETHENY | G38: 2.9 | H38: 29 | I38: 75 | J38: 106 | K38: 57 | L38: 35 | M38: 71 | N38: 11 | O38: 4 | P38: 262 | Q38: 17 | R38: 26 | S38: 31 | T38: 167 | U38: 190 | V38: 115 | W38: 25 | X38: 33 | Y38: 65 | Z38: 23
A39: 262 | B39: MARNE-ARDENNES | C39: 6 | D39: CHALONS EN CHAMPAGNE | E39: 551110 | F39: CHALONS ROOSEVELT | G39: 4.9 | H39: 30 | I39: 15 | J39: 15 | K39: 24 | L39: 150 | M39: 181 | N39: 92 | O39: 45 | P39: 117 | Q39: 27 | R39: 71 | S39: 22 | T39: 96 | U39: 76 | V39: 158 | W39: 133 | X39: 67 | Y39: 204 | Z39: 116
A40: 262 | B40: VOSGES | C40: 55 | D40: SAINT DIE | E40: 588186 | F40: BRUYERES | G40: 3.7 | H40: 31 | I40: 71 | J40: 87 | K40: 67 | L40: 60 | M40: 54 | N40: 114 | O40: 194 | P40: 30 | Q40: 165 | R40: 153 | S40: 175 | T40: 34 | U40: 30 | V40: 81 | W40: 53 | X40: 91 | Y40: 51 | Z40: 48
A41: 262 | B41: VOSGES | C41: 57 | D41: EPINAL | E41: 588716 | F41: XERTIGNY | G41: 3.0 | H41: 32 | I41: 83 | J41: 87 | K41: 98 | L41: 138 | M41: 107 | N41: 169 | O41: 248 | P41: 138 | Q41: 80 | R41: 70 | S41: 130 | T41: 6 | U41: 3 | V41: 59 | W41: 245 | X41: 225 | Y41: 242 | Z41: 206
A42: 262 | B42: BAS-RHIN | C42: 5006 | D42: STRASBOURG | E42: 4037 | F42: MUNDOLSHEIM | G42: 4.2 | H42: 33 | I42: 173 | J42: 183 | K42: 144 | L42: 8 | M42: 4 | N42: 51 | O42: 74 | P42: 197 | Q42: 24 | R42: 23 | S42: 71 | T42: 56 | U42: 55 | V42: 66 | W42: 197 | X42: 230 | Y42: 186 | Z42: 115
A43: 262 | B43: BAS-RHIN | C43: 5101 | D43: SELESTAT | E43: 4121 | F43: SCHIRMECK | G43: 3.5 | H43: 34 | I43: 51 | J43: 62 | K43: 48 | L43: 77 | M43: 76 | N43: 196 | O43: 87 | P43: 77 | Q43: 68 | R43: 94 | S43: 67 | T43: 66 | U43: 51 | V43: 134 | W43: 64 | X43: 152 | Y43: 87 | Z43: 24
A44: 262 | B44: MARNE-ARDENNES | C44: 11 | D44: REIMS | E44: 551367 | F44: AY CHAMPAGNE | G44: 2.7 | H44: 35 | I44: 112 | J44: 79 | K44: 174 | L44: 36 | M44: 84 | N44: 25 | O44: 12 | P44: 123 | Q44: 140 | R44: 161 | S44: 113 | T44: 80 | U44: 87 | V44: 67 | W44: 11 | X44: 6 | Y44: 84 | Z44: 29
A45: 262 | B45: MARNE-ARDENNES | C45: 11 | D45: REIMS | E45: 451361 | F45: PIERRY LECLERC | G45: 2.0 | H45: 36 | I45: 6 | J45: 4 | K45: 33 | L45: 114 | M45: 197 | N45: 63 | O45: 42 | P45: 2 | Q45: 244 | R45: 208 | S45: 250 | T45: 75 | U45: 77 | V45: 69 | W45: 139 | X45: 35 | Y45: 206 | Z45: 201
A46: 262 | B46: MARNE-ARDENNES | C46: 6 | D46: CHALONS EN CHAMPAGNE | E46: 551330 | F46: MONTMIRAIL | G46: 3.0 | H46: 37 | I46: 42 | J46: 75 | K46: 20 | L46: 209 | M46: 238 | N46: 223 | O46: 41 | P46: 38 | Q46: 25 | R46: 56 | S46: 20 | T46: 65 | U46: 75 | V46: 57 | W46: 54 | X46: 29 | Y46: 133 | Z46: 57
A47: 262 | B47: BAS-RHIN | C47: 5101 | D47: SELESTAT | E47: 4119 | F47: OBERNAI | G47: 3.2 | H47: 38 | I47: 248 | J47: 237 | K47: 242 | L47: 5 | M47: 1 | N47: 46 | O47: 174 | P47: 229 | Q47: 29 | R47: 175 | S47: 7 | T47: 23 | U47: 19 | V47: 49 | W47: 158 | X47: 237 | Y47: 69 | Z47: 172
A48: 262 | B48: BAS-RHIN | C48: 5006 | D48: STRASBOURG | E48: 4047 | F48: STRASBOURG CRONENBOURG | G48: 5.7 | H48: 39 | I48: 56 | J48: 79 | K48: 36 | L48: 74 | M48: 97 | N48: 97 | O48: 26 | P48: 147 | Q48: 58 | R48: 108 | S48: 34 | T48: 68 | U48: 53 | V48: 136 | W48: 102 | X48: 37 | Y48: 228 | Z48: 79
A49: 262 | B49: MARNE-ARDENNES | C49: 11 | D49: REIMS | E49: 551309 | F49: REIMS EUROPE | G49: 3.0 | H49: 40 | I49: 14 | J49: 8 | K49: 56 | L49: 140 | M49: 134 | N49: 156 | O49: 95 | P49: 129 | Q49: 70 | R49: 100 | S49: 65 | T49: 95 | U49: 119 | V49: 62 | W49: 176 | X49: 106 | Y49: 223 | Z49: 140
A50: 262 | B50: VOSGES | C50: 57 | D50: EPINAL | E50: 488706 | F50: VITTEL | G50: 3.6 | H50: 41 | I50: 35 | J50: 62 | K50: 13 | L50: 247 | M50: 239 | N50: 211 | O50: 90 | P50: 244 | Q50: 59 | R50: 25 | S50: 217 | T50: 26 | U50: 13 | V50: 137 | W50: 136 | X50: 226 | Y50: 153 | Z50: 52
A51: 262 | B51: MOSELLE | C51: 42 | D51: MOSELLE EST | E51: 457165 | F51: BITCHE | G51: 1.8 | H51: 42 | I51: 128 | J51: 130 | K51: 114 | L51: 30 | M51: 26 | N51: 109 | O51: 221 | P51: 100 | Q51: 269 | R51: 271 | S51: 85 | T51: 10 | U51: 25 | V51: 4 | W51: 49 | X51: 111 | Y51: 59 | Z51: 27
A52: 262 | B52: BAS-RHIN | C52: 5006 | D52: STRASBOURG | E52: 4010 | F52: STRASBOURG MEINAU | G52: 3.3 | H52: 43 | I52: 218 | J52: 214 | K52: 201 | L52: 27 | M52: 43 | N52: 13 | O52: 57 | P52: 158 | Q52: 90 | R52: 203 | S52: 13 | T52: 9 | U52: 20 | V52: 9 | W52: 109 | X52: 245 | Y52: 47 | Z52: 97
A53: 262 | B53: BAS-RHIN | C53: 5060 | D53: HAGUENAU | E53: 4079 | F53: SOULTZ SOUS FORETS | G53: 1.8 | H53: 44 | I53: 40 | J53: 31 | K53: 81 | L53: 21 | M53: 16 | N53: 150 | O53: 107 | P53: 131 | Q53: 216 | R53: 234 | S53: 95 | T53: 155 | U53: 175 | V53: 104 | W53: 69 | X53: 100 | Y53: 91 | Z53: 45
A54: 262 | B54: MEURTHE ET MOSELLE MEUSE | C54: 26 | D54: NANCY | E54: 454426 | F54: LUNEVILLE CARNOT | G54: 9.7 | H54: 45 | I54: 141 | J54: 137 | K54: 129 | L54: 26 | M54: 28 | N54: 91 | O54: 70 | P54: 169 | Q54: 114 | R54: 104 | S54: 148 | T54: 51 | U54: 54 | V54: 46 | W54: 67 | X54: 39 | Y54: 126 | Z54: 70
A55: 262 | B55: AUBE HAUTE MARNE | C55: 21 | D55: CHAUMONT | E55: 410560 | F55: BOURBONNE LES BAINS | G55: 2.0 | H55: 46 | I55: 2 | J55: 3 | K55: 8 | L55: 184 | M55: 148 | N55: 254 | O55: 228 | P55: 55 | Q55: 178 | R55: 164 | S55: 172 | T55: 113 | U55: 132 | V55: 96 | W55: 221 | X55: 259 | Y55: 99 | Z55: 225
A56: 262 | B56: MARNE-ARDENNES | C56: 2 | D56: CHARLEVILLE MEZIERES | E56: 508802 | F56: CHARLEVILLE NEVERS | G56: 3.0 | H56: 47 | I56: 12 | J56: 5 | K56: 71 | L56: 232 | M56: 250 | N56: 223 | O56: 35 | P56: 125 | Q56: 163 | R56: 243 | S56: 30 | T56: 74 | U56: 62 | V56: 113 | W56: 88 | X56: 141 | Y56: 28 | Z56: 187
A57: 262 | B57: VOSGES | C57: 57 | D57: EPINAL | E57: 588631 | F57: THAON LES VOSGES | G57: 5.5 | H57: 48 | I57: 38 | J57: 62 | K57: 21 | L57: 69 | M57: 62 | N57: 79 | O57: 89 | P57: 212 | Q57: 190 | R57: 134 | S57: 237 | T57: 53 | U57: 45 | V57: 95 | W57: 171 | X57: 177 | Y57: 131 | Z57: 170
A58: 262 | B58: MOSELLE | C58: 45 | D58: METZ | E58: 457443 | F58: METZ REPUBLIQUE | G58: 4.2 | H58: 49 | I58: 1 | J58: 1 | K58: 38 | L58: 215 | M58: 208 | N58: 233 | O58: 214 | P58: 34 | Q58: 204 | R58: 185 | S58: 183 | T58: 230 | U58: 237 | V58: 148 | W58: 74 | X58: 75 | Y58: 151 | Z58: 38
A59: 262 | B59: BAS-RHIN | C59: 5060 | D59: HAGUENAU | E59: 4071 | F59: WISSEMBOURG | G59: 8.4 | H59: 50 | I59: 18 | J59: 31 | K59: 12 | L59: 91 | M59: 88 | N59: 133 | O59: 235 | P59: 62 | Q59: 46 | R59: 32 | S59: 135 | T59: 129 | U59: 142 | V59: 127 | W59: 232 | X59: 246 | Y59: 170 | Z59: 217
A60: 262 | B60: MOSELLE | C60: 42 | D60: MOSELLE EST | E60: 557503 | F60: NEUNKIRCH | G60: 3.7 | H60: 51 | I60: 9 | J60: 11 | K60: 23 | L60: 132 | M60: 100 | N60: 177 | O60: 254 | P60: 111 | Q60: 113 | R60: 51 | S60: 245 | T60: 202 | U60: 193 | V60: 204 | W60: 95 | X60: 150 | Y60: 35 | Z60: 191
A61: 262 | B61: MEURTHE ET MOSELLE MEUSE | C61: 31 | D61: VERDUN | E61: 555624 | F61: STENAY | G61: 2.9 | H61: 52 | I61: 133 | J61: 188 | K61: 55 | L61: 10 | M61: 13 | N61: 27 | O61: 154 | P61: 35 | Q61: 102 | R61: 126 | S61: 74 | T61: 108 | U61: 137 | V61: 82 | W61: 125 | X61: 197 | Y61: 80 | Z61: 107
A62: 262 | B62: BAS-RHIN | C62: 5060 | D62: HAGUENAU | E62: 4082 | F62: BOUXWILLER | G62: 2.3 | H62: 53 | I62: 55 | J62: 62 | K62: 61 | L62: 148 | M62: 69 | N62: 230 | O62: 238 | P62: 256 | Q62: 10 | R62: 8 | S62: 25 | T62: 143 | U62: 215 | V62: 29 | W62: 128 | X62: 171 | Y62: 41 | Z62: 223
A63: 262 | B63: MOSELLE | C63: 44 | D63: MOSELLE NORD | E63: 557347 | F63: GUENANGE | G63: 2.4 | H63: 54 | I63: 163 | J63: 62 | K63: 239 | L63: 67 | M63: 112 | N63: 39 | O63: 81 | P63: 12 | Q63: 77 | R63: 55 | S63: 151 | T63: 89 | U63: 163 | V63: 19 | W63: 10 | X63: 13 | Y63: 137 | Z63: 4
A64: 262 | B64: MOSELLE | C64: 42 | D64: MOSELLE EST | E64: 457163 | F64: BEHREN LES FORBACH | G64: 2.7 | H64: 55 | I64: 17 | J64: 20 | K64: 22 | L64: 34 | M64: 59 | N64: 16 | O64: 50 | P64: 101 | Q64: 92 | R64: 142 | S64: 44 | T64: 81 | U64: 101 | V64: 45 | W64: 273 | X64: 273 | Y64: 16 | Z64: 33
A65: 262 | B65: MEURTHE ET MOSELLE MEUSE | C65: 31 | D65: VERDUN | E65: 555679 | F65: VERDUN MAZEL | G65: 4.0 | H65: 56 | I65: 39 | J65: 40 | K65: 59 | L65: 85 | M65: 110 | N65: 105 | O65: 69 | P65: 43 | Q65: 98 | R65: 92 | S65: 121 | T65: 112 | U65: 104 | V65: 141 | W65: 123 | X65: 112 | Y65: 173 | Z65: 78
A66: 262 | B66: BAS-RHIN | C66: 5060 | D66: HAGUENAU | E66: 4066 | F66: NIEDERBRONN LES BAINS | G66: 6.3 | H66: 57 | I66: 16 | J66: 40 | K66: 2 | L66: 139 | M66: 141 | N66: 157 | O66: 124 | P66: 76 | Q66: 175 | R66: 97 | S66: 268 | T66: 90 | U66: 63 | V66: 192 | W66: 161 | X66: 186 | Y66: 92 | Z66: 188
A67: 262 | B67: MARNE-ARDENNES | C67: 6 | D67: CHALONS EN CHAMPAGNE | E67: 551354 | F67: VERTUS | G67: 2.5 | H67: 58 | I67: 4 | J67: 6 | K67: 6 | L67: 231 | M67: 187 | N67: 261 | O67: 106 | P67: 227 | Q67: 255 | R67: 267 | S67: 46 | T67: 69 | U67: 80 | V67: 48 | W67: 154 | X67: 154 | Y67: 154 | Z67: 128
A68: 262 | B68: MOSELLE | C68: 45 | D68: METZ | E68: 457453 | F68: MONTIGNY LES METZ | G68: 8.2 | H68: 59 | I68: 22 | J68: 31 | K68: 17 | L68: 46 | M68: 30 | N68: 208 | O68: 86 | P68: 233 | Q68: 134 | R68: 201 | S68: 47 | T68: 222 | U68: 194 | V68: 254 | W68: 114 | X68: 93 | Y68: 147 | Z68: 94
A69: 262 | B69: MEURTHE ET MOSELLE MEUSE | C69: 31 | D69: VERDUN | E69: 455298 | F69: ETAIN | G69: 1.7 | H69: 60 | I69: 102 | J69: 70 | K69: 167 | L69: 250 | M69: 237 | N69: 252 | O69: 252 | P69: 122 | Q69: 194 | R69: 139 | S69: 238 | T69: 8 | U69: 8 | V69: 21 | W69: 81 | X69: 40 | Y69: 45 | Z69: 228
A70: 262 | B70: MARNE-ARDENNES | C70: 6 | D70: CHALONS EN CHAMPAGNE | E70: 451120 | F70: SARRY | G70: 2.5 | H70: 61 | I70: 28 | J70: 53 | K70: 10 | L70: 161 | M70: 185 | N70: 188 | O70: 53 | P70: 36 | Q70: 35 | R70: 84 | S70: 23 | T70: 127 | U70: 118 | V70: 155 | W70: 174 | X70: 178 | Y70: 160 | Z70: 145
A71: 262 | B71: MOSELLE | C71: 44 | D71: MOSELLE NORD | E71: 557113 | F71: AUDUN LE TICHE | G71: 2.0 | H71: 62 | I71: 242 | J71: 265 | K71: 187 | L71: 54 | M71: 81 | N71: 5 | O71: 259 | P71: 207 | Q71: 26 | R71: 37 | S71: 57 | T71: 41 | U71: 46 | V71: 31 | W71: 12 | X71: 8 | Y71: 103 | Z71: 12
A72: 262 | B72: MOSELLE | C72: 42 | D72: MOSELLE EST | E72: 457308 | F72: FORBACH CENTRALE | G72: 10.9 | H72: 63 | I72: 136 | J72: 145 | K72: 107 | L72: 50 | M72: 41 | N72: 127 | O72: 142 | P72: 93 | Q72: 89 | R72: 91 | S72: 97 | T72: 73 | U72: 47 | V72: 179 | W72: 72 | X72: 127 | Y72: 31 | Z72: 149
A73: 262 | B73: MEURTHE ET MOSELLE MEUSE | C73: 31 | D73: VERDUN | E73: 455456 | F73: MONTMEDY | G73: 1.8 | H73: 64 | I73: 69 | J73: 106 | K73: 46 | L73: 59 | M73: 79 | N73: 24 | O73: 186 | P73: 82 | Q73: 169 | R73: 115 | S73: 240 | T73: 122 | U73: 115 | V73: 133 | W73: 46 | X73: 52 | Y73: 62 | Z73: 56
A74: 262 | B74: MARNE-ARDENNES | C74: 11 | D74: REIMS | E74: 551365 | F74: DORMANS | G74: 2.8 | H74: 65 | I74: 5 | J74: 2 | K74: 65 | L74: 216 | M74: 233 | N74: 225 | O74: 25 | P74: 143 | Q74: 111 | R74: 131 | S74: 87 | T74: 198 | U74: 188 | V74: 199 | W74: 147 | X74: 96 | Y74: 197 | Z74: 112
A75: 262 | B75: MARNE-ARDENNES | C75: 11 | D75: REIMS | E75: 451350 | F75: REIMS CENTRE VILLE | G75: 7.5 | H75: 66 | I75: 181 | J75: 188 | K75: 154 | L75: 101 | M75: 127 | N75: 35 | O75: 18 | P75: 235 | Q75: 56 | R75: 72 | S75: 78 | T75: 71 | U75: 65 | V75: 92 | W75: 17 | X75: 10 | Y75: 66 | Z75: 54
A76: 262 | B76: VOSGES | C76: 55 | D76: SAINT DIE | E76: 488326 | F76: GERARDMER | G76: 5.5 | H76: 67 | I76: 19 | J76: 28 | K76: 16 | L76: 141 | M76: 98 | N76: 236 | O76: 123 | P76: 149 | Q76: 41 | R76: 6 | S76: 254 | T76: 211 | U76: 181 | V76: 246 | W76: 155 | X76: 83 | Y76: 178 | Z76: 178
A77: 262 | B77: BAS-RHIN | C77: 5101 | D77: SELESTAT | E77: 4107 | F77: VILLE | G77: 3.0 | H77: 68 | I77: 217 | J77: 221 | K77: 193 | L77: 12 | M77: 12 | N77: 154 | O77: 165 | P77: 45 | Q77: 81 | R77: 82 | S77: 105 | T77: 38 | U77: 17 | V77: 232 | W77: 188 | X77: 239 | Y77: 55 | Z77: 249
A78: 262 | B78: MARNE-ARDENNES | C78: 6 | D78: CHALONS EN CHAMPAGNE | E78: 451101 | F78: CHALONS VIVIERS | G78: 8.5 | H78: 69 | I78: 44 | J78: 58 | K78: 43 | L78: 66 | M78: 77 | N78: 76 | O78: 39 | P78: 172 | Q78: 132 | R78: 239 | S78: 18 | T78: 209 | U78: 233 | V78: 112 | W78: 56 | X78: 65 | Y78: 82 | Z78: 51
A79: 262 | B79: MARNE-ARDENNES | C79: 2 | D79: CHARLEVILLE MEZIERES | E79: 408801 | F79: CHARLEVILLE JEAN JAURES | G79: 9.4 | H79: 70 | I79: 116 | J79: 145 | K79: 80 | L79: 106 | M79: 171 | N79: 55 | O79: 11 | P79: 153 | Q79: 62 | R79: 181 | S79: 10 | T79: 136 | U79: 145 | V79: 135 | W79: 24 | X79: 19 | Y79: 155 | Z79: 15
A80: 262 | B80: AUBE HAUTE MARNE | C80: 21 | D80: CHAUMONT | E80: 451151 | F80: WASSY | G80: 1.9 | H80: 71 | I80: 148 | J80: 214 | K80: 53 | L80: 70 | M80: 78 | N80: 118 | O80: 121 | P80: 102 | Q80: 219 | R80: 257 | S80: 45 | T80: 47 | U80: 50 | V80: 52 | W80: 28 | X80: 158 | Y80: 5 | Z80: 71
A81: 262 | B81: MOSELLE | C81: 44 | D81: MOSELLE NORD | E81: 557660 | F81: UCKANGE | G81: 1.6 | H81: 72 | I81: 229 | J81: 137 | K81: 258 | L81: 72 | M81: 47 | N81: 108 | O81: 251 | P81: 226 | Q81: 139 | R81: 113 | S81: 193 | T81: 12 | U81: 29 | V81: 3 | W81: 36 | X81: 84 | Y81: 11 | Z81: 155
A82: 262 | B82: MEURTHE ET MOSELLE MEUSE | C82: 27 | D82: PONT A MOUSSON | E82: 554516 | F82: PAGNY SUR MOSELLE | G82: 2.7 | H82: 73 | I82: 67 | J82: 58 | K82: 105 | L82: 156 | M82: 145 | N82: 138 | O82: 218 | P82: 109 | Q82: 34 | R82: 13 | S82: 181 | T82: 84 | U82: 121 | V82: 36 | W82: 177 | X82: 132 | Y82: 196 | Z82: 143
A83: 264 | B83: MEURTHE ET MOSELLE MEUSE | C83: 26 | D83: NANCY | E83: 554476 | F83: NANCY ARTEM | G83: 2.7 | H83: 74 | I83: 96 | J83: 168 | K83: 25 | L83: 142 | M83: 125 | N83: 101 | O83: 49 | P83: 243 | Q83: 69 | R83: 53 | S83: 136 | T83: 88 | U83: 103 | V83: 64 | W83: 61 | X83: 103 | Y83: 102 | Z83: 30
A84: 264 | B84: BAS-RHIN | C84: 5006 | D84: STRASBOURG | E84: 4024 | F84: STRASBOURG AUSTERLITZ | G84: 2.2 | H84: 75 | I84: 259 | J84: 258 | K84: 247 | L84: 9 | M84: 9 | N84: 37 | O84: 59 | P84: 92 | Q84: 19 | R84: 35 | S84: 24 | T84: 79 | U84: 154 | V84: 16 | W84: 42 | X84: 36 | Y84: 177 | Z84: 14
A85: 264 | B85: MEURTHE ET MOSELLE MEUSE | C85: 27 | D85: PONT A MOUSSON | E85: 454535 | F85: PONT A MOUSSON CENTRALE | G85: 8.1 | H85: 76 | I85: 189 | J85: 195 | K85: 177 | L85: 17 | M85: 23 | N85: 61 | O85: 36 | P85: 95 | Q85: 55 | R85: 42 | S85: 142 | T85: 86 | U85: 96 | V85: 83 | W85: 121 | X85: 30 | Y85: 254 | Z85: 99
A86: 264 | B86: HAUT-RHIN | C86: 5130 | D86: COLMAR | E86: 4153 | F86: ROUFFACH | G86: 3.7 | H86: 77 | I86: 93 | J86: 106 | K86: 85 | L86: 129 | M86: 122 | N86: 71 | O86: 191 | P86: 170 | Q86: 181 | R86: 225 | S86: 63 | T86: 30 | U86: 27 | V86: 54 | W86: 189 | X86: 200 | Y86: 141 | Z86: 177
A87: 264 | B87: MEURTHE ET MOSELLE MEUSE | C87: 27 | D87: PONT A MOUSSON | E87: 554416 | F87: LUDRES | G87: 4.0 | H87: 78 | I87: 11 | J87: 8 | K87: 32 | L87: 151 | M87: 175 | N87: 72 | O87: 30 | P87: 203 | Q87: 211 | R87: 228 | S87: 102 | T87: 228 | U87: 223 | V87: 208 | W87: 83 | X87: 94 | Y87: 129 | Z87: 47
A88: 264 | B88: AUBE HAUTE MARNE | C88: 21 | D88: CHAUMONT | E88: 451154 | F88: JOINVILLE | G88: 2.0 | H88: 79 | I88: 3 | J88: 11 | K88: 1 | L88: 219 | M88: 211 | N88: 119 | O88: 198 | P88: 200 | Q88: 264 | R88: 248 | S88: 271 | T88: 185 | U88: 217 | V88: 89 | W88: 85 | X88: 211 | Y88: 58 | Z88: 53
A89: 264 | B89: AUBE HAUTE MARNE | C89: 21 | D89: CHAUMONT | E89: 410566 | F89: CHAUMONT HOTEL DE VILLE | G89: 7.4 | H89: 80 | I89: 62 | J89: 70 | K89: 68 | L89: 149 | M89: 157 | N89: 70 | O89: 114 | P89: 177 | Q89: 141 | R89: 163 | S89: 103 | T89: 97 | U89: 107 | V89: 88 | W89: 70 | X89: 88 | Y89: 44 | Z89: 134
A90: 264 | B90: MEURTHE ET MOSELLE MEUSE | C90: 27 | D90: PONT A MOUSSON | E90: 554357 | F90: JOEUF | G90: 4.0 | H90: 81 | I90: 97 | J90: 95 | K90: 119 | L90: 152 | M90: 213 | N90: 41 | O90: 20 | P90: 152 | Q90: 228 | R90: 220 | S90: 166 | T90: 61 | U90: 71 | V90: 38 | W90: 32 | X90: 38 | Y90: 60 | Z90: 40
A91: 264 | B91: MOSELLE | C91: 44 | D91: MOSELLE NORD | E91: 457348 | F91: HAGONDANGE | G91: 9.3 | H91: 82 | I91: 186 | J91: 188 | K91: 176 | L91: 55 | M91: 39 | N91: 198 | O91: 131 | P91: 110 | Q91: 76 | R91: 61 | S91: 139 | T91: 62 | U91: 43 | V91: 157 | W91: 71 | X91: 49 | Y91: 96 | Z91: 84
A92: 264 | B92: BAS-RHIN | C92: 5006 | D92: STRASBOURG | E92: 4038 | F92: OBERHAUSBERGEN | G92: 4.9 | H92: 83 | I92: 123 | J92: 175 | K92: 58 | L92: 47 | M92: 38 | N92: 67 | O92: 56 | P92: 251 | Q92: 75 | R92: 130 | S92: 36 | T92: 137 | U92: 122 | V92: 170 | W92: 89 | X92: 41 | Y92: 110 | Z92: 153
A93: 264 | B93: MEURTHE ET MOSELLE MEUSE | C93: 31 | D93: VERDUN | E93: 454414 | F93: LONGWY HAUT | G93: 4.0 | H93: 84 | I93: 142 | J93: 145 | K93: 121 | L93: 103 | M93: 119 | N93: 72 | O93: 110 | P93: 73 | Q93: 40 | R93: 44 | S93: 82 | T93: 70 | U93: 94 | V93: 39 | W93: 137 | X93: 120 | Y93: 219 | Z93: 59
A94: 264 | B94: MARNE-ARDENNES | C94: 11 | D94: REIMS | E94: 551314 | F94: FISMES | G94: 3.0 | H94: 85 | I94: 79 | J94: 116 | K94: 54 | L94: 112 | M94: 169 | N94: 62 | O94: 17 | P94: 120 | Q94: 97 | R94: 186 | S94: 20 | T94: 117 | U94: 144 | V94: 89 | W94: 97 | X94: 99 | Y94: 125 | Z94: 77
A95: 264 | B95: MEURTHE ET MOSELLE MEUSE | C95: 27 | D95: PONT A MOUSSON | E95: 554533 | F95: PONT A MOUSSON BREUIL | G95: 2.7 | H95: 86 | I95: 172 | J95: 123 | K95: 211 | L95: 58 | M95: 80 | N95: 23 | O95: 40 | P95: 208 | Q95: 100 | R95: 43 | S95: 244 | T95: 85 | U95: 91 | V95: 87 | W95: 57 | X95: 18 | Y95: 201 | Z95: 67
A96: 264 | B96: MEURTHE ET MOSELLE MEUSE | C96: 26 | D96: NANCY | E96: 554116 | F96: BACCARAT | G96: 2.0 | H96: 87 | I96: 32 | J96: 40 | K96: 30 | L96: 238 | M96: 212 | N96: 246 | O96: 198 | P96: 155 | Q96: 107 | R96: 171 | S96: 39 | T96: 200 | U96: 196 | V96: 195 | W96: 33 | X96: 76 | Y96: 20 | Z96: 80
A97: 264 | B97: MARNE-ARDENNES | C97: 11 | D97: REIMS | E97: 551369 | F97: DAMERY | G97: 3.0 | H97: 88 | I97: 48 | J97: 13 | K97: 204 | L97: 235 | M97: 234 | N97: 145 | O97: 60 | P97: 240 | Q97: 162 | R97: 135 | S97: 205 | T97: 52 | U97: 56 | V97: 47 | W97: 134 | X97: 116 | Y97: 162 | Z97: 101
A98: 264 | B98: BAS-RHIN | C98: 5060 | D98: HAGUENAU | E98: 4085 | F98: INGWILLER | G98: 3.3 | H98: 89 | I98: 152 | J98: 145 | K98: 146 | L98: 15 | M98: 5 | N98: 134 | O98: 265 | P98: 231 | Q98: 170 | R98: 165 | S98: 165 | T98: 131 | U98: 180 | V98: 65 | W98: 124 | X98: 251 | Y98: 19 | Z98: 234
A99: 264 | B99: VOSGES | C99: 57 | D99: EPINAL | E99: 588206 | F99: CHARMES | G99: 2.8 | H99: 90 | I99: 143 | J99: 188 | K99: 66 | L99: 195 | M99: 191 | N99: 120 | O99: 147 | P99: 186 | Q99: 133 | R99: 96 | S99: 226 | T99: 31 | U99: 28 | V99: 61 | W99: 96 | X99: 139 | Y99: 57 | Z99: 133
A100: 264 | B100: MEURTHE ET MOSELLE MEUSE | C100: 26 | D100: NANCY | E100: 454671 | F100: VANDOEUVRE LES NANCY | G100: 4.7 | H100: 91 | I100: 103 | J100: 47 | K100: 205 | L100: 63 | M100: 85 | N100: 34 | O100: 23 | P100: 213 | Q100: 237 | R100: 193 | S100: 256 | T100: 124 | U100: 146 | V100: 101 | W100: 37 | X100: 21 | Y100: 203 | Z100: 21
A101: 264 | B101: HAUT-RHIN | C101: 5130 | D101: COLMAR | E101: 4144 | F101: RIBEAUVILLE | G101: 2.9 | H101: 92 | I101: 166 | J101: 225 | K101: 64 | L101: 45 | M101: 45 | N101: 146 | O101: 112 | P101: 41 | Q101: 109 | R101: 133 | S101: 80 | T101: 46 | U101: 26 | V101: 214 | W101: 198 | X101: 157 | Y101: 150 | Z101: 231
A102: 264 | B102: BAS-RHIN | C102: 5006 | D102: STRASBOURG | E102: 4020 | F102: STRASBOURG ROBERTSAU | G102: 4.2 | H102: 93 | I102: 100 | J102: 137 | K102: 62 | L102: 42 | M102: 35 | N102: 75 | O102: 27 | P102: 261 | Q102: 105 | R102: 151 | S102: 51 | T102: 189 | U102: 185 | V102: 191 | W102: 103 | X102: 70 | Y102: 189 | Z102: 69
A103: 264 | B103: MARNE-ARDENNES | C103: 11 | D103: REIMS | E103: 451370 | F103: EPERNAY | G103: 11.6 | H103: 94 | I103: 46 | J103: 70 | K103: 34 | L103: 88 | M103: 89 | N103: 128 | O103: 73 | P103: 168 | Q103: 185 | R103: 149 | S103: 210 | T103: 125 | U103: 97 | V103: 218 | W103: 185 | X103: 183 | Y103: 184 | Z103: 124
A104: 264 | B104: BAS-RHIN | C104: 5101 | D104: SELESTAT | E104: 4007 | F104: ILLKIRCH CENTRE | G104: 7.0 | H104: 95 | I104: 158 | J104: 153 | K104: 143 | L104: 16 | M104: 8 | N104: 160 | O104: 161 | P104: 215 | Q104: 196 | R104: 237 | S104: 56 | T104: 77 | U104: 66 | V104: 114 | W104: 208 | X104: 167 | Y104: 194 | Z104: 207
A105: 264 | B105: MOSELLE | C105: 45 | D105: METZ | E105: 557105 | F105: ARS SUR MOSELLE | G105: 4.0 | H105: 96 | I105: 137 | J105: 145 | K105: 109 | L105: 122 | M105: 105 | N105: 132 | O105: 98 | P105: 181 | Q105: 166 | R105: 125 | S105: 224 | T105: 102 | U105: 83 | V105: 165 | W105: 21 | X105: 17 | Y105: 53 | Z105: 76
A106: 264 | B106: VOSGES | C106: 55 | D106: SAINT DIE | E106: 588587 | F106: SAINT DIE CATHEDRALE | G106: 4.0 | H106: 97 | I106: 30 | J106: 37 | K106: 37 | L106: 200 | M106: 170 | N106: 192 | O106: 210 | P106: 175 | Q106: 54 | R106: 22 | S106: 205 | T106: 166 | U106: 169 | V106: 138 | W106: 220 | X106: 140 | Y106: 188 | Z106: 247
A107: 264 | B107: HAUT-RHIN | C107: 5169 | D107: MULHOUSE | E107: 4181 | F107: WITTELSHEIM | G107: 3.1 | H107: 98 | I107: 106 | J107: 79 | K107: 156 | L107: 211 | M107: 214 | N107: 69 | O107: 84 | P107: 246 | Q107: 115 | R107: 107 | S107: 144 | T107: 142 | U107: 183 | V107: 73 | W107: 13 | X107: 87 | Y107: 12 | Z107: 13
A108: 30 | B108: MEURTHE ET MOSELLE MEUSE | C108: 27 | D108: PONT A MOUSSON | E108: 554376 | F108: LAXOU BOUFFLERS | G108: 3.0 | H108: 99 | I108: 155 | J108: 195 | K108: 77 | L108: 81 | M108: 70 | N108: 83 | O108: 72 | P108: 248 | Q108: 67 | R108: 73 | S108: 94 | T108: 87 | U108: 98 | V108: 75 | W108: 113 | X108: 105 | Y108: 114 | Z108: 114
A109: 30 | B109: MEURTHE ET MOSELLE MEUSE | C109: 26 | D109: NANCY | E109: 554266 | F109: DOMBASLE SUR MEURTHE | G109: 3.7 | H109: 100 | I109: 180 | J109: 175 | K109: 173 | L109: 202 | M109: 203 | N109: 139 | O109: 34 | P109: 232 | Q109: 12 | R109: 5 | S109: 43 | T109: 161 | U109: 212 | V109: 51 | W109: 22 | X109: 48 | Y109: 23 | Z109: 46
A110: 30 | B110: AUBE HAUTE MARNE | C110: 14 | D110: TROYES | E110: 510511 | F110: TROYES BROSSOLETTE | G110: 2.9 | H110: 101 | I110: 91 | J110: 175 | K110: 15 | L110: 83 | M110: 94 | N110: 74 | O110: 182 | P110: 75 | Q110: 33 | R110: 29 | S110: 98 | T110: 215 | U110: 211 | V110: 188 | W110: 135 | X110: 62 | Y110: 191 | Z110: 144
A111: 30 | B111: VOSGES | C111: 55 | D111: SAINT DIE | E111: 588386 | F111: LE THILLOT | G111: 2.6 | H111: 102 | I111: 131 | J111: 145 | K111: 99 | L111: 188 | M111: 204 | N111: 212 | O111: 92 | P111: 14 | Q111: 91 | R111: 123 | S111: 59 | T111: 32 | U111: 18 | V111: 162 | W111: 228 | X111: 260 | Y111: 120 | Z111: 230
A112: 30 | B112: MARNE-ARDENNES | C112: 2 | D112: CHARLEVILLE MEZIERES | E112: 508815 | F112: CARIGNAN | G112: 2.9 | H112: 103 | I112: 134 | J112: 106 | K112: 169 | L112: 137 | M112: 207 | N112: 33 | O112: 64 | P112: 60 | Q112: 16 | R112: 33 | S112: 19 | T112: 153 | U112: 147 | V112: 160 | W112: 148 | X112: 89 | Y112: 161 | Z112: 167
A113: 30 | B113: MARNE-ARDENNES | C113: 2 | D113: CHARLEVILLE MEZIERES | E113: 508819 | F113: MOUZON | G113: 2.0 | H113: 104 | I113: 72 | J113: 47 | K113: 147 | L113: 252 | M113: 240 | N113: 140 | O113: 159 | P113: 258 | Q113: 101 | R113: 58 | S113: 201 | T113: 128 | U113: 165 | V113: 72 | W113: 38 | X113: 47 | Y113: 63 | Z113: 39
A114: 30 | B114: BAS-RHIN | C114: 5006 | D114: STRASBOURG | E114: 4019 | F114: STRASBOURG ANVERS | G114: 3.9 | H114: 105 | I114: 253 | J114: 261 | K114: 223 | L114: 33 | M114: 27 | N114: 26 | O114: 33 | P114: 272 | Q114: 15 | R114: 15 | S114: 42 | T114: 114 | U114: 152 | V114: 68 | W114: 30 | X114: 54 | Y114: 9 | Z114: 152
A115: 30 | B115: BAS-RHIN | C115: 5006 | D115: STRASBOURG | E115: 4006 | F115: STRASBOURG NEUDORF | G115: 8.1 | H115: 106 | I115: 170 | J115: 183 | K115: 134 | L115: 18 | M115: 25 | N115: 28 | O115: 68 | P115: 156 | Q115: 206 | R115: 222 | S115: 104 | T115: 63 | U115: 72 | V115: 55 | W115: 236 | X115: 148 | Y115: 259 | Z115: 189
A116: 30 | B116: VOSGES | C116: 57 | D116: EPINAL | E116: 488451 | F116: MIRECOURT | G116: 4.9 | H116: 107 | I116: 209 | J116: 261 | K116: 51 | L116: 113 | M116: 138 | N116: 57 | O116: 80 | P116: 142 | Q116: 49 | R116: 36 | S116: 134 | T116: 39 | U116: 33 | V116: 94 | W116: 181 | X116: 176 | Y116: 209 | Z116: 90
A117: 30 | B117: MOSELLE | C117: 42 | D117: MOSELLE EST | E117: 557305 | F117: FAULQUEMONT | G117: 2.1 | H117: 108 | I117: 147 | J117: 116 | K117: 186 | L117: 128 | M117: 172 | N117: 47 | O117: 75 | P117: 103 | Q117: 122 | R117: 196 | S117: 40 | T117: 42 | U117: 48 | V117: 35 | W117: 211 | X117: 252 | Y117: 78 | Z117: 251
A118: 30 | B118: MEURTHE ET MOSELLE MEUSE | C118: 27 | D118: PONT A MOUSSON | E118: 554257 | F118: DIEULOUARD | G118: 3.5 | H118: 109 | I118: 31 | J118: 40 | K118: 26 | L118: 166 | M118: 186 | N118: 164 | O118: 67 | P118: 63 | Q118: 239 | R118: 226 | S118: 187 | T118: 141 | U118: 125 | V118: 181 | W118: 186 | X118: 155 | Y118: 180 | Z118: 151
A119: 30 | B119: BAS-RHIN | C119: 5006 | D119: STRASBOURG | E119: 4043 | F119: STRASBOURG HALLES | G119: 8.5 | H119: 110 | I119: 203 | J119: 183 | K119: 206 | L119: 29 | M119: 48 | N119: 9 | O119: 24 | P119: 214 | Q119: 83 | R119: 64 | S119: 149 | T119: 162 | U119: 167 | V119: 129 | W119: 86 | X119: 28 | Y119: 229 | Z119: 68
A120: 30 | B120: MARNE-ARDENNES | C120: 6 | D120: CHALONS EN CHAMPAGNE | E120: 451166 | F120: VITRY LE FRANCOIS | G120: 7.2 | H120: 111 | I120: 43 | J120: 79 | K120: 18 | L120: 158 | M120: 184 | N120: 142 | O120: 38 | P120: 108 | Q120: 177 | R120: 211 | S120: 89 | T120: 214 | U120: 198 | V120: 229 | W120: 91 | X120: 42 | Y120: 214 | Z120: 61
A121: 30 | B121: AUBE HAUTE MARNE | C121: 14 | D121: TROYES | E121: 510570 | F121: NOGENT SUR SEINE | G121: 4.1 | H121: 112 | I121: 10 | J121: 6 | K121: 41 | L121: 223 | M121: 229 | N121: 171 | O121: 99 | P121: 151 | Q121: 213 | R121: 180 | S121: 228 | T121: 245 | U121: 229 | V121: 267 | W121: 98 | X121: 90 | Y121: 74 | Z121: 147
A122: 30 | B122: MOSELLE | C122: 42 | D122: MOSELLE EST | E122: 457617 | F122: SARREGUEMINES | G122: 8.0 | H122: 113 | I122: 139 | J122: 153 | K122: 102 | L122: 99 | M122: 87 | N122: 187 | O122: 145 | P122: 81 | Q122: 57 | R122: 83 | S122: 61 | T122: 110 | U122: 92 | V122: 183 | W122: 199 | X122: 108 | Y122: 225 | Z122: 202
A123: 30 | B123: MARNE-ARDENNES | C123: 2 | D123: CHARLEVILLE MEZIERES | E123: 508833 | F123: VILLERS SEMEUSE CORA | G123: 3.3 | H123: 114 | I123: 165 | J123: 168 | K123: 149 | L123: 163 | M123: 251 | N123: 10 | O123: 61 | P123: 80 | Q123: 85 | R123: 191 | S123: 15 | T123: 94 | U123: 108 | V123: 84 | W123: 62 | X123: 71 | Y123: 89 | Z123: 58
A124: 30 | B124: MEURTHE ET MOSELLE MEUSE | C124: 27 | D124: PONT A MOUSSON | E124: 554196 | F124: CHAMPIGNEULLES | G124: 3.4 | H124: 115 | I124: 74 | J124: 53 | K124: 137 | L124: 157 | M124: 103 | N124: 229 | O124: 139 | P124: 210 | Q124: 131 | R124: 188 | S124: 54 | T124: 120 | U124: 150 | V124: 78 | W124: 187 | X124: 113 | Y124: 216 | Z124: 157
A125: 30 | B125: MOSELLE | C125: 42 | D125: MOSELLE EST | E125: 457258 | F125: DIEUZE | G125: 3.1 | H125: 116 | I125: 50 | J125: 31 | K125: 118 | L125: 143 | M125: 140 | N125: 226 | O125: 125 | P125: 19 | Q125: 184 | R125: 155 | S125: 194 | T125: 126 | U125: 109 | V125: 174 | W125: 225 | X125: 257 | Y125: 113 | Z125: 240
A126: 30 | B126: MARNE-ARDENNES | C126: 2 | D126: CHARLEVILLE MEZIERES | E126: 408806 | F126: SEDAN | G126: 8.5 | H126: 117 | I126: 36 | J126: 62 | K126: 19 | L126: 196 | M126: 182 | N126: 195 | O126: 100 | P126: 166 | Q126: 180 | R126: 146 | S126: 211 | T126: 210 | U126: 173 | V126: 251 | W126: 99 | X126: 72 | Y126: 140 | Z126: 93
A127: 30 | B127: AUBE HAUTE MARNE | C127: 21 | D127: CHAUMONT | E127: 451156 | F127: SAINT DIZIER CENTRE | G127: 6.9 | H127: 118 | I127: 146 | J127: 159 | K127: 115 | L127: 174 | M127: 176 | N127: 100 | O127: 195 | P127: 113 | Q127: 39 | R127: 24 | S127: 155 | T127: 92 | U127: 95 | V127: 106 | W127: 173 | X127: 224 | Y127: 116 | Z127: 139
A128: 30 | B128: VOSGES | C128: 55 | D128: SAINT DIE | E128: 488556 | F128: RAON L ETAPE | G128: 2.5 | H128: 119 | I128: 77 | J128: 27 | K128: 207 | L128: 98 | M128: 99 | N128: 116 | O128: 85 | P128: 94 | Q128: 234 | R128: 198 | S128: 243 | T128: 174 | U128: 171 | V128: 169 | W128: 92 | X128: 74 | Y128: 109 | Z128: 103
A129: 30 | B129: VOSGES | C129: 57 | D129: EPINAL | E129: 488561 | F129: REMIREMONT | G129: 6.2 | H129: 120 | I129: 70 | J129: 116 | K129: 42 | L129: 206 | M129: 210 | N129: 209 | O129: 171 | P129: 58 | Q129: 148 | R129: 157 | S129: 124 | T129: 106 | U129: 78 | V129: 190 | W129: 152 | X129: 81 | Y129: 249 | Z129: 74
A130: 30 | B130: AUBE HAUTE MARNE | C130: 21 | D130: CHAUMONT | E130: 551157 | F130: SAINT DIZIER EUROPE | G130: 2.8 | H130: 121 | I130: 161 | J130: 130 | K130: 180 | L130: 199 | M130: 228 | N130: 90 | O130: 62 | P130: 127 | Q130: 225 | R130: 254 | S130: 68 | T130: 57 | U130: 105 | V130: 14 | W130: 47 | X130: 135 | Y130: 49 | Z130: 25
A131: 30 | B131: AUBE HAUTE MARNE | C131: 21 | D131: CHAUMONT | E131: 410541 | F131: LANGRES | G131: 6.7 | H131: 122 | I131: 33 | J131: 20 | K131: 75 | L131: 207 | M131: 194 | N131: 203 | O131: 169 | P131: 162 | Q131: 249 | R131: 245 | S131: 170 | T131: 140 | U131: 151 | V131: 128 | W131: 160 | X131: 222 | Y131: 98 | Z131: 138
A132: 30 | B132: MEURTHE ET MOSELLE MEUSE | C132: 31 | D132: VERDUN | E132: 455566 | F132: REVIGNY SUR ORNAIN | G132: 3.8 | H132: 123 | I132: 25 | J132: 31 | K132: 27 | L132: 121 | M132: 135 | N132: 186 | O132: 117 | P132: 4 | Q132: 260 | R132: 252 | S132: 251 | T132: 206 | U132: 191 | V132: 222 | W132: 175 | X132: 164 | Y132: 138 | Z132: 181
A133: 30 | B133: MEURTHE ET MOSELLE MEUSE | C133: 27 | D133: PONT A MOUSSON | E133: 454355 | F133: JARNY | G133: 4.5 | H133: 124 | I133: 94 | J133: 95 | K133: 106 | L133: 90 | M133: 68 | N133: 197 | O133: 88 | P133: 195 | Q133: 188 | R133: 189 | S133: 141 | T133: 138 | U133: 192 | V133: 56 | W133: 184 | X133: 59 | Y133: 208 | Z133: 221
A134: 30 | B134: BAS-RHIN | C134: 5006 | D134: STRASBOURG | E134: 4027 | F134: SCHILTIGHEIM CENTRE | G134: 4.0 | H134: 125 | I134: 175 | J134: 175 | K134: 162 | L134: 49 | M134: 57 | N134: 31 | O134: 22 | P134: 242 | Q134: 32 | R134: 41 | S134: 62 | T134: 225 | U134: 219 | V134: 205 | W134: 111 | X134: 53 | Y134: 198 | Z134: 88
A135: 30 | B135: VOSGES | C135: 55 | D135: SAINT DIE | E135: 488586 | F135: SAINT DIE | G135: 11.6 | H135: 126 | I135: 108 | J135: 183 | K135: 29 | L135: 175 | M135: 144 | N135: 170 | O135: 205 | P135: 159 | Q135: 47 | R135: 38 | S135: 116 | T135: 133 | U135: 102 | V135: 213 | W135: 203 | X135: 153 | Y135: 224 | Z135: 175
A136: 30 | B136: HAUT-RHIN | C136: 5130 | D136: COLMAR | E136: 4157 | F136: NEUF BRISACH | G136: 3.8 | H136: 127 | I136: 202 | J136: 221 | K136: 157 | L136: 177 | M136: 163 | N136: 135 | O136: 224 | P136: 87 | Q136: 96 | R136: 101 | S136: 92 | T136: 44 | U136: 34 | V136: 147 | W136: 117 | X136: 218 | Y136: 38 | Z136: 182
A137: 30 | B137: BAS-RHIN | C137: 5006 | D137: STRASBOURG | E137: 4054 | F137: STRASBOURG MONTAGNE VERTE | G137: 2.6 | H137: 128 | I137: 252 | J137: 242 | K137: 249 | L137: 115 | M137: 195 | N137: 18 | O137: 115 | P137: 37 | Q137: 245 | R137: 247 | S137: 137 | T137: 7 | U137: 16 | V137: 5 | W137: 68 | X137: 128 | Y137: 95 | Z137: 32
A138: 30 | B138: VOSGES | C138: 57 | D138: EPINAL | E138: 588501 | F138: NEUFCHATEAU | G138: 5.0 | H138: 129 | I138: 76 | J138: 87 | K138: 78 | L138: 214 | M138: 232 | N138: 172 | O138: 52 | P138: 135 | Q138: 135 | R138: 102 | S138: 212 | T138: 177 | U138: 177 | V138: 168 | W138: 73 | X138: 115 | Y138: 97 | Z138: 41
A139: 30 | B139: MEURTHE ET MOSELLE MEUSE | C139: 31 | D139: VERDUN | E139: 554700 | F139: VILLERUPT | G139: 2.8 | H139: 130 | I139: 37 | J139: 17 | K139: 136 | L139: 109 | M139: 101 | N139: 121 | O139: 201 | P139: 89 | Q139: 130 | R139: 114 | S139: 167 | T139: 256 | U139: 256 | V139: 216 | W139: 151 | X139: 265 | Y139: 24 | Z139: 238
A140: 30 | B140: VOSGES | C140: 57 | D140: EPINAL | E140: 488291 | F140: EPINAL AVRINSART | G140: 1.8 | H140: 131 | I140: 63 | J140: 53 | K140: 96 | L140: 260 | M140: 256 | N140: 161 | O140: 105 | P140: 271 | Q140: 253 | R140: 224 | S140: 261 | T140: 60 | U140: 35 | V140: 227 | W140: 84 | X140: 117 | Y140: 72 | Z140: 75
A141: 30 | B141: MOSELLE | C141: 45 | D141: METZ | E141: 557612 | F141: SAINTE MARIE AUX CHENES | G141: 3.6 | H141: 132 | I141: 52 | J141: 51 | K141: 72 | L141: 246 | M141: 257 | N141: 205 | O141: 219 | P141: 91 | Q141: 187 | R141: 202 | S141: 118 | T141: 91 | U141: 86 | V141: 110 | W141: 192 | X141: 206 | Y141: 185 | Z141: 129
A142: 30 | B142: MEURTHE ET MOSELLE MEUSE | C142: 27 | D142: PONT A MOUSSON | E142: 554184 | F142: BRIEY | G142: 4.8 | H142: 133 | I142: 125 | J142: 145 | K142: 91 | L142: 162 | M142: 178 | N142: 178 | O142: 113 | P142: 20 | Q142: 45 | R142: 21 | S142: 176 | T142: 229 | U142: 221 | V142: 219 | W142: 63 | X142: 114 | Y142: 34 | Z142: 120
A143: 30 | B143: MOSELLE | C143: 45 | D143: METZ | E143: 557712 | F143: WOIPPY | G143: 5.5 | H143: 134 | I143: 171 | J143: 159 | K143: 164 | L143: 111 | M143: 143 | N143: 44 | O143: 111 | P143: 121 | Q143: 232 | R143: 179 | S143: 259 | T143: 49 | U143: 68 | V143: 24 | W143: 150 | X143: 82 | Y143: 181 | Z143: 156
A144: 30 | B144: MOSELLE | C144: 44 | D144: MOSELLE NORD | E144: 557352 | F144: HETTANGE GRANDE | G144: 4.2 | H144: 135 | I144: 246 | J144: 253 | K144: 224 | L144: 23 | M144: 18 | N144: 84 | O144: 149 | P144: 140 | Q144: 183 | R144: 138 | S144: 229 | T144: 54 | U144: 44 | V144: 102 | W144: 110 | X144: 126 | Y144: 52 | Z144: 204
A145: 30 | B145: AUBE HAUTE MARNE | C145: 14 | D145: TROYES | E145: 410571 | F145: ROMILLY SUR SEINE | G145: 6.2 | H145: 136 | I145: 126 | J145: 137 | K145: 103 | L145: 119 | M145: 113 | N145: 115 | O145: 134 | P145: 130 | Q145: 138 | R145: 182 | S145: 76 | T145: 169 | U145: 179 | V145: 142 | W145: 94 | X145: 104 | Y145: 152 | Z145: 55
A146: 30 | B146: VOSGES | C146: 57 | D146: EPINAL | E146: 588336 | F146: GOLBEY | G146: 3.3 | H146: 137 | I146: 81 | J146: 87 | K146: 82 | L146: 225 | M146: 220 | N146: 113 | O146: 93 | P146: 241 | Q146: 119 | R146: 90 | S146: 192 | T146: 184 | U146: 159 | V146: 203 | W146: 79 | X146: 46 | Y146: 212 | Z146: 31
A147: 30 | B147: VOSGES | C147: 55 | D147: SAINT DIE | E147: 588551 | F147: RAMBERVILLERS | G147: 3.7 | H147: 138 | I147: 7 | J147: 15 | K147: 4 | L147: 263 | M147: 259 | N147: 235 | O147: 172 | P147: 247 | Q147: 238 | R147: 183 | S147: 264 | T147: 192 | U147: 170 | V147: 221 | W147: 217 | X147: 162 | Y147: 168 | Z147: 246
A148: 30 | B148: BAS-RHIN | C148: 5060 | D148: HAGUENAU | E148: 4087 | F148: SAVERNE | G148: 8.6 | H148: 139 | I148: 249 | J148: 237 | K148: 243 | L148: 28 | M148: 19 | N148: 86 | O148: 65 | P148: 268 | Q148: 103 | R148: 93 | S148: 131 | T148: 76 | U148: 74 | V148: 86 | W148: 90 | X148: 80 | Y148: 85 | Z148: 111
A149: 110 | B149: MARNE-ARDENNES | C149: 6 | D149: CHALONS EN CHAMPAGNE | E149: 551128 | F149: SAINTE MENEHOULD | G149: 3.4 | H149: 140 | I149: 111 | J149: 79 | K149: 165 | L149: 118 | M149: 137 | N149: 124 | O149: 63 | P149: 66 | Q149: 95 | R149: 118 | S149: 72 | T149: 119 | U149: 128 | V149: 105 | W149: 253 | X149: 255 | Y149: 226 | Z149: 222
A150: 110 | B150: AUBE HAUTE MARNE | C150: 14 | D150: TROYES | E150: 410550 | F150: BAR SUR AUBE | G150: 5.9 | H150: 141 | I150: 132 | J150: 137 | K150: 110 | L150: 155 | M150: 154 | N150: 137 | O150: 247 | P150: 48 | Q150: 142 | R150: 121 | S150: 178 | T150: 98 | U150: 130 | V150: 58 | W150: 166 | X150: 254 | Y150: 86 | Z150: 125
A151: 110 | B151: AUBE HAUTE MARNE | C151: 14 | D151: TROYES | E151: 510523 | F151: LA CHAPELLE ST LUC | G151: 5.6 | H151: 142 | I151: 213 | J151: 212 | K151: 203 | L151: 93 | M151: 104 | N151: 77 | O151: 181 | P151: 57 | Q151: 120 | R151: 178 | S151: 50 | T151: 36 | U151: 52 | V151: 23 | W151: 214 | X151: 210 | Y151: 183 | Z151: 193
A152: 110 | B152: MEURTHE ET MOSELLE MEUSE | C152: 26 | D152: NANCY | E152: 554486 | F152: NANCY POINT CENTRAL | G152: 4.8 | H152: 143 | I152: 98 | J152: 87 | K152: 131 | L152: 164 | M152: 196 | N152: 151 | O152: 51 | P152: 72 | Q152: 125 | R152: 105 | S152: 171 | T152: 217 | U152: 227 | V152: 144 | W152: 76 | X152: 60 | Y152: 172 | Z152: 41
A153: 110 | B153: MEURTHE ET MOSELLE MEUSE | C153: 31 | D153: VERDUN | E153: 455151 | F153: BAR LE DUC | G153: 9.6 | H153: 144 | I153: 104 | J153: 106 | K153: 108 | L153: 146 | M153: 133 | N153: 199 | O153: 104 | P153: 83 | Q153: 193 | R153: 119 | S153: 258 | T153: 157 | U153: 153 | V153: 161 | W153: 116 | X153: 196 | Y153: 70 | Z153: 110
A154: 110 | B154: MOSELLE | C154: 42 | D154: MOSELLE EST | E154: 457614 | F154: SARREBOURG | G154: 9.1 | H154: 145 | I154: 120 | J154: 95 | K154: 168 | L154: 104 | M154: 92 | N154: 200 | O154: 152 | P154: 47 | Q154: 124 | R154: 117 | S154: 146 | T154: 188 | U154: 148 | V154: 249 | W154: 145 | X154: 175 | Y154: 64 | Z154: 196
A155: 110 | B155: BAS-RHIN | C155: 5101 | D155: SELESTAT | E155: 4116 | F155: MOLSHEIM | G155: 5.1 | H155: 146 | I155: 221 | J155: 195 | K155: 222 | L155: 102 | M155: 74 | N155: 167 | O155: 204 | P155: 165 | Q155: 13 | R155: 3 | S155: 64 | T155: 176 | U155: 156 | V155: 206 | W155: 143 | X155: 151 | Y155: 156 | Z155: 96
A156: 110 | B156: MOSELLE | C156: 45 | D156: METZ | E156: 557559 | F156: REMILLY | G156: 4.1 | H156: 147 | I156: 205 | J156: 214 | K156: 175 | L156: 159 | M156: 152 | N156: 175 | O156: 185 | P156: 61 | Q156: 191 | R156: 159 | S156: 199 | T156: 40 | U156: 39 | V156: 76 | W156: 122 | X156: 79 | Y156: 157 | Z156: 122
A157: 110 | B157: MOSELLE | C157: 42 | D157: MOSELLE EST | E157: 557523 | F157: PHALSBOURG | G157: 2.3 | H157: 148 | I157: 54 | J157: 40 | K157: 97 | L157: 257 | M157: 255 | N157: 141 | O157: 184 | P157: 260 | Q157: 60 | R157: 50 | S157: 126 | T157: 194 | U157: 178 | V157: 209 | W157: 157 | X157: 215 | Y157: 83 | Z157: 173
A158: 110 | B158: MEURTHE ET MOSELLE MEUSE | C158: 31 | D158: VERDUN | E158: 455231 | F158: COMMERCY | G158: 4.7 | H158: 149 | I158: 164 | J158: 159 | K158: 159 | L158: 117 | M158: 121 | N158: 66 | O158: 108 | P158: 192 | Q158: 226 | R158: 190 | S158: 230 | T158: 130 | U158: 106 | V158: 201 | W158: 48 | X158: 73 | Y158: 42 | Z158: 63
A159: 110 | B159: MEURTHE ET MOSELLE MEUSE | C159: 26 | D159: NANCY | E159: 554471 | F159: NANCY JEAN JAURES | G159: 0.5 | H159: 150 | I159: 107 | J159: 62 | K159: 184 | L159: 172 | M159: 75 | N159: 6 | O159: 15 | P159: 273 | Q159: 153 | R159: 232 | S159: 33 | T159: 273 | U159: 273 | V159: 29 | W159: 4 | X159: 3 | Y159: 33 | Z159: 7
A160: 110 | B160: BAS-RHIN | C160: 5006 | D160: STRASBOURG | E160: 4045 | F160: STRASBOURG FRANCS BOURGEOIS | G160: 4.7 | H160: 151 | I160: 239 | J160: 232 | K160: 233 | L160: 39 | M160: 32 | N160: 123 | O160: 126 | P160: 185 | Q160: 14 | R160: 2 | S160: 209 | T160: 179 | U160: 117 | V160: 260 | W160: 153 | X160: 109 | Y160: 159 | Z160: 162
A161: 110 | B161: HAUT-RHIN | C161: 5169 | D161: MULHOUSE | E161: 4195 | F161: CERNAY | G161: 2.5 | H161: 152 | I161: 144 | J161: 130 | K161: 145 | L161: 182 | M161: 215 | N161: 87 | O161: 137 | P161: 32 | Q161: 73 | R161: 77 | S161: 106 | T161: 159 | U161: 205 | V161: 53 | W161: 140 | X161: 124 | Y161: 148 | Z161: 123
A162: 110 | B162: MOSELLE | C162: 45 | D162: METZ | E162: 457574 | F162: ROMBAS | G162: 3.5 | H162: 153 | I162: 121 | J162: 116 | K162: 138 | L162: 64 | M162: 66 | N162: 179 | O162: 187 | P162: 1 | Q162: 152 | R162: 144 | S162: 163 | T162: 146 | U162: 129 | V162: 184 | W162: 255 | X162: 236 | Y162: 236 | Z162: 242
A163: 110 | B163: MOSELLE | C163: 42 | D163: MOSELLE EST | E163: 557668 | F163: VALMONT | G163: 4.6 | H163: 154 | I163: 23 | J163: 20 | K163: 39 | L163: 251 | M163: 241 | N163: 248 | O163: 239 | P163: 134 | Q163: 172 | R163: 145 | S163: 198 | T163: 204 | U163: 182 | V163: 231 | W163: 233 | X163: 179 | Y163: 210 | Z163: 236
A164: 110 | B164: MOSELLE | C164: 45 | D164: METZ | E164: 557439 | F164: METZ POMPIDOU | G164: 3.9 | H164: 155 | I164: 109 | J164: 62 | K164: 188 | L164: 186 | M164: 146 | N164: 173 | O164: 143 | P164: 230 | Q164: 65 | R164: 98 | S164: 58 | T164: 199 | U164: 199 | V164: 164 | W164: 179 | X164: 161 | Y164: 205 | Z164: 109
A165: 110 | B165: BAS-RHIN | C165: 5006 | D165: STRASBOURG | E165: 4039 | F165: REICHSTETT | G165: 1.6 | H165: 156 | I165: 255 | J165: 247 | K165: 245 | L165: 40 | M165: 33 | N165: 54 | O165: 132 | P165: 234 | Q165: 88 | R165: 136 | S165: 41 | T165: 37 | U165: 38 | V165: 71 | W165: 204 | X165: 181 | Y165: 239 | Z165: 127
A166: 110 | B166: VOSGES | C166: 57 | D166: EPINAL | E166: 488281 | F166: ELOYES | G166: 4.8 | H166: 157 | I166: 115 | J166: 106 | K166: 142 | L166: 180 | M166: 161 | N166: 206 | O166: 189 | P166: 64 | Q166: 171 | R166: 132 | S166: 227 | T166: 139 | U166: 139 | V166: 151 | W166: 138 | X166: 107 | Y166: 127 | Z166: 164
A167: 110 | B167: MOSELLE | C167: 44 | D167: MOSELLE NORD | E167: 457192 | F167: CATTENOM | G167: 2.9 | H167: 158 | I167: 177 | J167: 95 | K167: 234 | L167: 147 | M167: 124 | N167: 239 | O167: 245 | P167: 3 | Q167: 64 | R167: 66 | S167: 100 | T167: 145 | U167: 100 | V167: 238 | W167: 146 | X167: 50 | Y167: 176 | Z167: 200
A168: 110 | B168: MEURTHE ET MOSELLE MEUSE | C168: 31 | D168: VERDUN | E168: 455678 | F168: VERDUN CENTRALE | G168: 11.3 | H168: 159 | I168: 45 | J168: 58 | K168: 47 | L168: 168 | M168: 167 | N168: 130 | O168: 54 | P168: 196 | Q168: 240 | R168: 238 | S168: 160 | T168: 240 | U168: 249 | V168: 178 | W168: 100 | X168: 56 | Y168: 167 | Z168: 87
A169: 110 | B169: MEURTHE ET MOSELLE MEUSE | C169: 26 | D169: NANCY | E169: 454161 | F169: BAYON | G169: 0.9 | H169: 160 | I169: 257 | J169: 175 | K169: 269 | L169: 7 | M169: 11 | N169: 8 | O169: 7 | P169: 237 | Q169: 273 | R169: 273 | S169: 4 | T169: 45 | U169: 84 | V169: 13 | W169: 27 | X169: 149 | Y169: 32 | Z169: 11
A170: 110 | B170: MARNE-ARDENNES | C170: 11 | D170: REIMS | E170: 551306 | F170: REIMS SAINT MARCEAUX | G170: 4.0 | H170: 161 | I170: 61 | J170: 58 | K170: 79 | L170: 212 | M170: 149 | N170: 228 | O170: 46 | P170: 270 | Q170: 271 | R170: 272 | S170: 133 | T170: 72 | U170: 57 | V170: 125 | W170: 131 | X170: 69 | Y170: 142 | Z170: 183
A171: 110 | B171: BAS-RHIN | C171: 5060 | D171: HAGUENAU | E171: 4031 | F171: TRUCHTERSHEIM | G171: 3.0 | H171: 162 | I171: 29 | J171: 28 | K171: 50 | L171: 179 | M171: 86 | N171: 272 | O171: 248 | P171: 174 | Q171: 63 | R171: 30 | S171: 216 | T171: 258 | U171: 234 | V171: 273 | W171: 263 | X171: 233 | Y171: 265 | Z171: 254
A172: 110 | B172: MEURTHE ET MOSELLE MEUSE | C172: 31 | D172: VERDUN | E172: 555406 | F172: LIGNY EN BARROIS | G172: 2.6 | H172: 163 | I172: 122 | J172: 145 | K172: 87 | L172: 124 | M172: 131 | N172: 93 | O172: 116 | P172: 115 | Q172: 242 | R172: 250 | S172: 122 | T172: 195 | U172: 174 | V172: 223 | W172: 75 | X172: 102 | Y172: 48 | Z172: 113
A173: 110 | B173: BAS-RHIN | C173: 5060 | D173: HAGUENAU | E173: 4041 | F173: HOERDT | G173: 2.5 | H173: 164 | I173: 124 | J173: 195 | K173: 35 | L173: 94 | M173: 53 | N173: 262 | O173: 196 | P173: 106 | Q173: 79 | R173: 20 | S173: 260 | T173: 148 | U173: 90 | V173: 255 | W173: 268 | X173: 269 | Y173: 250 | Z173: 265
A174: 110 | B174: BAS-RHIN | C174: 5060 | D174: HAGUENAU | E174: 4057 | F174: BISCHWILLER | G174: 6.7 | H174: 165 | I174: 187 | J174: 195 | K174: 170 | L174: 105 | M174: 82 | N174: 185 | O174: 242 | P174: 90 | Q174: 221 | R174: 213 | S174: 182 | T174: 67 | U174: 64 | V174: 85 | W174: 183 | X174: 228 | Y174: 54 | Z174: 248
A175: 110 | B175: MOSELLE | C175: 44 | D175: MOSELLE NORD | E175: 557307 | F175: FONTOY | G175: 2.1 | H175: 166 | I175: 85 | J175: 47 | K175: 182 | L175: 233 | M175: 222 | N175: 237 | O175: 267 | P175: 26 | Q175: 51 | R175: 48 | S175: 91 | T175: 226 | U175: 251 | V175: 70 | W175: 165 | X175: 190 | Y175: 111 | Z175: 165
A176: 110 | B176: MOSELLE | C176: 42 | D176: MOSELLE EST | E176: 457583 | F176: SAINT AVOLD | G176: 7.5 | H176: 167 | I176: 184 | J176: 195 | K176: 161 | L176: 165 | M176: 153 | N176: 153 | O176: 76 | P176: 190 | Q176: 71 | R176: 59 | S176: 132 | T176: 105 | U176: 114 | V176: 97 | W176: 172 | X176: 138 | Y176: 122 | Z176: 210
A177: 110 | B177: MEURTHE ET MOSELLE MEUSE | C177: 26 | D177: NANCY | E177: 554296 | F177: ESSEY LES NANCY | G177: 4.0 | H177: 168 | I177: 114 | J177: 101 | K177: 148 | L177: 68 | M177: 55 | N177: 192 | O177: 95 | P177: 116 | Q177: 258 | R177: 255 | S177: 214 | T177: 221 | U177: 208 | V177: 217 | W177: 77 | X177: 66 | Y177: 101 | Z177: 72
A178: 110 | B178: VOSGES | C178: 57 | D178: EPINAL | E178: 588396 | F178: LE VAL D AJOL | G178: 3.0 | H178: 169 | I178: 66 | J178: 159 | K178: 7 | L178: 218 | M178: 183 | N178: 266 | O178: 228 | P178: 65 | Q178: 160 | R178: 89 | S178: 262 | T178: 111 | U178: 69 | V178: 237 | W178: 259 | X178: 199 | Y178: 263 | Z178: 255
A179: 110 | B179: BAS-RHIN | C179: 5006 | D179: STRASBOURG | E179: 4029 | F179: SCHILTIGHEIM KLEBER | G179: 2.9 | H179: 170 | I179: 243 | J179: 168 | K179: 263 | L179: 51 | M179: 65 | N179: 40 | O179: 109 | P179: 105 | Q179: 72 | R179: 54 | S179: 145 | T179: 55 | U179: 82 | V179: 20 | W179: 243 | X179: 201 | Y179: 252 | Z179: 199
A180: 110 | B180: VOSGES | C180: 57 | D180: EPINAL | E180: 488286 | F180: EPINAL ARISTIDE BRIAND | G180: 9.1 | H180: 171 | I180: 168 | J180: 221 | K180: 74 | L180: 107 | M180: 96 | N180: 42 | O180: 66 | P180: 264 | Q180: 222 | R180: 194 | S180: 218 | T180: 83 | U180: 73 | V180: 118 | W180: 213 | X180: 133 | Y180: 262 | Z180: 126
A181: 110 | B181: MARNE-ARDENNES | C181: 6 | D181: CHALONS EN CHAMPAGNE | E181: 551103 | F181: FAGNIERES LECLERC | G181: 3.0 | H181: 172 | I181: 129 | J181: 153 | K181: 88 | L181: 110 | M181: 158 | N181: 49 | O181: 28 | P181: 146 | Q181: 251 | R181: 256 | S181: 172 | T181: 144 | U181: 210 | V181: 33 | W181: 142 | X181: 202 | Y181: 108 | Z181: 101
A182: 110 | B182: BAS-RHIN | C182: 5060 | D182: HAGUENAU | E182: 4030 | F182: BRUMATH | G182: 5.4 | H182: 173 | I182: 215 | J182: 227 | K182: 178 | L182: 78 | M182: 50 | N182: 168 | O182: 77 | P182: 255 | Q182: 42 | R182: 87 | S182: 29 | T182: 219 | U182: 200 | V182: 235 | W182: 93 | X182: 110 | Y182: 93 | Z182: 86
A183: 110 | B183: BAS-RHIN | C183: 5006 | D183: STRASBOURG | E183: 4023 | F183: STRASBOURG VOSGES | G183: 3.3 | H183: 174 | I183: 264 | J183: 258 | K183: 257 | L183: 22 | M183: 20 | N183: 58 | O183: 91 | P183: 139 | Q183: 18 | R183: 28 | S183: 27 | T183: 147 | U183: 134 | V183: 182 | W183: 107 | X183: 92 | Y183: 158 | Z183: 83
A184: 110 | B184: AUBE HAUTE MARNE | C184: 14 | D184: TROYES | E184: 510520 | F184: SAINT ANDRE LES VERGERS | G184: 4.6 | H184: 175 | I184: 191 | J184: 221 | K184: 140 | L184: 89 | M184: 117 | N184: 68 | O184: 82 | P184: 78 | Q184: 99 | R184: 154 | S184: 37 | T184: 223 | U184: 236 | V184: 146 | W184: 78 | X184: 145 | Y184: 39 | Z184: 108
A185: 110 | B185: MARNE-ARDENNES | C185: 2 | D185: CHARLEVILLE MEZIERES | E185: 508817 | F185: CHARLEVILLE MOHON | G185: 3.3 | H185: 176 | I185: 53 | J185: 31 | K185: 126 | L185: 254 | M185: 268 | N185: 217 | O185: 212 | P185: 8 | Q185: 233 | R185: 204 | S185: 231 | T185: 165 | U185: 168 | V185: 139 | W185: 156 | X185: 131 | Y185: 179 | Z185: 130
A186: 110 | B186: MOSELLE | C186: 45 | D186: METZ | E186: 557434 | F186: MARLY | G186: 4.0 | H186: 177 | I186: 34 | J186: 20 | K186: 76 | L186: 173 | M186: 166 | N186: 222 | O186: 157 | P186: 13 | Q186: 168 | R186: 141 | S186: 200 | T186: 253 | U186: 248 | V186: 244 | W186: 250 | X186: 182 | Y186: 237 | Z186: 258
A187: 110 | B187: MEURTHE ET MOSELLE MEUSE | C187: 26 | D187: NANCY | E187: 554611 | F187: SAINT NICOLAS DE PORT | G187: 2.7 | H187: 178 | I187: 207 | J187: 237 | K187: 130 | L187: 56 | M187: 116 | N187: 20 | O187: 31 | P187: 33 | Q187: 30 | R187: 45 | S187: 55 | T187: 252 | U187: 265 | V187: 122 | W187: 105 | X187: 78 | Y187: 139 | Z187: 105
A188: 110 | B188: BAS-RHIN | C188: 5101 | D188: SELESTAT | E188: 4129 | F188: MARLENHEIM | G188: 1.9 | H188: 179 | I188: 151 | J188: 168 | K188: 113 | L188: 92 | M188: 73 | N188: 245 | O188: 255 | P188: 10 | Q188: 164 | R188: 207 | S188: 81 | T188: 213 | U188: 201 | V188: 212 | W188: 149 | X188: 217 | Y188: 67 | Z188: 168
A189: 110 | B189: HAUT-RHIN | C189: 5130 | D189: COLMAR | E189: 4135 | F189: COLMAR SAINTE MARIE | G189: 6.6 | H189: 180 | I189: 156 | J189: 130 | K189: 171 | L189: 131 | M189: 111 | N189: 182 | O189: 180 | P189: 119 | Q189: 158 | R189: 172 | S189: 129 | T189: 132 | U189: 143 | V189: 131 | W189: 210 | X189: 172 | Y189: 244 | Z189: 135
A190: 110 | B190: BAS-RHIN | C190: 5101 | D190: SELESTAT | E190: 4109 | F190: MARCKOLSHEIM | G190: 2.9 | H190: 181 | I190: 162 | J190: 175 | K190: 133 | L190: 65 | M190: 36 | N190: 204 | O190: 227 | P190: 193 | Q190: 205 | R190: 227 | S190: 84 | T190: 197 | U190: 202 | V190: 143 | W190: 182 | X190: 194 | Y190: 149 | Z190: 154
A191: 110 | B191: MOSELLE | C191: 45 | D191: METZ | E191: 557440 | F191: METZ MOZART | G191: 3.1 | H191: 182 | I191: 99 | J191: 51 | K191: 195 | L191: 187 | M191: 177 | N191: 216 | O191: 168 | P191: 84 | Q191: 126 | R191: 79 | S191: 232 | T191: 168 | U191: 157 | V191: 180 | W191: 246 | X191: 235 | Y191: 199 | Z191: 250
A192: 110 | B192: MOSELLE | C192: 44 | D192: MOSELLE NORD | E192: 557303 | F192: FAMECK | G192: 3.8 | H192: 183 | I192: 58 | J192: 20 | K192: 163 | L192: 259 | M192: 258 | N192: 125 | O192: 256 | P192: 266 | Q192: 78 | R192: 46 | S192: 185 | T192: 244 | U192: 250 | V192: 197 | W192: 129 | X192: 129 | Y192: 94 | Z192: 159
A193: 110 | B193: MEURTHE ET MOSELLE MEUSE | C193: 26 | D193: NANCY | E193: 554491 | F193: NANCY SAINT SEBASTIEN | G193: 3.8 | H193: 184 | I193: 57 | J193: 17 | K193: 192 | L193: 228 | M193: 236 | N193: 234 | O193: 102 | P193: 40 | Q193: 106 | R193: 67 | S193: 203 | T193: 227 | U193: 225 | V193: 202 | W193: 247 | X193: 192 | Y193: 257 | Z193: 211
A194: 110 | B194: BAS-RHIN | C194: 5006 | D194: STRASBOURG | E194: 4033 | F194: LA WANTZENAU | G194: 1.4 | H194: 185 | I194: 237 | J194: 183 | K194: 254 | L194: 167 | M194: 147 | N194: 166 | O194: 151 | P194: 150 | Q194: 36 | R194: 17 | S194: 156 | T194: 201 | U194: 155 | V194: 250 | W194: 26 | X194: 55 | Y194: 25 | Z194: 49
A195: 110 | B195: MEURTHE ET MOSELLE MEUSE | C195: 27 | D195: PONT A MOUSSON | E195: 554496 | F195: NANCY TROIS MAISONS | G195: 2.5 | H195: 186 | I195: 198 | J195: 127 | K195: 236 | L195: 52 | M195: 52 | N195: 148 | O195: 164 | P195: 17 | Q195: 217 | R195: 229 | S195: 123 | T195: 180 | U195: 216 | V195: 79 | W195: 120 | X195: 208 | Y195: 17 | Z195: 261
A196: 110 | B196: MOSELLE | C196: 45 | D196: METZ | E196: 457446 | F196: METZ SAINT LOUIS | G196: 7.2 | H196: 187 | I196: 176 | J196: 106 | K196: 226 | L196: 204 | M196: 188 | N196: 221 | O196: 118 | P196: 171 | Q196: 31 | R196: 19 | S196: 128 | T196: 170 | U196: 187 | V196: 126 | W196: 191 | X196: 146 | Y196: 187 | Z196: 169
A197: 110 | B197: MARNE-ARDENNES | C197: 6 | D197: CHALONS EN CHAMPAGNE | E197: 451381 | F197: SEZANNE | G197: 6.4 | H197: 188 | I197: 117 | J197: 130 | K197: 100 | L197: 130 | M197: 155 | N197: 103 | O197: 58 | P197: 97 | Q197: 231 | R197: 230 | S197: 150 | T197: 196 | U197: 161 | V197: 233 | W197: 164 | X197: 147 | Y197: 192 | Z197: 104
A198: 110 | B198: MARNE-ARDENNES | C198: 11 | D198: REIMS | E198: 451301 | F198: REIMS HOTEL DE VILLE | G198: 7.6 | H198: 189 | I198: 119 | J198: 123 | K198: 128 | L198: 80 | M198: 90 | N198: 88 | O198: 43 | P198: 204 | Q198: 266 | R198: 266 | S198: 239 | T198: 163 | U198: 133 | V198: 215 | W198: 127 | X198: 122 | Y198: 106 | Z198: 142
A199: 160 | B199: MOSELLE | C199: 42 | D199: MOSELLE EST | E199: 457435 | F199: MERLEBACH | G199: 3.7 | H199: 190 | I199: 206 | J199: 195 | K199: 197 | L199: 97 | M199: 93 | N199: 80 | O199: 135 | P199: 161 | Q199: 189 | R199: 217 | S199: 83 | T199: 100 | U199: 123 | V199: 74 | W199: 190 | X199: 221 | Y199: 115 | Z199: 180
A200: 160 | B200: MOSELLE | C200: 44 | D200: MOSELLE NORD | E200: 557622 | F200: SIERCK LES BAINS | G200: 1.6 | H200: 191 | I200: 87 | J200: 101 | K200: 84 | L200: 189 | M200: 242 | N200: 82 | O200: 48 | P200: 46 | Q200: 220 | R200: 195 | S200: 215 | T200: 251 | U200: 264 | V200: 123 | W200: 58 | X200: 34 | Y200: 243 | Z200: 17
A201: 160 | B201: MARNE-ARDENNES | C201: 11 | D201: REIMS | E201: 451308 | F201: REIMS SAINT THOMAS | G201: 8.1 | H201: 192 | I201: 214 | J201: 195 | K201: 216 | L201: 169 | M201: 164 | N201: 81 | O201: 78 | P201: 211 | Q201: 123 | R201: 95 | S201: 196 | T201: 182 | U201: 184 | V201: 159 | W201: 43 | X201: 22 | Y201: 124 | Z201: 65
A202: 160 | B202: BAS-RHIN | C202: 5101 | D202: SELESTAT | E202: 4101 | F202: SELESTAT CENTRE | G202: 8.2 | H202: 193 | I202: 232 | J202: 227 | K202: 228 | L202: 41 | M202: 34 | N202: 94 | O202: 101 | P202: 202 | Q202: 121 | R202: 122 | S202: 127 | T202: 156 | U202: 172 | V202: 108 | W202: 141 | X202: 166 | Y202: 68 | Z202: 192
A203: 160 | B203: AUBE HAUTE MARNE | C203: 14 | D203: TROYES | E203: 410524 | F203: SAINT JULIEN LES VILLAS | G203: 3.7 | H203: 194 | I203: 194 | J203: 95 | K203: 250 | L203: 44 | M203: 22 | N203: 111 | O203: 190 | P203: 269 | Q203: 207 | R203: 184 | S203: 188 | T203: 235 | U203: 243 | V203: 171 | W203: 80 | X203: 45 | Y203: 112 | Z203: 85
A204: 160 | B204: MOSELLE | C204: 44 | D204: MOSELLE NORD | E204: 557628 | F204: TERVILLE | G204: 1.9 | H204: 195 | I204: 235 | J204: 195 | K204: 251 | L204: 191 | M204: 201 | N204: 50 | O204: 193 | P204: 209 | Q204: 179 | R204: 199 | S204: 110 | T204: 118 | U204: 120 | V204: 116 | W204: 15 | X204: 31 | Y204: 14 | Z204: 66
... 79 more rows

Sheet AG_EVOL_CLASS
B1: Accueil | D1: BAROMETRE BDD - AGENCES
D2: EVOLUTION CLASSEMENT 2020 / 2019
D3: =ACCUEIL!F7 -> 2021-04-04
H8: CLASSEMENT Général 2020 | I8: CLASSEMENT Général 2019 | J8: Evolution
A9: eds | B9: Direction | C9: eds | D9: Territoire | E9: eds | F9: Agence | G9: ="ETP perf "&DATEMAJ!$C$28 -> ETP perf 28-févr | H9: Rang | I9: Rang
A10: 50 | B10: BAS-RHIN | C10: 5006 | D10: STRASBOURG | E10: 4010 | F10: STRASBOURG MEINAU | G10: 2.6 | H10: 36 | I10: 284 | J10: 248
A11: 50 | B11: VOSGES | C11: 57 | D11: EPINAL | E11: 488561 | F11: REMIREMONT | G11: 6.2 | H11: 42 | I11: 270 | J11: 228
A12: 50 | B12: BAS-RHIN | C12: 5060 | D12: HAGUENAU | E12: 4079 | F12: SOULTZ SOUS FORETS | G12: 2.4 | H12: 56 | I12: 277 | J12: 221
A13: 50 | B13: MARNE-ARDENNES | C13: 6 | D13: CHALONS EN CHAMPAGNE | E13: 451115 | F13: MOURMELON suippes | G13: 3.0 | H13: 12 | I13: 232 | J13: 220
A14: 50 | B14: MOSELLE | C14: 44 | D14: MOSELLE NORD | E14: 557508 | F14: NILVANGE | G14: 2.6 | H14: 3 | I14: 220 | J14: 217
A15: 50 | B15: MEURTHE ET MOSELLE MEUSE | C15: 27 | D15: PONT A MOUSSON | E15: 454651 | F15: TOUL REPUBLIQUE | G15: 10.9 | H15: 1 | I15: 192 | J15: 191
A16: 50 | B16: MEURTHE ET MOSELLE MEUSE | C16: 26 | D16: NANCY | E16: 454671 | F16: VANDOEUVRE LES NANCY | G16: 4.4 | H16: 87 | I16: 276 | J16: 189
A17: 50 | B17: MEURTHE ET MOSELLE MEUSE | C17: 31 | D17: VERDUN | E17: 455456 | F17: MONTMEDY | G17: 1.7 | H17: 101 | I17: 265 | J17: 164
A18: 50 | B18: MOSELLE | C18: 44 | D18: MOSELLE NORD | E18: 457306 | F18: FLORANGE | G18: 2.8 | H18: 90 | I18: 253 | J18: 163
A19: 50 | B19: MARNE-ARDENNES | C19: 11 | D19: REIMS | E19: 451361 | F19: PIERRY LECLERC | G19: 1.9 | H19: 16 | I19: 178 | J19: 162
A20: 50 | B20: BAS-RHIN | C20: 5006 | D20: STRASBOURG | E20: 4045 | F20: STRASBOURG FRANCS BOURGEOIS | G20: 5.9 | H20: 112 | I20: 273 | J20: 161
A21: 50 | B21: MARNE-ARDENNES | C21: 6 | D21: CHALONS EN CHAMPAGNE | E21: 551128 | F21: SAINTE MENEHOULD | G21: 3.3 | H21: 94 | I21: 254 | J21: 160
A22: 50 | B22: MEURTHE ET MOSELLE MEUSE | C22: 26 | D22: NANCY | E22: 554491 | F22: NANCY SAINT SEBASTIEN | G22: 3.3 | H22: 48 | I22: 208 | J22: 160
A23: 50 | B23: MEURTHE ET MOSELLE MEUSE | C23: 26 | D23: NANCY | E23: 554471 | F23: NANCY JEAN JAURES | G23: 1.9 | H23: 93 | I23: 251 | J23: 158
A24: 50 | B24: MARNE-ARDENNES | C24: 2 | D24: CHARLEVILLE MEZIERES | E24: 508815 | F24: CARIGNAN | G24: 2.9 | H24: 40 | I24: 194 | J24: 154
A25: 50 | B25: VOSGES | C25: 57 | D25: EPINAL | E25: 588501 | F25: NEUFCHATEAU | G25: 4.7 | H25: 61 | I25: 214 | J25: 153
A26: 50 | B26: MARNE-ARDENNES | C26: 2 | D26: CHARLEVILLE MEZIERES | E26: 508839 | F26: GIVET | G26: 2.9 | H26: 25 | I26: 176 | J26: 151
A27: 50 | B27: MARNE-ARDENNES | C27: 11 | D27: REIMS | E27: 551349 | F27: REIMS SAINT REMI | G27: 2.8 | H27: 9 | I27: 158 | J27: 149
A28: 50 | B28: VOSGES | C28: 55 | D28: SAINT DIE | E28: 588551 | F28: RAMBERVILLERS | G28: 3.7 | H28: 82 | I28: 227 | J28: 145
A29: 50 | B29: MEURTHE ET MOSELLE MEUSE | C29: 26 | D29: NANCY | E29: 554356 | F29: JARVILLE LA MALGRANGE | G29: 3.6 | H29: 105 | I29: 244 | J29: 139
A30: 50 | B30: VOSGES | C30: 57 | D30: EPINAL | E30: 488706 | F30: VITTEL | G30: 3.3 | H30: 91 | I30: 229 | J30: 138
A31: 50 | B31: BAS-RHIN | C31: 5006 | D31: STRASBOURG | E31: 4047 | F31: STRASBOURG CRONENBOURG | G31: 5.6 | H31: 52 | I31: 189 | J31: 137
A32: 262 | B32: HAUT-RHIN | C32: 5130 | D32: COLMAR | E32: 4162 | F32: ENSISHEIM | G32: 4.5 | H32: 80 | I32: 212 | J32: 132
A33: 262 | B33: VOSGES | C33: 55 | D33: SAINT DIE | E33: 588587 | F33: SAINT DIE CATHEDRALE | G33: 4.0 | H33: 64 | I33: 195 | J33: 131
A34: 262 | B34: MEURTHE ET MOSELLE MEUSE | C34: 27 | D34: PONT A MOUSSON | E34: 454535 | F34: PONT A MOUSSON CENTRALE | G34: 7.6 | H34: 119 | I34: 246 | J34: 127
A35: 262 | B35: MARNE-ARDENNES | C35: 11 | D35: REIMS | E35: 551367 | F35: AY CHAMPAGNE | G35: 2.7 | H35: 55 | I35: 175 | J35: 120
A36: 262 | B36: BAS-RHIN | C36: 5101 | D36: SELESTAT | E36: 4110 | F36: SELESTAT OUEST | G36: 1.9 | H36: 69 | I36: 185 | J36: 116
A37: 262 | B37: BAS-RHIN | C37: 5006 | D37: STRASBOURG | E37: 4006 | F37: STRASBOURG NEUDORF | G37: 8.4 | H37: 146 | I37: 262 | J37: 116
A38: 262 | B38: MOSELLE | C38: 42 | D38: MOSELLE EST | E38: 457308 | F38: FORBACH CENTRALE | G38: 9.5 | H38: 122 | I38: 237 | J38: 115
A39: 262 | B39: BAS-RHIN | C39: 5060 | D39: HAGUENAU | E39: 4073 | F39: SCHWEIGHOUSE SUR MODER | G39: 2.4 | H39: 185 | I39: 290 | J39: 105
A40: 262 | B40: BAS-RHIN | C40: 5101 | D40: SELESTAT | E40: 4107 | F40: VILLE | G40: 2.1 | H40: 145 | I40: 249 | J40: 104
A41: 262 | B41: BAS-RHIN | C41: 5006 | D41: STRASBOURG | E41: 4020 | F41: STRASBOURG ROBERTSAU | G41: 4.7 | H41: 153 | I41: 257 | J41: 104
A42: 262 | B42: MEURTHE ET MOSELLE MEUSE | C42: 27 | D42: PONT A MOUSSON | E42: 554376 | F42: LAXOU LA SAPINIERE | G42: 3.0 | H42: 172 | I42: 275 | J42: 103
A43: 262 | B43: MOSELLE | C43: 42 | D43: MOSELLE EST | E43: 557305 | F43: FAULQUEMONT | G43: 2.9 | H43: 98 | I43: 201 | J43: 103
A44: 262 | B44: MEURTHE ET MOSELLE MEUSE | C44: 31 | D44: VERDUN | E44: 555624 | F44: STENAY | G44: 2.7 | H44: 143 | I44: 245 | J44: 102
A45: 262 | B45: MOSELLE | C45: 45 | D45: METZ | E45: 557712 | F45: WOIPPY BONNE FONTAINE | G45: 5.7 | H45: 180 | I45: 281 | J45: 101
A46: 262 | B46: MEURTHE ET MOSELLE MEUSE | C46: 26 | D46: NANCY | E46: 454426 | F46: LUNEVILLE CARNOT | G46: 8.5 | H46: 74 | I46: 174 | J46: 100
A47: 262 | B47: BAS-RHIN | C47: 5101 | D47: SELESTAT | E47: 4113 | F47: BARR | G47: 2.9 | H47: 46 | I47: 145 | J47: 99
A48: 262 | B48: HAUT-RHIN | C48: 5130 | D48: COLMAR | E48: 4139 | F48: INGERSHEIM | G48: 8.3 | H48: 140 | I48: 239 | J48: 99
A49: 262 | B49: HAUT-RHIN | C49: 5130 | D49: COLMAR | E49: 4144 | F49: RIBEAUVILLE | G49: 2.8 | H49: 203 | I49: 301 | J49: 98
A50: 262 | B50: BAS-RHIN | C50: 5006 | D50: STRASBOURG | E50: 4054 | F50: STRASBOURG MONTAGNE VERTE | G50: 2.7 | H50: 197 | I50: 294 | J50: 97
A51: 262 | B51: MARNE-ARDENNES | C51: 2 | D51: CHARLEVILLE MEZIERES | E51: 408814 | F51: VRIGNE AUX BOIS | G51: 0.6 | H51: 96 | I51: 193 | J51: 97
A52: 262 | B52: MEURTHE ET MOSELLE MEUSE | C52: 26 | D52: NANCY | E52: 554486 | F52: NANCY POINT CENTRAL | G52: 4.7 | H52: 113 | I52: 210 | J52: 97
A53: 262 | B53: MOSELLE | C53: 45 | D53: METZ | E53: 557432 | F53: MAIZIERES LES METZ | G53: 3.8 | H53: 123 | I53: 217 | J53: 94
A54: 262 | B54: BAS-RHIN | C54: 5006 | D54: STRASBOURG | E54: 4043 | F54: STRASBOURG HALLES | G54: 8.4 | H54: 26 | I54: 119 | J54: 93
A55: 262 | B55: MEURTHE ET MOSELLE MEUSE | C55: 31 | D55: VERDUN | E55: 455151 | F55: BAR LE DUC | G55: 9.8 | H55: 109 | I55: 197 | J55: 88
A56: 262 | B56: BAS-RHIN | C56: 5006 | D56: STRASBOURG | E56: 4039 | F56: REICHSTETT | G56: 1.4 | H56: 216 | I56: 303 | J56: 87
A57: 262 | B57: VOSGES | C57: 57 | D57: EPINAL | E57: 588206 | F57: CHARMES | G57: 2.7 | H57: 134 | I57: 221 | J57: 87
A58: 262 | B58: MARNE-ARDENNES | C58: 6 | D58: CHALONS EN CHAMPAGNE | E58: 451120 | F58: SARRY | G58: 2.5 | H58: 20 | I58: 106 | J58: 86
A59: 262 | B59: MARNE-ARDENNES | C59: 11 | D59: REIMS | E59: 451308 | F59: REIMS SAINT THOMAS | G59: 8.2 | H59: 132 | I59: 215 | J59: 83
A60: 262 | B60: BAS-RHIN | C60: 5006 | D60: STRASBOURG | E60: 4028 | F60: BISCHHEIM | G60: 2.9 | H60: 182 | I60: 263 | J60: 81
A61: 262 | B61: BAS-RHIN | C61: 5006 | D61: STRASBOURG | E61: 4024 | F61: STRASBOURG AUSTERLITZ | G61: 2.7 | H61: 213 | I61: 291 | J61: 78
A62: 262 | B62: VOSGES | C62: 55 | D62: SAINT DIE | E62: 588186 | F62: BRUYERES | G62: 2.7 | H62: 78 | I62: 155 | J62: 77
A63: 262 | B63: HAUT-RHIN | C63: 5130 | D63: COLMAR | E63: 4130 | F63: COLMAR REPUBLIQUE | G63: 7.9 | H63: 196 | I63: 272 | J63: 76
A64: 262 | B64: VOSGES | C64: 57 | D64: EPINAL | E64: 488286 | F64: EPINAL ARISTIDE BRIAND | G64: 8.8 | H64: 148 | I64: 223 | J64: 75
A65: 262 | B65: MARNE-ARDENNES | C65: 6 | D65: CHALONS EN CHAMPAGNE | E65: 451381 | F65: SEZANNE CHAMP BENOIST | G65: 6.4 | H65: 156 | I65: 230 | J65: 74
A66: 262 | B66: AUBE HAUTE MARNE | C66: 21 | D66: CHAUMONT | E66: 551157 | F66: SAINT DIZIER EUROPE | G66: 2.5 | H66: 54 | I66: 127 | J66: 73
A67: 262 | B67: HAUT-RHIN | C67: 5130 | D67: COLMAR | E67: 4148 | F67: ORBEY | G67: 3.1 | H67: 206 | I67: 279 | J67: 73
A68: 262 | B68: MARNE-ARDENNES | C68: 2 | D68: CHARLEVILLE MEZIERES | E68: 408806 | F68: SEDAN LA HALLE | G68: 8.7 | H68: 58 | I68: 129 | J68: 71
A69: 262 | B69: AUBE HAUTE MARNE | C69: 14 | D69: TROYES | E69: 510511 | F69: TROYES BROSSOLETTE | G69: 3.2 | H69: 81 | I69: 148 | J69: 67
A70: 262 | B70: BAS-RHIN | C70: 5101 | D70: SELESTAT | E70: 4120 | F70: WASSELONNE | G70: 2.5 | H70: 138 | I70: 205 | J70: 67
A71: 262 | B71: MOSELLE | C71: 44 | D71: MOSELLE NORD | E71: 557113 | F71: AUDUN LE TICHE | G71: 2.6 | H71: 166 | I71: 231 | J71: 65
A72: 262 | B72: MEURTHE ET MOSELLE MEUSE | C72: 31 | D72: VERDUN | E72: 455231 | F72: COMMERCY | G72: 4.5 | H72: 135 | I72: 199 | J72: 64
A73: 262 | B73: MEURTHE ET MOSELLE MEUSE | C73: 31 | D73: VERDUN | E73: 555679 | F73: VERDUN MAZEL | G73: 3.8 | H73: 62 | I73: 126 | J73: 64
A74: 262 | B74: MARNE-ARDENNES | C74: 2 | D74: CHARLEVILLE MEZIERES | E74: 408822 | F74: CHARLEVILLE MEZIERES | G74: 4.2 | H74: 4 | I74: 67 | J74: 63
A75: 262 | B75: VOSGES | C75: 57 | D75: EPINAL | E75: 588216 | F75: CHATENOIS | G75: 1.0 | H75: 243 | I75: 306 | J75: 63
A76: 262 | B76: VOSGES | C76: 57 | D76: EPINAL | E76: 588396 | F76: LE VAL D AJOL | G76: 2.8 | H76: 128 | I76: 191 | J76: 63
A77: 262 | B77: MOSELLE | C77: 45 | D77: METZ | E77: 557436 | F77: METZ CATHEDRALE | G77: 4.9 | H77: 103 | I77: 165 | J77: 62
A78: 262 | B78: MEURTHE ET MOSELLE MEUSE | C78: 27 | D78: PONT A MOUSSON | E78: 554686 | F78: VEZELISE | G78: 1.7 | H78: 111 | I78: 171 | J78: 60
A79: 262 | B79: VOSGES | C79: 55 | D79: SAINT DIE | E79: 488246 | F79: CORNIMONT LA BRESSE | G79: 2.9 | H79: 51 | I79: 109 | J79: 58
A80: 262 | B80: VOSGES | C80: 55 | D80: SAINT DIE | E80: 488586 | F80: SAINT DIE | G80: 10.4 | H80: 125 | I80: 183 | J80: 58
A81: 262 | B81: HAUT-RHIN | C81: 5130 | D81: COLMAR | E81: 4147 | F81: GUEBWILLER | G81: 5.9 | H81: 235 | I81: 292 | J81: 57
A82: 262 | B82: MARNE-ARDENNES | C82: 2 | D82: CHARLEVILLE MEZIERES | E82: 508820 | F82: VOUZIERS | G82: 2.8 | H82: 60 | I82: 117 | J82: 57
A83: 262 | B83: MEURTHE ET MOSELLE MEUSE | C83: 31 | D83: VERDUN | E83: 455298 | F83: ETAIN | G83: 1.9 | H83: 85 | I83: 142 | J83: 57
A84: 264 | B84: MEURTHE ET MOSELLE MEUSE | C84: 31 | D84: VERDUN | E84: 554700 | F84: VILLERUPT | G84: 2.7 | H84: 59 | I84: 116 | J84: 57
A85: 264 | B85: BAS-RHIN | C85: 5060 | D85: HAGUENAU | E85: 4071 | F85: WISSEMBOURG | G85: 8.7 | H85: 84 | I85: 140 | J85: 56
A86: 264 | B86: MEURTHE ET MOSELLE MEUSE | C86: 27 | D86: PONT A MOUSSON | E86: 554533 | F86: PONT A MOUSSON BREUIL | G86: 3.5 | H86: 151 | I86: 206 | J86: 55
A87: 264 | B87: AUBE HAUTE MARNE | C87: 14 | D87: TROYES | E87: 510513 | F87: TROYES 1er MAI | G87: 4.2 | H87: 221 | I87: 274 | J87: 53
A88: 264 | B88: VOSGES | C88: 57 | D88: EPINAL | E88: 488291 | F88: EPINAL AVRINSART | G88: 1.8 | H88: 160 | I88: 213 | J88: 53
A89: 264 | B89: MOSELLE | C89: 45 | D89: METZ | E89: 557441 | F89: METZ PLAPPEVILLE | G89: 2.6 | H89: 129 | I89: 181 | J89: 52
A90: 264 | B90: BAS-RHIN | C90: 5101 | D90: SELESTAT | E90: 4101 | F90: SELESTAT CENTRE | G90: 8.0 | H90: 245 | I90: 296 | J90: 51
A91: 264 | B91: HAUT-RHIN | C91: 5169 | D91: MULHOUSE | E91: 4181 | F91: WITTELSHEIM | G91: 4.0 | H91: 100 | I91: 150 | J91: 50
A92: 264 | B92: MOSELLE | C92: 45 | D92: METZ | E92: 457574 | F92: ROMBAS | G92: 3.3 | H92: 86 | I92: 136 | J92: 50
A93: 264 | B93: MOSELLE | C93: 44 | D93: MOSELLE NORD | E93: 557660 | F93: UCKANGE JEANNE D ARC | G93: 1.9 | H93: 14 | I93: 64 | J93: 50
A94: 264 | B94: MEURTHE ET MOSELLE MEUSE | C94: 26 | D94: NANCY | E94: 554296 | F94: ESSEY LES NANCY | G94: 3.7 | H94: 231 | I94: 278 | J94: 47
A95: 264 | B95: MEURTHE ET MOSELLE MEUSE | C95: 27 | D95: PONT A MOUSSON | E95: 554506 | F95: CHALIGNY NEUVES MAISONS | G95: 2.7 | H95: 191 | I95: 236 | J95: 45
A96: 264 | B96: MOSELLE | C96: 45 | D96: METZ | E96: 557459 | F96: MOULINS LES METZ | G96: 2.8 | H96: 167 | I96: 209 | J96: 42
A97: 264 | B97: MARNE-ARDENNES | C97: 6 | D97: CHALONS EN CHAMPAGNE | E97: 451101 | F97: CHALONS VIVIERS | G97: 9.7 | H97: 18 | I97: 58 | J97: 40
A98: 264 | B98: HAUT-RHIN | C98: 5130 | D98: COLMAR | E98: 4143 | F98: MUNSTER | G98: 5.4 | H98: 195 | I98: 234 | J98: 39
A99: 264 | B99: MOSELLE | C99: 45 | D99: METZ | E99: 557447 | F99: METZ SAINT MAXIMIN | G99: 3.0 | H99: 10 | I99: 48 | J99: 38
A100: 264 | B100: AUBE HAUTE MARNE | C100: 14 | D100: TROYES | E100: 510556 | F100: BAR SUR SEINE | G100: 3.8 | H100: 188 | I100: 225 | J100: 37
A101: 264 | B101: BAS-RHIN | C101: 5101 | D101: SELESTAT | E101: 4104 | F101: ERSTEIN | G101: 4.6 | H101: 266 | I101: 302 | J101: 36
A102: 264 | B102: AUBE HAUTE MARNE | C102: 14 | D102: TROYES | E102: 510522 | F102: TROYES CHARTREUX | G102: 2.6 | H102: 229 | I102: 264 | J102: 35
A103: 264 | B103: MARNE-ARDENNES | C103: 6 | D103: CHALONS EN CHAMPAGNE | E103: 451166 | F103: VITRY LE FRANCOIS | G103: 6.4 | H103: 193 | I103: 228 | J103: 35
A104: 264 | B104: MEURTHE ET MOSELLE MEUSE | C104: 27 | D104: PONT A MOUSSON | E104: 554321 | F104: FROUARD | G104: 2.6 | H104: 83 | I104: 118 | J104: 35
A105: 264 | B105: MOSELLE | C105: 42 | D105: MOSELLE EST | E105: 557250 | F105: CREUTZWALD | G105: 3.0 | H105: 76 | I105: 111 | J105: 35
A106: 264 | B106: MOSELLE | C106: 42 | D106: MOSELLE EST | E106: 457435 | F106: MERLEBACH | G106: 3.4 | H106: 236 | I106: 271 | J106: 35
A107: 264 | B107: MARNE-ARDENNES | C107: 2 | D107: CHARLEVILLE MEZIERES | E107: 408862 | F107: REVIN | G107: 3.9 | H107: 37 | I107: 71 | J107: 34
A108: 264 | B108: BAS-RHIN | C108: 5101 | D108: SELESTAT | E108: 4126 | F108: MUTZIG | G108: 2.6 | H108: 65 | I108: 98 | J108: 33
A109: 264 | B109: VOSGES | C109: 57 | D109: EPINAL | E109: 588716 | F109: XERTIGNY | G109: 2.6 | H109: 45 | I109: 78 | J109: 33
A110: 264 | B110: AUBE HAUTE MARNE | C110: 14 | D110: TROYES | E110: 410510 | F110: TROYES GAMBETTA | G110: 9.7 | H110: 99 | I110: 130 | J110: 31
A111: 264 | B111: HAUT-RHIN | C111: 5130 | D111: COLMAR | E111: 4153 | F111: ROUFFACH | G111: 3.7 | H111: 133 | I111: 164 | J111: 31
A112: 30 | B112: HAUT-RHIN | C112: 5169 | D112: MULHOUSE | E112: 4188 | F112: PFASTATT | G112: 3.1 | H112: 274 | I112: 305 | J112: 31
A113: 30 | B113: MEURTHE ET MOSELLE MEUSE | C113: 31 | D113: VERDUN | E113: 455678 | F113: VERDUN CENTRALE | G113: 9.2 | H113: 95 | I113: 125 | J113: 30
A114: 30 | B114: BAS-RHIN | C114: 5101 | D114: SELESTAT | E114: 4127 | F114: ROSHEIM | G114: 1.4 | H114: 260 | I114: 288 | J114: 28
A115: 30 | B115: MARNE-ARDENNES | C115: 2 | D115: CHARLEVILLE MEZIERES | E115: 508802 | F115: CHARLEVILLE NEVERS | G115: 3.6 | H115: 35 | I115: 63 | J115: 28
A116: 30 | B116: MOSELLE | C116: 45 | D116: METZ | E116: 457453 | F116: MONTIGNY CENTRALE | G116: 7.7 | H116: 77 | I116: 105 | J116: 28
A117: 30 | B117: MEURTHE ET MOSELLE MEUSE | C117: 27 | D117: PONT A MOUSSON | E117: 554416 | F117: LUDRES | G117: 3.9 | H117: 19 | I117: 45 | J117: 26
A118: 30 | B118: MOSELLE | C118: 42 | D118: MOSELLE EST | E118: 457345 | F118: GROSBLIEDERSTROFF | G118: 2.5 | H118: 120 | I118: 146 | J118: 26
A119: 30 | B119: MARNE-ARDENNES | C119: 11 | D119: REIMS | E119: 551369 | F119: DAMERY | G119: 2.9 | H119: 6 | I119: 31 | J119: 25
A120: 30 | B120: MOSELLE | C120: 45 | D120: METZ | E120: 557105 | F120: ARS SUR MOSELLE | G120: 3.8 | H120: 70 | I120: 95 | J120: 25
A121: 30 | B121: MEURTHE ET MOSELLE MEUSE | C121: 26 | D121: NANCY | E121: 454171 | F121: BLAMONT | G121: 1.1 | H121: 174 | I121: 198 | J121: 24
A122: 30 | B122: MOSELLE | C122: 45 | D122: METZ | E122: 557178 | F122: BOULAY | G122: 3.0 | H122: 244 | I122: 268 | J122: 24
A123: 30 | B123: AUBE HAUTE MARNE | C123: 14 | D123: TROYES | E123: 510530 | F123: ARCIS SUR AUBE | G123: 3.7 | H123: 246 | I123: 269 | J123: 23
A124: 30 | B124: HAUT-RHIN | C124: 5169 | D124: MULHOUSE | E124: 4183 | F124: WITTENHEIM | G124: 2.4 | H124: 257 | I124: 280 | J124: 23
A125: 30 | B125: VOSGES | C125: 55 | D125: SAINT DIE | E125: 588316 | F125: FRAIZE | G125: 4.0 | H125: 179 | I125: 202 | J125: 23
A126: 30 | B126: MOSELLE | C126: 42 | D126: MOSELLE EST | E126: 457165 | F126: BITCHE | G126: 3.3 | H126: 63 | I126: 85 | J126: 22
A127: 30 | B127: BAS-RHIN | C127: 5006 | D127: STRASBOURG | E127: 4023 | F127: STRASBOURG VOSGES | G127: 3.3 | H127: 277 | I127: 298 | J127: 21
A128: 30 | B128: BAS-RHIN | C128: 5060 | D128: HAGUENAU | E128: 4080 | F128: WOERTH | G128: 2.3 | H128: 275 | I128: 295 | J128: 20
A129: 30 | B129: VOSGES | C129: 55 | D129: SAINT DIE | E129: 488556 | F129: RAON L ETAPE | G129: 3.5 | H129: 73 | I129: 93 | J129: 20
A130: 30 | B130: MEURTHE ET MOSELLE MEUSE | C130: 27 | D130: PONT A MOUSSON | E130: 554196 | F130: CHAMPIGNEULLES | G130: 3.2 | H130: 89 | I130: 107 | J130: 18
A131: 30 | B131: MOSELLE | C131: 44 | D131: MOSELLE NORD | E131: 557307 | F131: FONTOY | G131: 3.1 | H131: 57 | I131: 75 | J131: 18
A132: 30 | B132: VOSGES | C132: 57 | D132: EPINAL | E132: 488451 | F132: MIRECOURT | G132: 4.6 | H132: 268 | I132: 286 | J132: 18
A133: 30 | B133: BAS-RHIN | C133: 5060 | D133: HAGUENAU | E133: 4082 | F133: BOUXWILLER | G133: 2.8 | H133: 118 | I133: 133 | J133: 15
A134: 30 | B134: HAUT-RHIN | C134: 5169 | D134: MULHOUSE | E134: 4174 | F134: MULHOUSE DORNACH | G134: 5.5 | H134: 278 | I134: 293 | J134: 15
A135: 30 | B135: MEURTHE ET MOSELLE MEUSE | C135: 27 | D135: PONT A MOUSSON | E135: 554381 | F135: LAXOU ARISTIDE BRIAND | G135: 4.4 | H135: 227 | I135: 242 | J135: 15
A136: 30 | B136: MOSELLE | C136: 44 | D136: MOSELLE NORD | E136: 457350 | F136: HAYANGE | G136: 9.0 | H136: 237 | I136: 252 | J136: 15
A137: 30 | B137: BAS-RHIN | C137: 5101 | D137: SELESTAT | E137: 4111 | F137: BENFELD | G137: 3.7 | H137: 273 | I137: 287 | J137: 14
A138: 30 | B138: MEURTHE ET MOSELLE MEUSE | C138: 26 | D138: NANCY | E138: 554636 | F138: TOMBLAINE | G138: 2.7 | H138: 34 | I138: 47 | J138: 13
A139: 30 | B139: AUBE HAUTE MARNE | C139: 14 | D139: TROYES | E139: 410512 | F139: TROYES ZOLA | G139: 4.5 | H139: 228 | I139: 240 | J139: 12
A140: 30 | B140: BAS-RHIN | C140: 5006 | D140: STRASBOURG | E140: 4029 | F140: SCHILTIGHEIM KLEBER | G140: 2.3 | H140: 116 | I140: 128 | J140: 12
A141: 30 | B141: MOSELLE | C141: 45 | D141: METZ | E141: 457443 | F141: METZ REPUBLIQUE | G141: 3.9 | H141: 30 | I141: 40 | J141: 10
A142: 30 | B142: MARNE-ARDENNES | C142: 2 | D142: CHARLEVILLE MEZIERES | E142: 408801 | F142: CHARLEVILLE JEAN JAURES | G142: 8.5 | H142: 71 | I142: 80 | J142: 9
A143: 30 | B143: MARNE-ARDENNES | C143: 11 | D143: REIMS | E143: 451370 | F143: EPERNAY VERRON | G143: 10.6 | H143: 41 | I143: 50 | J143: 9
A144: 30 | B144: MEURTHE ET MOSELLE MEUSE | C144: 26 | D144: NANCY | E144: 454481 | F144: NANCY PLACE DOMBASLE | G144: 10.4 | H144: 7 | I144: 16 | J144: 9
A145: 30 | B145: MEURTHE ET MOSELLE MEUSE | C145: 27 | D145: PONT A MOUSSON | E145: 554531 | F145: POMPEY | G145: 2.5 | H145: 13 | I145: 22 | J145: 9
A146: 30 | B146: MOSELLE | C146: 45 | D146: METZ | E146: 557224 | F146: CLOUANGE | G146: 3.3 | H146: 232 | I146: 241 | J146: 9
A147: 30 | B147: MOSELLE | C147: 44 | D147: MOSELLE NORD | E147: 457180 | F147: BOUSSE | G147: 2.3 | H147: 210 | I147: 219 | J147: 9
A148: 30 | B148: VOSGES | C148: 55 | D148: SAINT DIE | E148: 488326 | F148: GERARDMER | G148: 5.1 | H148: 17 | I148: 26 | J148: 9
A149: 30 | B149: BAS-RHIN | C149: 5060 | D149: HAGUENAU | E149: 4067 | F149: PFAFFENHOFFEN | G149: 2.9 | H149: 141 | I149: 149 | J149: 8
A150: 30 | B150: HAUT-RHIN | C150: 5169 | D150: MULHOUSE | E150: 4178 | F150: SAINT LOUIS | G150: 7.7 | H150: 247 | I150: 255 | J150: 8
A151: 30 | B151: MARNE-ARDENNES | C151: 11 | D151: REIMS | E151: 551365 | F151: DORMANS | G151: 2.7 | H151: 28 | I151: 36 | J151: 8
A152: 30 | B152: MEURTHE ET MOSELLE MEUSE | C152: 27 | D152: PONT A MOUSSON | E152: 554357 | F152: JOEUF MAIRIE | G152: 4.4 | H152: 211 | I152: 218 | J152: 7
A153: 30 | B153: BAS-RHIN | C153: 5101 | D153: SELESTAT | E153: 4129 | F153: MARLENHEIM | G153: 2.5 | H153: 205 | I153: 211 | J153: 6
A154: 110 | B154: HAUT-RHIN | C154: 5130 | D154: COLMAR | E154: 4134 | F154: COLMAR SAINT JOSEPH | G154: 0.9 | H154: 283 | I154: 289 | J154: 6
A155: 110 | B155: HAUT-RHIN | C155: 5169 | D155: MULHOUSE | E155: 4169 | F155: MULHOUSE ROOSEVELT | G155: 5.7 | H155: 276 | I155: 282 | J155: 6
A156: 110 | B156: MARNE-ARDENNES | C156: 11 | D156: REIMS | E156: 551314 | F156: FISMES | G156: 2.4 | H156: 43 | I156: 49 | J156: 6
A157: 110 | B157: VOSGES | C157: 57 | D157: EPINAL | E157: 488288 | F157: EPINAL LEOPOLD BOURG | G157: 1.9 | H157: 2 | I157: 8 | J157: 6
A158: 110 | B158: AUBE HAUTE MARNE | C158: 14 | D158: TROYES | E158: 510570 | F158: NOGENT SUR SEINE | G158: 3.8 | H158: 39 | I158: 43 | J158: 4
A159: 110 | B159: BAS-RHIN | C159: 5060 | D159: HAGUENAU | E159: 4031 | F159: TRUCHTERSHEIM | G159: 3.0 | H159: 29 | I159: 33 | J159: 4
A160: 110 | B160: BAS-RHIN | C160: 5060 | D160: HAGUENAU | E160: 4060 | F160: HAGUENAU HOUBLON | G160: 9.4 | H160: 224 | I160: 226 | J160: 2
A161: 110 | B161: BAS-RHIN | C161: 5006 | D161: STRASBOURG | E161: 4048 | F161: STRASBOURG KOENIGSHOFFEN | G161: 2.8 | H161: 281 | I161: 283 | J161: 2
A162: 110 | B162: VOSGES | C162: 55 | D162: SAINT DIE | E162: 488616 | F162: SENONES | G162: 1.9 | H162: 66 | I162: 66 | J162: 0
A163: 110 | B163: AUBE HAUTE MARNE | C163: 14 | D163: TROYES | E163: 510520 | F163: SAINT ANDRE LES VERGERS | G163: 4.5 | H163: 248 | I163: 247 | J163: -1
A164: 110 | B164: BAS-RHIN | C164: 5101 | D164: SELESTAT | E164: 4119 | F164: OBERNAI | G164: 5.3 | H164: 249 | I164: 248 | J164: -1
A165: 110 | B165: MOSELLE | C165: 42 | D165: MOSELLE EST | E165: 557458 | F165: MORHANGE | G165: 2.3 | H165: 170 | I165: 169 | J165: -1
A166: 110 | B166: MOSELLE | C166: 44 | D166: MOSELLE NORD | E166: 457632 | F166: THIONVILLE CENTRALE | G166: 10.8 | H166: 225 | I166: 224 | J166: -1
A167: 110 | B167: VOSGES | C167: 57 | D167: EPINAL | E167: 588336 | F167: GOLBEY | G167: 4.0 | H167: 158 | I167: 157 | J167: -1
A168: 110 | B168: AUBE HAUTE MARNE | C168: 21 | D168: CHAUMONT | E168: 410560 | F168: BOURBONNE LES BAINS | G168: 1.9 | H168: 27 | I168: 25 | J168: -2
A169: 110 | B169: BAS-RHIN | C169: 5060 | D169: HAGUENAU | E169: 4087 | F169: SAVERNE | G169: 7.7 | H169: 175 | I169: 173 | J169: -2
A170: 110 | B170: MARNE-ARDENNES | C170: 11 | D170: REIMS | E170: 551310 | F170: REIMS CHATILLONS | G170: 3.6 | H170: 5 | I170: 3 | J170: -2
A171: 110 | B171: MARNE-ARDENNES | C171: 11 | D171: REIMS | E171: 551306 | F171: REIMS SAINT MARCEAUX | G171: 4.8 | H171: 23 | I171: 21 | J171: -2
A172: 110 | B172: MEURTHE ET MOSELLE MEUSE | C172: 31 | D172: VERDUN | E172: 455566 | F172: REVIGNY SUR ORNAIN | G172: 2.9 | H172: 110 | I172: 108 | J172: -2
A173: 110 | B173: MARNE-ARDENNES | C173: 6 | D173: CHALONS EN CHAMPAGNE | E173: 551354 | F173: VERTUS | G173: 2.8 | H173: 15 | I173: 12 | J173: -3
A174: 110 | B174: MARNE-ARDENNES | C174: 11 | D174: REIMS | E174: 551340 | F174: BETHENY | G174: 3.0 | H174: 8 | I174: 5 | J174: -3
A175: 110 | B175: MARNE-ARDENNES | C175: 11 | D175: REIMS | E175: 551309 | F175: REIMS EUROPE | G175: 2.8 | H175: 21 | I175: 17 | J175: -4
A176: 110 | B176: MARNE-ARDENNES | C176: 11 | D176: REIMS | E176: 551341 | F176: REIMS JEAN JAURES | G176: 4.1 | H176: 67 | I176: 62 | J176: -5
A177: 110 | B177: BAS-RHIN | C177: 5060 | D177: HAGUENAU | E177: 4030 | F177: BRUMATH | G177: 7.3 | H177: 241 | I177: 235 | J177: -6
A178: 110 | B178: BAS-RHIN | C178: 5060 | D178: HAGUENAU | E178: 4066 | F178: NIEDERBRONN LES BAINS | G178: 5.7 | H178: 169 | I178: 163 | J178: -6
A179: 110 | B179: HAUT-RHIN | C179: 5169 | D179: MULHOUSE | E179: 4184 | F179: ILLZACH | G179: 3.2 | H179: 267 | I179: 260 | J179: -7
A180: 110 | B180: MARNE-ARDENNES | C180: 6 | D180: CHALONS EN CHAMPAGNE | E180: 551330 | F180: MONTMIRAIL | G180: 3.1 | H180: 31 | I180: 24 | J180: -7
A181: 110 | B181: MARNE-ARDENNES | C181: 2 | D181: CHARLEVILLE MEZIERES | E181: 508833 | F181: VILLERS SEMEUSE CORA | G181: 2.9 | H181: 11 | I181: 4 | J181: -7
A182: 110 | B182: BAS-RHIN | C182: 5060 | D182: HAGUENAU | E182: 4095 | F182: SARRE UNION | G182: 4.2 | H182: 161 | I182: 152 | J182: -9
A183: 110 | B183: MARNE-ARDENNES | C183: 11 | D183: REIMS | E183: 551305 | F183: REIMS HIPPODROME | G183: 3.7 | H183: 44 | I183: 35 | J183: -9
A184: 110 | B184: MOSELLE | C184: 45 | D184: METZ | E184: 557444 | F184: METZ SAINT JULIEN | G184: 6.0 | H184: 49 | I184: 39 | J184: -10
A185: 110 | B185: BAS-RHIN | C185: 5101 | D185: SELESTAT | E185: 4121 | F185: SCHIRMECK | G185: 3.0 | H185: 126 | I185: 115 | J185: -11
A186: 110 | B186: BAS-RHIN | C186: 5060 | D186: HAGUENAU | E186: 4092 | F186: HOCHFELDEN | G186: 2.4 | H186: 114 | I186: 102 | J186: -12
A187: 110 | B187: MOSELLE | C187: 42 | D187: MOSELLE EST | E187: 557503 | F187: NEUNKIRCH | G187: 2.7 | H187: 53 | I187: 41 | J187: -12
A188: 110 | B188: BAS-RHIN | C188: 5006 | D188: STRASBOURG | E188: 4027 | F188: SCHILTIGHEIM CENTRE | G188: 3.1 | H188: 217 | I188: 204 | J188: -13
A189: 110 | B189: MARNE-ARDENNES | C189: 11 | D189: REIMS | E189: 451336 | F189: TINQUEUX | G189: 5.2 | H189: 32 | I189: 18 | J189: -14
A190: 110 | B190: VOSGES | C190: 55 | D190: SAINT DIE | E190: 488346 | F190: GRANGES AUMONTZEY | G190: 1.8 | H190: 24 | I190: 10 | J190: -14
A191: 110 | B191: AUBE HAUTE MARNE | C191: 21 | D191: CHAUMONT | E191: 410541 | F191: LANGRES | G191: 6.7 | H191: 88 | I191: 73 | J191: -15
A192: 110 | B192: MOSELLE | C192: 42 | D192: MOSELLE EST | E192: 457163 | F192: BEHREN LES FORBACH | G192: 2.4 | H192: 47 | I192: 32 | J192: -15
A193: 110 | B193: HAUT-RHIN | C193: 5130 | D193: COLMAR | E193: 4164 | F193: SAINTE MARIE AUX MINES | G193: 2.8 | H193: 272 | I193: 256 | J193: -16
A194: 110 | B194: MARNE-ARDENNES | C194: 6 | D194: CHALONS EN CHAMPAGNE | E194: 551103 | F194: FAGNIERES LECLERC | G194: 2.7 | H194: 22 | I194: 6 | J194: -16
A195: 110 | B195: MARNE-ARDENNES | C195: 11 | D195: REIMS | E195: 451350 | F195: REIMS CENTRE VILLE | G195: 8.0 | H195: 136 | I195: 120 | J195: -16
A196: 110 | B196: MEURTHE ET MOSELLE MEUSE | C196: 26 | D196: NANCY | E196: 454161 | F196: BAYON | G196: 1.3 | H196: 233 | I196: 216 | J196: -17
A197: 110 | B197: MEURTHE ET MOSELLE MEUSE | C197: 27 | D197: PONT A MOUSSON | E197: 554257 | F197: DIEULOUARD | G197: 3.5 | H197: 164 | I197: 147 | J197: -17
A198: 110 | B198: MOSELLE | C198: 45 | D198: METZ | E198: 557434 | F198: MARLY | G198: 3.8 | H198: 33 | I198: 15 | J198: -18
A199: 110 | B199: MOSELLE | C199: 45 | D199: METZ | E199: 557612 | F199: SAINTE MARIE AUX CHENES | G199: 3.8 | H199: 152 | I199: 134 | J199: -18
A200: 110 | B200: HAUT-RHIN | C200: 5169 | D200: MULHOUSE | E200: 4194 | F200: THANN | G200: 8.5 | H200: 226 | I200: 207 | J200: -19
A201: 110 | B201: MOSELLE | C201: 42 | D201: MOSELLE EST | E201: 557353 | F201: HOMBOURG HAUT | G201: 2.3 | H201: 262 | I201: 243 | J201: -19
A202: 110 | B202: AUBE HAUTE MARNE | C202: 14 | D202: TROYES | E202: 410571 | F202: ROMILLY ORMES | G202: 6.6 | H202: 157 | I202: 137 | J202: -20
A203: 110 | B203: AUBE HAUTE MARNE | C203: 14 | D203: TROYES | E203: 510523 | F203: LA CHAPELLE ST LUC | G203: 5.7 | H203: 194 | I203: 172 | J203: -22
A204: 110 | B204: MOSELLE | C204: 44 | D204: MOSELLE NORD | E204: 457634 | F204: THIONVILLE LA MILLIAIRE | G204: 1.5 | H204: 280 | I204: 258 | J204: -22
... 89 more rows

Sheet AG_FICHE
A1: Accueil
A2: BAROMETRE GRAND PUBLIC
A4: UNITE: | B4: Agence | E4: ETP perf : | F4: =VLOOKUP(A5,'RECAP AG'!$G$6:$DG$280,3,FALSE) -> 8.50
A5: =VLOOKUP(B5,LISTES!$C$6:$D$280,2,FALSE) -> 4189 | B5: ALTKIRCH
C6: Coefficient du critère | E6: Résultats | I6: Ecart au 1ier | K6: =IF(OR(A5=4017,A5=4022),"Rang estimé","Rang") -> Rang
E7: du 1ier | G7: de l'Agence | I7: Du mois
A9: RANG GRAND PUBLIC | K9: =VLOOKUP($A$5,'RECAP AG'!$G$6:$DG$280,104,FALSE) -> 267
A11: SATISFACTION CLIENTS | C11: 20% | K11: =VLOOKUP($A$5,'RECAP AG'!$G$6:$DG$280,13,FALSE) -> 230
B12: NPS à froid (SAE) | C12: 10% | E12: =+'RECAP AG'!K4 -> 39 | G12: =VLOOKUP($A$5,'RECAP AG'!$G$6:$DG$280,5,FALSE) -> -22.0 | I12: =VLOOKUP($A$5,'RECAP AG'!$G$6:$DG$280,6,FALSE) -> 101% | K12: =VLOOKUP($A$5,'RECAP AG'!$G$6:$DG$280,7,FALSE) -> 195
B13: NPS à chaud (QHD) | C13: 10% | E13: =+'RECAP AG'!M4 -> 10% | G13: =VLOOKUP($A$5,'RECAP AG'!$G$6:$DG$280,8,FALSE) -> 25% | I13: =VLOOKUP($A$5,'RECAP AG'!$G$6:$DG$280,9,FALSE) -> 72% | K13: =VLOOKUP($A$5,'RECAP AG'!$G$6:$DG$280,10,FALSE) -> 244
A15: BANCARISATION | C15: 20% | K15: =VLOOKUP($A$5,'RECAP AG'!$G$6:$DG$280,36,FALSE) -> 262
B16: Ventes Nettes produits pondérés | C16: 10% | E16: ='RECAP AG'!X4 -> 72.0 | G16: =VLOOKUP($A$5,'RECAP AG'!$G$6:$DG$280,19,FALSE) -> 9.3 | I16: =VLOOKUP($A$5,'RECAP AG'!$G$6:$DG$280,20,FALSE) -> 87% | K16: =VLOOKUP($A$5,'RECAP AG'!$G$6:$DG$280,21,FALSE) -> 226
B17: Ventes sur client non détenteur de l’univers | C17: 4% | E17: ='RECAP AG'!AB4 -> 36.2 | G17: =VLOOKUP($A$5,'RECAP AG'!$G$6:$DG$280,23,FALSE) -> 8.5 | I17: =VLOOKUP($A$5,'RECAP AG'!$G$6:$DG$280,24,FALSE) -> 77% | K17: =VLOOKUP($A$5,'RECAP AG'!$G$6:$DG$280,25,FALSE) -> 257
B18: Mobilité Macron | C18: 3% | E18: ='RECAP AG'!AF4 -> 19.4 | G18: =VLOOKUP($A$5,'RECAP AG'!$G$6:$DG$280,27,FALSE) -> 0.7 | I18: =VLOOKUP($A$5,'RECAP AG'!$G$6:$DG$280,28,FALSE) -> 96% | K18: =VLOOKUP($A$5,'RECAP AG'!$G$6:$DG$280,29,FALSE) -> 243
B19: Remises commerciales | C19: 3% | E19: ='RECAP AG'!AJ4 -> -0.2 | G19: =VLOOKUP($A$5,'RECAP AG'!$G$6:$DG$280,31,FALSE) -> -1.4 | I19: =VLOOKUP($A$5,'RECAP AG'!$G$6:$DG$280,32,FALSE) -> 50% | K19: =VLOOKUP($A$5,'RECAP AG'!$G$6:$DG$280,33,FALSE) -> 265
A21: EPARGNE | C21: 20% | K21: =VLOOKUP($A$5,'RECAP AG'!$G$6:$DG$280,51,FALSE) -> 250
B22: Excédent Epargne y/c DAV pondéré | C22: 14% | E22: ='RECAP AG'!AU4 -> 2279.9 | G22: =VLOOKUP($A$5,'RECAP AG'!$G$6:$DG$280,42,FALSE) -> 69.3 | I22: =VLOOKUP($A$5,'RECAP AG'!$G$6:$DG$280,43,FALSE) -> 95% | K22: =VLOOKUP($A$5,'RECAP AG'!$G$6:$DG$280,44,FALSE) -> 205
B23: Ventes sur client non détenteur de l’univers | C23: 6% | E23: ='RECAP AG'!AY4 -> 30.5 | G23: =VLOOKUP($A$5,'RECAP AG'!$G$6:$DG$280,46,FALSE) -> 3.3 | I23: =VLOOKUP($A$5,'RECAP AG'!$G$6:$DG$280,47,FALSE) -> 89% | K23: =VLOOKUP($A$5,'RECAP AG'!$G$6:$DG$280,48,FALSE) -> 263
A25: IARD PREVOYANCE | C25: 20% | K25: =VLOOKUP($A$5,'RECAP AG'!$G$6:$DG$280,85,FALSE) -> 263
B26: Ventes Nettes produits pondérés | C26: 14% | E26: ='RECAP AG'!CC4 -> 273.9 | G26: =VLOOKUP($A$5,'RECAP AG'!$G$6:$DG$280,76,FALSE) -> 3.4 | I26: =VLOOKUP($A$5,'RECAP AG'!$G$6:$DG$280,77,FALSE) -> 99% | K26: =VLOOKUP($A$5,'RECAP AG'!$G$6:$DG$280,78,FALSE) -> 266
B27: Ventes sur client non détenteur de l’univers | C27: 6% | E27: ='RECAP AG'!CG4 -> 30.6 | G27: =VLOOKUP($A$5,'RECAP AG'!$G$6:$DG$280,80,FALSE) -> 9.9 | I27: =VLOOKUP($A$5,'RECAP AG'!$G$6:$DG$280,81,FALSE) -> 68% | K27: =VLOOKUP($A$5,'RECAP AG'!$G$6:$DG$280,82,FALSE) -> 230
A29: CREDITS | C29: 20% | K29: =VLOOKUP($A$5,'RECAP AG'!$G$6:$DG$280,70,FALSE) -> 178
B30: Engagements et ventes accessoires pondérés Immo | C30: 8% | E30: ='RECAP AG'!BJ4 -> 281.0 | G30: =VLOOKUP($A$5,'RECAP AG'!$G$6:$DG$280,57,FALSE) -> 25.8 | I30: =VLOOKUP($A$5,'RECAP AG'!$G$6:$DG$280,58,FALSE) -> 68% | K30: =VLOOKUP($A$5,'RECAP AG'!$G$6:$DG$280,59,FALSE) -> 212
B31: Engagements et ventes accessoires pondérés Conso | C31: 6% | E31: ='RECAP AG'!BN4 -> 48.7 | G31: =VLOOKUP($A$5,'RECAP AG'!$G$6:$DG$280,61,FALSE) -> 22.3 | I31: =VLOOKUP($A$5,'RECAP AG'!$G$6:$DG$280,62,FALSE) -> 54% | K31: =VLOOKUP($A$5,'RECAP AG'!$G$6:$DG$280,63,FALSE) -> 79
B32: Ventes sur client non détenteur de l’univers | C32: 6% | E32: ='RECAP AG'!BR4 -> 19.2 | G32: =VLOOKUP($A$5,'RECAP AG'!$G$6:$DG$280,65,FALSE) -> 3.9 | I32: =VLOOKUP($A$5,'RECAP AG'!$G$6:$DG$280,66,FALSE) -> 80% | K32: =VLOOKUP($A$5,'RECAP AG'!$G$6:$DG$280,67,FALSE) -> 212

Sheet AG_TOTAL
B1: Accueil | H1: BAROMETRE BDD - AGENCES
H2: TOTAL GENERAL
H3: =ACCUEIL!F7 -> 2021-04-04
H7: TOTAL GENERAL | K7: Total Satisfaction Clients | N7: Total Bancarisation | Q7: Total Epargne | T7: Total IARD Prévoyance | W7: Total Crédits
I8: coef | J8: 100% | L8: coef | M8: =AG_SATISFACTION!P8 -> 20% | O8: coef | P8: =AG_BANCA!Z8 -> 20% | R8: coef | S8: =AG_EPARGNE!R8 -> 20% | U8: coef | V8: =AG_IARD!R8 -> 20% | X8: coef | Y8: =AG_CREDIT!V8 -> 20%
B9: Direction | C9: eds | D9: Territoire | E9: eds | F9: Agence | G9: ="ETP perf "&DATEMAJ!$C$28 -> ETP perf 28-févr | H9: Moyenne ecart au 1er | I9: % Ecart au 1er | J9: Rang CEGEE | K9: Moyenne ecart au 1er | L9: % Ecart au 1er | M9: Rang CEGEE | N9: Moyenne ecart au 1er | O9: % Ecart au 1er | P9: Rang CEGEE | Q9: Moyenne ecart au 1er | R9: % Ecart au 1er | S9: Rang CEGEE | T9: Moyenne ecart au 1er | U9: % Ecart au 1er | V9: Rang CEGEE | W9: Moyenne ecart au 1er | X9: % Ecart au 1er | Y9: Rang CEGEE
A10: 50 | B10: MEURTHE ET MOSELLE MEUSE | C10: 26 | D10: NANCY | E10: 454481 | F10: NANCY PLACE DOMBASLE | G10: 12.1 | H10: 28% | I10: 0% | J10: 1 | K10: 66% | L10: 55% | M10: 153 | N10: 15% | O10: 0% | P10: 1 | Q10: 66% | R10: 44% | S10: 11 | T10: 24% | U10: 19% | V10: 3 | W10: 28% | X10: 21% | Y10: 3
A11: 50 | B11: MEURTHE ET MOSELLE MEUSE | C11: 26 | D11: NANCY | E11: 554356 | F11: JARVILLE LA MALGRANGE | G11: 3.6 | H11: 30% | I11: 2% | J11: 2 | K11: 58% | L11: 47% | M11: 105 | N11: 25% | O11: 9% | P11: 3 | Q11: 78% | R11: 56% | S11: 61 | T11: 21% | U11: 15% | V11: 2 | W11: 30% | X11: 23% | Y11: 5
A12: 50 | B12: MEURTHE ET MOSELLE MEUSE | C12: 27 | D12: PONT A MOUSSON | E12: 554531 | F12: POMPEY | G12: 3.0 | H12: 32% | I12: 4% | J12: 3 | K12: 56% | L12: 45% | M12: 95 | N12: 18% | O12: 2% | P12: 2 | Q12: 65% | R12: 42% | S12: 8 | T12: 41% | U12: 36% | V12: 21 | W12: 40% | X12: 33% | Y12: 9
A13: 50 | B13: BAS-RHIN | C13: 5060 | D13: HAGUENAU | E13: 4092 | F13: HOCHFELDEN | G13: 1.6 | H13: 35% | I13: 7% | J13: 4 | K13: 44% | L13: 33% | M13: 41 | N13: 31% | O13: 16% | P13: 6 | Q13: 86% | R13: 64% | S13: 161 | T13: 38% | U13: 33% | V13: 17 | W13: 36% | X13: 29% | Y13: 8
A14: 50 | B14: VOSGES | C14: 57 | D14: EPINAL | E14: 488288 | F14: EPINAL LEOPOLD BOURG | G14: 1.9 | H14: 36% | I14: 8% | J14: 5 | K14: 29% | L14: 18% | M14: 13 | N14: 41% | O14: 26% | P14: 13 | Q14: 77% | R14: 55% | S14: 53 | T14: 63% | U14: 57% | V14: 93 | W14: 30% | X14: 23% | Y14: 6
A15: 50 | B15: BAS-RHIN | C15: 5101 | D15: SELESTAT | E15: 4113 | F15: BARR | G15: 3.0 | H15: 36% | I15: 8% | J15: 6 | K15: 36% | L15: 25% | M15: 24 | N15: 39% | O15: 24% | P15: 11 | Q15: 60% | R15: 38% | S15: 3 | T15: 37% | U15: 32% | V15: 14 | W15: 69% | X15: 62% | Y15: 194
A16: 50 | B16: MOSELLE | C16: 44 | D16: MOSELLE NORD | E16: 557508 | F16: NILVANGE | G16: 2.5 | H16: 38% | I16: 11% | J16: 7 | K16: 54% | L16: 43% | M16: 82 | N16: 45% | O16: 30% | P16: 19 | Q16: 74% | R16: 52% | S16: 28 | T16: 25% | U16: 19% | V16: 5 | W16: 54% | X16: 47% | Y16: 39
A17: 50 | B17: MARNE-ARDENNES | C17: 11 | D17: REIMS | E17: 551349 | F17: REIMS SAINT REMI | G17: 2.9 | H17: 39% | I17: 12% | J17: 8 | K17: 56% | L17: 44% | M17: 90 | N17: 42% | O17: 26% | P17: 14 | Q17: 64% | R17: 42% | S17: 5 | T17: 49% | U17: 43% | V17: 33 | W17: 49% | X17: 42% | Y17: 18
A18: 50 | B18: MEURTHE ET MOSELLE MEUSE | C18: 27 | D18: PONT A MOUSSON | E18: 454651 | F18: TOUL | G18: 9.4 | H18: 40% | I18: 12% | J18: 9 | K18: 104% | L18: 93% | M18: 261 | N18: 26% | O18: 10% | P18: 4 | Q18: 82% | R18: 59% | S18: 104 | T18: 42% | U18: 37% | V18: 22 | W18: 7% | X18: 0% | Y18: 1
A19: 50 | B19: MARNE-ARDENNES | C19: 11 | D19: REIMS | E19: 451336 | F19: TINQUEUX | G19: 5.6 | H19: 41% | I19: 13% | J19: 10 | K19: 61% | L19: 50% | M19: 118 | N19: 63% | O19: 48% | P19: 126 | Q19: 22% | R19: 0% | S19: 1 | T19: 58% | U19: 52% | V19: 64 | W19: 61% | X19: 54% | Y19: 87
A20: 50 | B20: MARNE-ARDENNES | C20: 11 | D20: REIMS | E20: 551305 | F20: REIMS HIPPODROME | G20: 3.6 | H20: 41% | I20: 13% | J20: 11 | K20: 26% | L20: 15% | M20: 8 | N20: 60% | O20: 45% | P20: 95 | Q20: 89% | R20: 67% | S20: 209 | T20: 39% | U20: 33% | V20: 18 | W20: 53% | X20: 46% | Y20: 31
A21: 50 | B21: MARNE-ARDENNES | C21: 2 | D21: CHARLEVILLE MEZIERES | E21: 408822 | F21: CHARLEVILLE MEZIERES | G21: 4.3 | H21: 42% | I21: 14% | J21: 12 | K21: 59% | L21: 48% | M21: 110 | N21: 56% | O21: 40% | P21: 62 | Q21: 64% | R21: 42% | S21: 7 | T21: 37% | U21: 32% | V21: 15 | W21: 54% | X21: 48% | Y21: 40
A22: 50 | B22: MARNE-ARDENNES | C22: 6 | D22: CHALONS EN CHAMPAGNE | E22: 451115 | F22: MOURMELON LE GRAND | G22: 2.9 | H22: 42% | I22: 14% | J22: 13 | K22: 48% | L22: 37% | M22: 59 | N22: 63% | O22: 48% | P22: 127 | Q22: 64% | R22: 42% | S22: 6 | T22: 46% | U22: 40% | V22: 29 | W22: 50% | X22: 43% | Y22: 19
A23: 50 | B23: MARNE-ARDENNES | C23: 2 | D23: CHARLEVILLE MEZIERES | E23: 508820 | F23: VOUZIERS | G23: 2.9 | H23: 42% | I23: 14% | J23: 14 | K23: 83% | L23: 72% | M23: 225 | N23: 60% | O23: 44% | P23: 84 | Q23: 76% | R23: 54% | S23: 44 | T23: 5% | U23: 0% | V23: 1 | W23: 47% | X23: 41% | Y23: 14
A24: 50 | B24: BAS-RHIN | C24: 5101 | D24: SELESTAT | E24: 4126 | F24: MUTZIG | G24: 2.0 | H24: 42% | I24: 15% | J24: 15 | K24: 66% | L24: 55% | M24: 154 | N24: 47% | O24: 32% | P24: 24 | Q24: 85% | R24: 62% | S24: 136 | T24: 49% | U24: 44% | V24: 35 | W24: 26% | X24: 19% | Y24: 2
A25: 50 | B25: MOSELLE | C25: 42 | D25: MOSELLE EST | E25: 557250 | F25: CREUTZWALD | G25: 2.5 | H25: 43% | I25: 15% | J25: 16 | K25: 46% | L25: 35% | M25: 49 | N25: 67% | O25: 52% | P25: 178 | Q25: 60% | R25: 38% | S25: 2 | T25: 45% | U25: 39% | V25: 28 | W25: 56% | X25: 49% | Y25: 52
A26: 50 | B26: MEURTHE ET MOSELLE MEUSE | C26: 26 | D26: NANCY | E26: 554636 | F26: TOMBLAINE | G26: 1.9 | H26: 44% | I26: 16% | J26: 17 | K26: 39% | L26: 28% | M26: 27 | N26: 73% | O26: 58% | P26: 229 | Q26: 75% | R26: 53% | S26: 37 | T26: 36% | U26: 30% | V26: 11 | W26: 57% | X26: 50% | Y26: 55
A27: 50 | B27: MEURTHE ET MOSELLE MEUSE | C27: 31 | D27: VERDUN | E27: 554413 | F27: LONGWY BAS | G27: 3.0 | H27: 44% | I27: 17% | J27: 18 | K27: 35% | L27: 24% | M27: 20 | N27: 45% | O27: 30% | P27: 20 | Q27: 72% | R27: 50% | S27: 21 | T27: 80% | U27: 74% | V27: 233 | W27: 51% | X27: 44% | Y27: 23
A28: 50 | B28: MOSELLE | C28: 45 | D28: METZ | E28: 557444 | F28: SAINT JULIEN LES METZ | G28: 5.0 | H28: 45% | I28: 17% | J28: 19 | K28: 55% | L28: 44% | M28: 86 | N28: 64% | O28: 49% | P28: 136 | Q28: 73% | R28: 50% | S28: 23 | T28: 40% | U28: 35% | V28: 19 | W28: 54% | X28: 47% | Y28: 34
A29: 50 | B29: MARNE-ARDENNES | C29: 2 | D29: CHARLEVILLE MEZIERES | E29: 508839 | F29: GIVET | G29: 3.5 | H29: 46% | I29: 18% | J29: 20 | K29: 46% | L29: 35% | M29: 47 | N29: 68% | O29: 52% | P29: 181 | Q29: 84% | R29: 62% | S29: 127 | T29: 25% | U29: 19% | V29: 4 | W29: 67% | X29: 60% | Y29: 169
A30: 50 | B30: VOSGES | C30: 55 | D30: SAINT DIE | E30: 488246 | F30: CORNIMONT LA BRESSE | G30: 2.7 | H30: 46% | I30: 18% | J30: 21 | K30: 38% | L30: 27% | M30: 26 | N30: 63% | O30: 48% | P30: 123 | Q30: 86% | R30: 63% | S30: 149 | T30: 44% | U30: 39% | V30: 25 | W30: 58% | X30: 51% | Y30: 66
A31: 50 | B31: MEURTHE ET MOSELLE MEUSE | C31: 31 | D31: VERDUN | E31: 554412 | F31: LONGUYON | G31: 2.5 | H31: 46% | I31: 18% | J31: 22 | K31: 35% | L31: 24% | M31: 21 | N31: 63% | O31: 47% | P31: 116 | Q31: 84% | R31: 62% | S31: 128 | T31: 53% | U31: 48% | V31: 48 | W31: 55% | X31: 48% | Y31: 45
A32: 262 | B32: AUBE HAUTE MARNE | C32: 21 | D32: CHAUMONT | E32: 510590 | F32: CHAUMONT REPUBLIQUE | G32: 4.2 | H32: 46% | I32: 19% | J32: 23 | K32: 53% | L32: 42% | M32: 80 | N32: 65% | O32: 49% | P32: 145 | Q32: 80% | R32: 57% | S32: 82 | T32: 44% | U32: 38% | V32: 24 | W32: 51% | X32: 44% | Y32: 20
A33: 262 | B33: BAS-RHIN | C33: 5101 | D33: SELESTAT | E33: 4120 | F33: WASSELONNE | G33: 2.8 | H33: 46% | I33: 19% | J33: 24 | K33: 74% | L33: 63% | M33: 188 | N33: 64% | O33: 49% | P33: 134 | Q33: 62% | R33: 39% | S33: 4 | T33: 38% | U33: 32% | V33: 16 | W33: 56% | X33: 49% | Y33: 51
A34: 262 | B34: MARNE-ARDENNES | C34: 2 | D34: CHARLEVILLE MEZIERES | E34: 408862 | F34: REVIN | G34: 3.8 | H34: 47% | I34: 19% | J34: 25 | K34: 55% | L34: 44% | M34: 89 | N34: 50% | O34: 34% | P34: 31 | Q34: 65% | R34: 43% | S34: 9 | T34: 64% | U34: 58% | V34: 99 | W34: 60% | X34: 53% | Y34: 82
A35: 262 | B35: MARNE-ARDENNES | C35: 11 | D35: REIMS | E35: 551310 | F35: REIMS CHATILLONS | G35: 3.7 | H35: 47% | I35: 19% | J35: 26 | K35: 56% | L35: 45% | M35: 92 | N35: 54% | O35: 39% | P35: 53 | Q35: 77% | R35: 55% | S35: 52 | T35: 53% | U35: 48% | V35: 50 | W35: 54% | X35: 47% | Y35: 35
A36: 262 | B36: MOSELLE | C36: 45 | D36: METZ | E36: 557447 | F36: METZ SAINT MAXIMIN | G36: 3.1 | H36: 47% | I36: 19% | J36: 27 | K36: 50% | L36: 39% | M36: 65 | N36: 52% | O36: 37% | P36: 38 | Q36: 86% | R36: 63% | S36: 154 | T36: 60% | U36: 54% | V36: 78 | W36: 48% | X36: 41% | Y36: 16
A37: 262 | B37: MEURTHE ET MOSELLE MEUSE | C37: 27 | D37: PONT A MOUSSON | E37: 554321 | F37: FROUARD | G37: 3.0 | H37: 47% | I37: 19% | J37: 28 | K37: 55% | L37: 44% | M37: 84 | N37: 59% | O37: 44% | P37: 79 | Q37: 72% | R37: 50% | S37: 22 | T37: 55% | U37: 50% | V37: 59 | W37: 55% | X37: 48% | Y37: 41
A38: 262 | B38: MARNE-ARDENNES | C38: 11 | D38: REIMS | E38: 551340 | F38: BETHENY | G38: 2.9 | H38: 47% | I38: 20% | J38: 29 | K38: 53% | L38: 42% | M38: 75 | N38: 51% | O38: 36% | P38: 35 | Q38: 70% | R38: 48% | S38: 17 | T38: 71% | U38: 66% | V38: 167 | W38: 52% | X38: 45% | Y38: 25
A39: 262 | B39: MARNE-ARDENNES | C39: 6 | D39: CHALONS EN CHAMPAGNE | E39: 551110 | F39: CHALONS ROOSEVELT | G39: 4.9 | H39: 47% | I39: 20% | J39: 30 | K39: 31% | L39: 20% | M39: 15 | N39: 65% | O39: 50% | P39: 150 | Q39: 74% | R39: 51% | S39: 27 | T39: 63% | U39: 57% | V39: 96 | W39: 64% | X39: 57% | Y39: 133
A40: 262 | B40: VOSGES | C40: 55 | D40: SAINT DIE | E40: 588186 | F40: BRUYERES | G40: 3.7 | H40: 47% | I40: 20% | J40: 31 | K40: 52% | L40: 41% | M40: 71 | N40: 55% | O40: 40% | P40: 60 | Q40: 87% | R40: 64% | S40: 165 | T40: 49% | U40: 43% | V40: 34 | W40: 56% | X40: 49% | Y40: 53
A41: 262 | B41: VOSGES | C41: 57 | D41: EPINAL | E41: 588716 | F41: XERTIGNY | G41: 3.0 | H41: 47% | I41: 20% | J41: 32 | K41: 55% | L41: 44% | M41: 83 | N41: 65% | O41: 49% | P41: 138 | Q41: 80% | R41: 57% | S41: 80 | T41: 26% | U41: 21% | V41: 6 | W41: 74% | X41: 67% | Y41: 245
A42: 262 | B42: BAS-RHIN | C42: 5006 | D42: STRASBOURG | E42: 4037 | F42: MUNDOLSHEIM | G42: 4.2 | H42: 48% | I42: 20% | J42: 33 | K42: 70% | L42: 59% | M42: 173 | N42: 33% | O42: 18% | P42: 8 | Q42: 73% | R42: 50% | S42: 24 | T42: 55% | U42: 50% | V42: 56 | W42: 69% | X42: 62% | Y42: 197
A43: 262 | B43: BAS-RHIN | C43: 5101 | D43: SELESTAT | E43: 4121 | F43: SCHIRMECK | G43: 3.5 | H43: 48% | I43: 20% | J43: 34 | K43: 46% | L43: 35% | M43: 51 | N43: 59% | O43: 44% | P43: 77 | Q43: 79% | R43: 57% | S43: 68 | T43: 58% | U43: 52% | V43: 66 | W43: 58% | X43: 51% | Y43: 64
A44: 262 | B44: MARNE-ARDENNES | C44: 11 | D44: REIMS | E44: 551367 | F44: AY CHAMPAGNE | G44: 2.7 | H44: 48% | I44: 20% | J44: 35 | K44: 60% | L44: 49% | M44: 112 | N44: 52% | O44: 36% | P44: 36 | Q44: 85% | R44: 63% | S44: 140 | T44: 60% | U44: 55% | V44: 80 | W44: 46% | X44: 39% | Y44: 11
A45: 262 | B45: MARNE-ARDENNES | C45: 11 | D45: REIMS | E45: 451361 | F45: PIERRY LECLERC | G45: 2.0 | H45: 48% | I45: 21% | J45: 36 | K45: 23% | L45: 12% | M45: 6 | N45: 62% | O45: 47% | P45: 114 | Q45: 93% | R45: 70% | S45: 244 | T45: 59% | U45: 54% | V45: 75 | W45: 65% | X45: 58% | Y45: 139
A46: 262 | B46: MARNE-ARDENNES | C46: 6 | D46: CHALONS EN CHAMPAGNE | E46: 551330 | F46: MONTMIRAIL | G46: 3.0 | H46: 48% | I46: 21% | J46: 37 | K46: 44% | L46: 33% | M46: 42 | N46: 72% | O46: 56% | P46: 209 | Q46: 73% | R46: 50% | S46: 25 | T46: 58% | U46: 52% | V46: 65 | W46: 56% | X46: 49% | Y46: 54
A47: 262 | B47: BAS-RHIN | C47: 5101 | D47: SELESTAT | E47: 4119 | F47: OBERNAI | G47: 3.2 | H47: 49% | I47: 21% | J47: 38 | K47: 92% | L47: 81% | M47: 248 | N47: 28% | O47: 13% | P47: 5 | Q47: 74% | R47: 52% | S47: 29 | T47: 42% | U47: 37% | V47: 23 | W47: 66% | X47: 59% | Y47: 158
A48: 262 | B48: BAS-RHIN | C48: 5006 | D48: STRASBOURG | E48: 4047 | F48: STRASBOURG CRONENBOURG | G48: 5.7 | H48: 49% | I48: 21% | J48: 39 | K48: 47% | L48: 36% | M48: 56 | N48: 59% | O48: 43% | P48: 74 | Q48: 78% | R48: 56% | S48: 58 | T48: 58% | U48: 53% | V48: 68 | W48: 62% | X48: 55% | Y48: 102
A49: 262 | B49: MARNE-ARDENNES | C49: 11 | D49: REIMS | E49: 551309 | F49: REIMS EUROPE | G49: 3.0 | H49: 49% | I49: 21% | J49: 40 | K49: 30% | L49: 19% | M49: 14 | N49: 65% | O49: 49% | P49: 140 | Q49: 79% | R49: 57% | S49: 70 | T49: 63% | U49: 57% | V49: 95 | W49: 67% | X49: 60% | Y49: 176
A50: 262 | B50: VOSGES | C50: 57 | D50: EPINAL | E50: 488706 | F50: VITTEL | G50: 3.6 | H50: 49% | I50: 21% | J50: 41 | K50: 41% | L50: 30% | M50: 35 | N50: 77% | O50: 61% | P50: 247 | Q50: 78% | R50: 56% | S50: 59 | T50: 44% | U50: 39% | V50: 26 | W50: 65% | X50: 58% | Y50: 136
A51: 262 | B51: MOSELLE | C51: 42 | D51: MOSELLE EST | E51: 457165 | F51: BITCHE | G51: 1.8 | H51: 49% | I51: 21% | J51: 42 | K51: 62% | L51: 51% | M51: 128 | N51: 49% | O51: 34% | P51: 30 | Q51: 103% | R51: 80% | S51: 269 | T51: 36% | U51: 30% | V51: 10 | W51: 56% | X51: 49% | Y51: 49
A52: 262 | B52: BAS-RHIN | C52: 5006 | D52: STRASBOURG | E52: 4010 | F52: STRASBOURG MEINAU | G52: 3.3 | H52: 49% | I52: 21% | J52: 43 | K52: 79% | L52: 68% | M52: 218 | N52: 49% | O52: 33% | P52: 27 | Q52: 81% | R52: 58% | S52: 90 | T52: 35% | U52: 30% | V52: 9 | W52: 63% | X52: 56% | Y52: 109
A53: 262 | B53: BAS-RHIN | C53: 5060 | D53: HAGUENAU | E53: 4079 | F53: SOULTZ SOUS FORETS | G53: 1.8 | H53: 49% | I53: 22% | J53: 44 | K53: 44% | L53: 32% | M53: 40 | N53: 45% | O53: 30% | P53: 21 | Q53: 90% | R53: 68% | S53: 216 | T53: 69% | U53: 64% | V53: 155 | W53: 59% | X53: 52% | Y53: 69
A54: 262 | B54: MEURTHE ET MOSELLE MEUSE | C54: 26 | D54: NANCY | E54: 454426 | F54: LUNEVILLE CARNOT | G54: 9.7 | H54: 49% | I54: 22% | J54: 45 | K54: 64% | L54: 52% | M54: 141 | N54: 48% | O54: 33% | P54: 26 | Q54: 83% | R54: 61% | S54: 114 | T54: 54% | U54: 48% | V54: 51 | W54: 59% | X54: 52% | Y54: 67
A55: 262 | B55: AUBE HAUTE MARNE | C55: 21 | D55: CHAUMONT | E55: 410560 | F55: BOURBONNE LES BAINS | G55: 2.0 | H55: 49% | I55: 22% | J55: 46 | K55: 16% | L55: 5% | M55: 2 | N55: 68% | O55: 53% | P55: 184 | Q55: 87% | R55: 65% | S55: 178 | T55: 65% | U55: 60% | V55: 113 | W55: 71% | X55: 64% | Y55: 221
A56: 262 | B56: MARNE-ARDENNES | C56: 2 | D56: CHARLEVILLE MEZIERES | E56: 508802 | F56: CHARLEVILLE NEVERS | G56: 3.0 | H56: 49% | I56: 22% | J56: 47 | K56: 28% | L56: 17% | M56: 12 | N56: 74% | O56: 58% | P56: 232 | Q56: 87% | R56: 64% | S56: 163 | T56: 59% | U56: 54% | V56: 74 | W56: 61% | X56: 54% | Y56: 88
A57: 262 | B57: VOSGES | C57: 57 | D57: EPINAL | E57: 588631 | F57: THAON LES VOSGES | G57: 5.5 | H57: 50% | I57: 22% | J57: 48 | K57: 43% | L57: 32% | M57: 38 | N57: 58% | O57: 42% | P57: 69 | Q57: 88% | R57: 65% | S57: 190 | T57: 54% | U57: 49% | V57: 53 | W57: 67% | X57: 60% | Y57: 171
A58: 262 | B58: MOSELLE | C58: 45 | D58: METZ | E58: 457443 | F58: METZ REPUBLIQUE | G58: 4.2 | H58: 50% | I58: 22% | J58: 49 | K58: 11% | L58: 0% | M58: 1 | N58: 72% | O58: 56% | P58: 215 | Q58: 89% | R58: 66% | S58: 204 | T58: 79% | U58: 74% | V58: 230 | W58: 59% | X58: 52% | Y58: 74
A59: 262 | B59: BAS-RHIN | C59: 5060 | D59: HAGUENAU | E59: 4071 | F59: WISSEMBOURG | G59: 8.4 | H59: 50% | I59: 22% | J59: 50 | K59: 34% | L59: 23% | M59: 18 | N59: 60% | O59: 45% | P59: 91 | Q59: 76% | R59: 54% | S59: 46 | T59: 67% | U59: 62% | V59: 129 | W59: 72% | X59: 65% | Y59: 232
A60: 262 | B60: MOSELLE | C60: 42 | D60: MOSELLE EST | E60: 557503 | F60: NEUNKIRCH | G60: 3.7 | H60: 50% | I60: 22% | J60: 51 | K60: 28% | L60: 17% | M60: 9 | N60: 64% | O60: 49% | P60: 132 | Q60: 83% | R60: 60% | S60: 113 | T60: 75% | U60: 69% | V60: 202 | W60: 62% | X60: 55% | Y60: 95
A61: 262 | B61: MEURTHE ET MOSELLE MEUSE | C61: 31 | D61: VERDUN | E61: 555624 | F61: STENAY | G61: 2.9 | H61: 50% | I61: 22% | J61: 52 | K61: 63% | L61: 51% | M61: 133 | N61: 38% | O61: 23% | P61: 10 | Q61: 82% | R61: 59% | S61: 102 | T61: 65% | U61: 60% | V61: 108 | W61: 64% | X61: 57% | Y61: 125
A62: 262 | B62: BAS-RHIN | C62: 5060 | D62: HAGUENAU | E62: 4082 | F62: BOUXWILLER | G62: 2.3 | H62: 50% | I62: 22% | J62: 53 | K62: 47% | L62: 36% | M62: 55 | N62: 65% | O62: 50% | P62: 148 | Q62: 66% | R62: 44% | S62: 10 | T62: 69% | U62: 63% | V62: 143 | W62: 64% | X62: 57% | Y62: 128
A63: 262 | B63: MOSELLE | C63: 44 | D63: MOSELLE NORD | E63: 557347 | F63: GUENANGE | G63: 2.4 | H63: 50% | I63: 23% | J63: 54 | K63: 68% | L63: 57% | M63: 163 | N63: 57% | O63: 41% | P63: 67 | Q63: 80% | R63: 57% | S63: 77 | T63: 62% | U63: 57% | V63: 89 | W63: 45% | X63: 38% | Y63: 10
A64: 262 | B64: MOSELLE | C64: 42 | D64: MOSELLE EST | E64: 457163 | F64: BEHREN LES FORBACH | G64: 2.7 | H64: 50% | I64: 23% | J64: 55 | K64: 34% | L64: 23% | M64: 17 | N64: 51% | O64: 35% | P64: 34 | Q64: 81% | R64: 58% | S64: 92 | T64: 60% | U64: 55% | V64: 81 | W64: 87% | X64: 80% | Y64: 273
A65: 262 | B65: MEURTHE ET MOSELLE MEUSE | C65: 31 | D65: VERDUN | E65: 555679 | F65: VERDUN MAZEL | G65: 4.0 | H65: 50% | I65: 23% | J65: 56 | K65: 43% | L65: 32% | M65: 39 | N65: 60% | O65: 44% | P65: 85 | Q65: 81% | R65: 59% | S65: 98 | T65: 65% | U65: 60% | V65: 112 | W65: 64% | X65: 57% | Y65: 123
A66: 262 | B66: BAS-RHIN | C66: 5060 | D66: HAGUENAU | E66: 4066 | F66: NIEDERBRONN LES BAINS | G66: 6.3 | H66: 50% | I66: 23% | J66: 57 | K66: 33% | L66: 22% | M66: 16 | N66: 65% | O66: 49% | P66: 139 | Q66: 87% | R66: 65% | S66: 175 | T66: 62% | U66: 57% | V66: 90 | W66: 66% | X66: 59% | Y66: 161
A67: 262 | B67: MARNE-ARDENNES | C67: 6 | D67: CHALONS EN CHAMPAGNE | E67: 551354 | F67: VERTUS | G67: 2.5 | H67: 50% | I67: 23% | J67: 58 | K67: 21% | L67: 10% | M67: 4 | N67: 74% | O67: 58% | P67: 231 | Q67: 95% | R67: 73% | S67: 255 | T67: 58% | U67: 53% | V67: 69 | W67: 66% | X67: 59% | Y67: 154
A68: 262 | B68: MOSELLE | C68: 45 | D68: METZ | E68: 457453 | F68: MONTIGNY LES METZ | G68: 8.2 | H68: 51% | I68: 23% | J68: 59 | K68: 35% | L68: 24% | M68: 22 | N68: 54% | O68: 38% | P68: 46 | Q68: 85% | R68: 62% | S68: 134 | T68: 78% | U68: 72% | V68: 222 | W68: 63% | X68: 56% | Y68: 114
A69: 262 | B69: MEURTHE ET MOSELLE MEUSE | C69: 31 | D69: VERDUN | E69: 455298 | F69: ETAIN | G69: 1.7 | H69: 51% | I69: 23% | J69: 60 | K69: 58% | L69: 47% | M69: 102 | N69: 77% | O69: 62% | P69: 250 | Q69: 88% | R69: 66% | S69: 194 | T69: 32% | U69: 27% | V69: 8 | W69: 60% | X69: 53% | Y69: 81
A70: 262 | B70: MARNE-ARDENNES | C70: 6 | D70: CHALONS EN CHAMPAGNE | E70: 451120 | F70: SARRY | G70: 2.5 | H70: 51% | I70: 23% | J70: 61 | K70: 39% | L70: 28% | M70: 28 | N70: 66% | O70: 51% | P70: 161 | Q70: 75% | R70: 53% | S70: 35 | T70: 67% | U70: 62% | V70: 127 | W70: 67% | X70: 60% | Y70: 174
A71: 262 | B71: MOSELLE | C71: 44 | D71: MOSELLE NORD | E71: 557113 | F71: AUDUN LE TICHE | G71: 2.0 | H71: 51% | I71: 23% | J71: 62 | K71: 90% | L71: 79% | M71: 242 | N71: 55% | O71: 39% | P71: 54 | Q71: 74% | R71: 51% | S71: 26 | T71: 51% | U71: 45% | V71: 41 | W71: 46% | X71: 39% | Y71: 12
A72: 262 | B72: MOSELLE | C72: 42 | D72: MOSELLE EST | E72: 457308 | F72: FORBACH CENTRALE | G72: 10.9 | H72: 51% | I72: 23% | J72: 63 | K72: 63% | L72: 52% | M72: 136 | N72: 54% | O72: 38% | P72: 50 | Q72: 81% | R72: 58% | S72: 89 | T72: 59% | U72: 53% | V72: 73 | W72: 59% | X72: 52% | Y72: 72
A73: 262 | B73: MEURTHE ET MOSELLE MEUSE | C73: 31 | D73: VERDUN | E73: 455456 | F73: MONTMEDY | G73: 1.8 | H73: 51% | I73: 23% | J73: 64 | K73: 52% | L73: 41% | M73: 69 | N73: 55% | O73: 40% | P73: 59 | Q73: 87% | R73: 64% | S73: 169 | T73: 66% | U73: 61% | V73: 122 | W73: 56% | X73: 49% | Y73: 46
A74: 262 | B74: MARNE-ARDENNES | C74: 11 | D74: REIMS | E74: 551365 | F74: DORMANS | G74: 2.8 | H74: 51% | I74: 23% | J74: 65 | K74: 22% | L74: 11% | M74: 5 | N74: 72% | O74: 57% | P74: 216 | Q74: 83% | R74: 60% | S74: 111 | T74: 74% | U74: 69% | V74: 198 | W74: 65% | X74: 58% | Y74: 147
A75: 262 | B75: MARNE-ARDENNES | C75: 11 | D75: REIMS | E75: 451350 | F75: REIMS CENTRE VILLE | G75: 7.5 | H75: 51% | I75: 24% | J75: 66 | K75: 72% | L75: 61% | M75: 181 | N75: 61% | O75: 45% | P75: 101 | Q75: 78% | R75: 55% | S75: 56 | T75: 58% | U75: 53% | V75: 71 | W75: 48% | X75: 42% | Y75: 17
A76: 262 | B76: VOSGES | C76: 55 | D76: SAINT DIE | E76: 488326 | F76: GERARDMER | G76: 5.5 | H76: 51% | I76: 24% | J76: 67 | K76: 34% | L76: 23% | M76: 19 | N76: 65% | O76: 49% | P76: 141 | Q76: 76% | R76: 54% | S76: 41 | T76: 76% | U76: 71% | V76: 211 | W76: 66% | X76: 59% | Y76: 155
A77: 262 | B77: BAS-RHIN | C77: 5101 | D77: SELESTAT | E77: 4107 | F77: VILLE | G77: 3.0 | H77: 51% | I77: 24% | J77: 68 | K77: 79% | L77: 68% | M77: 217 | N77: 41% | O77: 26% | P77: 12 | Q77: 80% | R77: 57% | S77: 81 | T77: 50% | U77: 45% | V77: 38 | W77: 68% | X77: 61% | Y77: 188
A78: 262 | B78: MARNE-ARDENNES | C78: 6 | D78: CHALONS EN CHAMPAGNE | E78: 451101 | F78: CHALONS VIVIERS | G78: 8.5 | H78: 51% | I78: 24% | J78: 69 | K78: 45% | L78: 34% | M78: 44 | N78: 57% | O78: 41% | P78: 66 | Q78: 84% | R78: 62% | S78: 132 | T78: 76% | U78: 70% | V78: 209 | W78: 57% | X78: 50% | Y78: 56
A79: 262 | B79: MARNE-ARDENNES | C79: 2 | D79: CHARLEVILLE MEZIERES | E79: 408801 | F79: CHARLEVILLE JEAN JAURES | G79: 9.4 | H79: 52% | I79: 24% | J79: 70 | K79: 61% | L79: 49% | M79: 116 | N79: 61% | O79: 46% | P79: 106 | Q79: 79% | R79: 56% | S79: 62 | T79: 68% | U79: 63% | V79: 136 | W79: 51% | X79: 44% | Y79: 24
A80: 262 | B80: AUBE HAUTE MARNE | C80: 21 | D80: CHAUMONT | E80: 451151 | F80: WASSY | G80: 1.9 | H80: 52% | I80: 24% | J80: 71 | K80: 66% | L80: 54% | M80: 148 | N80: 58% | O80: 43% | P80: 70 | Q80: 90% | R80: 68% | S80: 219 | T80: 53% | U80: 48% | V80: 47 | W80: 52% | X80: 46% | Y80: 28
A81: 262 | B81: MOSELLE | C81: 44 | D81: MOSELLE NORD | E81: 557660 | F81: UCKANGE | G81: 1.6 | H81: 52% | I81: 24% | J81: 72 | K81: 86% | L81: 75% | M81: 229 | N81: 59% | O81: 43% | P81: 72 | Q81: 85% | R81: 62% | S81: 139 | T81: 36% | U81: 31% | V81: 12 | W81: 54% | X81: 47% | Y81: 36
A82: 262 | B82: MEURTHE ET MOSELLE MEUSE | C82: 27 | D82: PONT A MOUSSON | E82: 554516 | F82: PAGNY SUR MOSELLE | G82: 2.7 | H82: 52% | I82: 24% | J82: 73 | K82: 51% | L82: 40% | M82: 67 | N82: 66% | O82: 51% | P82: 156 | Q82: 75% | R82: 52% | S82: 34 | T82: 61% | U82: 55% | V82: 84 | W82: 67% | X82: 60% | Y82: 177
A83: 264 | B83: MEURTHE ET MOSELLE MEUSE | C83: 26 | D83: NANCY | E83: 554476 | F83: NANCY ARTEM | G83: 2.7 | H83: 52% | I83: 24% | J83: 74 | K83: 57% | L83: 46% | M83: 96 | N83: 65% | O83: 49% | P83: 142 | Q83: 79% | R83: 57% | S83: 69 | T83: 62% | U83: 56% | V83: 88 | W83: 58% | X83: 51% | Y83: 61
A84: 264 | B84: BAS-RHIN | C84: 5006 | D84: STRASBOURG | E84: 4024 | F84: STRASBOURG AUSTERLITZ | G84: 2.2 | H84: 52% | I84: 24% | J84: 75 | K84: 99% | L84: 88% | M84: 259 | N84: 36% | O84: 21% | P84: 9 | Q84: 71% | R84: 48% | S84: 19 | T84: 60% | U84: 54% | V84: 79 | W84: 55% | X84: 48% | Y84: 42
A85: 264 | B85: MEURTHE ET MOSELLE MEUSE | C85: 27 | D85: PONT A MOUSSON | E85: 454535 | F85: PONT A MOUSSON CENTRALE | G85: 8.1 | H85: 52% | I85: 24% | J85: 76 | K85: 74% | L85: 63% | M85: 189 | N85: 44% | O85: 29% | P85: 17 | Q85: 78% | R85: 55% | S85: 55 | T85: 61% | U85: 56% | V85: 86 | W85: 64% | X85: 57% | Y85: 121
A86: 264 | B86: HAUT-RHIN | C86: 5130 | D86: COLMAR | E86: 4153 | F86: ROUFFACH | G86: 3.7 | H86: 52% | I86: 24% | J86: 77 | K86: 56% | L86: 45% | M86: 93 | N86: 64% | O86: 48% | P86: 129 | Q86: 87% | R86: 65% | S86: 181 | T86: 46% | U86: 41% | V86: 30 | W86: 68% | X86: 61% | Y86: 189
A87: 264 | B87: MEURTHE ET MOSELLE MEUSE | C87: 27 | D87: PONT A MOUSSON | E87: 554416 | F87: LUDRES | G87: 4.0 | H87: 52% | I87: 24% | J87: 78 | K87: 28% | L87: 17% | M87: 11 | N87: 65% | O87: 50% | P87: 151 | Q87: 90% | R87: 67% | S87: 211 | T87: 79% | U87: 73% | V87: 228 | W87: 60% | X87: 53% | Y87: 83
A88: 264 | B88: AUBE HAUTE MARNE | C88: 21 | D88: CHAUMONT | E88: 451154 | F88: JOINVILLE | G88: 2.0 | H88: 52% | I88: 24% | J88: 79 | K88: 18% | L88: 7% | M88: 3 | N88: 72% | O88: 57% | P88: 219 | Q88: 98% | R88: 76% | S88: 264 | T88: 73% | U88: 67% | V88: 185 | W88: 60% | X88: 53% | Y88: 85
A89: 264 | B89: AUBE HAUTE MARNE | C89: 21 | D89: CHAUMONT | E89: 410566 | F89: CHAUMONT HOTEL DE VILLE | G89: 7.4 | H89: 52% | I89: 24% | J89: 80 | K89: 50% | L89: 38% | M89: 62 | N89: 65% | O89: 50% | P89: 149 | Q89: 85% | R89: 63% | S89: 141 | T89: 63% | U89: 58% | V89: 97 | W89: 59% | X89: 52% | Y89: 70
A90: 264 | B90: MEURTHE ET MOSELLE MEUSE | C90: 27 | D90: PONT A MOUSSON | E90: 554357 | F90: JOEUF | G90: 4.0 | H90: 52% | I90: 25% | J90: 81 | K90: 57% | L90: 46% | M90: 97 | N90: 65% | O90: 50% | P90: 152 | Q90: 91% | R90: 68% | S90: 228 | T90: 56% | U90: 50% | V90: 61 | W90: 53% | X90: 46% | Y90: 32
A91: 264 | B91: MOSELLE | C91: 44 | D91: MOSELLE NORD | E91: 457348 | F91: HAGONDANGE | G91: 9.3 | H91: 52% | I91: 25% | J91: 82 | K91: 73% | L91: 62% | M91: 186 | N91: 55% | O91: 39% | P91: 55 | Q91: 80% | R91: 57% | S91: 76 | T91: 56% | U91: 51% | V91: 62 | W91: 59% | X91: 52% | Y91: 71
A92: 264 | B92: BAS-RHIN | C92: 5006 | D92: STRASBOURG | E92: 4038 | F92: OBERHAUSBERGEN | G92: 4.9 | H92: 52% | I92: 25% | J92: 83 | K92: 61% | L92: 50% | M92: 123 | N92: 54% | O92: 38% | P92: 47 | Q92: 80% | R92: 57% | S92: 75 | T92: 68% | U92: 63% | V92: 137 | W92: 61% | X92: 54% | Y92: 89
A93: 264 | B93: MEURTHE ET MOSELLE MEUSE | C93: 31 | D93: VERDUN | E93: 454414 | F93: LONGWY HAUT | G93: 4.0 | H93: 52% | I93: 25% | J93: 84 | K93: 64% | L93: 53% | M93: 142 | N93: 61% | O93: 45% | P93: 103 | Q93: 76% | R93: 54% | S93: 40 | T93: 58% | U93: 53% | V93: 70 | W93: 65% | X93: 58% | Y93: 137
A94: 264 | B94: MARNE-ARDENNES | C94: 11 | D94: REIMS | E94: 551314 | F94: FISMES | G94: 3.0 | H94: 52% | I94: 25% | J94: 85 | K94: 53% | L94: 42% | M94: 79 | N94: 62% | O94: 47% | P94: 112 | Q94: 81% | R94: 59% | S94: 97 | T94: 66% | U94: 60% | V94: 117 | W94: 62% | X94: 55% | Y94: 97
A95: 264 | B95: MEURTHE ET MOSELLE MEUSE | C95: 27 | D95: PONT A MOUSSON | E95: 554533 | F95: PONT A MOUSSON BREUIL | G95: 2.7 | H95: 53% | I95: 25% | J95: 86 | K95: 69% | L95: 58% | M95: 172 | N95: 55% | O95: 40% | P95: 58 | Q95: 82% | R95: 59% | S95: 100 | T95: 61% | U95: 56% | V95: 85 | W95: 57% | X95: 50% | Y95: 57
A96: 264 | B96: MEURTHE ET MOSELLE MEUSE | C96: 26 | D96: NANCY | E96: 554116 | F96: BACCARAT | G96: 2.0 | H96: 53% | I96: 25% | J96: 87 | K96: 40% | L96: 29% | M96: 32 | N96: 75% | O96: 59% | P96: 238 | Q96: 82% | R96: 60% | S96: 107 | T96: 74% | U96: 69% | V96: 200 | W96: 54% | X96: 47% | Y96: 33
A97: 264 | B97: MARNE-ARDENNES | C97: 11 | D97: REIMS | E97: 551369 | F97: DAMERY | G97: 3.0 | H97: 53% | I97: 25% | J97: 88 | K97: 46% | L97: 35% | M97: 48 | N97: 74% | O97: 59% | P97: 235 | Q97: 87% | R97: 64% | S97: 162 | T97: 54% | U97: 49% | V97: 52 | W97: 65% | X97: 58% | Y97: 134
A98: 264 | B98: BAS-RHIN | C98: 5060 | D98: HAGUENAU | E98: 4085 | F98: INGWILLER | G98: 3.3 | H98: 53% | I98: 25% | J98: 89 | K98: 66% | L98: 55% | M98: 152 | N98: 42% | O98: 27% | P98: 15 | Q98: 87% | R98: 64% | S98: 170 | T98: 68% | U98: 62% | V98: 131 | W98: 64% | X98: 57% | Y98: 124
A99: 264 | B99: VOSGES | C99: 57 | D99: EPINAL | E99: 588206 | F99: CHARMES | G99: 2.8 | H99: 53% | I99: 25% | J99: 90 | K99: 64% | L99: 53% | M99: 143 | N99: 70% | O99: 54% | P99: 195 | Q99: 85% | R99: 62% | S99: 133 | T99: 47% | U99: 42% | V99: 31 | W99: 62% | X99: 55% | Y99: 96
A100: 264 | B100: MEURTHE ET MOSELLE MEUSE | C100: 26 | D100: NANCY | E100: 454671 | F100: VANDOEUVRE LES NANCY | G100: 4.7 | H100: 53% | I100: 25% | J100: 91 | K100: 58% | L100: 47% | M100: 103 | N100: 56% | O100: 41% | P100: 63 | Q100: 92% | R100: 70% | S100: 237 | T100: 67% | U100: 61% | V100: 124 | W100: 54% | X100: 47% | Y100: 37
A101: 264 | B101: HAUT-RHIN | C101: 5130 | D101: COLMAR | E101: 4144 | F101: RIBEAUVILLE | G101: 2.9 | H101: 53% | I101: 26% | J101: 92 | K101: 69% | L101: 58% | M101: 166 | N101: 53% | O101: 38% | P101: 45 | Q101: 82% | R101: 60% | S101: 109 | T101: 53% | U101: 48% | V101: 46 | W101: 69% | X101: 62% | Y101: 198
A102: 264 | B102: BAS-RHIN | C102: 5006 | D102: STRASBOURG | E102: 4020 | F102: STRASBOURG ROBERTSAU | G102: 4.2 | H102: 53% | I102: 26% | J102: 93 | K102: 57% | L102: 46% | M102: 100 | N102: 53% | O102: 37% | P102: 42 | Q102: 82% | R102: 59% | S102: 105 | T102: 73% | U102: 68% | V102: 189 | W102: 62% | X102: 55% | Y102: 103
A103: 264 | B103: MARNE-ARDENNES | C103: 11 | D103: REIMS | E103: 451370 | F103: EPERNAY | G103: 11.6 | H103: 53% | I103: 26% | J103: 94 | K103: 46% | L103: 34% | M103: 46 | N103: 60% | O103: 45% | P103: 88 | Q103: 88% | R103: 65% | S103: 185 | T103: 67% | U103: 62% | V103: 125 | W103: 68% | X103: 61% | Y103: 185
A104: 264 | B104: BAS-RHIN | C104: 5101 | D104: SELESTAT | E104: 4007 | F104: ILLKIRCH CENTRE | G104: 7.0 | H104: 53% | I104: 26% | J104: 95 | K104: 66% | L104: 55% | M104: 158 | N104: 44% | O104: 28% | P104: 16 | Q104: 88% | R104: 66% | S104: 196 | T104: 60% | U104: 54% | V104: 77 | W104: 70% | X104: 63% | Y104: 208
A105: 264 | B105: MOSELLE | C105: 45 | D105: METZ | E105: 557105 | F105: ARS SUR MOSELLE | G105: 4.0 | H105: 53% | I105: 26% | J105: 96 | K105: 63% | L105: 52% | M105: 137 | N105: 63% | O105: 47% | P105: 122 | Q105: 87% | R105: 64% | S105: 166 | T105: 64% | U105: 59% | V105: 102 | W105: 51% | X105: 44% | Y105: 21
A106: 264 | B106: VOSGES | C106: 55 | D106: SAINT DIE | E106: 588587 | F106: SAINT DIE CATHEDRALE | G106: 4.0 | H106: 53% | I106: 26% | J106: 97 | K106: 39% | L106: 28% | M106: 30 | N106: 70% | O106: 55% | P106: 200 | Q106: 78% | R106: 55% | S106: 54 | T106: 71% | U106: 65% | V106: 166 | W106: 71% | X106: 64% | Y106: 220
A107: 264 | B107: HAUT-RHIN | C107: 5169 | D107: MULHOUSE | E107: 4181 | F107: WITTELSHEIM | G107: 3.1 | H107: 53% | I107: 26% | J107: 98 | K107: 58% | L107: 47% | M107: 106 | N107: 72% | O107: 56% | P107: 211 | Q107: 83% | R107: 61% | S107: 115 | T107: 68% | U107: 63% | V107: 142 | W107: 47% | X107: 40% | Y107: 13
A108: 30 | B108: MEURTHE ET MOSELLE MEUSE | C108: 27 | D108: PONT A MOUSSON | E108: 554376 | F108: LAXOU BOUFFLERS | G108: 3.0 | H108: 54% | I108: 26% | J108: 99 | K108: 66% | L108: 55% | M108: 155 | N108: 59% | O108: 44% | P108: 81 | Q108: 79% | R108: 56% | S108: 67 | T108: 62% | U108: 56% | V108: 87 | W108: 63% | X108: 56% | Y108: 113
A109: 30 | B109: MEURTHE ET MOSELLE MEUSE | C109: 26 | D109: NANCY | E109: 554266 | F109: DOMBASLE SUR MEURTHE | G109: 3.7 | H109: 54% | I109: 26% | J109: 100 | K109: 71% | L109: 60% | M109: 180 | N109: 70% | O109: 55% | P109: 202 | Q109: 67% | R109: 44% | S109: 12 | T109: 70% | U109: 65% | V109: 161 | W109: 51% | X109: 44% | Y109: 22
A110: 30 | B110: AUBE HAUTE MARNE | C110: 14 | D110: TROYES | E110: 510511 | F110: TROYES BROSSOLETTE | G110: 2.9 | H110: 54% | I110: 26% | J110: 101 | K110: 56% | L110: 44% | M110: 91 | N110: 60% | O110: 44% | P110: 83 | Q110: 75% | R110: 52% | S110: 33 | T110: 76% | U110: 71% | V110: 215 | W110: 65% | X110: 58% | Y110: 135
A111: 30 | B111: VOSGES | C111: 55 | D111: SAINT DIE | E111: 588386 | F111: LE THILLOT | G111: 2.6 | H111: 54% | I111: 26% | J111: 102 | K111: 62% | L111: 51% | M111: 131 | N111: 69% | O111: 53% | P111: 188 | Q111: 81% | R111: 58% | S111: 91 | T111: 48% | U111: 42% | V111: 32 | W111: 72% | X111: 65% | Y111: 228
A112: 30 | B112: MARNE-ARDENNES | C112: 2 | D112: CHARLEVILLE MEZIERES | E112: 508815 | F112: CARIGNAN | G112: 2.9 | H112: 54% | I112: 26% | J112: 103 | K112: 63% | L112: 52% | M112: 134 | N112: 65% | O112: 49% | P112: 137 | Q112: 70% | R112: 47% | S112: 16 | T112: 69% | U112: 64% | V112: 153 | W112: 65% | X112: 58% | Y112: 148
A113: 30 | B113: MARNE-ARDENNES | C113: 2 | D113: CHARLEVILLE MEZIERES | E113: 508819 | F113: MOUZON | G113: 2.0 | H113: 54% | I113: 27% | J113: 104 | K113: 52% | L113: 41% | M113: 72 | N113: 77% | O113: 62% | P113: 252 | Q113: 82% | R113: 59% | S113: 101 | T113: 67% | U113: 62% | V113: 128 | W113: 54% | X113: 47% | Y113: 38
A114: 30 | B114: BAS-RHIN | C114: 5006 | D114: STRASBOURG | E114: 4019 | F114: STRASBOURG ANVERS | G114: 3.9 | H114: 54% | I114: 27% | J114: 105 | K114: 94% | L114: 83% | M114: 253 | N114: 50% | O114: 35% | P114: 33 | Q114: 70% | R114: 47% | S114: 15 | T114: 65% | U114: 60% | V114: 114 | W114: 53% | X114: 46% | Y114: 30
A115: 30 | B115: BAS-RHIN | C115: 5006 | D115: STRASBOURG | E115: 4006 | F115: STRASBOURG NEUDORF | G115: 8.1 | H115: 54% | I115: 27% | J115: 106 | K115: 69% | L115: 58% | M115: 170 | N115: 45% | O115: 29% | P115: 18 | Q115: 89% | R115: 67% | S115: 206 | T115: 57% | U115: 52% | V115: 63 | W115: 72% | X115: 65% | Y115: 236
A116: 30 | B116: VOSGES | C116: 57 | D116: EPINAL | E116: 488451 | F116: MIRECOURT | G116: 4.9 | H116: 54% | I116: 27% | J116: 107 | K116: 77% | L116: 66% | M116: 209 | N116: 62% | O116: 47% | P116: 113 | Q116: 77% | R116: 54% | S116: 49 | T116: 50% | U116: 45% | V116: 39 | W116: 67% | X116: 61% | Y116: 181
A117: 30 | B117: MOSELLE | C117: 42 | D117: MOSELLE EST | E117: 557305 | F117: FAULQUEMONT | G117: 2.1 | H117: 55% | I117: 27% | J117: 108 | K117: 65% | L117: 54% | M117: 147 | N117: 64% | O117: 48% | P117: 128 | Q117: 84% | R117: 61% | S117: 122 | T117: 51% | U117: 46% | V117: 42 | W117: 70% | X117: 63% | Y117: 211
A118: 30 | B118: MEURTHE ET MOSELLE MEUSE | C118: 27 | D118: PONT A MOUSSON | E118: 554257 | F118: DIEULOUARD | G118: 3.5 | H118: 55% | I118: 27% | J118: 109 | K118: 40% | L118: 28% | M118: 31 | N118: 67% | O118: 51% | P118: 166 | Q118: 92% | R118: 70% | S118: 239 | T118: 68% | U118: 63% | V118: 141 | W118: 68% | X118: 61% | Y118: 186
A119: 30 | B119: BAS-RHIN | C119: 5006 | D119: STRASBOURG | E119: 4043 | F119: STRASBOURG HALLES | G119: 8.5 | H119: 55% | I119: 27% | J119: 110 | K119: 76% | L119: 65% | M119: 203 | N119: 49% | O119: 33% | P119: 29 | Q119: 80% | R119: 57% | S119: 83 | T119: 70% | U119: 65% | V119: 162 | W119: 60% | X119: 53% | Y119: 86
A120: 30 | B120: MARNE-ARDENNES | C120: 6 | D120: CHALONS EN CHAMPAGNE | E120: 451166 | F120: VITRY LE FRANCOIS | G120: 7.2 | H120: 55% | I120: 27% | J120: 111 | K120: 45% | L120: 33% | M120: 43 | N120: 66% | O120: 51% | P120: 158 | Q120: 87% | R120: 65% | S120: 177 | T120: 76% | U120: 71% | V120: 214 | W120: 61% | X120: 54% | Y120: 91
A121: 30 | B121: AUBE HAUTE MARNE | C121: 14 | D121: TROYES | E121: 510570 | F121: NOGENT SUR SEINE | G121: 4.1 | H121: 55% | I121: 27% | J121: 112 | K121: 28% | L121: 17% | M121: 10 | N121: 73% | O121: 58% | P121: 223 | Q121: 90% | R121: 67% | S121: 213 | T121: 84% | U121: 78% | V121: 245 | W121: 62% | X121: 55% | Y121: 98
A122: 30 | B122: MOSELLE | C122: 42 | D122: MOSELLE EST | E122: 457617 | F122: SARREGUEMINES | G122: 8.0 | H122: 55% | I122: 27% | J122: 113 | K122: 63% | L122: 52% | M122: 139 | N122: 61% | O122: 45% | P122: 99 | Q122: 78% | R122: 55% | S122: 57 | T122: 65% | U122: 60% | V122: 110 | W122: 69% | X122: 62% | Y122: 199
A123: 30 | B123: MARNE-ARDENNES | C123: 2 | D123: CHARLEVILLE MEZIERES | E123: 508833 | F123: VILLERS SEMEUSE CORA | G123: 3.3 | H123: 55% | I123: 27% | J123: 114 | K123: 69% | L123: 58% | M123: 165 | N123: 66% | O123: 51% | P123: 163 | Q123: 80% | R123: 58% | S123: 85 | T123: 63% | U123: 57% | V123: 94 | W123: 58% | X123: 51% | Y123: 62
A124: 30 | B124: MEURTHE ET MOSELLE MEUSE | C124: 27 | D124: PONT A MOUSSON | E124: 554196 | F124: CHAMPIGNEULLES | G124: 3.4 | H124: 55% | I124: 27% | J124: 115 | K124: 53% | L124: 42% | M124: 74 | N124: 66% | O124: 51% | P124: 157 | Q124: 84% | R124: 62% | S124: 131 | T124: 66% | U124: 61% | V124: 120 | W124: 68% | X124: 61% | Y124: 187
A125: 30 | B125: MOSELLE | C125: 42 | D125: MOSELLE EST | E125: 457258 | F125: DIEUZE | G125: 3.1 | H125: 55% | I125: 28% | J125: 116 | K125: 46% | L125: 35% | M125: 50 | N125: 65% | O125: 49% | P125: 143 | Q125: 87% | R125: 65% | S125: 184 | T125: 67% | U125: 62% | V125: 126 | W125: 72% | X125: 65% | Y125: 225
A126: 30 | B126: MARNE-ARDENNES | C126: 2 | D126: CHARLEVILLE MEZIERES | E126: 408806 | F126: SEDAN | G126: 8.5 | H126: 55% | I126: 28% | J126: 117 | K126: 43% | L126: 31% | M126: 36 | N126: 70% | O126: 54% | P126: 196 | Q126: 87% | R126: 65% | S126: 180 | T126: 76% | U126: 71% | V126: 210 | W126: 62% | X126: 55% | Y126: 99
A127: 30 | B127: AUBE HAUTE MARNE | C127: 21 | D127: CHAUMONT | E127: 451156 | F127: SAINT DIZIER CENTRE | G127: 6.9 | H127: 55% | I127: 28% | J127: 118 | K127: 65% | L127: 54% | M127: 146 | N127: 67% | O127: 52% | P127: 174 | Q127: 76% | R127: 54% | S127: 39 | T127: 63% | U127: 57% | V127: 92 | W127: 67% | X127: 60% | Y127: 173
A128: 30 | B128: VOSGES | C128: 55 | D128: SAINT DIE | E128: 488556 | F128: RAON L ETAPE | G128: 2.5 | H128: 55% | I128: 28% | J128: 119 | K128: 53% | L128: 42% | M128: 77 | N128: 60% | O128: 45% | P128: 98 | Q128: 92% | R128: 69% | S128: 234 | T128: 72% | U128: 66% | V128: 174 | W128: 61% | X128: 54% | Y128: 92
A129: 30 | B129: VOSGES | C129: 57 | D129: EPINAL | E129: 488561 | F129: REMIREMONT | G129: 6.2 | H129: 55% | I129: 28% | J129: 120 | K129: 52% | L129: 41% | M129: 70 | N129: 71% | O129: 56% | P129: 206 | Q129: 85% | R129: 63% | S129: 148 | T129: 64% | U129: 59% | V129: 106 | W129: 66% | X129: 59% | Y129: 152
A130: 30 | B130: AUBE HAUTE MARNE | C130: 21 | D130: CHAUMONT | E130: 551157 | F130: SAINT DIZIER EUROPE | G130: 2.8 | H130: 55% | I130: 28% | J130: 121 | K130: 67% | L130: 56% | M130: 161 | N130: 70% | O130: 55% | P130: 199 | Q130: 91% | R130: 68% | S130: 225 | T130: 55% | U130: 50% | V130: 57 | W130: 56% | X130: 49% | Y130: 47
A131: 30 | B131: AUBE HAUTE MARNE | C131: 21 | D131: CHAUMONT | E131: 410541 | F131: LANGRES | G131: 6.7 | H131: 56% | I131: 28% | J131: 122 | K131: 40% | L131: 29% | M131: 33 | N131: 71% | O131: 56% | P131: 207 | Q131: 93% | R131: 71% | S131: 249 | T131: 68% | U131: 63% | V131: 140 | W131: 66% | X131: 59% | Y131: 160
A132: 30 | B132: MEURTHE ET MOSELLE MEUSE | C132: 31 | D132: VERDUN | E132: 455566 | F132: REVIGNY SUR ORNAIN | G132: 3.8 | H132: 56% | I132: 28% | J132: 123 | K132: 37% | L132: 26% | M132: 25 | N132: 63% | O132: 47% | P132: 121 | Q132: 97% | R132: 75% | S132: 260 | T132: 75% | U132: 70% | V132: 206 | W132: 67% | X132: 60% | Y132: 175
A133: 30 | B133: MEURTHE ET MOSELLE MEUSE | C133: 27 | D133: PONT A MOUSSON | E133: 454355 | F133: JARNY | G133: 4.5 | H133: 56% | I133: 28% | J133: 124 | K133: 56% | L133: 45% | M133: 94 | N133: 60% | O133: 45% | P133: 90 | Q133: 88% | R133: 65% | S133: 188 | T133: 68% | U133: 63% | V133: 138 | W133: 68% | X133: 61% | Y133: 184
A134: 30 | B134: BAS-RHIN | C134: 5006 | D134: STRASBOURG | E134: 4027 | F134: SCHILTIGHEIM CENTRE | G134: 4.0 | H134: 56% | I134: 28% | J134: 125 | K134: 71% | L134: 59% | M134: 175 | N134: 54% | O134: 38% | P134: 49 | Q134: 75% | R134: 52% | S134: 32 | T134: 78% | U134: 73% | V134: 225 | W134: 63% | X134: 56% | Y134: 111
A135: 30 | B135: VOSGES | C135: 55 | D135: SAINT DIE | E135: 488586 | F135: SAINT DIE | G135: 11.6 | H135: 56% | I135: 28% | J135: 126 | K135: 59% | L135: 48% | M135: 108 | N135: 67% | O135: 52% | P135: 175 | Q135: 76% | R135: 54% | S135: 47 | T135: 68% | U135: 62% | V135: 133 | W135: 70% | X135: 63% | Y135: 203
A136: 30 | B136: HAUT-RHIN | C136: 5130 | D136: COLMAR | E136: 4157 | F136: NEUF BRISACH | G136: 3.8 | H136: 56% | I136: 28% | J136: 127 | K136: 76% | L136: 65% | M136: 202 | N136: 67% | O136: 52% | P136: 177 | Q136: 81% | R136: 59% | S136: 96 | T136: 53% | U136: 47% | V136: 44 | W136: 63% | X136: 56% | Y136: 117
A137: 30 | B137: BAS-RHIN | C137: 5006 | D137: STRASBOURG | E137: 4054 | F137: STRASBOURG MONTAGNE VERTE | G137: 2.6 | H137: 56% | I137: 28% | J137: 128 | K137: 94% | L137: 83% | M137: 252 | N137: 62% | O137: 47% | P137: 115 | Q137: 93% | R137: 70% | S137: 245 | T137: 32% | U137: 27% | V137: 7 | W137: 59% | X137: 52% | Y137: 68
A138: 30 | B138: VOSGES | C138: 57 | D138: EPINAL | E138: 588501 | F138: NEUFCHATEAU | G138: 5.0 | H138: 56% | I138: 28% | J138: 129 | K138: 53% | L138: 42% | M138: 76 | N138: 72% | O138: 56% | P138: 214 | Q138: 85% | R138: 62% | S138: 135 | T138: 72% | U138: 67% | V138: 177 | W138: 59% | X138: 52% | Y138: 73
A139: 30 | B139: MEURTHE ET MOSELLE MEUSE | C139: 31 | D139: VERDUN | E139: 554700 | F139: VILLERUPT | G139: 2.8 | H139: 56% | I139: 28% | J139: 130 | K139: 43% | L139: 32% | M139: 37 | N139: 62% | O139: 47% | P139: 109 | Q139: 84% | R139: 62% | S139: 130 | T139: 86% | U139: 81% | V139: 256 | W139: 66% | X139: 59% | Y139: 151
A140: 30 | B140: VOSGES | C140: 57 | D140: EPINAL | E140: 488291 | F140: EPINAL AVRINSART | G140: 1.8 | H140: 56% | I140: 28% | J140: 131 | K140: 50% | L140: 39% | M140: 63 | N140: 81% | O140: 65% | P140: 260 | Q140: 95% | R140: 72% | S140: 253 | T140: 56% | U140: 50% | V140: 60 | W140: 60% | X140: 53% | Y140: 84
A141: 30 | B141: MOSELLE | C141: 45 | D141: METZ | E141: 557612 | F141: SAINTE MARIE AUX CHENES | G141: 3.6 | H141: 56% | I141: 28% | J141: 132 | K141: 47% | L141: 35% | M141: 52 | N141: 77% | O141: 61% | P141: 246 | Q141: 88% | R141: 65% | S141: 187 | T141: 62% | U141: 57% | V141: 91 | W141: 68% | X141: 61% | Y141: 192
A142: 30 | B142: MEURTHE ET MOSELLE MEUSE | C142: 27 | D142: PONT A MOUSSON | E142: 554184 | F142: BRIEY | G142: 4.8 | H142: 56% | I142: 28% | J142: 133 | K142: 62% | L142: 50% | M142: 125 | N142: 66% | O142: 51% | P142: 162 | Q142: 76% | R142: 54% | S142: 45 | T142: 79% | U142: 73% | V142: 229 | W142: 58% | X142: 51% | Y142: 63
A143: 30 | B143: MOSELLE | C143: 45 | D143: METZ | E143: 557712 | F143: WOIPPY | G143: 5.5 | H143: 56% | I143: 28% | J143: 134 | K143: 69% | L143: 58% | M143: 171 | N143: 62% | O143: 47% | P143: 111 | Q143: 92% | R143: 69% | S143: 232 | T143: 53% | U143: 48% | V143: 49 | W143: 65% | X143: 59% | Y143: 150
A144: 30 | B144: MOSELLE | C144: 44 | D144: MOSELLE NORD | E144: 557352 | F144: HETTANGE GRANDE | G144: 4.2 | H144: 56% | I144: 28% | J144: 135 | K144: 91% | L144: 80% | M144: 246 | N144: 46% | O144: 30% | P144: 23 | Q144: 87% | R144: 65% | S144: 183 | T144: 55% | U144: 49% | V144: 54 | W144: 63% | X144: 56% | Y144: 110
A145: 30 | B145: AUBE HAUTE MARNE | C145: 14 | D145: TROYES | E145: 410571 | F145: ROMILLY SUR SEINE | G145: 6.2 | H145: 56% | I145: 29% | J145: 136 | K145: 62% | L145: 51% | M145: 126 | N145: 63% | O145: 47% | P145: 119 | Q145: 85% | R145: 62% | S145: 138 | T145: 71% | U145: 66% | V145: 169 | W145: 61% | X145: 54% | Y145: 94
A146: 30 | B146: VOSGES | C146: 57 | D146: EPINAL | E146: 588336 | F146: GOLBEY | G146: 3.3 | H146: 56% | I146: 29% | J146: 137 | K146: 53% | L146: 42% | M146: 81 | N146: 73% | O146: 58% | P146: 225 | Q146: 83% | R146: 61% | S146: 119 | T146: 73% | U146: 67% | V146: 184 | W146: 60% | X146: 53% | Y146: 79
A147: 30 | B147: VOSGES | C147: 55 | D147: SAINT DIE | E147: 588551 | F147: RAMBERVILLERS | G147: 3.7 | H147: 56% | I147: 29% | J147: 138 | K147: 25% | L147: 14% | M147: 7 | N147: 81% | O147: 65% | P147: 263 | Q147: 92% | R147: 70% | S147: 238 | T147: 74% | U147: 68% | V147: 192 | W147: 71% | X147: 64% | Y147: 217
A148: 30 | B148: BAS-RHIN | C148: 5060 | D148: HAGUENAU | E148: 4087 | F148: SAVERNE | G148: 8.6 | H148: 56% | I148: 29% | J148: 139 | K148: 92% | L148: 81% | M148: 249 | N148: 49% | O148: 33% | P148: 28 | Q148: 82% | R148: 59% | S148: 103 | T148: 59% | U148: 54% | V148: 76 | W148: 61% | X148: 54% | Y148: 90
A149: 110 | B149: MARNE-ARDENNES | C149: 6 | D149: CHALONS EN CHAMPAGNE | E149: 551128 | F149: SAINTE MENEHOULD | G149: 3.4 | H149: 56% | I149: 29% | J149: 140 | K149: 59% | L149: 48% | M149: 111 | N149: 63% | O149: 47% | P149: 118 | Q149: 81% | R149: 59% | S149: 95 | T149: 66% | U149: 60% | V149: 119 | W149: 75% | X149: 68% | Y149: 253
A150: 110 | B150: AUBE HAUTE MARNE | C150: 14 | D150: TROYES | E150: 410550 | F150: BAR SUR AUBE | G150: 5.9 | H150: 56% | I150: 29% | J150: 141 | K150: 62% | L150: 51% | M150: 132 | N150: 66% | O150: 51% | P150: 155 | Q150: 85% | R150: 63% | S150: 142 | T150: 63% | U150: 58% | V150: 98 | W150: 67% | X150: 60% | Y150: 166
A151: 110 | B151: AUBE HAUTE MARNE | C151: 14 | D151: TROYES | E151: 510523 | F151: LA CHAPELLE ST LUC | G151: 5.6 | H151: 56% | I151: 29% | J151: 142 | K151: 79% | L151: 68% | M151: 213 | N151: 60% | O151: 45% | P151: 93 | Q151: 84% | R151: 61% | S151: 120 | T151: 50% | U151: 45% | V151: 36 | W151: 71% | X151: 64% | Y151: 214
A152: 110 | B152: MEURTHE ET MOSELLE MEUSE | C152: 26 | D152: NANCY | E152: 554486 | F152: NANCY POINT CENTRAL | G152: 4.8 | H152: 56% | I152: 29% | J152: 143 | K152: 57% | L152: 46% | M152: 98 | N152: 67% | O152: 51% | P152: 164 | Q152: 84% | R152: 61% | S152: 125 | T152: 77% | U152: 71% | V152: 217 | W152: 59% | X152: 52% | Y152: 76
A153: 110 | B153: MEURTHE ET MOSELLE MEUSE | C153: 31 | D153: VERDUN | E153: 455151 | F153: BAR LE DUC | G153: 9.6 | H153: 57% | I153: 29% | J153: 144 | K153: 58% | L153: 47% | M153: 104 | N153: 65% | O153: 49% | P153: 146 | Q153: 88% | R153: 66% | S153: 193 | T153: 70% | U153: 64% | V153: 157 | W153: 63% | X153: 56% | Y153: 116
A154: 110 | B154: MOSELLE | C154: 42 | D154: MOSELLE EST | E154: 457614 | F154: SARREBOURG | G154: 9.1 | H154: 57% | I154: 29% | J154: 145 | K154: 61% | L154: 50% | M154: 120 | N154: 61% | O154: 46% | P154: 104 | Q154: 84% | R154: 61% | S154: 124 | T154: 73% | U154: 68% | V154: 188 | W154: 65% | X154: 58% | Y154: 145
A155: 110 | B155: BAS-RHIN | C155: 5101 | D155: SELESTAT | E155: 4116 | F155: MOLSHEIM | G155: 5.1 | H155: 57% | I155: 29% | J155: 146 | K155: 80% | L155: 69% | M155: 221 | N155: 61% | O155: 45% | P155: 102 | Q155: 67% | R155: 44% | S155: 13 | T155: 72% | U155: 66% | V155: 176 | W155: 65% | X155: 58% | Y155: 143
A156: 110 | B156: MOSELLE | C156: 45 | D156: METZ | E156: 557559 | F156: REMILLY | G156: 4.1 | H156: 57% | I156: 29% | J156: 147 | K156: 76% | L156: 65% | M156: 205 | N156: 66% | O156: 51% | P156: 159 | Q156: 88% | R156: 65% | S156: 191 | T156: 51% | U156: 45% | V156: 40 | W156: 64% | X156: 57% | Y156: 122
A157: 110 | B157: MOSELLE | C157: 42 | D157: MOSELLE EST | E157: 557523 | F157: PHALSBOURG | G157: 2.3 | H157: 57% | I157: 29% | J157: 148 | K157: 47% | L157: 36% | M157: 54 | N157: 79% | O157: 64% | P157: 257 | Q157: 78% | R157: 56% | S157: 60 | T157: 74% | U157: 68% | V157: 194 | W157: 66% | X157: 59% | Y157: 157
A158: 110 | B158: MEURTHE ET MOSELLE MEUSE | C158: 31 | D158: VERDUN | E158: 455231 | F158: COMMERCY | G158: 4.7 | H158: 57% | I158: 29% | J158: 149 | K158: 69% | L158: 57% | M158: 164 | N158: 63% | O158: 47% | P158: 117 | Q158: 91% | R158: 68% | S158: 226 | T158: 68% | U158: 62% | V158: 130 | W158: 56% | X158: 49% | Y158: 48
A159: 110 | B159: MEURTHE ET MOSELLE MEUSE | C159: 26 | D159: NANCY | E159: 554471 | F159: NANCY JEAN JAURES | G159: 0.5 | H159: 57% | I159: 29% | J159: 150 | K159: 59% | L159: 47% | M159: 107 | N159: 67% | O159: 52% | P159: 172 | Q159: 86% | R159: 63% | S159: 153 | T159: 106% | U159: 101% | V159: 273 | W159: 28% | X159: 21% | Y159: 4
